Workbook

Sheet PI vs gap
A1: Measurement | B1: Hall
A2: Type | B2: Gap dependence
A4: PS type | B4: HXR
A5: PS serial no | B5: 16316
A7: Measurement date | B7: ='DF raw data'!B2 -> 7. sep 2017
C11: Nominal gap [mm] | D11: Encoder [counts] | E11: Encoder [mm] | F11: PI [T^2mm^3] | H11: Encoder offset
C12: 10 | D12: =' 10 mm'!B3 -> 17715518 | E12: =(D12-$H$12)*-0.00025+10 -> 9.9975 | F12: =' 10 mm'!Q3 -> 709.737692 | H12: 17715508
C13: 12 | D13: =' 12 mm'!B3 -> 17707501 | E13: =(D13-$H$12)*-0.00025+10 -> 12.00175 | F13: =' 12 mm'!Q3 -> 543.9758608
C14: 15 | D14: =' 15 mm'!B3 -> 17695461 | E14: 15.01175 | F14: =' 15 mm'!Q3 -> 370.4626989
C15: 20 | D15: =' 20 mm'!B3 -> 17675442 | E15: 20.0165 | F15: =' 20 mm'!Q3 -> 202.6263426
C16: 30 | D16: =' 30 mm'!B3 -> 17635442 | E16: 30.0165 | F16: =' 30 mm'!Q3 -> 68.06376712
C17: 100 | D17: =' 100 mm'!B3 -> 17355458 | E17: 100.0125 | F17: =' 100 mm'!Q3 -> 0.3929570286
A41: Measuring series at 10 mm gap:
A42: Reference magnet
A43: Tref | B43: 21.025 | C43: degC
A44: Hall ref field | B44: -0.50528 | C44: T
A45: NMR ref field | B45: 0.5064395 | C45: T
A47: Measuring series at larger gaps:
A48: Reference magnet
A49: Tref | B49: 21.01 | C49: degC
A50: Hall ref field | B50: -0.50526 | C50: T
A51: NMR ref field | B51: 0.506444 | C51: T
A53: Offset from Faro | B53: 0.09866666667

Sheet 10 mm
A1: dz | B1: ='DF raw data'!B7 -> 0.50017 | C1: mm | F1: T_coeff | G1: -0.0008 | H1: /degC | L1: Hallref | M1: ='PI vs gap'!B44 -> -0.50528 | N1: T | P1: IBy total | Q1: =L1203*1000 -> 1.726387656 | R1: muTm | X1: DF ref | Y1: 18
A2: Tref | B2: ='DF raw data'!B8 -> 21.74 | C2: degC | F2: Tcorr | G2: 20 | H2: degC | L2: NMRref | M2: ='PI vs gap'!B45 -> 0.5064395 | N2: T | P2: JBy total | Q2: =M1203 -> 1.811766457 | R2: muTm^2
A3: Encoder | B3: ='DF raw data'!B9 -> 17715518 | P3: PI total | Q3: =N1203 -> 709.737692 | R3: T^2mm^3
A5: z [mm] | B5: Bx | C5: By | D5: Bz | F5: Bx_corr | G5: By_corr | H5: Bz_corr | J5: Ix | K5: Jx | L5: Iy | M5: Jy | N5: PI
A6: -0.068 | B6: ='DF raw data'!A11 -> -1.1315584e-06 | C6: ='DF raw data'!B11 -> -7.0046308e-06 | D6: ='DF raw data'!C11 -> 8.8744828e-06 | F6: =(1-$G$1*($B$2-$G$2))*B6 -> -1.133133529e-06 | G6: =(1-$G$1*($B$2-$G$2))*C6*$M$2/$M$1 -> 7.030477618e-06 | H6: =(1-$G$1*($B$2-$G$2))*D6 -> 8.88683608e-06 | J6: =F6*$B$1 -> -5.667593973e-07 | K6: =J6*$B$1 -> -2.834760478e-07 | L6: =G6*$B$1 -> 3.51643399e-06 | M6: =L6*$B$1 -> 1.758814789e-06 | N6: =(J6^2+L6)^2*$B$1 -> 6.184757237e-12
A7: =A6+$B$1 -> 0.43217 | B7: ='DF raw data'!A12 -> -1.5980055e-06 | C7: ='DF raw data'!B12 -> 5.2672003e-06 | D7: ='DF raw data'!C12 -> 6.4039318e-06 | F7: =(1-$G$1*($B$2-$G$2))*B7 -> -1.600229924e-06 | G7: =(1-$G$1*($B$2-$G$2))*C7*$M$2/$M$1 -> -5.286636067e-06 | H7: =(1-$G$1*($B$2-$G$2))*D7 -> 6.412846073e-06 | J7: =F7*$B$1+J6 -> -1.367146398e-06 | K7: =J7*$B$1+K6 -> -9.672816618e-07 | L7: =G7*$B$1+L6 -> 8.72217229e-07 | M7: =L7*$B$1+M6 -> 2.19507168e-06 | N7: =(J7^2+L7^2)*$B$1+N6 -> 7.500130396e-12
A8: =A7+$B$1 -> 0.93234 | B8: ='DF raw data'!A13 -> -1.4562989e-06 | C8: ='DF raw data'!B13 -> 6.9371725e-07 | D8: ='DF raw data'!C13 -> 2.6859611e-06 | F8: -1.458326068e-06 | G8: -6.9627704e-07 | H8: 2.689699958e-06 | J8: =F8*$B$1+J7 -> -2.096557348e-06 | K8: =J8*$B$1+K7 -> -2.01591675e-06 | L8: =G8*$B$1+L7 -> 5.239603419e-07 | M8: =L8*$B$1+M7 -> 2.457140925e-06 | N8: =(J8^2+L8^2)*$B$1+N7 -> 9.835967887e-12
A9: 1.43251 | B9: ='DF raw data'!A14 -> -1.9466402e-06 | C9: ='DF raw data'!B14 -> 1.3301918e-05 | D9: ='DF raw data'!C14 -> -1.0989047e-06 | F9: -1.949349923e-06 | G9: -1.335100157e-05 | H9: -1.100434375e-06 | J9: -3.071563699e-06 | K9: -3.552220766e-06 | L9: -6.153810112e-06 | M9: -6.208102789e-07 | N9: 3.349595077e-11
A10: 1.93268 | B10: ='DF raw data'!A15 -> -1.7054714e-06 | C10: ='DF raw data'!B15 -> 8.0135324e-06 | D10: ='DF raw data'!C15 -> 7.5511903e-06 | F10: -1.707845416e-06 | G10: -8.043102027e-06 | H10: 7.561701557e-06 | J10: -3.925776741e-06 | K10: -5.515776518e-06 | L10: -1.017672845e-05 | M10: -5.710904549e-06 | N10: 9.300493945e-11
A11: 2.43285 | B11: ='DF raw data'!A16 -> -1.291222e-06 | C11: ='DF raw data'!B16 -> -2.77152e-06 | D11: ='DF raw data'!C16 -> 1.0832778e-05 | F11: =(1-$G$1*($B$2-$G$2))*B11 -> -1.293019381e-06 | G11: 2.781746802e-06 | H11: =(1-$G$1*($B$2-$G$2))*D11 -> 1.084785723e-05 | J11: -4.572506244e-06 | K11: -7.802806966e-06 | L11: -8.785382154e-06 | M11: -1.010508914e-05 | N11: 1.420669914e-10
A12: 2.93302 | B12: ='DF raw data'!A17 -> -1.0548553e-06 | C12: ='DF raw data'!B17 -> -1.0850402e-05 | D12: ='DF raw data'!C17 -> 2.7596019e-07 | F12: -1.056323659e-06 | G12: 1.089043957e-05 | H12: 2.763443266e-07 | J12: -5.100847649e-06 | K12: -1.035409793e-05 | L12: -3.338310996e-06 | M12: -1.177481215e-05 | N12: 1.606547926e-10
A13: 3.43319 | B13: ='DF raw data'!A18 -> -1.2818069e-06 | C13: ='DF raw data'!B18 -> -4.3974633e-06 | D13: ='DF raw data'!C18 -> 9.6046779e-07 | F13: -1.283591175e-06 | G13: 4.413689771e-06 | H13: 9.618047612e-07 | J13: -5.742861447e-06 | K13: -1.322650494e-05 | L13: -1.130715784e-06 | M13: -1.234036227e-05 | N13: 1.777901045e-10
A14: 3.93336 | B14: ='DF raw data'!A19 -> -1.4556878e-06 | C14: ='DF raw data'!B19 -> 1.8816168e-07 | D14: ='DF raw data'!C19 -> -2.1353713e-07 | F14: -1.457714117e-06 | G14: -1.888559894e-07 | H14: -2.138343737e-07 | J14: -6.471966317e-06 | K14: -1.646358834e-05 | L14: -1.225175884e-06 | M14: -1.295315849e-05 | N14: 1.994911823e-10
A15: 4.43353 | B15: ='DF raw data'!A20 -> -1.6129503e-06 | C15: ='DF raw data'!B20 -> 4.4604999e-06 | D15: ='DF raw data'!C20 -> -1.2618838e-08 | F15: -1.615195527e-06 | G15: -4.476958973e-06 | H15: -1.263640342e-08 | J15: -7.279838664e-06 | K15: -2.010474524e-05 | L15: -3.464416453e-06 | M15: -1.468595566e-05 | N15: 2.320013482e-10
A16: 4.9337 | B16: ='DF raw data'!A21 -> -1.6754362e-06 | C16: ='DF raw data'!B21 -> 4.5462934e-06 | D16: ='DF raw data'!C21 -> -9.1807042e-06 | F16: -1.677768407e-06 | G16: -4.563069048e-06 | H16: -9.19348374e-06 | J16: -8.119008088e-06 | K16: -2.416562952e-05 | L16: -5.746726699e-06 | M16: -1.756029596e-05 | N16: 2.814897486e-10
A17: 5.43387 | B17: ='DF raw data'!A22 -> -1.6847058e-06 | C17: ='DF raw data'!B22 -> 5.1912803e-06 | D17: ='DF raw data'!C22 -> -6.4280198e-06 | F17: -1.68705091e-06 | G17: -5.210435925e-06 | H17: -6.436967604e-06 | J17: -8.962820342e-06 | K17: -2.864856337e-05 | L17: -8.352830436e-06 | M17: -2.173813116e-05 | N17: 3.565662283e-10
A18: 5.93404 | B18: ='DF raw data'!A23 -> -1.4062986e-06 | C18: ='DF raw data'!B23 -> -2.0256621e-06 | D18: ='DF raw data'!C23 -> -4.1128101e-06 | F18: -1.408256168e-06 | G18: 2.033136715e-06 | H18: -4.118535132e-06 | J18: -9.667187829e-06 | K18: -3.34838007e-05 | L18: -7.335916445e-06 | M18: -2.540733648e-05 | N18: 4.302263595e-10
A19: 6.43421 | B19: ='DF raw data'!A24 -> -1.3510886e-06 | C19: ='DF raw data'!B24 -> -3.1384448e-06 | D19: ='DF raw data'!C24 -> -1.9638414e-06 | F19: -1.352969315e-06 | G19: 3.150025541e-06 | H19: -1.966575067e-06 | J19: -1.034390249e-05 | K19: -3.865751041e-05 | L19: -5.76036817e-06 | M19: -2.828849983e-05 | N19: 5.003392699e-10
A20: 6.93438 | B20: ='DF raw data'!A25 -> -1.4141129e-06 | C20: ='DF raw data'!B25 -> -5.3221169e-07 | D20: ='DF raw data'!C25 -> 3.197752e-06 | F20: -1.416081345e-06 | G20: 5.341755307e-07 | H20: 3.202203271e-06 | J20: -1.10521839e-05 | K20: -4.418548123e-05 | L20: -5.493189595e-06 | M20: -3.103602847e-05 | N20: 5.765281157e-10
A21: 7.43455 | B21: ='DF raw data'!A26 -> -1.2543766e-06 | C21: ='DF raw data'!B26 -> -5.0884828e-06 | D21: ='DF raw data'!C26 -> 1.7543912e-06 | F21: -1.256122692e-06 | G21: 5.107259106e-06 | H21: 1.756833313e-06 | J21: -1.168045878e-05 | K21: -5.00276963e-05 | L21: -2.938691808e-06 | M21: -3.250587395e-05 | N21: 6.49087291e-10
A22: 7.93472 | B22: ='DF raw data'!A27 -> -5.4221893e-08 | C22: ='DF raw data'!B27 -> -4.6262912e-06 | D22: ='DF raw data'!C27 -> 1.070815e-06 | F22: -5.429736988e-08 | G22: 4.643362037e-06 | H22: 1.072305574e-06 | J22: -1.17076167e-05 | K22: -5.588349495e-05 | L22: -6.162214179e-07 | M22: -3.281408942e-05 | N22: 7.178346659e-10
A23: 8.43489 | B23: ='DF raw data'!A28 -> 1.3503289e-06 | C23: ='DF raw data'!B28 -> 2.8204129e-06 | D23: ='DF raw data'!C28 -> 5.8183191e-06 | F23: 1.352208558e-06 | G23: -2.830820115e-06 | H23: 5.8264182e-06 | J23: -1.103128255e-05 | K23: -6.140101154e-05 | L23: -2.032112715e-06 | M23: -3.383049124e-05 | N23: 7.807653935e-10
A24: 8.93506 | B24: ='DF raw data'!A29 -> -8.9359094e-07 | C24: ='DF raw data'!B29 -> 9.4660199e-06 | D24: ='DF raw data'!C29 -> 3.8802659e-06 | F24: -8.948348186e-07 | G24: -9.50094915e-06 | H24: 3.88566723e-06 | J24: -1.147885208e-05 | K24: -6.714238898e-05 | L24: -6.784202451e-06 | M24: -3.722374578e-05 | N24: 8.696903416e-10
A25: 9.43523 | B25: ='DF raw data'!A30 -> -3.7938603e-06 | C25: ='DF raw data'!B30 -> 7.1892186e-06 | D25: ='DF raw data'!C30 -> 1.750404e-06 | F25: -3.799141354e-06 | G25: -7.21574654e-06 | H25: 1.752840562e-06 | J25: -1.337906861e-05 | K25: -7.383419773e-05 | L25: -1.03933024e-05 | M25: -4.242216384e-05 | N25: 1.013249241e-09
A26: 9.9354 | B26: ='DF raw data'!A31 -> -3.5906137e-06 | C26: ='DF raw data'!B31 -> -1.0214891e-06 | D26: ='DF raw data'!C31 -> -1.0069948e-06 | F26: -3.595611834e-06 | G26: 1.025258356e-06 | H26: -1.008396537e-06 | J26: -1.517748578e-05 | K26: -8.142552079e-05 | L26: -9.880498927e-06 | M26: -4.736409299e-05 | N26: 1.177295164e-09
A27: 10.43557 | B27: ='DF raw data'!A32 -> 1.1380602e-06 | C27: ='DF raw data'!B32 -> 1.178445e-05 | D27: ='DF raw data'!C32 -> -3.1808472e-06 | F27: 1.13964438e-06 | G27: -1.182793417e-05 | H27: -3.185274939e-06 | J27: -1.460746985e-05 | K27: -8.873173899e-05 | L27: -1.579647676e-05 | M27: -5.526501677e-05 | N27: 1.408827285e-09
A28: 10.93574 | B28: ='DF raw data'!A33 -> 5.7789425e-06 | C28: ='DF raw data'!B33 -> 1.8725332e-05 | D28: ='DF raw data'!C33 -> -2.5119248e-06 | F28: 5.786986788e-06 | G28: -1.879442776e-05 | H28: -2.515421399e-06 | J28: -1.171299267e-05 | K28: -9.459022653e-05 | L28: -2.519688569e-05 | M28: -6.786774308e-05 | N28: 1.794997161e-09
A29: 11.43591 | B29: ='DF raw data'!A34 -> 5.3488898e-06 | C29: ='DF raw data'!B34 -> 2.7906585e-06 | D29: ='DF raw data'!C34 -> 1.8224796e-06 | F29: 5.356335455e-06 | G29: -2.800955923e-06 | H29: 1.825016492e-06 | J29: -9.033914364e-06 | K29: -9.910871948e-05 | L29: -2.659783981e-05 | M29: -8.117118462e-05 | N29: 2.189659647e-09
A30: 11.93608 | B30: ='DF raw data'!A35 -> 1.6739926e-06 | C30: ='DF raw data'!B35 -> -4.4815255e-07 | D30: ='DF raw data'!C35 -> 4.9166323e-07 | F30: 1.676322798e-06 | G30: 4.498062157e-07 | H30: 4.923476252e-07 | J30: -8.19546799e-06 | K30: -0.0001032078467 | L30: -2.637286024e-05 | M30: -9.436209813e-05 | N30: 2.571136031e-09
A31: 12.43625 | B31: ='DF raw data'!A36 -> -1.0049276e-06 | C31: ='DF raw data'!B36 -> 1.3749964e-06 | D31: ='DF raw data'!C36 -> 6.6977641e-06 | F31: -1.006326459e-06 | G31: -1.380070084e-06 | H31: 6.707087388e-06 | J31: -8.698802295e-06 | K31: -0.0001075587266 | L31: -2.706312989e-05 | M31: -0.0001078982638 | N31: 2.975314485e-09
A32: 12.93642 | B32: ='DF raw data'!A37 -> -5.5550629e-07 | C32: ='DF raw data'!B37 -> -2.8622503e-06 | D32: ='DF raw data'!C37 -> 9.7088023e-06 | F32: -5.562795548e-07 | G32: 2.872811894e-06 | H32: 9.722316953e-06 | J32: -8.97703664e-06 | K32: -0.0001120487711 | L32: -2.562623557e-05 | M32: -0.000120715738 | N32: 3.344085393e-09
A33: 13.43659 | B33: ='DF raw data'!A38 -> 1.6692357e-07 | C33: ='DF raw data'!B38 -> 9.1368556e-06 | D33: ='DF raw data'!C38 -> 5.7795819e-06 | F33: 1.671559276e-07 | G33: -9.170570246e-06 | H33: 5.787627078e-06 | J33: -8.89343026e-06 | K33: -0.0001164969981 | L33: -3.021307969e-05 | M33: -0.0001358274141 | N33: 3.840215663e-09
A34: 13.93676 | B34: ='DF raw data'!A39 -> -1.5400437e-07 | C34: ='DF raw data'!B39 -> 7.7157229e-06 | D34: ='DF raw data'!C39 -> 6.7359629e-06 | F34: -1.542187441e-07 | G34: -7.744193621e-06 | H34: 6.74533936e-06 | J34: -8.970565849e-06 | K34: -0.000120983806 | L34: -3.408649301e-05 | M34: -0.0001528764553 | N34: 4.461606893e-09
A35: 14.43693 | B35: ='DF raw data'!A40 -> 4.5574998e-07 | C35: ='DF raw data'!B40 -> 1.2811945e-07 | D35: ='DF raw data'!C40 -> 3.8797421e-06 | F35: 4.56384384e-07 | G35: -1.285922058e-07 | H35: 3.885142701e-06 | J35: -8.742296072e-06 | K35: -0.0001253564402 | L35: -3.415081097e-05 | M35: -0.0001699576665 | N35: 5.083170968e-09
A36: 14.9371 | B36: ='DF raw data'!A41 -> 1.179504e-06 | C36: ='DF raw data'!B41 -> -3.2331777e-06 | D36: ='DF raw data'!C41 -> 8.8454663e-06 | F36: 1.18114587e-06 | G36: 3.245108001e-06 | H36: 8.857779189e-06 | J36: -8.151522342e-06 | K36: -0.0001294335871 | L36: -3.252770531e-05 | M36: -0.0001862270488 | N36: 5.645611597e-09
A37: 15.43727 | B37: ='DF raw data'!A42 -> 6.3897312e-07 | C37: ='DF raw data'!B42 -> -2.7889987e-06 | D37: ='DF raw data'!C42 -> 2.3796514e-07 | F37: 6.398625706e-07 | G37: 2.799289998e-06 | H37: 2.382963875e-07 | J37: -7.83148228e-06 | K37: -0.0001333506596 | L37: -3.112758443e-05 | M37: -0.0002017961327 | N37: 6.160916055e-09
A38: 15.93744 | B38: ='DF raw data'!A43 -> 1.6950784e-06 | C38: ='DF raw data'!B43 -> 4.1133221e-06 | D38: ='DF raw data'!C43 -> -3.1807162e-06 | F38: 1.697437949e-06 | G38: -4.1285001e-06 | H38: -3.185143757e-06 | J38: -6.982474741e-06 | K38: -0.000136843084 | L38: -3.319253632e-05 | M38: -0.0002183980436 | N38: 6.73636135e-09
A39: 16.43761 | B39: ='DF raw data'!A44 -> 7.0192896e-06 | C39: ='DF raw data'!B44 -> 1.1791253e-06 | D39: ='DF raw data'!C44 -> -9.899901e-08 | F39: 7.029060451e-06 | G39: -1.183476227e-06 | H39: -9.913681662e-08 | J39: -3.466749575e-06 | K39: -0.0001385770482 | L39: -3.378447563e-05 | M39: -0.0002352960248 | N39: 7.313262003e-09
A40: 16.93778 | B40: ='DF raw data'!A45 -> 1.4441755e-05 | C40: ='DF raw data'!B45 -> 6.5894637e-06 | D40: ='DF raw data'!C45 -> 1.6545068e-06 | F40: 1.446185792e-05 | G40: -6.613778568e-06 | H40: 1.656809873e-06 | J40: 3.766637902e-06 | K40: -0.0001366930889 | L40: -3.709248925e-05 | M40: -0.0002538485751 | N40: 8.00851847e-09
A41: 17.43795 | B41: ='DF raw data'!A46 -> 1.7718556e-05 | C41: ='DF raw data'!B46 -> 3.8758217e-06 | D41: ='DF raw data'!C46 -> -6.9220573e-06 | F41: 1.774322023e-05 | G41: -3.890123333e-06 | H41: -6.931692804e-06 | J41: 1.264126436e-05 | K41: -0.0001303703077 | L41: -3.903821224e-05 | M41: -0.0002733743177 | N41: 8.850696503e-09
A42: 17.93812 | B42: ='DF raw data'!A47 -> 1.398874e-05 | C42: ='DF raw data'!B47 -> 3.4026863e-07 | D42: ='DF raw data'!C47 -> -1.5032879e-06 | F42: 1.400821233e-05 | G42: -3.415242082e-07 | H42: -1.505380477e-06 | J42: 1.964775192e-05 | K42: -0.0001205430916 | L42: -3.92090324e-05 | M42: -0.0002929854995 | N42: 9.812714667e-09
A43: 18.43829 | B43: ='DF raw data'!A48 -> 4.4203321e-06 | C43: ='DF raw data'!B48 -> 9.7631619e-06 | D43: ='DF raw data'!C48 -> 4.7403423e-06 | F43: 4.426485202e-06 | G43: -9.799187592e-06 | H43: 4.746940856e-06 | J43: 2.186174703e-05 | K43: -0.0001096085016 | L43: -4.411029206e-05 | M43: -0.0003150481443 | N43: 1.102495361e-08
A44: 18.93846 | B44: ='DF raw data'!A49 -> -6.8497322e-08 | C44: ='DF raw data'!B49 -> 5.8510744e-07 | D44: ='DF raw data'!C49 -> 1.6350655e-06 | F44: -6.859267027e-08 | G44: -5.87266464e-07 | H44: 1.637341511e-06 | J44: 2.182743903e-05 | K44: -9.869107142e-05 | L44: -4.440402513e-05 | M44: -0.0003372577055 | N44: 1.224944707e-08
A45: 19.43863 | B45: ='DF raw data'!A50 -> -1.6127466e-06 | C45: ='DF raw data'!B50 -> -6.7779374e-06 | D45: ='DF raw data'!C50 -> -3.4646387e-06 | F45: -1.614991543e-06 | G45: 6.802947729e-06 | H45: -3.469461477e-06 | J45: 2.101966871e-05 | K45: -8.817766372e-05 | L45: -4.100139476e-05 | M45: -0.0003577653731 | N45: 1.331127839e-08
A46: 19.9388 | B46: ='DF raw data'!A51 -> -2.8522204e-06 | C46: ='DF raw data'!B51 -> -8.4429748e-06 | D46: ='DF raw data'!C51 -> -1.6957661e-06 | F46: -2.856190691e-06 | G46: 8.474129053e-06 | H46: -1.698126606e-06 | J46: 1.959108781e-05 | K46: -7.837878933e-05 | L46: -3.676288964e-05 | M46: -0.0003761530676 | N46: 1.417923378e-08
A47: 20.43897 | B47: ='DF raw data'!A52 -> 1.983512e-06 | C47: ='DF raw data'!B52 -> -4.4501671e-06 | D47: ='DF raw data'!C52 -> -4.1333493e-07 | F47: 1.986273049e-06 | G47: 4.466588046e-06 | H47: -4.139102922e-07 | J47: 2.0584562e-05 | K47: -6.808300895e-05 | L47: -3.452883629e-05 | M47: -0.0003934233557 | N47: 1.498749086e-08
A48: 20.93914 | B48: ='DF raw data'!A53 -> 7.0598021e-06 | C48: ='DF raw data'!B53 -> -8.6320415e-06 | D48: ='DF raw data'!C53 -> -5.7684688e-06 | F48: 7.069629345e-06 | G48: 8.663893401e-06 | H48: -5.776498509e-06 | J48: 2.412057851e-05 | K48: -5.60186192e-05 | L48: -3.019541673e-05 | M48: -0.0004085261973 | N48: 1.573452752e-08
A49: 21.43931 | B49: ='DF raw data'!A54 -> 7.7439163e-06 | C49: ='DF raw data'!B54 -> -9.8655755e-06 | D49: ='DF raw data'!C54 -> -2.3853959e-06 | F49: 7.754695831e-06 | G49: 9.901979094e-06 | H49: -2.388716371e-06 | J49: 2.799924473e-05 | K49: -4.201423696e-05 | L49: -2.524274385e-05 | M49: -0.0004211518605 | N49: 1.644534603e-08
A50: 21.93948 | B50: ='DF raw data'!A55 -> 6.3990578e-06 | C50: ='DF raw data'!B55 -> -1.0854805e-05 | D50: ='DF raw data'!C55 -> 1.330654e-06 | F50: 6.407965288e-06 | G50: 1.089485881e-05 | H50: 1.33250627e-06 | J50: 3.120431673e-05 | K50: -2.640677387e-05 | L50: -1.979346231e-05 | M50: -0.0004310519565 | N50: 1.712832343e-08
A51: 22.43965 | B51: ='DF raw data'!A56 -> 1.7115657e-06 | C51: ='DF raw data'!B56 -> -6.5473751e-06 | D51: ='DF raw data'!C56 -> 3.0227798e-06 | F51: 1.713948199e-06 | G51: 6.571534663e-06 | H51: 3.026987509e-06 | J51: 3.20615822e-05 | K51: -1.03705323e-05 | L51: -1.650657782e-05 | M51: -0.0004393080515 | N51: 1.777875058e-08
A52: 22.93982 | B52: ='DF raw data'!A57 -> -3.1315735e-06 | C52: ='DF raw data'!B57 -> -1.7738849e-06 | D52: ='DF raw data'!C57 -> 3.0308415e-06 | F52: -3.13593265e-06 | G52: 1.780430467e-06 | H52: 3.035060431e-06 | J52: 3.049308276e-05 | K52: 4.881192908e-06 | L52: -1.561605992e-05 | M52: -0.0004471187362 | N52: 1.836579482e-08
A53: 23.43999 | B53: ='DF raw data'!A58 -> -6.8320965e-06 | C53: ='DF raw data'!B58 -> -4.1535586e-06 | D53: ='DF raw data'!C58 -> -1.9090891e-07 | F53: -6.841606778e-06 | G53: 4.168885072e-06 | H53: -1.911746552e-07 | J53: 2.70711163e-05 | K53: 1.842135315e-05 | L53: -1.353090867e-05 | M53: -0.0004538864908 | N53: 1.882391594e-08
A54: 23.94016 | B54: ='DF raw data'!A59 -> -7.8582398e-06 | C54: ='DF raw data'!B59 -> 6.7437026e-07 | D54: ='DF raw data'!C59 -> 7.1369554e-06 | F54: -7.86917847e-06 | G54: -6.768586603e-07 | H54: 7.146890042e-06 | J54: 2.313518931e-05 | K54: 2.999288078e-05 | L54: -1.386945306e-05 | M54: -0.0004608235752 | N54: 1.918783899e-08
A55: 24.44033 | B55: ='DF raw data'!A60 -> -3.6502183e-06 | C55: ='DF raw data'!B60 -> -6.2287518e-06 | D55: ='DF raw data'!C60 -> 3.8227713e-06 | F55: -3.655299404e-06 | G55: 6.251735655e-06 | H55: 3.828092598e-06 | J55: 2.13069182e-05 | K55: 4.064996206e-05 | L55: -1.074252244e-05 | M55: -0.0004661966626 | N55: 1.947262906e-08
A56: 24.9405 | B56: ='DF raw data'!A61 -> 3.4521364e-07 | C56: ='DF raw data'!B61 -> -2.4842511e-06 | D56: ='DF raw data'!C61 -> -1.0096893e-05 | F56: 3.456941774e-07 | G56: 2.493417891e-06 | H56: -1.011094788e-05 | J56: 2.147982406e-05 | K56: 5.139352566e-05 | L56: -9.495389616e-06 | M56: -0.0004709459716 | N56: 1.974849545e-08
A57: 25.44067 | B57: ='DF raw data'!A62 -> 3.2741068e-06 | C57: ='DF raw data'!B62 -> -6.1648398e-06 | D57: ='DF raw data'!C62 -> -3.4842692e-06 | F57: 3.278664357e-06 | G57: 6.187587822e-06 | H57: -3.489119303e-06 | J57: 2.311971361e-05 | K57: 6.295731282e-05 | L57: -6.400543815e-06 | M57: -0.0004741473316 | N57: 2.003633735e-08
A58: 25.94084 | B58: ='DF raw data'!A63 -> 3.4724203e-06 | C58: ='DF raw data'!B63 -> -7.1626082e-06 | D58: ='DF raw data'!C63 -> 1.0364724e-06 | F58: 3.477253909e-06 | G58: 7.189037949e-06 | H58: 1.03791517e-06 | J58: 2.48589317e-05 | K58: 7.539100468e-05 | L58: -2.804802704e-06 | M58: -0.0004755502098 | N58: 2.034936044e-08
A59: 26.44101 | B59: ='DF raw data'!A64 -> 1.3598022e-06 | C59: ='DF raw data'!B64 -> -2.801808e-06 | D59: ='DF raw data'!C64 -> 4.3429441e-06 | F59: 1.361695045e-06 | G59: 2.812146564e-06 | H59: 4.348989478e-06 | J59: 2.554001071e-05 | K59: 8.816535184e-05 | L59: -1.398251357e-06 | M59: -0.0004762495732 | N59: 2.067659529e-08
A60: 26.94118 | B60: ='DF raw data'!A65 -> -2.1942701e-06 | C60: ='DF raw data'!B65 -> -1.2010284e-05 | D60: ='DF raw data'!C65 -> 8.5199775e-07 | F60: -2.197324524e-06 | G60: 1.205460149e-05 | H60: 8.531837309e-07 | J60: 2.44409749e-05 | K60: 0.0001003899943 | L60: 4.631098668e-06 | M60: -0.0004739332366 | N60: 2.098610465e-08
A61: 27.44135 | B61: ='DF raw data'!A66 -> -6.519303e-06 | C61: ='DF raw data'!B66 -> 4.2057873e-06 | D61: ='DF raw data'!C66 -> -4.1782355e-06 | F61: -6.52837787e-06 | G61: -4.221306494e-06 | H61: -4.184051604e-06 | J61: 2.117567614e-05 | K61: 0.0001109814322 | L61: 2.519727799e-06 | M61: -0.0004726729443 | N61: 2.12135611e-08
A62: 27.94152 | B62: ='DF raw data'!A67 -> -7.3252463e-06 | C62: ='DF raw data'!B67 -> 7.9301399e-06 | D62: ='DF raw data'!C67 -> 1.8333084e-08 | F62: -7.335443043e-06 | G62: -7.959401812e-06 | H62: 1.835860365e-08 | J62: 1.75067076e-05 | K62: 0.0001197377621 | L62: -1.461326205e-06 | M62: -0.0004734038558 | N62: 2.136792371e-08
A63: 28.44169 | B63: ='DF raw data'!A68 -> -1.3190598e-06 | C63: ='DF raw data'!B68 -> 5.3999606e-06 | D63: ='DF raw data'!C68 -> 1.3502117e-06 | F63: -1.320895931e-06 | G63: -5.419886247e-06 | H63: 1.352091195e-06 | J63: 1.684603508e-05 | K63: 0.0001281636435 | L63: -4.172190709e-06 | M63: -0.0004754906605 | N63: 2.151857295e-08
A64: 28.94186 | B64: ='DF raw data'!A69 -> 2.3419548e-06 | C64: ='DF raw data'!B69 -> 1.9768863e-06 | D64: ='DF raw data'!C69 -> 8.268957e-07 | F64: 2.345214801e-06 | G64: -1.984180934e-06 | H64: 8.280467388e-07 | J64: 1.801904116e-05 | K64: 0.0001371762273 | L64: -5.164618487e-06 | M64: -0.0004780738477 | N64: 2.169431225e-08
A65: 29.44203 | B65: ='DF raw data'!A70 -> -1.4908015e-06 | C65: ='DF raw data'!B70 -> 5.078668e-06 | D65: ='DF raw data'!C70 -> -8.2683864e-06 | F65: -1.492876696e-06 | G65: -5.09740809e-06 | H65: -8.279895994e-06 | J65: 1.727234903e-05 | K65: 0.0001458153381 | L65: -7.714189091e-06 | M65: -0.0004819322536 | N65: 2.187329446e-08
A66: 29.9422 | B66: ='DF raw data'!A71 -> -2.0659222e-06 | C66: ='DF raw data'!B71 -> 5.01569e-06 | D66: ='DF raw data'!C71 -> -1.0173363e-05 | F66: -2.068797964e-06 | G66: -5.034197703e-06 | H66: -1.018752432e-05 | J66: 1.623759835e-05 | K66: 0.0001539368977 | L66: -1.023214376e-05 | M66: -0.000487050065 | N66: 2.205753526e-08
A67: 30.44237 | B67: ='DF raw data'!A72 -> -2.4265464e-07 | C67: ='DF raw data'!B72 -> 4.4795797e-06 | D67: ='DF raw data'!C72 -> -5.5227597e-06 | F67: -2.429924153e-07 | G67: -4.496109177e-06 | H67: -5.530447382e-06 | J67: 1.611606083e-05 | K67: 0.0001619976678 | L67: -1.248096268e-05 | M67: -0.0004932926681 | N67: 2.226535682e-08
A68: 30.94254 | B68: ='DF raw data'!A73 -> 3.7163977e-06 | C68: ='DF raw data'!B73 -> 1.4649263e-06 | D68: ='DF raw data'!C73 -> -1.3710546e-06 | F68: 3.721570926e-06 | G68: -1.470331822e-06 | H68: -1.372963108e-06 | J68: 1.797747896e-05 | K68: 0.0001709894635 | L68: -1.321637855e-05 | M68: -0.0004999031042 | N68: 2.251437266e-08
A69: 31.44271 | B69: ='DF raw data'!A74 -> 6.375149e-06 | C69: ='DF raw data'!B74 -> 7.4449986e-06 | D69: ='DF raw data'!C74 -> -5.2445562e-06 | F69: 6.384023207e-06 | G69: -7.472470359e-06 | H69: -5.251856622e-06 | J69: 2.117057585e-05 | K69: 0.0001815783504 | L69: -1.695388405e-05 | M69: -0.0005083829283 | N69: 2.288231145e-08
A70: 31.94288 | B70: ='DF raw data'!A75 -> 2.9590578e-06 | C70: ='DF raw data'!B75 -> 8.3595087e-06 | D70: ='DF raw data'!C75 -> -3.9337779e-06 | F70: 2.963176808e-06 | G70: -8.390354966e-06 | H70: -3.939253719e-06 | J70: 2.2652668e-05 | K70: 0.0001929085354 | L70: -2.115048789e-05 | M70: -0.0005189617679 | N70: 2.336271799e-08
A71: 32.44305 | B71: ='DF raw data'!A76 -> -1.478447e-06 | C71: ='DF raw data'!B76 -> 1.1163213e-05 | D71: ='DF raw data'!C76 -> -9.7078964e-07 | F71: -1.480504998e-06 | G71: =(1-$G$1*($B$2-$G$2))*C71*$M$2/$M$1 -> -1.120440483e-05 | H71: -9.721409792e-07 | J71: 2.191216381e-05 | K71: 0.0002038683423 | L71: -2.675459506e-05 | M71: -0.0005323436137 | N71: 2.396089694e-08
A72: =A71+$B$1 -> 32.94322 | B72: ='DF raw data'!A77 -> -2.722461e-06 | C72: ='DF raw data'!B77 -> 7.79738e-06 | D72: ='DF raw data'!C77 -> 2.4741726e-06 | F72: -2.726250666e-06 | G72: -7.826152033e-06 | H72: 2.477616648e-06 | J72: =F72*$B$1+J71 -> 2.054857502e-05 | K72: =J72*$B$1+K71 -> 0.0002141461231 | L72: =G72*$B$1+L71 -> -3.066900152e-05 | M72: =L72*$B$1+M71 -> -0.0005476833282 | N72: =(J72^2+L72^2)*$B$1+N71 -> 2.464254441e-08
A73: 33.44339 | B73: ='DF raw data'!A78 -> -3.6068973e-06 | C73: ='DF raw data'!B78 -> 1.0787616e-05 | D73: ='DF raw data'!C78 -> 3.7037657e-06 | F73: -3.611918101e-06 | G73: -1.082742189e-05 | H73: 3.708921342e-06 | J73: 1.874200194e-05 | K73: 0.0002235203102 | L73: -3.608455312e-05 | M73: -0.0005657317391 | N73: 2.546950429e-08
A74: 33.94356 | B74: ='DF raw data'!A79 -> -3.4905547e-06 | C74: ='DF raw data'!B79 -> 4.5448255e-06 | D74: ='DF raw data'!C79 -> 4.5495958e-06 | F74: -3.495413552e-06 | G74: -4.561595731e-06 | H74: 4.555928837e-06 | J74: 1.699370094e-05 | K74: 0.0002320200496 | L74: -3.836612646e-05 | M74: -0.0005849213246 | N74: 2.635017638e-08
A75: 34.44373 | B75: ='DF raw data'!A80 -> -1.8134757e-06 | C75: ='DF raw data'!B80 -> -7.6161268e-06 | D75: ='DF raw data'!C80 -> 4.1606668e-06 | F75: =(1-$G$1*($B$2-$G$2))*B75 -> -1.816000058e-06 | G75: 7.644230015e-06 | H75: =(1-$G$1*($B$2-$G$2))*D75 -> 4.166458448e-06 | J75: 1.608539219e-05 | K75: 0.0002400654802 | L75: -3.454271193e-05 | M75: -0.0006021985528 | N75: 2.707639261e-08
A76: 34.9439 | B76: ='DF raw data'!A81 -> 1.271021e-06 | C76: ='DF raw data'!B81 -> -6.7317715e-06 | D76: ='DF raw data'!C81 -> -2.9202952e-06 | F76: 1.272790261e-06 | G76: 6.756611478e-06 | H76: -2.924360251e-06 | J76: 1.67220037e-05 | K76: 0.0002484293248 | L76: -3.116325757e-05 | M76: -0.0006177854793 | N76: 2.770199225e-08
A77: 35.44407 | B77: ='DF raw data'!A82 -> 5.2121163e-06 | C77: ='DF raw data'!B82 -> -7.2103749e-06 | D77: ='DF raw data'!C82 -> -7.3705619e-06 | F77: 5.219371566e-06 | G77: 7.236980906e-06 | H77: -7.380821722e-06 | J77: 1.933257677e-05 | K77: 0.0002580988997 | L77: -2.754353683e-05 | M77: -0.0006315619302 | N77: 2.826838223e-08
A78: 35.94424 | B78: ='DF raw data'!A83 -> 2.5399336e-06 | C78: ='DF raw data'!B83 -> -8.7131657e-06 | D78: ='DF raw data'!C83 -> -8.0329073e-06 | F78: 2.543469188e-06 | G78: 8.745316947e-06 | H78: -8.044089107e-06 | J78: 2.060474376e-05 | K78: 0.0002684047744 | L78: -2.316939165e-05 | M78: -0.0006431505648 | N78: 2.874923376e-08
A79: 36.44441 | B79: ='DF raw data'!A84 -> -2.9105008e-06 | C79: ='DF raw data'!B84 -> -3.0406427e-06 | D79: ='DF raw data'!C84 -> -3.4036079e-06 | F79: -2.914552217e-06 | G79: 3.051862555e-06 | H79: -3.408345722e-06 | J79: 1.914697218e-05 | K79: 0.0002779815155 | L79: -2.164294156e-05 | M79: -0.0006539757149 | N79: 2.916688744e-08
A80: 36.94458 | B80: ='DF raw data'!A85 -> -3.2726834e-06 | C80: ='DF raw data'!B85 -> 6.6723219e-06 | D80: ='DF raw data'!C85 -> 6.8566936e-07 | F80: -3.277238975e-06 | G80: -6.696942511e-06 | H80: 6.866238117e-07 | J80: 1.750779556e-05 | K80: 0.0002867383896 | L80: -2.49925513e-05 | M80: -0.0006664762392 | N80: 2.9632621e-08
A81: 37.44475 | B81: ='DF raw data'!A86 -> -3.290348e-07 | C81: ='DF raw data'!B86 -> -7.5687603e-06 | D81: ='DF raw data'!C86 -> -7.3599455e-07 | F81: -3.294928164e-07 | G81: 7.596688735e-06 | H81: -7.370190544e-07 | J81: 1.734299314e-05 | K81: 0.0002954128345 | L81: -2.119291549e-05 | M81: -0.0006770762998 | N81: 3.000770802e-08
A82: 37.94492 | B82: ='DF raw data'!A87 -> 4.6264599e-06 | C82: ='DF raw data'!B87 -> -7.2243847e-06 | D82: ='DF raw data'!C87 -> -5.7207531e-06 | F82: 4.632899932e-06 | G82: 7.251042402e-06 | H82: -5.728716388e-06 | J82: 1.966023069e-05 | K82: 0.0003052462921 | L82: -1.756616161e-05 | M82: -0.0006858623668 | N82: 3.035537354e-08
A83: 38.44509 | B83: ='DF raw data'!A88 -> 5.9039726e-06 | C83: ='DF raw data'!B88 -> 1.3488446e-06 | D83: ='DF raw data'!C88 -> -8.3734076e-06 | F83: 5.91219093e-06 | G83: -1.353821785e-06 | H83: -8.385063383e-06 | J83: 2.261733123e-05 | K83: 0.0003165588026 | L83: -1.824330266e-05 | M83: -0.0006949871195 | N83: 3.077769797e-08
A84: 38.94526 | B84: ='DF raw data'!A89 -> 2.284009e-06 | C84: ='DF raw data'!B89 -> 1.0040691e-05 | D84: ='DF raw data'!C89 -> -5.4504803e-06 | F84: 2.287188341e-06 | G84: -1.007774076e-05 | H84: -5.458067369e-06 | J84: 2.376131422e-05 | K84: 0.0003284434992 | L84: -2.328388625e-05 | M84: -0.0007066330209 | N84: 3.133125582e-08
A85: 39.44543 | B85: ='DF raw data'!A90 -> 1.2346412e-06 | C85: ='DF raw data'!B90 -> 6.7901378e-06 | D85: ='DF raw data'!C90 -> -4.158605e-06 | F85: 1.236359821e-06 | G85: -6.815193148e-06 | H85: -4.164393778e-06 | J85: 2.437970432e-05 | K85: 0.0003406374959 | L85: -2.669264141e-05 | M85: -0.0007199838794 | N85: 3.198491153e-08
A86: 39.9456 | B86: ='DF raw data'!A91 -> 8.8848026e-07 | C86: ='DF raw data'!B91 -> 3.3579909e-06 | D86: ='DF raw data'!C91 -> 7.6208147e-07 | F86: 8.897170245e-07 | G86: -3.370381757e-06 | H86: 7.631422874e-07 | J86: 2.482471408e-05 | K86: 0.0003530540731 | L86: -2.837840525e-05 | M86: -0.0007341779063 | N86: 3.269595336e-08
A87: 40.44577 | B87: ='DF raw data'!A92 -> -2.051705e-06 | C87: ='DF raw data'!B92 -> 6.0965835e-06 | D87: ='DF raw data'!C92 -> -1.4433194e-06 | F87: -2.054560973e-06 | G87: -6.119079659e-06 | H87: -1.445328501e-06 | J87: 2.379708432e-05 | K87: 0.0003649566608 | L87: -3.143898533e-05 | M87: -0.0007499027436 | N87: 3.347357317e-08
A88: 40.94594 | B88: ='DF raw data'!A93 -> -5.6579449e-07 | C88: ='DF raw data'!B93 -> -4.4249496e-06 | D88: ='DF raw data'!C93 -> -4.7454109e-06 | F88: -5.665820759e-07 | G88: 4.441277494e-06 | H88: -4.752016512e-06 | J88: 2.351369696e-05 | K88: 0.0003767175066 | L88: -2.921759156e-05 | M88: -0.0007645165064 | N88: 3.417709309e-08
A89: 41.44611 | B89: ='DF raw data'!A94 -> 2.104453e-06 | C89: ='DF raw data'!B94 -> 1.1224323e-05 | D89: ='DF raw data'!C94 -> -1.5593833e-09 | F89: 2.107382399e-06 | G89: -1.126574032e-05 | H89: -1.561553962e-09 | J89: 2.456774642e-05 | K89: 0.0003890055563 | L89: -3.48523769e-05 | M89: -0.0007819486197 | N89: 3.508653336e-08
A90: 41.94628 | B90: ='DF raw data'!A95 -> 1.8978739e-06 | C90: ='DF raw data'!B95 -> 8.2407553e-07 | D90: ='DF raw data'!C95 -> 5.368956e-06 | F90: 1.90051574e-06 | G90: -8.27116337e-07 | H90: 5.376429587e-06 | J90: 2.551832737e-05 | K90: 0.0004017690581 | L90: -3.526607568e-05 | M90: -0.0007995876528 | N90: 3.603429605e-08
A91: 42.44645 | B91: ='DF raw data'!A96 -> -1.3035766e-06 | C91: ='DF raw data'!B96 -> -1.3192986e-06 | D91: ='DF raw data'!C96 -> 3.7524856e-06 | F91: -1.305391179e-06 | G91: 1.324166761e-06 | H91: 3.75770906e-06 | J91: 2.486540987e-05 | K91: 0.0004142059902 | L91: -3.460376719e-05 | M91: -0.0008168954191 | N91: 3.694245938e-08
A92: 42.94662 | B92: ='DF raw data'!A97 -> -2.8894733e-06 | C92: ='DF raw data'!B97 -> -3.5388593e-06 | D92: ='DF raw data'!C97 -> -1.7210573e-06 | F92: -2.893495447e-06 | G92: 3.551917555e-06 | H92: -1.723453012e-06 | J92: 2.341817025e-05 | K92: 0.0004259190564 | L92: -3.282720458e-05 | M92: -0.000833314602 | N92: 3.775575384e-08
A93: 43.44679 | B93: ='DF raw data'!A98 -> -2.9289818e-06 | C93: ='DF raw data'!B98 -> -1.2825258e-05 | D93: ='DF raw data'!C98 -> -6.6730158e-06 | F93: -2.933058943e-06 | G93: 1.287258271e-05 | H93: -6.682304638e-06 | J93: 2.195114216e-05 | K93: 0.0004368983592 | L93: -2.638872489e-05 | M93: -0.0008465134505 | N93: 3.834506285e-08
A94: 43.94696 | B94: ='DF raw data'!A99 -> -2.0879393e-06 | C94: ='DF raw data'!B99 -> -8.484204e-06 | D94: ='DF raw data'!C99 -> -3.5792496e-06 | F94: -2.090845712e-06 | G94: 8.515510387e-06 | H94: -3.584231915e-06 | J94: 2.090536386e-05 | K94: 0.000447354595 | L94: -2.212952206e-05 | M94: -0.0008575819735 | N94: 3.880859539e-08
A95: 44.44713 | B95: ='DF raw data'!A100 -> 6.9096711e-07 | C95: ='DF raw data'!B100 -> -6.0739758e-06 | D95: ='DF raw data'!C100 -> -3.9720494e-06 | F95: 6.919289362e-07 | G95: 6.096388537e-06 | H95: -3.977578493e-06 | J95: 2.125144595e-05 | K95: 0.0004579839307 | L95: -1.908029141e-05 | M95: -0.0008671253629 | N95: 3.92165748e-08
A96: 44.9473 | B96: ='DF raw data'!A101 -> 5.4378904e-07 | C96: ='DF raw data'!B101 -> -5.7445441e-06 | D96: ='DF raw data'!C101 -> 1.2156356e-06 | F96: 5.445459943e-07 | G96: 5.765741247e-06 | H96: 1.217327765e-06 | J96: 2.152381152e-05 | K96: 0.0004687494955 | L96: -1.619644061e-05 | M96: -0.0008752263366 | N96: 3.957949772e-08
A97: 45.44747 | B97: ='DF raw data'!A102 -> -2.3853804e-06 | C97: ='DF raw data'!B102 -> -8.3375716e-07 | D97: ='DF raw data'!C102 -> 6.9321081e-06 | F97: -2.38870085e-06 | G97: 8.368336919e-07 | H97: 6.941757594e-06 | J97: 2.032905502e-05 | K97: 0.000478917479 | L97: -1.57778815e-05 | M97: -0.0008831179596 | N97: 3.991071631e-08
A98: 45.94764 | B98: ='DF raw data'!A103 -> -7.4709546e-06 | C98: ='DF raw data'!B103 -> 5.2956202e-06 | D98: ='DF raw data'!C103 -> -1.0939862e-06 | F98: -7.481354169e-06 | G98: -5.315160835e-06 | H98: -1.095509029e-06 | J98: 1.658710611e-05 | K98: 0.0004872138518 | L98: -1.843636549e-05 | M98: -0.0008923392765 | N98: 4.02183367e-08
A99: 46.44781 | B99: ='DF raw data'!A104 -> -1.2496255e-05 | C99: ='DF raw data'!B104 -> -3.3307133e-06 | D99: ='DF raw data'!C104 -> 8.4652623e-07 | F99: -1.251364979e-05 | G99: 3.343003504e-06 | H99: 8.477045945e-07 | J99: 1.032815389e-05 | K99: 0.0004923796846 | L99: -1.676429543e-05 | M99: -0.0009007242742 | N99: 4.041225879e-08
A100: 46.94798 | B100: ='DF raw data'!A105 -> -1.293827e-05 | C100: ='DF raw data'!B105 -> 2.3132563e-06 | D100: ='DF raw data'!C105 -> 6.3875399e-07 | F100: -1.295628007e-05 | G100: -2.321792127e-06 | H100: 6.396431356e-07 | J100: 3.847811289e-06 | K100: 0.0004943042444 | L100: -1.79255862e-05 | M100: -0.0009096901146 | N100: 4.058038208e-08
A101: 47.44815 | B101: ='DF raw data'!A106 -> -8.4107905e-06 | C101: ='DF raw data'!B106 -> 5.1504517e-06 | D101: ='DF raw data'!C106 -> -9.263336e-07 | F101: -8.42249832e-06 | G101: -5.169456669e-06 | H101: -9.276230564e-07 | J101: -3.648696963e-07 | K101: 0.0004941217475 | L101: -2.051119334e-05 | M101: -0.0009199491982 | N101: 4.079087471e-08
A102: 47.94832 | B102: ='DF raw data'!A107 -> -1.0090022e-06 | C102: ='DF raw data'!B107 -> 1.6460139e-05 | D102: ='DF raw data'!C107 -> 1.0384928e-05 | F102: -1.010406731e-06 | G102: -1.652087628e-05 | H102: 1.039938382e-05 | J102: -8.702448309e-07 | K102: 0.0004936864771 | L102: -2.877444003e-05 | M102: -0.0009343413099 | N102: 4.120537846e-08
A103: 48.44849 | B103: ='DF raw data'!A108 -> 1.1343931e-06 | C103: ='DF raw data'!B108 -> 4.1965785e-07 | D103: ='DF raw data'!C108 -> 8.3328023e-06 | F103: 1.135972175e-06 | G103: -4.212063713e-07 | H103: 8.344401561e-06 | J103: -3.020656281e-07 | K103: 0.000493535393 | L103: -2.898511482e-05 | M103: -0.0009488387947 | N103: 4.162563536e-08
A104: 48.94866 | B104: ='DF raw data'!A109 -> -5.2933187e-06 | C104: ='DF raw data'!B109 -> -8.3290288e-06 | D104: ='DF raw data'!C109 -> 2.942665e-07 | F104: -5.300687e-06 | G104: 8.359762596e-06 | H104: 2.94676119e-07 | J104: -2.953310245e-06 | K104: 0.0004920582358 | L104: -2.480381236e-05 | M104: -0.0009612449176 | N104: 4.193771701e-08
A105: 49.44883 | B105: ='DF raw data'!A110 -> -8.0441987e-06 | C105: ='DF raw data'!B110 -> -1.2996978e-05 | D105: ='DF raw data'!C110 -> -1.4926359e-06 | F105: -8.055396225e-06 | G105: 1.304493635e-05 | H105: -1.494713649e-06 | J105: -6.982377774e-06 | K105: 0.0004885658599 | L105: -1.827912655e-05 | M105: -0.0009703875883 | N105: 4.212922213e-08
A106: 49.949 | B106: ='DF raw data'!A111 -> -6.2480408e-06 | C106: ='DF raw data'!B111 -> -5.6036487e-07 | D106: ='DF raw data'!C111 -> 1.6487152e-06 | F106: -6.256738073e-06 | G106: 5.624325948e-07 | H106: 1.651010212e-06 | J106: -1.011181046e-05 | K106: 0.0004835082356 | L106: -1.799781464e-05 | M106: -0.0009793895552 | N106: 4.23423796e-08
A107: 50.44917 | B107: ='DF raw data'!A112 -> -5.4577845e-06 | C107: ='DF raw data'!B112 -> -4.9965515e-06 | D107: ='DF raw data'!C112 -> 5.9329381e-07 | F107: -5.465381736e-06 | G107: 5.014988583e-06 | H107: 5.94119675e-07 | J107: -1.284543044e-05 | K107: 0.0004770833367 | L107: -1.54894678e-05 | M107: -0.0009871369223 | N107: 4.254491279e-08
A108: 50.94934 | B108: ='DF raw data'!A113 -> -1.9808081e-06 | C108: ='DF raw data'!B113 -> -6.8765403e-06 | D108: ='DF raw data'!C113 -> -3.0177348e-06 | F108: -1.983565385e-06 | G108: 6.901914469e-06 | H108: -3.021935487e-06 | J108: -1.383755034e-05 | K108: 0.0004701622091 | L108: -1.203733724e-05 | M108: -0.0009931576373 | N108: 4.271315761e-08
A109: 51.44951 | B109: ='DF raw data'!A114 -> 5.7643324e-06 | C109: ='DF raw data'!B114 -> -3.8249273e-06 | D109: ='DF raw data'!C114 -> -3.198164e-06 | F109: 5.772356351e-06 | G109: 3.839041135e-06 | H109: -3.202615844e-06 | J109: -1.095039086e-05 | K109: 0.0004646851521 | L109: -1.011716403e-05 | M109: -0.0009982179392 | N109: 4.282432943e-08
A110: 51.94968 | B110: ='DF raw data'!A115 -> 6.2199674e-06 | C110: ='DF raw data'!B115 -> 6.0740344e-06 | D110: ='DF raw data'!C115 -> 5.4470852e-06 | F110: 6.228625595e-06 | G110: -6.096447354e-06 | H110: 5.454667543e-06 | J110: -7.835019198e-06 | K110: 0.0004607663106 | L110: -1.316642411e-05 | M110: -0.00100480339 | N110: 4.294174046e-08
A111: 52.44985 | B111: ='DF raw data'!A116 -> -4.3705818e-06 | C111: ='DF raw data'!B116 -> 6.0832377e-07 | D111: ='DF raw data'!C116 -> 8.2559973e-06 | F111: -4.37666565e-06 | G111: -6.105684613e-07 | H111: 8.267489648e-06 | J111: -1.002409606e-05 | K111: 0.0004557525585 | L111: -1.347181213e-05 | M111: -0.001011541586 | N111: 4.308277451e-08
A112: 52.95002 | B112: ='DF raw data'!A117 -> -1.1987826e-05 | C112: ='DF raw data'!B117 -> -3.3544634e-06 | D112: ='DF raw data'!C117 -> -3.1773257e-06 | F112: -1.200451305e-05 | G112: 3.366841241e-06 | H112: -3.181748537e-06 | J112: -1.602839335e-05 | K112: 0.000447735637 | L112: -1.178781915e-05 | M112: -0.001017437499 | N112: 4.328077285e-08
A113: 53.45019 | B113: ='DF raw data'!A118 -> -6.9424291e-06 | C113: ='DF raw data'!B118 -> -4.1733056e-06 | D113: ='DF raw data'!C118 -> 7.0297159e-07 | F113: -6.952092961e-06 | G113: 4.188704937e-06 | H113: 7.039501265e-07 | J113: -1.950562169e-05 | K113: 0.0004379795102 | L113: -9.692754602e-06 | M113: -0.001022285524 | N113: 4.351806288e-08
A114: 53.95036 | B114: ='DF raw data'!A119 -> -4.0598533e-07 | C114: ='DF raw data'!B119 -> 2.3339346e-07 | D114: ='DF raw data'!C119 -> 7.471795e-06 | F114: -4.065504616e-07 | G114: -2.342546729e-07 | H114: 7.482195739e-06 | J114: -1.970896603e-05 | K114: 0.0004281216766 | L114: -9.809921762e-06 | M114: -0.001027192153 | N114: 4.376048423e-08
A115: 54.45053 | B115: ='DF raw data'!A120 -> -8.7851515e-07 | C115: ='DF raw data'!B120 -> 1.3829089e-05 | D115: ='DF raw data'!C120 -> 8.2718443e-06 | F115: -8.797380431e-07 | G115: -1.388011781e-05 | H115: 8.283358707e-06 | J115: -2.014898461e-05 | K115: 0.000418043759 | L115: -1.675234029e-05 | M115: -0.001035571171 | N115: 4.41039122e-08
A116: 54.9507 | B116: ='DF raw data'!A121 -> 1.084189e-06 | C116: ='DF raw data'!B121 -> 6.6653838e-06 | D116: ='DF raw data'!C121 -> 3.1224167e-06 | F116: 1.085698191e-06 | G116: -6.68997881e-06 | H116: 3.126763104e-06 | J116: -1.960595094e-05 | K116: 0.0004082374505 | L116: -2.009846699e-05 | M116: -0.001045623821 | N116: 4.449821706e-08
A117: 55.45087 | B117: ='DF raw data'!A122 -> 6.3113389e-06 | C117: ='DF raw data'!B122 -> -1.3162297e-06 | D117: ='DF raw data'!C122 -> 2.4613378e-06 | F117: 6.320124284e-06 | G117: 1.321086537e-06 | H117: 2.464763982e-06 | J117: -1.644481438e-05 | K117: 0.0004000122477 | L117: -1.943769913e-05 | M117: -0.001055345975 | N117: 4.48224553e-08
A118: 55.95104 | B118: ='DF raw data'!A123 -> 6.4258188e-06 | C118: ='DF raw data'!B123 -> -2.4965266e-06 | D118: ='DF raw data'!C123 -> 8.4808098e-06 | F118: 6.43476354e-06 | G118: 2.505738687e-06 | H118: 8.492615087e-06 | J118: -1.32263387e-05 | K118: 0.0003933968299 | L118: -1.818440381e-05 | M118: -0.001064441269 | N118: 4.507534554e-08
A119: 56.45121 | B119: ='DF raw data'!A124 -> 3.0594369e-06 | C119: ='DF raw data'!B124 -> 6.0195962e-06 | D119: ='DF raw data'!C124 -> 7.2868402e-06 | F119: 3.063695636e-06 | G119: -6.041808279e-06 | H119: 7.296983482e-06 | J119: -1.169397005e-05 | K119: 0.0003875478569 | L119: -2.120633506e-05 | M119: -0.001075048041 | N119: 4.536867403e-08
A120: 56.95138 | B120: ='DF raw data'!A125 -> 4.9830255e-06 | C120: ='DF raw data'!B125 -> 4.2993173e-07 | D120: ='DF raw data'!C125 -> 1.3946096e-06 | F120: 4.989961871e-06 | G120: -4.315181616e-07 | H120: 1.396550897e-06 | J120: -9.198140826e-06 | K120: 0.0003829472228 | L120: -2.14221675e-05 | M120: -0.001085762767 | N120: 4.564052395e-08
A121: 57.45155 | B121: ='DF raw data'!A126 -> 6.9644143e-06 | C121: ='DF raw data'!B126 -> -7.4836335e-06 | D121: ='DF raw data'!C126 -> -3.1571567e-06 | F121: 6.974108765e-06 | G121: 7.51124782e-06 | H121: -3.161551462e-06 | J121: -5.709900845e-06 | K121: 0.0003800913017 | L121: -1.766526668e-05 | M121: -0.001094598403 | N121: 4.581291485e-08
A122: 57.95172 | B122: ='DF raw data'!A127 -> 3.7462291e-06 | C122: ='DF raw data'!B127 -> -9.5405476e-06 | D122: ='DF raw data'!C127 -> -6.7180686e-06 | F122: 3.751443851e-06 | G122: 9.575751854e-06 | H122: -6.727420151e-06 | J122: -3.833541174e-06 | K122: 0.0003781738794 | L122: -1.287576287e-05 | M122: -0.001101038473 | N122: 4.590318619e-08
A123: 58.45189 | B123: ='DF raw data'!A128 -> -9.11548e-07 | C123: ='DF raw data'!B128 -> 2.1216549e-06 | D123: ='DF raw data'!C128 -> -7.0138362e-06 | F123: -9.128168748e-07 | G123: -2.129483725e-06 | H123: -7.02359946e-06 | J123: -4.29010479e-06 | K123: 0.0003760280977 | L123: -1.394086675e-05 | M123: -0.001108011277 | N123: 4.600959874e-08
A124: 58.95206 | B124: ='DF raw data'!A129 -> -6.9523098e-06 | C124: ='DF raw data'!B129 -> -2.1237311e-06 | D124: ='DF raw data'!C129 -> -8.9744805e-07 | F124: -6.961987415e-06 | G124: 2.131567586e-06 | H124: -8.986972977e-07 | J124: -7.772282036e-06 | K124: 0.0003721406354 | L124: -1.287472059e-05 | M124: -0.001114450826 | N124: 4.612272059e-08
A125: 59.45223 | B125: ='DF raw data'!A130 -> -1.1194179e-05 | C125: ='DF raw data'!B130 -> -4.9429136e-06 | D125: ='DF raw data'!C130 -> -3.6779406e-06 | F125: -1.12097613e-05 | G125: 4.961152761e-06 | H125: -3.683060293e-06 | J125: -1.337906834e-05 | K125: 0.0003654488268 | L125: -1.039330081e-05 | M125: -0.001119649243 | N125: 4.626627947e-08
A126: 59.9524 | B126: ='DF raw data'!A131 -> -1.0189588e-05 | C126: ='DF raw data'!B131 -> 5.5376572e-06 | D126: ='DF raw data'!C131 -> -2.2765184e-06 | F126: -1.020377191e-05 | G126: -5.558090942e-06 | H126: -2.279687314e-06 | J126: -1.848268894e-05 | K126: 0.0003562043402 | L126: -1.317329116e-05 | M126: -0.001126238128 | N126: 4.652393974e-08
A127: 60.45257 | B127: ='DF raw data'!A132 -> -7.0718538e-06 | C127: ='DF raw data'!B132 -> 5.1208308e-06 | D127: ='DF raw data'!C132 -> 3.2979128e-06 | F127: -7.08169782e-06 | G127: -5.139726469e-06 | H127: 3.302503495e-06 | J127: -2.202474174e-05 | K127: 0.0003451882252 | L127: -1.574402815e-05 | M127: -0.001134112819 | N127: 4.689054618e-08
A128: 60.95274 | B128: ='DF raw data'!A133 -> -6.3936909e-06 | C128: ='DF raw data'!B133 -> 2.1909036e-06 | D128: ='DF raw data'!C133 -> 4.6171539e-07 | F128: -6.402590918e-06 | G128: -2.19898795e-06 | H128: 4.623580978e-07 | J128: -2.522712564e-05 | K128: 0.0003325703737 | L128: -1.684389595e-05 | M128: -0.00114253763 | N128: 4.735076495e-08
A129: 61.45291 | B129: ='DF raw data'!A134 -> -3.7403966e-06 | C129: ='DF raw data'!B134 -> 1.0390137e-05 | D129: ='DF raw data'!C134 -> -2.2980116e-06 | F129: -3.745603232e-06 | G129: -1.042847621e-05 | H129: -2.301210432e-06 | J129: -2.7100564e-05 | K129: 0.0003190154846 | L129: -2.205990689e-05 | M129: -0.001153571334 | N129: 4.796151256e-08
A130: 61.95308 | B130: ='DF raw data'!A135 -> -2.2030158e-06 | C130: ='DF raw data'!B135 -> 6.619885e-06 | D130: ='DF raw data'!C135 -> -6.9384282e-06 | F130: -2.206082398e-06 | G130: -6.644312121e-06 | H130: -6.948086492e-06 | J130: -2.820398024e-05 | K130: 0.0003049086998 | L130: -2.538319249e-05 | M130: -0.001166267245 | N130: 4.86816428e-08
A131: 62.45325 | B131: ='DF raw data'!A136 -> -6.3736529e-06 | C131: ='DF raw data'!B136 -> 3.2703292e-06 | D131: ='DF raw data'!C136 -> -3.7385057e-06 | F131: -6.382525025e-06 | G131: -3.282396589e-06 | H131: -3.7437097e-06 | J131: -3.139632778e-05 | K131: 0.0002892051986 | L131: -2.702494879e-05 | M131: -0.001179784314 | N131: 4.953997316e-08
A132: 62.95342 | B132: ='DF raw data'!A137 -> -6.0875768e-06 | C132: ='DF raw data'!B137 -> 9.8996579e-06 | D132: ='DF raw data'!C137 -> -4.3731002e-06 | F132: -6.096050707e-06 | G132: -9.936187257e-06 | H132: -4.379187555e-06 | J132: -3.444538946e-05 | K132: 0.0002719766481 | L132: -3.199473157e-05 | M132: -0.001195787119 | N132: 5.064542274e-08
A133: 63.45359 | B133: ='DF raw data'!A138 -> -1.2687975e-06 | C133: ='DF raw data'!B138 -> 7.0064234e-06 | D133: ='DF raw data'!C138 -> -1.6909057e-06 | F133: -1.270563666e-06 | G133: -7.032276833e-06 | H133: -1.693259441e-06 | J133: -3.508088729e-05 | K133: 0.0002544302407 | L133: -3.551206547e-05 | M133: -0.001213549188 | N133: 5.189173407e-08
A134: 63.95376 | B134: ='DF raw data'!A139 -> -3.2630646e-06 | C134: ='DF raw data'!B139 -> 1.3854037e-06 | D134: ='DF raw data'!C139 -> 5.5817195e-06 | F134: -3.267606786e-06 | G134: -1.390515786e-06 | H134: 5.589489254e-06 | J134: -3.671524618e-05 | K134: 0.000236066376 | L134: -3.620755975e-05 | M134: -0.001231659124 | N134: 5.322168444e-08
A135: 64.45393 | B135: ='DF raw data'!A140 -> -7.2496782e-06 | C135: ='DF raw data'!B140 -> 4.3636314e-06 | D135: ='DF raw data'!C140 -> -1.2261612e-06 | F135: -7.259769752e-06 | G135: =(1-$G$1*($B$2-$G$2))*C135*$M$2/$M$1 -> -4.379733032e-06 | H135: -1.227868016e-06 | J135: -4.034636521e-05 | K135: 0.0002158863346 | L135: -3.839817082e-05 | M135: -0.001250864737 | N135: 5.477333617e-08
A136: =A135+$B$1 -> 64.9541 | B136: ='DF raw data'!A141 -> -2.4965134e-06 | C136: ='DF raw data'!B141 -> 4.815683e-06 | D136: ='DF raw data'!C141 -> -6.6901143e-06 | F136: -2.499988547e-06 | G136: -4.833452685e-06 | H136: -6.699426939e-06 | J136: =F136*$B$1+J135 -> -4.159678448e-05 | K136: =J136*$B$1+K135 -> 0.0001950808709 | L136: =G136*$B$1+L135 -> -4.081571885e-05 | M136: =L136*$B$1+M135 -> -0.001271279535 | N136: =(J136^2+L136^2)*$B$1+N135 -> 5.647202122e-08
A137: 65.45427 | B137: ='DF raw data'!A142 -> 3.7709965e-06 | C137: ='DF raw data'!B142 -> 3.7612078e-06 | D137: ='DF raw data'!C142 -> 1.9438135e-06 | F137: 3.776245727e-06 | G137: -3.775086512e-06 | H137: 1.946519288e-06 | J137: -3.970801966e-05 | K137: 0.0001752201107 | L137: -4.270390388e-05 | M137: -0.001292638746 | N137: 5.81727744e-08
A138: 65.95444 | B138: ='DF raw data'!A143 -> 3.7990962e-06 | C138: ='DF raw data'!B143 -> 2.6801808e-06 | D138: ='DF raw data'!C143 -> 7.9133142e-06 | F138: 3.804384542e-06 | G138: -2.690070564e-06 | H138: 7.924329533e-06 | J138: -3.780518064e-05 | K138: 0.0001563110935 | L138: -4.404939647e-05 | M138: -0.001314670933 | N138: 5.985813773e-08
A139: 66.45461 | B139: ='DF raw data'!A144 -> 2.0144785e-06 | C139: ='DF raw data'!B144 -> -8.8730112e-06 | D139: ='DF raw data'!C144 -> 2.1921855e-06 | F139: =(1-$G$1*($B$2-$G$2))*B139 -> 2.017282654e-06 | G139: 8.90575227e-06 | H139: =(1-$G$1*($B$2-$G$2))*D139 -> 2.195237022e-06 | J139: -3.679619638e-05 | K139: 0.0001379067399 | L139: -3.959500636e-05 | M139: -0.001334475167 | N139: 6.131949673e-08
A140: 66.95478 | B140: ='DF raw data'!A145 -> -4.1152961e-07 | C140: ='DF raw data'!B145 -> -1.2053248e-05 | D140: ='DF raw data'!C145 -> -4.7087983e-06 | F140: -4.121024592e-07 | G140: 1.209772402e-05 | H140: -4.715352947e-06 | J140: -3.700231767e-05 | K140: 0.0001193992907 | L140: -3.354408773e-05 | M140: -0.001351252914 | N140: 6.256710944e-08
A141: 67.45495 | B141: ='DF raw data'!A146 -> -3.0172973e-06 | C141: ='DF raw data'!B146 -> -1.4955557e-06 | D141: ='DF raw data'!C146 -> -5.4829602e-06 | F141: -3.021497378e-06 | G141: 1.501074243e-06 | H141: -5.490592481e-06 | J141: -3.851358001e-05 | K141: 0.0001001359534 | L141: -3.279329543e-05 | M141: -0.001367655136 | N141: 6.384689245e-08
A142: 67.95512 | B142: ='DF raw data'!A147 -> -3.2676776e-06 | C142: ='DF raw data'!B147 -> 5.6393287e-06 | D142: ='DF raw data'!C147 -> -2.6722432e-06 | F142: -3.272226207e-06 | G142: -5.660137606e-06 | H142: -2.675962963e-06 | J142: -4.015024939e-05 | K142: 8.005400314e-05 | L142: -3.562432645e-05 | M142: -0.001385473356 | N142: 6.528794982e-08
A143: 68.45529 | B143: ='DF raw data'!A148 -> -5.6691802e-06 | C143: ='DF raw data'!B148 -> 6.1950527e-06 | D143: ='DF raw data'!C148 -> -4.1719119e-07 | F143: -5.677071699e-06 | G143: -6.217912206e-06 | H143: -4.177719201e-07 | J143: -4.298975034e-05 | K143: 5.855181971e-05 | L143: -3.87343396e-05 | M143: -0.00140484711 | N143: 6.696275291e-08
A144: 68.95546 | B144: ='DF raw data'!A149 -> -6.8290842e-06 | C144: ='DF raw data'!B149 -> 6.0797715e-06 | D144: ='DF raw data'!C149 -> -3.1219556e-06 | F144: -6.838590285e-06 | G144: -6.102205623e-06 | H144: -3.126301362e-06 | J144: -4.641020805e-05 | K144: 3.533882595e-05 | L144: -4.178647979e-05 | M144: -0.001425747454 | N144: 6.891342457e-08
A145: 69.45563 | B145: ='DF raw data'!A150 -> -1.2203978e-06 | C145: ='DF raw data'!B150 -> 4.0446071e-06 | D145: ='DF raw data'!C150 -> -4.8305251e-06 | F145: -1.222096594e-06 | G145: -4.059531545e-06 | H145: -4.837249191e-06 | J145: -4.70214641e-05 | K145: 1.182010026e-05 | L145: -4.381693568e-05 | M145: -0.001447663371 | N145: 7.09795978e-08
A146: 69.9558 | B146: ='DF raw data'!A151 -> 1.4590609e-06 | C146: ='DF raw data'!B151 -> 1.3179965e-05 | D146: ='DF raw data'!C151 -> -4.4982175e-06 | F146: 1.461091913e-06 | G146: -1.322859856e-05 | H146: -4.504479019e-06 | J146: -4.629066976e-05 | K146: -1.133310404e-05 | L146: -5.043348383e-05 | M146: -0.001472888686 | N146: 7.332357568e-08
A147: 70.45597 | B147: ='DF raw data'!A152 -> -8.6696093e-07 | C147: ='DF raw data'!B152 -> 2.296538e-05 | D147: ='DF raw data'!C152 -> -4.4587528e-06 | F147: -8.681677396e-07 | G147: -2.305012137e-05 | H147: -4.464959384e-06 | J147: -4.672490121e-05 | K147: -3.470349788e-05 | L147: -6.196246303e-05 | M147: -0.001503880451 | N147: 7.633588112e-08
A148: 70.95614 | B148: ='DF raw data'!A153 -> 8.2967597e-07 | C148: ='DF raw data'!B153 -> 7.408973e-06 | D148: ='DF raw data'!C153 -> -4.0172331e-06 | F148: 8.30830879e-07 | G148: -7.436311826e-06 | H148: -4.022825088e-06 | J148: -4.630934453e-05 | K148: -5.786604273e-05 | L148: -6.568188312e-05 | M148: -0.001536732559 | N148: 7.956631168e-08
A149: 71.45631 | B149: ='DF raw data'!A154 -> 3.918713e-06 | C149: ='DF raw data'!B154 -> 8.8868128e-06 | D149: ='DF raw data'!C154 -> -3.0848773e-06 | F149: 3.924167848e-06 | G149: -8.919604798e-06 | H149: -3.089171449e-06 | J149: -4.43465935e-05 | K149: -8.00468784e-05 | L149: -7.014320185e-05 | M149: -0.001571816084 | N149: 8.301082697e-08
A150: 71.95648 | B150: ='DF raw data'!A155 -> 3.435182e-06 | C150: ='DF raw data'!B155 -> 8.8985544e-06 | D150: ='DF raw data'!C155 -> -7.7373434e-06 | F150: 3.439963773e-06 | G150: -8.931389724e-06 | H150: -7.748113782e-06 | J150: -4.262602682e-05 | K150: -0.0001013671382 | L150: -7.461041505e-05 | M150: -0.001609133975 | N150: 8.67039283e-08
A151: 72.45665 | B151: ='DF raw data'!A156 -> 1.5968966e-06 | C151: ='DF raw data'!B156 -> -2.3184011e-06 | D151: ='DF raw data'!C156 -> -3.0062097e-06 | F151: 1.59911948e-06 | G151: 2.326955911e-06 | H151: -3.010394344e-06 | J151: -4.182619523e-05 | K151: -0.0001222873463 | L151: -7.344654151e-05 | M151: -0.001645869732 | N151: 9.027705528e-08
A152: 72.95682 | B152: ='DF raw data'!A157 -> 1.289109e-06 | C152: ='DF raw data'!B157 -> 4.8016732e-06 | D152: ='DF raw data'!C157 -> -4.2382039e-06 | F152: 1.29090344e-06 | G152: -4.81939119e-06 | H152: -4.24410348e-06 | J152: -4.118052406e-05 | K152: -0.000142884609 | L152: -7.58570564e-05 | M152: -0.001683811156 | N152: 9.400338609e-08
A153: 73.45699 | B153: ='DF raw data'!A158 -> 1.2479271e-06 | C153: ='DF raw data'!B158 -> -5.3231811e-06 | D153: ='DF raw data'!C158 -> -1.0363833e-05 | F153: 1.249664215e-06 | G153: 5.342823434e-06 | H153: -1.037825946e-05 | J153: -4.055547951e-05 | K153: -0.0001631692432 | L153: -7.31847364e-05 | M153: -0.001720415965 | N153: 9.75049525e-08
A154: 73.95716 | B154: ='DF raw data'!A159 -> 7.1500688e-07 | C154: ='DF raw data'!B159 -> -7.7324758e-06 | D154: ='DF raw data'!C159 -> -5.9273466e-06 | F154: 7.160021696e-07 | G154: 7.761008339e-06 | H154: -5.935597466e-06 | J154: -4.01973567e-05 | K154: -0.0001832747551 | L154: -6.930291286e-05 | M154: -0.001755079203 | N154: 1.007154043e-07
A155: 74.45733 | B155: ='DF raw data'!A160 -> 6.3386686e-08 | C155: ='DF raw data'!B160 -> 1.8450603e-06 | D155: ='DF raw data'!C160 -> 5.3805473e-07 | F155: 6.347492027e-08 | G155: -1.851868502e-06 | H155: 5.388037022e-07 | J155: -4.016560845e-05 | K155: -0.0002033643875 | L155: -7.022916193e-05 | M155: -0.001790205723 | N155: 1.039892227e-07
A156: 74.9575 | B156: ='DF raw data'!A161 -> -4.1555045e-06 | C156: ='DF raw data'!B161 -> 3.3858773e-06 | D156: ='DF raw data'!C161 -> 7.658743e-06 | F156: -4.161288962e-06 | G156: -3.398371057e-06 | H156: 7.66940397e-06 | J156: -4.224696035e-05 | K156: -0.0002244950496 | L156: -7.192892518e-05 | M156: -0.001826182414 | N156: 1.074696936e-07
A157: 75.45767 | B157: ='DF raw data'!A162 -> -8.7395911e-06 | C157: ='DF raw data'!B162 -> 1.6946082e-05 | D157: ='DF raw data'!C162 -> -1.7296429e-06 | F157: -8.751756611e-06 | G157: -1.700861239e-05 | H157: -1.732050563e-06 | J157: -4.662432646e-05 | K157: -0.000247815139 | L157: -8.043612284e-05 | M157: -0.001866414149 | N157: 1.117930619e-07
A158: 75.95784 | B158: ='DF raw data'!A163 -> -6.5372601e-06 | C158: ='DF raw data'!B163 -> 1.1508123e-05 | D158: ='DF raw data'!C163 -> -1.1814775e-05 | F158: -6.546359966e-06 | G158: -1.155058753e-05 | H158: -1.183122117e-05 | J158: -4.989861932e-05 | K158: -0.0002727729314 | L158: -8.621338021e-05 | M158: -0.001909535496 | N158: 1.167560583e-07
A159: 76.45801 | B159: ='DF raw data'!A164 -> -1.9198487e-07 | C159: ='DF raw data'!B164 -> 4.5158722e-06 | D159: ='DF raw data'!C164 -> -5.3495191e-06 | F159: -1.922521129e-07 | G159: -4.532535595e-06 | H159: -5.356965631e-06 | J159: -4.999477806e-05 | K159: -0.0002977788196 | L159: -8.848041854e-05 | M159: -0.001953790747 | N159: 1.219219452e-07
A160: 76.95818 | B160: ='DF raw data'!A165 -> 6.5470363e-06 | C160: ='DF raw data'!B165 -> 1.2390744e-05 | D160: ='DF raw data'!C165 -> -3.0635151e-06 | F160: 6.556149775e-06 | G160: -1.243646537e-05 | H160: -3.067779513e-06 | J160: -4.671558863e-05 | K160: -0.0003211445555 | L160: -9.470076542e-05 | M160: -0.002001157229 | N160: 1.274991314e-07
A161: 77.45835 | B161: ='DF raw data'!A166 -> 9.3304243e-06 | C161: ='DF raw data'!B166 -> 1.4032432e-05 | D161: ='DF raw data'!C166 -> 6.6823617e-07 | F161: 9.343412251e-06 | G161: -1.408421113e-05 | H161: 6.691663547e-07 | J161: -4.204229412e-05 | K161: -0.0003421728498 | L161: -0.0001017452653 | M161: -0.002052047158 | N161: 1.335610185e-07
A162: 77.95852 | B162: ='DF raw data'!A167 -> 6.330562e-06 | C162: ='DF raw data'!B167 -> 1.1390971e-06 | D162: ='DF raw data'!C167 -> 3.6592369e-06 | F162: 6.339374142e-06 | G162: -1.143300325e-06 | H162: 3.664330558e-06 | J162: -3.887152936e-05 | K162: -0.0003616152226 | L162: -0.0001023171098 | M162: -0.002103223107 | N162: 1.395529485e-07
A163: 78.45869 | B163: ='DF raw data'!A168 -> 2.0347784e-06 | C163: ='DF raw data'!B168 -> -1.0199277e-05 | D163: ='DF raw data'!C168 -> 4.3337036e-06 | F163: 2.037610812e-06 | G163: 1.023691194e-05 | H163: 4.339736115e-06 | J163: -3.785237756e-05 | K163: -0.0003805478463 | L163: -9.719691358e-05 | M163: -0.002151838087 | N163: 1.449948193e-07
A164: 78.95886 | B164: ='DF raw data'!A169 -> 1.0471413e-07 | C164: ='DF raw data'!B169 -> -5.6508784e-06 | D164: ='DF raw data'!C169 -> 8.8639848e-07 | F164: 1.048598921e-07 | G164: 5.671729924e-06 | H164: 8.876323467e-07 | J164: -3.779992978e-05 | K164: -0.0003994542372 | L164: -9.436008443e-05 | M164: -0.00219903417 | N164: 1.50162906e-07
A165: 79.45903 | B165: ='DF raw data'!A170 -> 7.068578e-07 | C165: ='DF raw data'!B170 -> 4.4619674e-06 | D165: ='DF raw data'!C170 -> 2.8068148e-06 | F165: 7.078417461e-07 | G165: -4.478431888e-06 | H165: 2.810721886e-06 | J165: -3.744588858e-05 | K165: -0.0004181835473 | L165: -9.66000617e-05 | M165: -0.002247350623 | N165: 1.55531614e-07
A166: 79.9592 | B166: ='DF raw data'!A171 -> 2.1762085e-06 | C166: ='DF raw data'!B171 -> 7.7287987e-06 | D166: ='DF raw data'!C171 -> 2.4518208e-06 | F166: 2.179237782e-06 | G166: -7.75731767e-06 | H166: 2.455233735e-06 | J166: -3.635589922e-05 | K166: -0.0004363676774 | L166: -0.0001004800393 | M166: -0.002297607725 | N166: 1.612425499e-07
A167: 80.45937 | B167: ='DF raw data'!A172 -> 3.718726e-06 | C167: ='DF raw data'!B172 -> 1.5108655e-05 | D167: ='DF raw data'!C172 -> -6.4863875e-06 | F167: 3.723902467e-06 | G167: -1.516440536e-05 | H167: -6.495416551e-06 | J167: -3.449331492e-05 | K167: -0.0004536201987 | L167: -0.0001080648199 | M167: -0.002351658506 | N167: 1.676786344e-07
A168: 80.95954 | B168: ='DF raw data'!A173 -> 2.3074376e-06 | C168: ='DF raw data'!B173 -> 6.3853199e-06 | D168: ='DF raw data'!C173 -> -5.3065182e-06 | F168: 2.310649553e-06 | G168: -6.408881485e-06 | H168: -5.313904873e-06 | J168: -3.333759733e-05 | K168: -0.0004702946648 | L168: -0.0001112703502 | M168: -0.002407312597 | N168: 1.744271713e-07
A169: 81.45971 | B169: ='DF raw data'!A174 -> -3.5428106e-06 | C169: ='DF raw data'!B174 -> 6.0433463e-06 | D169: ='DF raw data'!C174 -> -1.8788583e-06 | F169: -3.547742192e-06 | G169: -6.065646016e-06 | H169: -1.881473671e-06 | J169: -3.511207154e-05 | K169: -0.0004878566696 | L169: -0.0001143042043 | M169: -0.00246448413 | N169: 1.815787563e-07
A170: 81.95988 | B170: ='DF raw data'!A175 -> -4.6660148e-06 | C170: ='DF raw data'!B175 -> 9.5895739e-06 | D170: ='DF raw data'!C175 -> -8.842058e-07 | F170: -4.672509893e-06 | G170: -9.624959059e-06 | H170: -8.854366145e-07 | J170: -3.744912082e-05 | K170: -0.0005065875964 | L170: -0.0001191183201 | M170: -0.002524063541 | N170: 1.893772123e-07
A171: 82.46005 | B171: ='DF raw data'!A176 -> 1.0395437e-06 | C171: ='DF raw data'!B176 -> -9.2635554e-07 | D171: ='DF raw data'!C176 -> 2.2188738e-06 | F171: 1.040990745e-06 | G171: 9.297737563e-07 | H171: 2.221962472e-06 | J171: -3.692844848e-05 | K171: -0.0005250580984 | L171: -0.0001186532752 | M171: -0.002583410349 | N171: 1.971009925e-07
A172: 82.96022 | B172: ='DF raw data'!A177 -> 4.5551701e-06 | C172: ='DF raw data'!B177 -> -5.4835635e-07 | D172: ='DF raw data'!C177 -> 9.0591029e-06 | F172: 4.561510897e-06 | G172: 5.503797639e-07 | H172: 9.071713171e-06 | J172: -3.464691757e-05 | K172: -0.0005423874472 | L172: -0.0001183779917 | M172: -0.002642619469 | N172: 2.047104578e-07
A173: 83.46039 | B173: ='DF raw data'!A178 -> 5.5012047e-06 | C173: ='DF raw data'!B178 -> -1.4217704e-06 | D173: ='DF raw data'!C178 -> 6.5369072e-06 | F173: 5.508862377e-06 | G173: 1.427016678e-06 | H173: 6.546006575e-06 | J173: -3.189154988e-05 | K173: -0.0005583386437 | L173: -0.0001176642408 | M173: -0.002701471593 | N173: 2.121439566e-07
A174: 83.96056 | B174: ='DF raw data'!A179 -> 5.2717937e-06 | C174: ='DF raw data'!B179 -> 3.027892e-06 | D174: ='DF raw data'!C179 -> 4.7136331e-07 | F174: 5.279132037e-06 | G174: -3.039064805e-06 | H174: 4.720194477e-07 | J174: -2.925108641e-05 | K174: -0.0005729691596 | L174: -0.0001191842898 | M174: -0.002761083999 | N174: 2.196767773e-07
A175: 84.46073 | B175: ='DF raw data'!A180 -> 5.9965384e-07 | C175: ='DF raw data'!B180 -> -3.657743e-06 | D175: ='DF raw data'!C180 -> -1.7843436e-06 | F175: 6.004885581e-07 | G175: 3.671239931e-06 | H175: -1.786827406e-06 | J175: -2.895074004e-05 | K175: -0.0005874494512 | L175: -0.0001173480458 | M175: -0.002819777971 | N175: 2.269836154e-07
A176: 84.9609 | B176: ='DF raw data'!A181 -> -4.7210792e-06 | C176: ='DF raw data'!B181 -> -7.3784931e-06 | D176: ='DF raw data'!C181 -> -8.5689999e-06 | F176: -4.727650942e-06 | G176: 7.405719456e-06 | H176: -8.580927948e-06 | J176: -3.131536922e-05 | K176: -0.0006031124595 | L176: -0.0001136439271 | M176: -0.002876619254 | N176: 2.339337749e-07
A177: 85.46107 | B177: ='DF raw data'!A182 -> -4.5687498e-06 | C177: ='DF raw data'!B182 -> 1.0984554e-05 | D177: ='DF raw data'!C182 -> -7.9358024e-06 | F177: -4.5751095e-06 | G177: -1.102508658e-05 | H177: -7.946849037e-06 | J177: -3.360370173e-05 | K177: -0.0006199200229 | L177: -0.0001191583446 | M177: -0.002936218683 | N177: 2.416003406e-07
A178: 85.96124 | B178: ='DF raw data'!A183 -> 2.1778819e-06 | C178: ='DF raw data'!B183 -> 4.9619189e-06 | D178: ='DF raw data'!C183 -> -7.1717682e-06 | F178: 2.180913512e-06 | G178: -4.98022819e-06 | H178: -7.181751301e-06 | J178: -3.251287422e-05 | K178: -0.0006361819872 | L178: -0.0001216493053 | M178: -0.002997064016 | N178: 2.495308563e-07
A179: 86.46141 | B179: ='DF raw data'!A184 -> 8.4092153e-06 | C179: ='DF raw data'!B184 -> 5.9020467e-06 | D179: ='DF raw data'!C184 -> -4.5824877e-06 | F179: 8.420920928e-06 | G179: -5.923825026e-06 | H179: -4.588866523e-06 | J179: -2.83009822e-05 | K179: -0.0006503372895 | L179: -0.0001246122249 | M179: -0.003059391313 | N179: 2.576982084e-07
A180: 86.96158 | B180: ='DF raw data'!A185 -> 8.9883961e-06 | C180: ='DF raw data'!B185 -> 8.5895372e-06 | D180: ='DF raw data'!C185 -> 3.3037772e-06 | F180: 9.000907947e-06 | G180: -8.621232262e-06 | H180: 3.308376058e-06 | J180: -2.379899807e-05 | K180: -0.0006622408344 | L180: -0.0001289243066 | M180: -0.003123875383 | N180: 2.662950649e-07
A181: 87.46175 | B181: ='DF raw data'!A186 -> 7.3348187e-06 | C181: ='DF raw data'!B186 -> -1.6105699e-06 | D181: ='DF raw data'!C186 -> 3.9953425e-06 | F181: 7.345028768e-06 | G181: 1.616512841e-06 | H181: 4.000904017e-06 | J181: -2.012523504e-05 | K181: -0.0006723068732 | L181: -0.0001281157754 | M181: -0.003187955051 | N181: 2.747072625e-07
A182: 87.96192 | B182: ='DF raw data'!A187 -> 5.3698445e-06 | C182: ='DF raw data'!B187 -> 3.0116141e-06 | D182: ='DF raw data'!C187 -> 4.0550344e-06 | F182: 5.377319324e-06 | G182: -3.02272684e-06 | H182: 4.060679008e-06 | J182: -1.743566123e-05 | K182: -0.0006810276679 | L182: -0.0001296276527 | M182: -0.003252790914 | N182: 2.832638361e-07
A183: 88.46209 | B183: ='DF raw data'!A188 -> 6.0371372e-06 | C183: ='DF raw data'!B188 -> 6.2785784e-06 | D183: ='DF raw data'!C188 -> 4.3919404e-06 | F183: 6.045540895e-06 | G183: -6.301746113e-06 | H183: 4.398053981e-06 | J183: -1.441186304e-05 | K183: -0.0006882360494 | L183: -0.0001327795971 | M183: -0.003319203285 | N183: 2.921859302e-07
A184: 88.96226 | B184: ='DF raw data'!A189 -> 5.1330121e-06 | C184: ='DF raw data'!B189 -> 6.3971952e-06 | D184: ='DF raw data'!C189 -> 3.2965158e-06 | F184: 5.140157253e-06 | G184: -6.420800604e-06 | H184: 3.30110455e-06 | J184: -1.184091059e-05 | K184: -0.0006941585177 | L184: -0.0001359910889 | M184: -0.003387221948 | N184: 3.015059896e-07
A185: 89.46243 | B185: ='DF raw data'!A190 -> 1.4351666e-06 | C185: ='DF raw data'!B190 -> 2.6401528e-06 | D185: ='DF raw data'!C190 -> 1.289181e-06 | F185: 1.437164352e-06 | G185: -2.649894862e-06 | H185: 1.29097554e-06 | J185: -1.112208409e-05 | K185: -0.0006997214505 | L185: -0.0001373164868 | M185: -0.003455903535 | N185: 3.109989753e-07
A186: 89.9626 | B186: ='DF raw data'!A191 -> -1.0025993e-06 | C186: ='DF raw data'!B191 -> 2.0341265e-06 | D186: ='DF raw data'!C191 -> 3.2251824e-06 | F186: -1.003994918e-06 | G186: -2.041632349e-06 | H186: 3.229671854e-06 | J186: -1.162425223e-05 | K186: -0.0007055355527 | L186: -0.0001383376501 | M186: -0.003525095877 | N186: 3.206384659e-07
A187: 90.46277 | B187: ='DF raw data'!A192 -> -1.3345706e-07 | C187: ='DF raw data'!B192 -> 6.7711912e-06 | D187: ='DF raw data'!C192 -> -1.9750092e-07 | F187: -1.336428322e-07 | G187: -6.796176635e-06 | H187: -1.977758413e-07 | J187: -1.169109637e-05 | K187: -0.0007113830884 | L187: -0.0001417368937 | M187: -0.003595988419 | N187: 3.307549188e-07
A188: 90.96294 | B188: ='DF raw data'!A193 -> 1.023653e-06 | C188: ='DF raw data'!B193 -> 4.0402042e-06 | D188: ='DF raw data'!C193 -> -6.3116918e-06 | F188: 1.025077925e-06 | G188: -4.055112398e-06 | H188: -6.320477675e-06 | J188: -1.117838314e-05 | K188: -0.0007169741803 | L188: -0.0001437651393 | M188: -0.003667895429 | N188: 3.411551394e-07
A189: 91.46311 | B189: ='DF raw data'!A194 -> 2.695188e-06 | C189: ='DF raw data'!B194 -> 5.8299961e-06 | D189: ='DF raw data'!C194 -> -5.6916056e-06 | F189: 2.698939702e-06 | G189: -5.851508562e-06 | H189: -5.699528315e-06 | J189: -9.828454471e-06 | K189: -0.0007218900783 | L189: -0.0001466918883 | M189: -0.003741266311 | N189: 3.519663683e-07
A190: 91.96328 | B190: ='DF raw data'!A195 -> 6.7898059e-06 | C190: ='DF raw data'!B195 -> -8.4117537e-06 | D190: ='DF raw data'!C195 -> -2.7253577e-06 | F190: 6.79925731e-06 | G190: 8.442792748e-06 | H190: -2.729151398e-06 | J190: -6.427669942e-06 | K190: -0.000725105006 | L190: -0.0001424690567 | M190: -0.003812525059 | N190: 3.621391994e-07
A191: 92.46345 | B191: ='DF raw data'!A196 -> 7.1563977e-06 | C191: ='DF raw data'!B196 -> -5.0552594e-06 | D191: ='DF raw data'!C196 -> -4.3862842e-06 | F191: 7.166359406e-06 | G191: 5.073913113e-06 | H191: -4.392389908e-06 | J191: -2.843271958e-06 | K191: -0.0007265271253 | L191: -0.0001399312376 | M191: -0.003882514466 | N191: 3.719369472e-07
A192: 92.96362 | B192: ='DF raw data'!A197 -> 3.8976127e-06 | C192: ='DF raw data'!B197 -> 1.0162243e-05 | D192: ='DF raw data'!C197 -> -9.6137692e-06 | F192: 3.903038177e-06 | G192: -1.019974129e-05 | H192: -9.627151567e-06 | J192: -8.91089353e-07 | K192: -0.0007269728215 | L192: -0.0001450328422 | M192: -0.003955055543 | N192: 3.824581829e-07
A193: 93.46379 | B193: ='DF raw data'!A198 -> 5.3251131e-07 | C193: ='DF raw data'!B198 -> 6.335285e-06 | D193: ='DF raw data'!C198 -> -5.6309095e-06 | F193: 5.332525657e-07 | G193: -6.358661958e-06 | H193: -5.638747726e-06 | J193: -6.243724172e-07 | K193: -0.0007272851139 | L193: -0.0001482132541 | M193: -0.004029187366 | N193: 3.934456966e-07
A194: 93.96396 | B194: ='DF raw data'!A199 -> -3.5271237e-06 | C194: ='DF raw data'!B199 -> 4.5913916e-06 | D194: ='DF raw data'!C199 -> -2.320116e-06 | F194: -3.532033456e-06 | G194: -4.608333659e-06 | H194: -2.323345601e-06 | J194: -2.390989591e-06 | K194: -0.0007284810151 | L194: -0.0001505182044 | M194: -0.004104472056 | N194: 4.047802724e-07
A195: 94.46413 | B195: ='DF raw data'!A200 -> -8.3449722e-06 | C195: ='DF raw data'!B200 -> 5.7983739e-06 | D195: ='DF raw data'!C200 -> 5.0836883e-07 | F195: -8.356588401e-06 | G195: -5.819769677e-06 | H195: 5.090764794e-07 | J195: -6.570704412e-06 | K195: -0.0007317674843 | L195: -0.0001534290786 | M195: -0.004181212679 | N195: 4.165761098e-07
A196: 94.9643 | B196: ='DF raw data'!A201 -> -8.7028184e-06 | C196: ='DF raw data'!B201 -> 8.9152327e-06 | D196: ='DF raw data'!C201 -> 1.0721164e-05 | F196: -8.714932723e-06 | G196: -8.948129566e-06 | H196: 1.073608786e-05 | J196: -1.092965231e-05 | K196: -0.0007372341685 | L196: -0.0001579046645 | M196: -0.004260191855 | N196: 4.29107039e-07
A197: 95.46447 | B197: ='DF raw data'!A202 -> -3.9298334e-06 | C197: ='DF raw data'!B202 -> 5.7401994e-06 | D197: ='DF raw data'!C202 -> 1.1873545e-05 | F197: -3.935303728e-06 | G197: -5.761380515e-06 | H197: 1.189007297e-05 | J197: -1.289797318e-05 | K197: -0.0007436853478 | L197: -0.0001607863342 | M197: -0.004340612355 | N197: 4.421207637e-07
A198: 95.96464 | B198: ='DF raw data'!A203 -> -3.2341777e-07 | C198: ='DF raw data'!B203 -> 5.8790948e-07 | D198: ='DF raw data'!C203 -> 1.08846e-07 | F198: -3.238679675e-07 | G198: -5.900788434e-07 | H198: 1.089975136e-07 | J198: -1.305996222e-05 | K198: -0.0007502175491 | L198: -0.0001610814739 | M198: -0.004421180476 | N198: 4.551841057e-07
A199: 96.46481 | B199: ='DF raw data'!A204 -> -1.1596567e-07 | C199: ='DF raw data'!B204 -> 4.0382029e-06 | D199: ='DF raw data'!C204 -> 3.2975199e-06 | F199: -1.161270942e-07 | G199: =(1-$G$1*($B$2-$G$2))*C199*$M$2/$M$1 -> -4.053103714e-06 | H199: 3.302110048e-06 | J199: -1.311804551e-05 | K199: -0.0007567788019 | L199: -0.0001631087148 | M199: -0.004502762562 | N199: 4.685769257e-07
A200: =A199+$B$1 -> 96.96498 | B200: ='DF raw data'!A205 -> -1.8408333e-06 | C200: ='DF raw data'!B205 -> 4.5293482e-06 | D200: ='DF raw data'!C205 -> 1.2290705e-05 | F200: -1.84339574e-06 | G200: -4.546061321e-06 | H200: 1.230781366e-05 | J200: =F200*$B$1+J199 -> -1.404005675e-05 | K200: =J200*$B$1+K199 -> -0.0007638012171 | L200: =G200*$B$1+L199 -> -0.0001653825183 | M200: =L200*$B$1+M199 -> -0.004585481936 | N200: =(J200^2+L200^2)*$B$1+N199 -> 4.823558592e-07
A201: 97.46515 | B201: ='DF raw data'!A206 -> -1.55288e-06 | C201: ='DF raw data'!B206 -> 3.1211545e-07 | D201: ='DF raw data'!C206 -> 9.6748672e-06 | F201: -1.555041609e-06 | G201: -3.13267144e-07 | H201: 9.688334615e-06 | J201: -1.481784192e-05 | K201: -0.0007712126571 | L201: -0.0001655392052 | M201: -0.004668279681 | N201: 4.961719535e-07
... 1002 more rows

Sheet 12 mm
A1: dz | B1: ='DF raw data'!E7 -> 0.50023 | C1: mm | F1: T_coeff | G1: -0.0008 | H1: /degC | L1: Hallref | M1: ='PI vs gap'!B50 -> -0.50526 | N1: T | P1: IBy total | Q1: =L1203*1000 -> 1.673190555 | R1: muTm | X1: DF ref | Y1: 19
A2: Tref | B2: ='DF raw data'!E8 -> 21.67 | C2: degC | F2: Tcorr | G2: 20 | H2: degC | L2: NMRref | M2: ='PI vs gap'!B51 -> 0.506444 | N2: T | P2: JBy total | Q2: =M1203 -> 1.709694505 | R2: muTm^2
A3: Encoder | B3: ='DF raw data'!E9 -> 17707501 | P3: PI total | Q3: =N1203 -> 543.9758608 | R3: T^2mm^3
A5: z [mm] | B5: Bx | C5: By | D5: Bz | F5: Bx_corr | G5: By_corr | H5: Bz_corr | J5: Ix | K5: Jx | L5: Iy | M5: Jy | N5: PI
A6: -0.068 | B6: ='DF raw data'!D11 -> -3.878245e-06 | C6: ='DF raw data'!E11 -> -2.8643665e-06 | D6: ='DF raw data'!F11 -> 8.2208715e-08 | F6: =(1-$G$1*($B$2-$G$2))*B6 -> -3.883426335e-06 | G6: =(1-$G$1*($B$2-$G$2))*C6*$M$2/$M$1 -> 2.874914469e-06 | H6: =(1-$G$1*($B$2-$G$2))*D6 -> 8.231854584e-08 | J6: =F6*$B$1 -> -1.942606356e-06 | K6: =J6*$B$1 -> -9.717499773e-07 | L6: =G6*$B$1 -> 1.438118465e-06 | M6: =L6*$B$1 -> 7.193899996e-07 | N6: =(J6^2+L6)^2*$B$1 -> 1.034573471e-12
A7: =A6+$B$1 -> 0.43223 | B7: ='DF raw data'!D12 -> -4.3515752e-06 | C7: ='DF raw data'!E12 -> 9.5651749e-06 | D7: ='DF raw data'!F12 -> -2.3691778e-06 | F7: =(1-$G$1*($B$2-$G$2))*B7 -> -4.357388904e-06 | G7: =(1-$G$1*($B$2-$G$2))*C7*$M$2/$M$1 -> -9.600398453e-06 | H7: -2.372343022e-06 | J7: =F7*$B$1+J6 -> -4.122303007e-06 | K7: =J7*$B$1+K6 -> -3.033849611e-06 | L7: =G7*$B$1+L6 -> -3.364288853e-06 | M7: =L7*$B$1+M6 -> -9.635282136e-07 | N7: =(J7^2+L7^2)*$B$1+N6 -> 1.519699598e-11
A8: =A7+$B$1 -> 0.93246 | B8: ='DF raw data'!D13 -> -3.7022976e-06 | C8: ='DF raw data'!E13 -> -7.3894157e-06 | D8: ='DF raw data'!F13 -> 2.6604444e-06 | F8: -3.70724387e-06 | G8: 7.416627066e-06 | H8: 2.663998754e-06 | J8: =F8*$B$1+J7 -> -5.976777608e-06 | K8: =J8*$B$1+K7 -> -6.023613074e-06 | L8: =G8*$B$1+L7 -> 3.457305038e-07 | M8: =L8*$B$1+M7 -> -7.905834437e-07 | N8: =(J8^2+L8^2)*$B$1+N7 -> 3.312593958e-11
A9: 1.43269 | B9: ='DF raw data'!D14 -> -3.9299189e-06 | C9: ='DF raw data'!E14 -> -6.1131533e-07 | D9: ='DF raw data'!F14 -> 6.0553043e-06 | F9: -3.935169272e-06 | G9: 6.135664857e-07 | H9: 6.063394187e-06 | J9: -7.945267333e-06 | K9: -9.998074152e-06 | L9: 6.526548669e-07 | M9: -4.641058996e-07 | N9: 6.491717251e-11
A10: 1.93292 | B10: ='DF raw data'!D15 -> -3.8331923e-06 | C10: ='DF raw data'!E15 -> -4.4034491e-06 | D10: ='DF raw data'!F15 -> -6.9826871e-07 | F10: -3.838313445e-06 | G10: 4.419664707e-06 | H10: -6.99201597e-07 | J10: -9.865306868e-06 | K10: -1.493299661e-05 | L10: 2.863503744e-06 | M10: 9.68304578e-07 | N10: 1.177034097e-10
A11: 2.43315 | B11: ='DF raw data'!D16 -> -3.8498106e-06 | C11: ='DF raw data'!E16 -> -2.1850888e-06 | D11: ='DF raw data'!F16 -> 1.0220251e-05 | F11: -3.854953947e-06 | G11: 2.193135343e-06 | H11: 1.023390526e-05 | J11: -1.179367048e-05 | K11: -2.083254439e-05 | L11: 3.960575836e-06 | M11: 2.949503429e-06 | N11: 1.951274205e-10
A12: 2.93338 | B12: ='DF raw data'!D17 -> -3.4217512e-06 | C12: ='DF raw data'!E17 -> -1.4923514e-05 | D12: ='DF raw data'!F17 -> 3.7121404e-06 | F12: -3.42632266e-06 | G12: 1.497846952e-05 | H12: 3.71709982e-06 | J12: -1.350761986e-05 | K12: -2.758946108e-05 | L12: 1.145325565e-05 | M12: 8.6787655e-06 | N12: 3.520159857e-10
A13: 3.43361 | B13: ='DF raw data'!D18 -> -3.4288962e-06 | C13: ='DF raw data'!E18 -> -1.6001473e-05 | D13: ='DF raw data'!F18 -> -4.820899e-06 | F13: -3.433477205e-06 | G13: 1.606039808e-05 | H13: -4.827339721e-06 | J13: -1.522514817e-05 | K13: -3.520553694e-05 | L13: 1.948714858e-05 | M13: 1.842682183e-05 | N13: 6.579336914e-10
A14: 3.93384 | B14: ='DF raw data'!D19 -> -3.5404366e-06 | C14: ='DF raw data'!E19 -> -1.2439634e-05 | D14: ='DF raw data'!F19 -> -2.4145652e-06 | F14: -3.545166623e-06 | G14: 1.248544269e-05 | H14: -2.417791059e-06 | J14: -1.699854687e-05 | K14: -4.370872004e-05 | L14: 2.573274157e-05 | M14: 3.129911115e-05 | N14: 1.133714742e-09
A15: 4.43407 | B15: ='DF raw data'!D20 -> -4.2254101e-06 | C15: ='DF raw data'!E20 -> 5.6780409e-06 | D15: ='DF raw data'!F20 -> -5.5617079e-06 | F15: -4.231055248e-06 | G15: -5.698950165e-06 | H15: -5.569138342e-06 | J15: -1.911504763e-05 | K15: -5.327064032e-05 | L15: 2.288195573e-05 | M15: 4.274535187e-05 | N15: 1.578403677e-09
A16: 4.9343 | B16: ='DF raw data'!D21 -> -3.7039711e-06 | C16: ='DF raw data'!E21 -> -7.4050263e-06 | D16: ='DF raw data'!F21 -> 1.7837933e-06 | F16: -3.708919605e-06 | G16: 7.432295152e-06 | H16: 1.786176448e-06 | J16: -2.097036049e-05 | K16: -6.376064375e-05 | L16: 2.659981274e-05 | M16: 5.605137619e-05 | N16: 2.152320586e-09
A17: 5.43453 | B17: ='DF raw data'!D22 -> -4.0489972e-06 | C17: ='DF raw data'!E22 -> 2.0725724e-06 | D17: ='DF raw data'!F22 -> 2.3213556e-06 | F17: -4.05440666e-06 | G17: -2.080204604e-06 | H17: 2.324456931e-06 | J17: -2.299849633e-05 | K17: -7.526518157e-05 | L17: 2.555923199e-05 | M17: 6.883687081e-05 | N17: 2.74369508e-09
A18: 5.93476 | B18: ='DF raw data'!D23 -> -3.8564317e-06 | C18: ='DF raw data'!E23 -> -4.8864554e-06 | D18: ='DF raw data'!F23 -> -7.982143e-06 | F18: -3.861583893e-06 | G18: 4.904449668e-06 | H18: -7.992807143e-06 | J18: -2.493017644e-05 | K18: -8.773600373e-05 | L18: 2.801258485e-05 | M18: 8.284960613e-05 | N18: 3.447127814e-09
A19: 6.43499 | B19: ='DF raw data'!D24 -> -4.0607406e-06 | C19: ='DF raw data'!E24 -> 1.5239197e-06 | D19: ='DF raw data'!F24 -> -3.127027e-06 | F19: -4.066165749e-06 | G19: -1.529531502e-06 | H19: -3.131204708e-06 | J19: -2.696419453e-05 | K19: -0.0001012243028 | L19: 2.72474673e-05 | M19: 9.64796067e-05 | N19: 4.182211927e-09
A20: 6.93522 | B20: ='DF raw data'!D25 -> -3.9186993e-06 | C20: ='DF raw data'!E25 -> -4.936324e-07 | D20: ='DF raw data'!F25 -> 8.0007494e-06 | F20: -3.923934682e-06 | G20: 4.954501908e-07 | H20: 8.011438401e-06 | J20: -2.892706438e-05 | K20: -0.0001156944882 | L20: 2.749530635e-05 | M20: 0.0001102335838 | N20: 4.978961726e-09
A21: 7.43545 | B21: ='DF raw data'!D26 -> -4.2020542e-06 | C21: ='DF raw data'!E26 -> 5.9071353e-06 | D21: ='DF raw data'!F26 -> 4.0379149e-07 | F21: -4.207668144e-06 | G21: -5.9288882e-06 | H21: 4.043309554e-07 | J21: -3.103186622e-05 | K21: -0.0001312175586 | L21: 2.452949861e-05 | M21: 0.0001225039749 | N21: 5.761658113e-09
A22: 7.93568 | B22: ='DF raw data'!D27 -> -5.0671219e-06 | C22: ='DF raw data'!E27 -> 1.5464688e-06 | D22: ='DF raw data'!F27 -> 5.8362406e-07 | F22: -5.073891575e-06 | G22: -1.552163638e-06 | H22: 5.844037817e-07 | J22: -3.3569979e-05 | K22: -0.0001480102692 | L22: 2.375305979e-05 | M22: 0.000134385968 | N22: 6.607622747e-09
A23: 8.43591 | B23: ='DF raw data'!D28 -> -6.82364e-06 | C23: ='DF raw data'!E28 -> -4.0015661e-06 | D23: ='DF raw data'!F28 -> -1.9803651e-06 | F23: =(1-$G$1*($B$2-$G$2))*B23 -> -6.832756383e-06 | G23: 4.016301782e-06 | H23: -1.983010868e-06 | J23: -3.698792872e-05 | K23: -0.0001665127408 | L23: 2.576213443e-05 | M23: 0.0001472729605 | N23: 7.623987281e-09
A24: 8.93614 | B24: ='DF raw data'!D29 -> -7.059934e-06 | C24: ='DF raw data'!E29 -> -1.1790479e-06 | D24: ='DF raw data'!F29 -> -4.4843277e-06 | F24: -7.069366072e-06 | G24: 1.183389719e-06 | H24: -4.490318762e-06 | J24: -4.052423771e-05 | K24: -0.0001867841802 | L24: 2.635410147e-05 | M24: 0.0001604560727 | N24: 8.792900987e-09
A25: 9.43637 | B25: ='DF raw data'!D30 -> -4.3577161e-06 | C25: ='DF raw data'!E30 -> 4.2721194e-06 | D25: ='DF raw data'!F30 -> -1.3535697e-07 | F25: -4.363538009e-06 | G25: -4.287851389e-06 | H25: -1.355378069e-07 | J25: -4.270701033e-05 | K25: -0.000208147508 | L25: 2.420918957e-05 | M25: 0.0001725662356 | N25: 9.998442077e-09
A26: 9.9366 | B26: ='DF raw data'!D31 -> 3.8909207e-06 | C26: ='DF raw data'!E31 -> 4.222084e-06 | D26: ='DF raw data'!F31 -> 4.0226354e-07 | F26: 3.89611897e-06 | G26: -4.237631734e-06 | H26: 4.028009641e-07 | J26: -4.075805474e-05 | K26: -0.0002285359097 | L26: 2.208939905e-05 | M26: 0.0001836160156 | N26: 1.107351667e-08
A27: 10.43683 | B27: ='DF raw data'!D32 -> 1.1598212e-05 | C27: ='DF raw data'!E32 -> -3.7329773e-06 | D27: ='DF raw data'!F32 -> 1.2323922e-06 | F27: 1.161370721e-05 | G27: 3.746723909e-06 | H27: 1.234038676e-06 | J27: -3.494852998e-05 | K27: -0.0002460182129 | L27: 2.396362275e-05 | M27: 0.0001956033387 | N27: 1.197175715e-08
A28: 10.93706 | B28: ='DF raw data'!D33 -> 8.9341784e-06 | C28: ='DF raw data'!E33 -> 4.2835941e-06 | D28: ='DF raw data'!F33 -> -3.0882316e-06 | F28: 8.946114462e-06 | G28: -4.299368344e-06 | H28: -3.092357477e-06 | J28: -3.047341514e-05 | K28: -0.0002612619293 | L28: 2.181294972e-05 | M28: 0.0002065148305 | N28: 1.267429708e-08
A29: 11.43729 | B29: ='DF raw data'!D34 -> 4.5840045e-07 | C29: ='DF raw data'!E34 -> -1.2331291e-05 | D29: ='DF raw data'!F34 -> -1.0933815e-07 | F29: 4.59012873e-07 | G29: 1.237670072e-05 | H29: -1.094842258e-07 | J29: -3.024380314e-05 | K29: -0.000276390787 | L29: 2.800414672e-05 | M29: 0.0002205233448 | N29: 1.352414776e-08
A30: 11.93752 | B30: ='DF raw data'!D35 -> -6.5213967e-06 | C30: ='DF raw data'!E35 -> -1.2978947e-05 | D30: ='DF raw data'!F35 -> 1.5478631e-06 | F30: -6.530109286e-06 | G30: 1.30267417e-05 | H30: 1.549931045e-06 | J30: -3.35103597e-05 | K30: -0.0002931536742 | L30: 3.452051372e-05 | M30: 0.0002377915414 | N30: 1.468198516e-08
A31: 12.43775 | B31: ='DF raw data'!D36 -> -8.196409e-06 | C31: ='DF raw data'!E36 -> -2.7803073e-06 | D31: ='DF raw data'!F36 -> -4.0343235e-07 | F31: -8.207359402e-06 | G31: 2.790545722e-06 | H31: -4.039713356e-07 | J31: -3.76159271e-05 | K31: -0.0003119702894 | L31: 3.591642841e-05 | M31: 0.0002557580164 | N31: 1.60350812e-08
A32: 12.93798 | B32: ='DF raw data'!D37 -> -4.7032804e-06 | C32: ='DF raw data'!E37 -> -1.2615059e-06 | D32: ='DF raw data'!F37 -> 3.5512107e-06 | F32: -4.709563983e-06 | G32: 1.266151369e-06 | H32: 3.555955117e-06 | J32: -3.997179229e-05 | K32: -0.0003319653791 | L32: 3.65497953e-05 | M32: 0.0002740413205 | N32: 1.750257179e-08
A33: 13.43821 | B33: ='DF raw data'!D38 -> -8.7612659e-07 | C33: ='DF raw data'!E38 -> -5.9098415e-06 | D33: ='DF raw data'!F38 -> 4.0190839e-06 | F33: -8.772970951e-07 | G33: 5.931604365e-06 | H33: 4.024453396e-06 | J33: -4.041064261e-05 | K33: -0.0003521799948 | L33: 3.951696176e-05 | M33: 0.0002938088902 | N33: 1.91006117e-08
A34: 13.93844 | B34: ='DF raw data'!D39 -> 2.4952612e-06 | C34: ='DF raw data'!E39 -> -4.7629019e-06 | D34: ='DF raw data'!F39 -> -5.7827361e-07 | F34: 2.498594869e-06 | G34: 4.780441185e-06 | H34: -5.790461835e-07 | J34: -3.91607705e-05 | K34: -0.0003717693871 | L34: 4.190828185e-05 | M34: 0.0003147726701 | N34: 2.074630339e-08
A35: 14.43867 | B35: ='DF raw data'!D40 -> 2.5825582e-06 | C35: ='DF raw data'!E40 -> -4.0359905e-06 | D35: ='DF raw data'!F40 -> -5.627599e-06 | F35: 2.586008498e-06 | G35: 4.050852949e-06 | H35: -5.635117472e-06 | J35: -3.786717147e-05 | K35: -0.0003907116823 | L35: 4.393464002e-05 | M35: 0.0003367500951 | N35: 2.242916478e-08
A36: 14.9389 | B36: ='DF raw data'!D41 -> -9.0686953e-08 | C36: ='DF raw data'!E41 -> 8.904577e-06 | D36: ='DF raw data'!F41 -> -6.3245484e-06 | F36: -9.080811077e-08 | G36: -8.937367915e-06 | H36: -6.332997997e-06 | J36: -3.791259641e-05 | K36: -0.0004096767004 | L36: 3.946390047e-05 | M36: 0.000356491122 | N36: 2.392723578e-08
A37: 15.43913 | B37: ='DF raw data'!D42 -> 2.1746534e-06 | C37: ='DF raw data'!E42 -> -6.8267532e-06 | D37: ='DF raw data'!F42 -> -2.1953893e-08 | F37: 2.177558737e-06 | G37: 6.851892573e-06 | H37: -2.19832234e-08 | J37: -3.682331621e-05 | K37: -0.0004280968278 | L37: 4.289142269e-05 | M37: 0.0003779466984 | N37: 2.552578616e-08
A38: 15.93936 | B38: ='DF raw data'!D43 -> 2.742702e-06 | C38: ='DF raw data'!E43 -> -9.5131763e-06 | D38: ='DF raw data'!F43 -> 4.0220089e-06 | F38: 2.74636625e-06 | G38: 9.548208369e-06 | H38: 4.027382304e-06 | J38: -3.544950142e-05 | K38: -0.0004458297319 | L38: 4.766772296e-05 | M38: 0.0004017915234 | N38: 2.729103728e-08
A39: 16.43959 | B39: ='DF raw data'!D44 -> -7.44359e-07 | C39: ='DF raw data'!E44 -> -8.9966798e-06 | D39: ='DF raw data'!F44 -> 3.0573769e-06 | F39: -7.453534636e-07 | G39: 9.029809882e-06 | H39: 3.061461556e-06 | J39: -3.582234958e-05 | K39: -0.0004637491458 | L39: 5.218470476e-05 | M39: 0.0004278958783 | N39: 2.929520084e-08
A40: 16.93982 | B40: ='DF raw data'!D45 -> -4.6860509e-06 | C40: ='DF raw data'!E45 -> -4.1664504e-07 | D40: ='DF raw data'!F45 -> 1.9582271e-06 | F40: -4.692311464e-06 | G40: 4.181793265e-07 | H40: 1.960843291e-06 | J40: -3.816958454e-05 | K40: -0.0004828427171 | L40: 5.23938906e-05 | M40: 0.0004541048742 | N40: 3.139718579e-08
A41: 17.44005 | B41: ='DF raw data'!D46 -> -4.3775358e-06 | C41: ='DF raw data'!E46 -> -2.0923569e-06 | D41: ='DF raw data'!F46 -> -1.1081816e-06 | F41: -4.383384188e-06 | G41: 2.10006196e-06 | H41: -1.109662131e-06 | J41: -4.036228482e-05 | K41: -0.0005030331429 | L41: 5.34444046e-05 | M41: 0.0004808393687 | N41: 3.364092664e-08
A42: 17.94028 | B42: ='DF raw data'!D47 -> -3.3750978e-06 | C42: ='DF raw data'!E47 -> -1.2617759e-05 | D42: ='DF raw data'!F47 -> 2.5787208e-06 | F42: -3.379606931e-06 | G42: 1.266422363e-05 | H42: 2.582165971e-06 | J42: -4.205286559e-05 | K42: -0.0005240692478 | L42: 5.977942918e-05 | M42: 0.0005107428326 | N42: 3.631316714e-08
A43: 18.44051 | B43: ='DF raw data'!D48 -> -5.8557048e-06 | C43: ='DF raw data'!E48 -> -8.0768323e-06 | D43: ='DF raw data'!F48 -> 2.0127248e-07 | F43: -5.863528022e-06 | G43: 8.106575063e-06 | H43: 2.0154138e-07 | J43: -4.498597821e-05 | K43: -0.0005465725837 | L43: 6.383458123e-05 | M43: 0.0005426748051 | N43: 3.936386581e-08
A44: 18.94074 | B44: ='DF raw data'!D49 -> -4.9053192e-06 | C44: ='DF raw data'!E49 -> -1.7236977e-06 | D44: ='DF raw data'!F49 -> 1.8800979e-06 | F44: -4.911872706e-06 | G44: 1.73004518e-06 | H44: 1.882609711e-06 | J44: -4.74430443e-05 | K44: -0.0005703050177 | L44: 6.470000173e-05 | M44: 0.000575039687 | N44: 4.258381264e-08
A45: 19.44097 | B45: ='DF raw data'!D50 -> -1.3348903e-06 | C45: ='DF raw data'!E50 -> -8.0513482e-06 | D45: ='DF raw data'!F50 -> -2.0621032e-06 | F45: -1.336673713e-06 | G45: 8.080997118e-06 | H45: -2.06485817e-06 | J45: -4.811168859e-05 | K45: -0.0005943719277 | L45: 6.874235892e-05 | M45: 0.0006094266772 | N45: 4.610555515e-08
A46: 19.9412 | B46: ='DF raw data'!D51 -> -2.7986382e-06 | C46: ='DF raw data'!E51 -> -6.6578345e-06 | D46: ='DF raw data'!F51 -> 3.2763978e-06 | F46: -2.802377181e-06 | G46: 6.682351834e-06 | H46: 3.280775067e-06 | J46: -4.951352173e-05 | K46: -0.0006191400767 | L46: 7.208507177e-05 | M46: 0.0006454857926 | N46: 4.993123735e-08
A47: 20.44143 | B47: ='DF raw data'!D52 -> -6.4236078e-06 | C47: ='DF raw data'!E52 -> -2.5030456e-06 | D47: ='DF raw data'!F52 -> 4.862382e-06 | F47: -6.43218974e-06 | G47: 2.512263012e-06 | H47: 4.868878142e-06 | J47: -5.2731096e-05 | K47: -0.0006455177529 | L47: 7.33417811e-05 | M47: 0.0006821735518 | N47: 5.401290673e-08
A48: 20.94166 | B48: ='DF raw data'!D53 -> -5.1469538e-06 | C48: ='DF raw data'!E53 -> -1.0388159e-06 | D48: ='DF raw data'!F53 -> -1.9920794e-06 | F48: -5.15383013e-06 | G48: 1.042641317e-06 | H48: -1.994740818e-06 | J48: -5.530919645e-05 | K48: -0.0006731850722 | L48: 7.386334157e-05 | M48: 0.0007191222112 | N48: 5.827231537e-08
A49: 21.44189 | B49: ='DF raw data'!D54 -> -1.1541991e-06 | C49: ='DF raw data'!E54 -> 1.9386116e-06 | D49: ='DF raw data'!F54 -> -6.0789703e-06 | F49: -1.15574111e-06 | G49: -1.945750496e-06 | H49: -6.087091804e-06 | J49: -5.588733282e-05 | K49: -0.0007011415927 | L49: 7.28900188e-05 | M49: 0.0007555839853 | N49: 6.249243014e-08
A50: 21.94212 | B50: ='DF raw data'!D55 -> 6.2387028e-07 | C50: ='DF raw data'!E55 -> 6.2001418e-06 | D50: ='DF raw data'!F55 -> -4.8733441e-06 | F50: 6.247037707e-07 | G50: -6.22297369e-06 | H50: -4.879854888e-06 | J50: -5.557483725e-05 | K50: -0.0007289417935 | L50: 6.977710067e-05 | M50: 0.0007904885843 | N50: 6.64729635e-08
A51: 22.44235 | B51: ='DF raw data'!D56 -> -2.3392779e-06 | C51: ='DF raw data'!E56 -> 1.2792142e-06 | D51: ='DF raw data'!F56 -> -5.8705141e-06 | F51: -2.342403175e-06 | G51: -1.283924879e-06 | H51: -5.878357107e-06 | J51: -5.674657759e-05 | K51: -0.000757328134 | L51: 6.913484293e-05 | M51: 0.0008250719068 | N51: 7.047470374e-08
A52: 22.94258 | B52: ='DF raw data'!D57 -> -3.5093974e-06 | C52: ='DF raw data'!E57 -> 8.9921372e-07 | D52: ='DF raw data'!F57 -> 6.899068e-06 | F52: -3.514085955e-06 | G52: -9.025250554e-07 | H52: 6.908285155e-06 | J52: -5.850442881e-05 | K52: -0.0007865938045 | L52: 6.868337282e-05 | M52: 0.0008594293904 | N52: 7.454666293e-08
A53: 23.44281 | B53: ='DF raw data'!D58 -> -2.3269233e-06 | C53: ='DF raw data'!E58 -> 5.4275988e-06 | D53: ='DF raw data'!F58 -> 6.4188257e-06 | F53: -2.33003207e-06 | G53: -5.447585817e-06 | H53: 6.427401251e-06 | J53: -5.966998075e-05 | K53: -0.0008164425189 | L53: 6.595832696e-05 | M53: 0.0008924237243 | N53: 7.850398621e-08
A54: 23.94304 | B54: ='DF raw data'!D59 -> -2.6871123e-06 | C54: ='DF raw data'!E59 -> -2.3133123e-06 | D54: ='DF raw data'!F59 -> 4.6136752e-06 | F54: -2.690702282e-06 | G54: 2.321831023e-06 | H54: 4.61983907e-06 | J54: -6.101595076e-05 | K54: -0.000846964528 | L54: 6.71197765e-05 | M54: 0.0009259990501 | N54: 8.261988397e-08
A55: 24.44327 | B55: ='DF raw data'!D60 -> -1.6764528e-06 | C55: ='DF raw data'!E60 -> -3.1493669e-06 | D55: ='DF raw data'!F60 -> 1.2967143e-05 | F55: -1.678692541e-06 | G55: 3.160964377e-06 | H55: 1.29844671e-05 | J55: -6.185568313e-05 | K55: -0.0008779065964 | L55: 6.870098571e-05 | M55: 0.0009603653442 | N55: 8.689482503e-08
A56: 24.9435 | B56: ='DF raw data'!D61 -> 2.1903601e-07 | C56: ='DF raw data'!E61 -> -5.2772634e-06 | D56: ='DF raw data'!F61 -> 3.1407893e-07 | F56: 2.193286421e-07 | G56: 5.29669681e-06 | H56: 3.144985395e-07 | J56: -6.174596836e-05 | K56: -0.0009087937821 | L56: 7.135055235e-05 | M56: 0.000996057031 | N56: 9.134860579e-08
A57: 25.44373 | B57: ='DF raw data'!D62 -> -1.0484795e-06 | C57: ='DF raw data'!E62 -> 9.1789034e-06 | D57: ='DF raw data'!F62 -> -3.4646605e-06 | F57: -1.049880269e-06 | G57: -9.212704516e-06 | H57: -3.469289286e-06 | J57: -6.227114997e-05 | K57: -0.0009399436795 | L57: 6.674208117e-05 | M57: 0.001029443422 | N57: 9.551662296e-08
A58: 25.94396 | B58: ='DF raw data'!D63 -> -3.3227691e-06 | C58: ='DF raw data'!E63 -> 4.8758775e-06 | D58: ='DF raw data'!F63 -> 5.0407593e-06 | F58: -3.32720832e-06 | G58: -4.893832815e-06 | H58: 5.047493754e-06 | J58: -6.393551938e-05 | K58: -0.0009719261443 | L58: 6.429403918e-05 | M58: 0.001061605229 | N58: 9.962925095e-08
A59: 26.44419 | B59: ='DF raw data'!D64 -> -5.9006993e-06 | C59: ='DF raw data'!E64 -> -3.3698899e-07 | D59: ='DF raw data'!F64 -> 1.936734e-06 | F59: -5.908582634e-06 | G59: 3.382299448e-07 | H59: 1.939321477e-06 | J59: -6.689116968e-05 | K59: -0.001005387114 | L59: 6.446323195e-05 | M59: 0.001093851672 | N59: 1.039462043e-07
A60: 26.94442 | B60: ='DF raw data'!D65 -> -4.0659502e-06 | C60: ='DF raw data'!E65 -> 3.9494926e-06 | D60: ='DF raw data'!F65 -> -3.8629901e-06 | F60: -4.071382309e-06 | G60: -3.964036522e-06 | H60: -3.868151055e-06 | J60: -6.892779725e-05 | K60: -0.001039866866 | L60: 6.248030196e-05 | M60: 0.001125106193 | N60: 1.082756096e-07
A61: 27.44465 | B61: ='DF raw data'!D66 -> 2.0498999e-06 | C61: ='DF raw data'!E66 -> -3.7848806e-06 | D61: ='DF raw data'!F66 -> 2.5517561e-06 | F61: 2.052638566e-06 | G61: 3.798818342e-06 | H61: 2.555165246e-06 | J61: -6.790100586e-05 | K61: -0.001073832986 | L61: 6.438058486e-05 | M61: 0.001157311293 | N61: 1.126553265e-07
A62: 27.94488 | B62: ='DF raw data'!D67 -> 1.9789447e-06 | C62: ='DF raw data'!E67 -> 6.7515966e-06 | D62: ='DF raw data'!F67 -> 4.8301786e-06 | F62: 1.98158857e-06 | G62: -6.776459211e-06 | H62: 4.836631719e-06 | J62: -6.690975581e-05 | K62: -0.001107303253 | L62: 6.099079667e-05 | M62: 0.00118782072 | N62: 1.167556081e-07
A63: 28.44511 | B63: ='DF raw data'!D68 -> -1.791995e-06 | C63: ='DF raw data'!E68 -> -3.912437e-06 | D63: ='DF raw data'!F68 -> 8.4937113e-07 | F63: -1.794389105e-06 | G63: 3.926844466e-06 | H63: 8.505058898e-07 | J63: -6.780736307e-05 | K63: -0.001141222531 | L63: 6.295512207e-05 | M63: 0.00121931276 | N63: 1.210381701e-07
A64: 28.94534 | B64: ='DF raw data'!D69 -> -2.0695436e-06 | C64: ='DF raw data'!E69 -> 3.4696882e-06 | D64: ='DF raw data'!F69 -> -3.6829538e-06 | F64: -2.07230851e-06 | G64: -3.482465253e-06 | H64: -3.687874226e-06 | J64: -6.884399396e-05 | K64: -0.001175660362 | L64: 6.121308848e-05 | M64: 0.001249933384 | N64: 1.252833908e-07
A65: 29.44557 | B65: ='DF raw data'!D70 -> -7.4272393e-08 | C65: ='DF raw data'!E70 -> 7.5322787e-06 | D65: ='DF raw data'!F70 -> 1.2753931e-06 | F65: -7.437162092e-08 | G65: -7.560016156e-06 | H65: 1.277097025e-06 | J65: -6.888119687e-05 | K65: -0.001210116803 | L65: 5.74313416e-05 | M65: 0.001278662264 | N65: 1.293067299e-07
A66: 29.9458 | B66: ='DF raw data'!D71 -> 1.1591334e-06 | C66: ='DF raw data'!E71 -> 6.3074176e-06 | D66: ='DF raw data'!F71 -> 6.049047e-06 | F66: 1.160682002e-06 | G66: -6.330644531e-06 | H66: 6.057128527e-06 | J66: -6.830058891e-05 | K66: -0.001244282806 | L66: 5.426456329e-05 | M66: 0.001305807026 | N66: 1.331132867e-07
A67: 30.44603 | B67: ='DF raw data'!D72 -> 1.970199e-06 | C67: ='DF raw data'!E72 -> 3.6257979e-06 | D67: ='DF raw data'!F72 -> 5.408268e-06 | F67: 1.972831186e-06 | G67: -3.639149824e-06 | H67: 5.415493446e-06 | J67: -6.731371957e-05 | K67: -0.001277955148 | L67: 5.244415137e-05 | M67: 0.001332041164 | N67: 1.367557244e-07
A68: 30.94626 | B68: ='DF raw data'!D73 -> 1.9545121e-06 | C68: ='DF raw data'!E73 -> 1.0265001e-05 | D68: ='DF raw data'!F73 -> 4.8423585e-06 | F68: 1.957123328e-06 | G68: -1.030280165e-05 | H68: 4.848827891e-06 | J68: -6.633470777e-05 | K68: -0.001311137759 | L68: 4.72903809e-05 | M68: 0.001355697231 | N68: 1.400755876e-07
A69: 31.44649 | B69: ='DF raw data'!D74 -> 1.3916148e-06 | C69: ='DF raw data'!E74 -> -2.4385673e-07 | D69: ='DF raw data'!F74 -> -7.5583608e-07 | F69: 1.393473997e-06 | G69: 2.447547272e-07 | H69: -7.56845877e-07 | J69: -6.563765027e-05 | K69: -0.001343971681 | L69: 4.741281456e-05 | M69: 0.001379414543 | N69: 1.433552336e-07
A70: 31.94672 | B70: ='DF raw data'!D75 -> 2.3745874e-07 | C70: ='DF raw data'!E75 -> 5.2398664e-06 | D70: ='DF raw data'!F75 -> 3.2593721e-06 | F70: 2.377759849e-07 | G70: -5.259162096e-06 | H70: 3.263726621e-06 | J70: -6.551870759e-05 | K70: -0.001376746104 | L70: 4.47820239e-05 | M70: 0.001401815855 | N70: 1.465057475e-07
A71: 32.44695 | B71: ='DF raw data'!D76 -> 2.450194e-06 | C71: ='DF raw data'!E76 -> 1.0276875e-05 | D71: ='DF raw data'!F76 -> 2.0708444e-06 | F71: 2.453467459e-06 | G71: =(1-$G$1*($B$2-$G$2))*C71*$M$2/$M$1 -> -1.031471937e-05 | H71: 2.073611048e-06 | J71: -6.429140956e-05 | K71: -0.001408906596 | L71: 3.962229183e-05 | M71: 0.001421636114 | N71: 1.49358715e-07
A72: =A71+$B$1 -> 32.94718 | B72: ='DF raw data'!D77 -> 4.364309e-06 | C72: ='DF raw data'!E77 -> -1.4963377e-06 | D72: ='DF raw data'!F77 -> 1.9167687e-06 | F72: 4.370139717e-06 | G72: 1.501847932e-06 | H72: 1.919329503e-06 | J72: =F72*$B$1+J71 -> -6.210533457e-05 | K72: =J72*$B$1+K71 -> -0.001439973547 | L72: =G72*$B$1+L71 -> 4.037356122e-05 | M72: =L72*$B$1+M71 -> 0.001441832181 | N72: =(J72^2+L72^2)*$B$1+N71 -> 1.521035255e-07
A73: 33.44741 | B73: ='DF raw data'!D78 -> 3.2760879e-06 | C73: ='DF raw data'!E78 -> -8.6289538e-06 | D73: ='DF raw data'!F78 -> 7.8148645e-07 | F73: 3.280464753e-06 | G73: 8.660729739e-06 | H73: 7.825305159e-07 | J73: -6.046434769e-05 | K73: -0.001470219628 | L73: 4.470591806e-05 | M73: 0.001464195422 | N73: 1.549321043e-07
A74: 33.94764 | B74: ='DF raw data'!D79 -> 1.8823636e-06 | C74: ='DF raw data'!E79 -> 1.6594817e-06 | D74: ='DF raw data'!F79 -> -3.8953244e-06 | F74: 1.884878438e-06 | G74: -1.665592706e-06 | H74: -3.900528553e-06 | J74: -5.952147495e-05 | K74: -0.001499994056 | L74: 4.387273862e-05 | M74: 0.001486141882 | N74: 1.576671734e-07
A75: 34.44787 | B75: ='DF raw data'!D80 -> 3.5237324e-06 | C75: ='DF raw data'!E80 -> -3.7034584e-07 | D75: ='DF raw data'!F80 -> -5.3039498e-06 | F75: 3.528440106e-06 | G75: 3.717096307e-07 | H75: -5.311035877e-06 | J75: -5.775644335e-05 | K75: -0.001528885561 | L75: 4.405867893e-05 | M75: 0.001508181355 | N75: 1.603068741e-07
A76: 34.9481 | B76: ='DF raw data'!D81 -> 3.8865114e-06 | C76: ='DF raw data'!E81 -> 4.7036228e-06 | D76: ='DF raw data'!F81 -> -5.4659999e-06 | F76: 3.891703779e-06 | G76: -4.720943791e-06 | H76: -5.473302476e-06 | J76: -5.580969637e-05 | K76: -0.001556803246 | L76: 4.169712122e-05 | M76: 0.001529039506 | N76: 1.627346764e-07
A77: 35.44833 | B77: ='DF raw data'!D82 -> 1.08034e-07 | C77: ='DF raw data'!E82 -> 7.7137393e-06 | D77: ='DF raw data'!F82 -> -8.3137229e-06 | F77: 1.081783334e-07 | G77: -7.742144981e-06 | H77: -8.324830034e-06 | J77: -5.575558232e-05 | K77: -0.001584693861 | L77: 3.782426803e-05 | M77: 0.00154796034 | N77: 1.650054006e-07
A78: 35.94856 | B78: ='DF raw data'!D83 -> -1.5970669e-07 | C78: ='DF raw data'!E83 -> 8.7693155e-07 | D78: ='DF raw data'!F83 -> -9.2242508e-06 | F78: -1.599200581e-07 | G78: -8.801608317e-07 | H78: -9.236574399e-06 | J78: -5.583557913e-05 | K78: -0.001612624492 | L78: 3.738398518e-05 | M78: 0.001566660931 | N78: 1.672640262e-07
A79: 36.44879 | B79: ='DF raw data'!D84 -> 2.92252e-06 | C79: ='DF raw data'!E84 -> -4.1373951e-06 | D79: ='DF raw data'!F84 -> -6.7432507e-06 | F79: 2.926424487e-06 | G79: 4.152630969e-06 | H79: -6.752259683e-06 | J79: -5.437169381e-05 | K79: -0.001639822845 | L79: 3.946125577e-05 | M79: 0.001586400635 | N79: 1.695218002e-07
A80: 36.94902 | B80: ='DF raw data'!D85 -> 4.2896193e-07 | C80: ='DF raw data'!E85 -> -7.4455884e-06 | D80: ='DF raw data'!F85 -> -4.9828909e-06 | F80: 4.295350231e-07 | G80: 7.473006621e-06 | H80: -4.989548042e-06 | J80: -5.415682751e-05 | K80: -0.001666913715 | L80: 4.319947787e-05 | M80: 0.001608010309 | N80: 1.719224824e-07
A81: 37.44925 | B81: ='DF raw data'!D86 -> -4.5153715e-06 | C81: ='DF raw data'!E86 -> 5.4920438e-06 | D81: ='DF raw data'!F86 -> -1.1397301e-06 | F81: -4.521404036e-06 | G81: -5.512268134e-06 | H81: -1.141252779e-06 | J81: -5.641856945e-05 | K81: -0.001695135976 | L81: 4.044207598e-05 | M81: 0.001628240649 | N81: 1.74332899e-07
A82: 37.94948 | B82: ='DF raw data'!D87 -> -3.1375378e-06 | C82: ='DF raw data'!E87 -> 8.7052689e-07 | D82: ='DF raw data'!F87 -> 5.8155769e-07 | F82: -3.141729551e-06 | G82: -8.737325867e-07 | H82: 5.823346511e-07 | J82: -5.799015682e-05 | K82: -0.001724144392 | L82: 4.000500873e-05 | M82: 0.001648252355 | N82: 1.7681567e-07
A83: 38.44971 | B83: ='DF raw data'!D88 -> -3.8046994e-06 | C83: ='DF raw data'!E88 -> 1.0178273e-05 | D83: ='DF raw data'!F88 -> 1.9496415e-06 | F83: -3.809782478e-06 | G83: -1.021575427e-05 | H83: 1.952246221e-06 | J83: -5.989592431e-05 | K83: -0.00175410613 | L83: 3.489478197e-05 | M83: 0.001665707771 | N83: 1.79219359e-07
A84: 38.94994 | B84: ='DF raw data'!D89 -> -6.672853e-06 | C84: ='DF raw data'!E89 -> 5.1787896e-07 | D84: ='DF raw data'!F89 -> -3.1219184e-07 | F84: -6.681767932e-06 | G84: -5.197860382e-07 | H84: -3.126089283e-07 | J84: -6.323834508e-05 | K84: -0.001785739847 | L84: 3.46347694e-05 | M84: 0.001683033122 | N84: 1.818198825e-07
A85: 39.45017 | B85: ='DF raw data'!D90 -> -5.0300873e-06 | C85: ='DF raw data'!E90 -> 4.9449927e-06 | D85: ='DF raw data'!F90 -> 5.175059e-06 | F85: -5.036807497e-06 | G85: -4.96320253e-06 | H85: 5.181972879e-06 | J85: -6.57579073e-05 | K85: -0.001818633925 | L85: 3.21520266e-05 | M85: 0.00169911653 | N85: 1.845000424e-07
A86: 39.9504 | B86: ='DF raw data'!D91 -> -1.0302459e-06 | C86: ='DF raw data'!E91 -> 5.4234624e-06 | D86: ='DF raw data'!F91 -> 9.0743315e-06 | F86: -1.031622309e-06 | G86: -5.443434185e-06 | H86: 9.086454807e-06 | J86: -6.627395572e-05 | K86: -0.001851786146 | L86: 2.942905752e-05 | M86: 0.001713837828 | N86: 1.871304051e-07
A87: 40.45063 | B87: ='DF raw data'!D92 -> -3.8772066e-07 | C87: ='DF raw data'!E92 -> 1.859433e-08 | D87: ='DF raw data'!F92 -> 5.892512e-06 | F87: =(1-$G$1*($B$2-$G$2))*B87 -> -3.882386548e-07 | G87: -1.866280322e-08 | H87: 5.900384396e-06 | J87: -6.646816435e-05 | K87: -0.001885035516 | L87: 2.941972182e-05 | M87: 0.001728554455 | N87: 1.897733888e-07
A88: 40.95086 | B88: ='DF raw data'!D93 -> -2.1577522e-07 | C88: ='DF raw data'!E93 -> 3.5967109e-06 | D88: ='DF raw data'!F93 -> 3.5082826e-06 | F88: -2.160634957e-07 | G88: -3.609955711e-06 | H88: 3.512969666e-06 | J88: -6.657624579e-05 | K88: -0.001918338951 | L88: 2.761391368e-05 | M88: 0.001742367763 | N88: 1.923720459e-07
A89: 41.45109 | B89: ='DF raw data'!D94 -> 2.0599844e-06 | C89: ='DF raw data'!E94 -> -5.6274786e-07 | D89: ='DF raw data'!F94 -> -6.702578e-06 | F89: 2.062736539e-06 | G89: 5.64820167e-07 | H89: -6.711532644e-06 | J89: -6.554440309e-05 | K89: -0.001951126228 | L89: 2.789645367e-05 | M89: 0.001756322406 | N89: 1.949103535e-07
A90: 41.95132 | B90: ='DF raw data'!D95 -> 5.2742985e-06 | C90: ='DF raw data'!E95 -> 1.8266659e-06 | D90: ='DF raw data'!F95 -> -3.030053e-06 | F90: 5.281344963e-06 | G90: -1.833392558e-06 | H90: -3.034101151e-06 | J90: -6.29025159e-05 | K90: -0.001982591954 | L90: 2.697933571e-05 | M90: 0.001769818279 | N90: 1.972537365e-07
A91: 42.45155 | B91: ='DF raw data'!D96 -> 4.8108636e-06 | C91: ='DF raw data'!E96 -> 3.8324765e-06 | D91: ='DF raw data'!F96 -> -1.4859347e-06 | F91: 4.817290914e-06 | G91: -3.846589513e-06 | H91: -1.487919909e-06 | J91: -6.049276247e-05 | K91: -0.002012852248 | L91: 2.505515624e-05 | M91: 0.00178235162 | N91: 1.993982901e-07
A92: 42.95178 | B92: ='DF raw data'!D97 -> 1.2593233e-06 | C92: ='DF raw data'!E97 -> -6.2161903e-06 | D92: ='DF raw data'!F97 -> -6.0713742e-06 | F92: 1.261005756e-06 | G92: 6.239081288e-06 | H92: -6.079485556e-06 | J92: -5.986196956e-05 | K92: -0.002042797001 | L92: 2.817613187e-05 | M92: 0.001796446167 | N92: 2.015879718e-07
A93: 43.45201 | B93: ='DF raw data'!D98 -> -1.8616114e-06 | C93: ='DF raw data'!E98 -> -1.7682623e-06 | D93: ='DF raw data'!F98 -> -4.2358829e-06 | F93: -1.864098513e-06 | G93: 1.774773888e-06 | H93: -4.24154204e-06 | J93: -6.079444756e-05 | K93: -0.002073208208 | L93: 2.906392701e-05 | M93: 0.001810984815 | N93: 2.038593545e-07
A94: 43.95224 | B94: ='DF raw data'!D99 -> -3.4672696e-06 | C94: ='DF raw data'!E99 -> 1.2190388e-06 | D94: ='DF raw data'!F99 -> 3.6624165e-06 | F94: -3.471901872e-06 | G94: -1.223527884e-06 | H94: 3.667309488e-06 | J94: -6.253119703e-05 | K94: -0.002104488188 | L94: 2.845188166e-05 | M94: 0.0018252173 | N94: 2.062202701e-07
A95: 44.45247 | B95: ='DF raw data'!D100 -> -1.3930979e-06 | C95: ='DF raw data'!E100 -> 5.6079925e-06 | D95: ='DF raw data'!F100 -> 4.5583633e-06 | F95: -1.394959079e-06 | G95: -5.628643813e-06 | H95: 4.564453273e-06 | J95: -6.322899741e-05 | K95: -0.00213611723 | L95: 2.563626516e-05 | M95: 0.001838041329 | N95: 2.085489029e-07
A96: 44.9527 | B96: ='DF raw data'!D101 -> 1.0216323e-06 | C96: ='DF raw data'!E101 -> -1.6429742e-06 | D96: ='DF raw data'!F101 -> 4.0140498e-07 | F96: 1.022997201e-06 | G96: 1.649024417e-06 | H96: 4.019412571e-07 | J96: -6.271726352e-05 | K96: -0.002167490287 | L96: 2.646115665e-05 | M96: 0.001851277993 | N96: 2.108667926e-07
A97: 45.45293 | B97: ='DF raw data'!D102 -> 8.6228886e-07 | C97: ='DF raw data'!E102 -> -7.199415e-06 | D97: ='DF raw data'!F102 -> -1.0518265e-05 | F97: 8.634408779e-07 | G97: 7.225926692e-06 | H97: -1.05323174e-05 | J97: -6.228534449e-05 | K97: -0.002198647284 | L97: 3.007578196e-05 | M97: 0.001866322801 | N97: 2.132599013e-07
A98: 45.95316 | B98: ='DF raw data'!D103 -> -1.6215193e-06 | C98: ='DF raw data'!E103 -> 3.5342669e-06 | D98: ='DF raw data'!F103 -> -1.1018473e-05 | F98: -1.62368565e-06 | G98: -3.547281763e-06 | H98: -1.103319368e-05 | J98: -6.309756076e-05 | K98: -0.002230210577 | L98: 2.83013252e-05 | M98: 0.001880479973 | N98: 2.156521348e-07
A99: 46.45339 | B99: ='DF raw data'!D104 -> -1.4610554e-06 | C99: ='DF raw data'!E104 -> 1.2787126e-07 | D99: ='DF raw data'!F104 -> -7.5733792e-06 | F99: -1.46300737e-06 | G99: -1.283421432e-07 | H99: -7.583497235e-06 | J99: -6.382940094e-05 | K99: -0.002262139958 | L99: 2.823712461e-05 | M99: 0.00189460503 | N99: 2.180890191e-07
A100: 46.95362 | B100: ='DF raw data'!D105 -> 1.6323908e-06 | C100: ='DF raw data'!E105 -> -3.2414316e-06 | D100: ='DF raw data'!F105 -> -6.2738633e-07 | F100: 1.634571674e-06 | G100: 3.253368103e-06 | H100: -6.282245181e-07 | J100: -6.301173915e-05 | K100: -0.002293660321 | L100: 2.986455694e-05 | M100: 0.001909544177 | N100: 2.20521323e-07
A101: 47.45385 | B101: ='DF raw data'!D106 -> 3.1227689e-06 | C101: ='DF raw data'!E106 -> 1.4774872e-06 | D101: ='DF raw data'!F106 -> -6.8342575e-07 | F101: 3.126940919e-06 | G101: -1.482928015e-06 | H101: -6.843388068e-07 | J101: -6.144754949e-05 | K101: -0.002324398228 | L101: 2.912275186e-05 | M101: 0.001924112252 | N101: 2.228343545e-07
A102: 47.95408 | B102: ='DF raw data'!D107 -> 1.0041409e-06 | C102: ='DF raw data'!E107 -> 3.2876937e-06 | D102: ='DF raw data'!F107 -> -2.4277492e-06 | F102: 1.005482432e-06 | G102: -3.299800562e-06 | H102: -2.430992673e-06 | J102: -6.094457702e-05 | K102: -0.002354884534 | L102: 2.747209262e-05 | M102: 0.001937854616 | N102: 2.25069861e-07
A103: 48.45431 | B103: ='DF raw data'!D108 -> -4.730507e-06 | C103: ='DF raw data'!E108 -> 4.4702588e-06 | D103: ='DF raw data'!F108 -> -1.7065709e-06 | F103: -4.736826957e-06 | G103: -4.486720433e-06 | H103: -1.708850879e-06 | J103: -6.331407997e-05 | K103: -0.002386556136 | L103: 2.522770046e-05 | M103: 0.001950474269 | N103: 2.273934842e-07
A104: 48.95454 | B104: ='DF raw data'!D109 -> -9.4744601e-06 | C104: ='DF raw data'!E109 -> 8.1062826e-06 | D104: ='DF raw data'!F109 -> -7.6787937e-06 | F104: -9.487117979e-06 | G104: -8.136133813e-06 | H104: -7.689052568e-06 | J104: -6.805982099e-05 | K104: -0.002420601701 | L104: 2.115776224e-05 | M104: 0.001961058016 | N104: 2.299345476e-07
A105: 49.45477 | B105: ='DF raw data'!D110 -> -6.0285815e-06 | C105: ='DF raw data'!E110 -> 5.2953719e-06 | D105: ='DF raw data'!F110 -> -6.3667489e-06 | F105: -6.036635685e-06 | G105: -5.314871994e-06 | H105: -6.375254877e-06 | J105: -7.107952726e-05 | K105: -0.002456157813 | L105: 1.849910382e-05 | M105: 0.001970311823 | N105: 2.326330464e-07
A106: 49.955 | B106: ='DF raw data'!D111 -> 1.5270494e-06 | C106: ='DF raw data'!E111 -> 9.4043953e-06 | D106: ='DF raw data'!F111 -> 1.6853068e-07 | F106: 1.529089538e-06 | G106: -9.439026785e-06 | H106: 1.68755837e-07 | J106: -7.03146308e-05 | K106: -0.0024913313 | L106: 1.377741946e-05 | M106: 0.001977203702 | N106: 2.352012095e-07
A107: 50.45523 | B107: ='DF raw data'!D112 -> 5.2309774e-06 | C107: ='DF raw data'!E112 -> -3.3444373e-06 | D107: ='DF raw data'!F112 -> -1.408664e-06 | F107: 5.237965986e-06 | G107: 3.356753119e-06 | H107: -1.410545975e-06 | J107: -6.769444308e-05 | K107: -0.002525194092 | L107: 1.545656807e-05 | M107: 0.001984935541 | N107: 2.3761304e-07
A108: 50.95546 | B108: ='DF raw data'!D113 -> 3.6614954e-06 | C108: ='DF raw data'!E113 -> -1.071322e-05 | D108: ='DF raw data'!F113 -> 1.8838959e-06 | F108: 3.666387158e-06 | G108: 1.07526712e-05 | H108: 1.886412785e-06 | J108: -6.586040623e-05 | K108: -0.002558139443 | L108: 2.083537678e-05 | M108: 0.001995358021 | N108: 2.399999905e-07
A109: 51.45569 | B109: ='DF raw data'!D114 -> -1.1997321e-06 | C109: ='DF raw data'!E114 -> 8.8095767e-06 | D109: ='DF raw data'!F114 -> -2.8980235e-06 | F109: -1.201334942e-06 | G109: -8.842017778e-06 | H109: -2.901895259e-06 | J109: -6.646135001e-05 | K109: -0.002591385404 | L109: 1.641233423e-05 | M109: 0.002003567963 | N109: 2.423443062e-07
A110: 51.95592 | B110: ='DF raw data'!D115 -> -1.9550637e-06 | C110: ='DF raw data'!E115 -> -1.0220041e-06 | D110: ='DF raw data'!F115 -> -5.9722756e-06 | F110: -1.957675665e-06 | G110: 1.025767608e-06 | H110: -5.98025456e-06 | J110: -6.74406381e-05 | K110: -0.002625121234 | L110: 1.692545396e-05 | M110: 0.002012034583 | N110: 2.447627736e-07
A111: 52.45615 | B111: ='DF raw data'!D116 -> 1.1063972e-06 | C111: ='DF raw data'!E116 -> 1.4085052e-06 | D111: ='DF raw data'!F116 -> -2.3858834e-06 | F111: 1.107875347e-06 | G111: -1.41369199e-06 | H111: -2.38907094e-06 | J111: -6.688644562e-05 | K111: -0.002658579841 | L111: 1.621828282e-05 | M111: 0.002020147455 | N111: 2.471322777e-07
A112: 52.95638 | B112: ='DF raw data'!D117 -> 5.1572283e-06 | C112: ='DF raw data'!E117 -> -5.8800874e-06 | D112: ='DF raw data'!F117 -> 7.4104078e-06 | F112: 5.164118357e-06 | G112: 5.901740697e-06 | H112: 7.420308105e-06 | J112: -6.430319869e-05 | K112: -0.00269074623 | L112: 1.917051057e-05 | M112: 0.002029737119 | N112: 2.493845182e-07
A113: 53.45661 | B113: ='DF raw data'!D118 -> 8.1761691e-06 | C113: ='DF raw data'!E118 -> -1.0274912e-05 | D113: ='DF raw data'!F118 -> 5.5612668e-06 | F113: 8.187092462e-06 | G113: 1.031274914e-05 | H113: 5.568696652e-06 | J113: -6.020776943e-05 | K113: -0.002720863962 | L113: 2.432925707e-05 | M113: 0.002041907343 | N113: 2.514939322e-07
A114: 53.95684 | B114: ='DF raw data'!D119 -> 9.33715e-06 | C114: ='DF raw data'!E119 -> -4.5595589e-06 | D114: ='DF raw data'!F119 -> 4.1397783e-07 | F114: 9.349624432e-06 | G114: 4.576349378e-06 | H114: 4.145309044e-07 | J114: -5.55308068e-05 | K114: -0.002748642138 | L114: 2.661848432e-05 | M114: 0.002055222708 | N114: 2.533909115e-07
A115: 54.45707 | B115: ='DF raw data'!D120 -> 8.8919924e-06 | C115: ='DF raw data'!E120 -> -1.0368978e-05 | D115: ='DF raw data'!F120 -> 3.099301e-06 | F115: 8.903872102e-06 | G115: 1.040716154e-05 | H115: 3.103441666e-06 | J115: -5.107682286e-05 | K115: -0.002774192297 | L115: 3.182445874e-05 | M115: 0.002071142257 | N115: 2.552025635e-07
A116: 54.9573 | B116: ='DF raw data'!D121 -> 5.5714049e-06 | C116: ='DF raw data'!E121 -> -5.5287737e-06 | D116: ='DF raw data'!F121 -> 4.0104983e-06 | F116: 5.578848297e-06 | G116: 5.549133291e-06 | H116: 4.015856326e-06 | J116: -4.828611558e-05 | K116: -0.002798346461 | L116: 3.460030168e-05 | M116: 0.002088450366 | N116: 2.5696774e-07
A117: 55.45753 | B117: ='DF raw data'!D122 -> 1.4338735e-06 | C117: ='DF raw data'!E122 -> -3.0029973e-06 | D117: ='DF raw data'!F122 -> 3.1588038e-06 | F117: 1.435789155e-06 | G117: 3.014055774e-06 | H117: 3.163023962e-06 | J117: -4.756789077e-05 | K117: -0.002822141347 | L117: 3.61080228e-05 | M117: 0.002106512682 | N117: 2.58751807e-07
A118: 55.95776 | B118: ='DF raw data'!D123 -> 7.5402261e-07 | C118: ='DF raw data'!E123 -> -8.2586604e-07 | D118: ='DF raw data'!F123 -> 1.7034668e-06 | F118: 7.550299842e-07 | G118: 8.289072741e-07 | H118: 1.705742632e-06 | J118: -4.719020212e-05 | K118: -0.002845747301 | L118: 3.652266709e-05 | M118: 0.002124782416 | N118: 2.605330362e-07
A119: 56.45799 | B119: ='DF raw data'!D124 -> 2.5632769e-06 | C119: ='DF raw data'!E124 -> -7.7206387e-08 | D119: ='DF raw data'!F124 -> -6.0938132e-06 | F119: 2.566701438e-06 | G119: 7.749069788e-08 | H119: -6.101954534e-06 | J119: -4.590626106e-05 | K119: -0.00286871099 | L119: 3.656143026e-05 | M119: 0.00214307154 | N119: 2.622558899e-07
A120: 56.95822 | B120: ='DF raw data'!D125 -> 1.2520474e-06 | C120: ='DF raw data'!E125 -> -4.3767636e-06 | D120: ='DF raw data'!F125 -> -6.2091517e-06 | F120: 1.253720135e-06 | G120: 4.392880939e-06 | H120: -6.217447127e-06 | J120: -4.527911264e-05 | K120: -0.002891360961 | L120: 3.875888109e-05 | M120: 0.002162459895 | N120: 2.640329314e-07
A121: 57.45845 | B121: ='DF raw data'!D126 -> -1.2704107e-06 | C121: ='DF raw data'!E126 -> 5.9705135e-06 | D121: ='DF raw data'!F126 -> 4.6140681e-06 | F121: -1.272107969e-06 | G121: -5.992499789e-06 | H121: 4.620232495e-06 | J121: -4.59154592e-05 | K121: -0.002914329251 | L121: 3.576125292e-05 | M121: 0.002180348747 | N121: 2.657272587e-07
A122: 57.95868 | B122: ='DF raw data'!D127 -> -2.0268192e-06 | C122: ='DF raw data'!E127 -> 1.3382526e-05 | D122: ='DF raw data'!F127 -> 5.5611358e-06 | F122: -2.02952703e-06 | G122: -1.343180687e-05 | H122: 5.568565477e-06 | J122: -4.693068951e-05 | K122: -0.00293780539 | L122: 2.904226018e-05 | M122: 0.002194876556 | N122: 2.672509305e-07
A123: 58.45891 | B123: ='DF raw data'!D128 -> -1.0739017e-06 | C123: ='DF raw data'!E128 -> 3.8283406e-06 | D123: ='DF raw data'!F128 -> 7.2080197e-06 | F123: -1.075336433e-06 | G123: -3.842438383e-06 | H123: 7.217649614e-06 | J123: -4.746860505e-05 | K123: -0.00296155061 | L123: 2.712015722e-05 | M123: 0.002208442873 | N123: 2.687460036e-07
A124: 58.95914 | B124: ='DF raw data'!D129 -> 2.4070766e-06 | C124: ='DF raw data'!E129 -> 3.9840502e-06 | D124: ='DF raw data'!F129 -> 1.8619953e-06 | F124: 2.410292454e-06 | G124: -3.99872138e-06 | H124: 1.864482926e-06 | J124: -4.626290446e-05 | K124: -0.002984692703 | L124: 2.511987683e-05 | M124: 0.002221008589 | N124: 2.701322733e-07
A125: 59.45937 | B125: ='DF raw data'!D130 -> 7.0990359e-06 | C125: ='DF raw data'!E130 -> 1.813857e-06 | D125: ='DF raw data'!F130 -> 4.3073865e-06 | F125: 7.108520212e-06 | G125: -1.82053649e-06 | H125: 4.313141168e-06 | J125: -4.270700939e-05 | K125: -0.00300605603 | L125: 2.420918986e-05 | M125: 0.002233118752 | N125: 2.713378144e-07
A126: 59.9596 | B126: ='DF raw data'!D131 -> 8.8676907e-06 | C126: ='DF raw data'!E131 -> 8.6572339e-07 | D126: ='DF raw data'!F131 -> 2.8328845e-06 | F126: 8.879537935e-06 | G126: -8.689113979e-07 | H126: 2.836669234e-06 | J126: -3.826519813e-05 | K126: -0.00302519743 | L126: 2.377453431e-05 | M126: 0.002245011487 | N126: 2.723530081e-07
A127: 60.45983 | B127: ='DF raw data'!D132 -> 7.3408014e-06 | C127: ='DF raw data'!E132 -> 1.393459e-07 | D127: ='DF raw data'!F132 -> -5.0592303e-06 | F127: 7.350608711e-06 | G127: -1.398590383e-07 | H127: -5.065989432e-06 | J127: -3.458820314e-05 | K127: -0.003042499487 | L127: 2.370457262e-05 | M127: 0.002256869225 | N127: 2.732325378e-07
A128: 60.96006 | B128: ='DF raw data'!D133 -> 3.5449636e-06 | C128: ='DF raw data'!E133 -> 2.0353464e-06 | D128: ='DF raw data'!F133 -> -3.7615487e-06 | F128: 3.549699671e-06 | G128: -2.04284152e-06 | H128: -3.766574129e-06 | J128: -3.281253687e-05 | K128: -0.003058913302 | L128: 2.268268201e-05 | M128: 0.002268215783 | N128: 2.74028487e-07
A129: 61.46029 | B129: ='DF raw data'!D134 -> 2.4271001e-06 | C129: ='DF raw data'!E134 -> 1.0924798e-05 | D129: ='DF raw data'!F134 -> 6.5231047e-06 | F129: 2.430342706e-06 | G129: -1.096502834e-05 | H129: 6.531819568e-06 | J129: -3.159680654e-05 | K129: -0.003074718973 | L129: 1.719764589e-05 | M129: 0.002276818562 | N129: 2.746758433e-07
A130: 61.96052 | B130: ='DF raw data'!D135 -> 6.2883632e-06 | C130: ='DF raw data'!E135 -> -6.1331667e-07 | D130: ='DF raw data'!F135 -> 1.3616581e-05 | F130: 6.296764453e-06 | G130: 6.155751956e-07 | H130: 1.363477275e-05 | J130: -2.844697606e-05 | K130: -0.003088949004 | L130: 1.750557507e-05 | M130: 0.002285575376 | N130: 2.752339377e-07
A131: 62.46075 | B131: ='DF raw data'!D136 -> 8.7364033e-06 | C131: ='DF raw data'!E136 -> -8.2648312e-06 | D131: ='DF raw data'!F136 -> 1.336613e-06 | F131: 8.748075135e-06 | G131: 8.295266265e-06 | H131: 1.338398715e-06 | J131: -2.407092643e-05 | K131: -0.003100990003 | L131: 2.165511611e-05 | M131: 0.002296407914 | N131: 2.757583556e-07
A132: 62.96098 | B132: ='DF raw data'!D137 -> 4.1188764e-06 | C132: ='DF raw data'!E137 -> -3.3044093e-06 | D132: ='DF raw data'!F137 -> -4.349024e-06 | F132: 4.124379219e-06 | G132: 3.316577717e-06 | H132: -4.354834296e-06 | J132: -2.200778822e-05 | K132: -0.003111998959 | L132: 2.331416778e-05 | M132: 0.002308070361 | N132: 2.762725386e-07
A133: 63.46121 | B133: ='DF raw data'!D138 -> -1.5310792e-06 | C133: ='DF raw data'!E138 -> -2.1903935e-07 | D133: ='DF raw data'!F138 -> 5.5613978e-06 | F133: -1.533124722e-06 | G133: 2.198459577e-07 | H133: 5.568827827e-06 | J133: -2.27747032e-05 | K133: -0.003123391549 | L133: 2.342414132e-05 | M133: 0.002319787819 | N133: 2.768064728e-07
A134: 63.96144 | B134: ='DF raw data'!D139 -> -4.5387367e-07 | C134: ='DF raw data'!E139 -> -7.9918078e-07 | D134: ='DF raw data'!F139 -> 4.7504486e-06 | F134: -4.544800452e-07 | G134: 8.021237462e-07 | H134: 4.756795199e-06 | J134: -2.300204775e-05 | K134: -0.003134897863 | L134: 2.382538769e-05 | M134: 0.002331705992 | N134: 2.773550967e-07
A135: 64.46167 | B135: ='DF raw data'!D140 -> 2.366957e-06 | C135: ='DF raw data'!E140 -> 3.2107386e-07 | D135: ='DF raw data'!F140 -> -2.9135213e-06 | F135: 2.370119255e-06 | G135: =(1-$G$1*($B$2-$G$2))*C135*$M$2/$M$1 -> -3.222562076e-07 | H135: -2.917413764e-06 | J135: -2.181644299e-05 | K135: -0.003145811103 | L135: 2.366418546e-05 | M135: 0.002343543528 | N135: 2.778733104e-07
A136: =A135+$B$1 -> 64.9619 | B136: ='DF raw data'!D141 -> 8.766516e-07 | C136: ='DF raw data'!E141 -> 4.6044861e-06 | D136: ='DF raw data'!F141 -> -8.7081235e-06 | F136: 8.778228065e-07 | G136: -4.621442022e-06 | H136: -8.719757553e-06 | J136: =F136*$B$1+J135 -> -2.137732969e-05 | K136: =J136*$B$1+K135 -> -0.003156504684 | L136: =G136*$B$1+L135 -> 2.135240152e-05 | M136: =L136*$B$1+M135 -> 0.00235422464 | N136: =(J136^2+L136^2)*$B$1+N135 -> 2.78329978e-07
A137: 65.46213 | B137: ='DF raw data'!D142 -> -1.2951199e-06 | C137: ='DF raw data'!E142 -> -2.2902293e-06 | D137: ='DF raw data'!F142 -> -3.8679814e-06 | F137: -1.29685018e-06 | G137: 2.298663021e-06 | H137: -3.873149023e-06 | J137: -2.202605306e-05 | K137: -0.003167522777 | L137: 2.250226172e-05 | M137: 0.002365480946 | N137: 2.788259555e-07
A138: 65.96236 | B138: ='DF raw data'!D143 -> -4.1611343e-06 | C138: ='DF raw data'!E143 -> -6.0799612e-06 | D138: ='DF raw data'!F143 -> 1.3286967e-06 | F138: -4.166693575e-06 | G138: 6.102350528e-06 | H138: 1.330471839e-06 | J138: -2.411035818e-05 | K138: -0.003179583501 | L138: 2.555484053e-05 | M138: 0.002378264244 | N138: 2.79443419e-07
A139: 66.46259 | B139: ='DF raw data'!D144 -> -7.5610874e-06 | C139: ='DF raw data'!E144 -> 2.9205021e-06 | D139: ='DF raw data'!F144 -> -3.9278771e-06 | F139: -7.571189013e-06 | G139: -2.931256787e-06 | H139: -3.933124744e-06 | J139: -2.789769406e-05 | K139: -0.003193538765 | L139: 2.408853795e-05 | M139: 0.002390314053 | N139: 2.80123001e-07
A140: 66.96282 | B140: ='DF raw data'!D145 -> -7.4608247e-06 | C140: ='DF raw data'!E145 -> -1.6731287e-06 | D140: ='DF raw data'!F145 -> -1.7743828e-06 | F140: -7.470792362e-06 | G140: 1.679289961e-06 | H140: -1.776753375e-06 | J140: -3.163480853e-05 | K140: -0.003209363445 | L140: 2.492856916e-05 | M140: 0.002402784071 | N140: 2.809344714e-07
A141: 67.46305 | B141: ='DF raw data'!D146 -> -3.8792491e-06 | C141: ='DF raw data'!E146 -> -2.732407e-06 | D141: ='DF raw data'!F146 -> 5.8215714e-06 | F141: -3.884431777e-06 | G141: 2.742469031e-06 | H141: 5.829349019e-06 | J141: -3.357791783e-05 | K141: -0.003226160127 | L141: 2.630043445e-05 | M141: 0.002415940338 | N141: 2.818444845e-07
A142: 67.96328 | B142: ='DF raw data'!D147 -> 1.3713876e-06 | C142: ='DF raw data'!E147 -> 7.3349402e-06 | D142: ='DF raw data'!F147 -> 1.9801278e-06 | F142: 1.373219774e-06 | G142: -7.361950961e-06 | H142: 1.982773251e-06 | J142: -3.289099211e-05 | K142: -0.003242613188 | L142: 2.261776572e-05 | M142: 0.002427254423 | N142: 2.826415414e-07
A143: 68.46351 | B143: ='DF raw data'!D148 -> 5.6613212e-06 | C143: ='DF raw data'!E148 -> -4.2279921e-06 | D143: ='DF raw data'!F148 -> -4.6149748e-06 | F143: 5.668884725e-06 | G143: 4.243561591e-06 | H143: -4.621140406e-06 | J143: -3.00552459e-05 | K143: -0.003257647723 | L143: 2.474052253e-05 | M143: 0.002439630374 | N143: 2.833995955e-07
A144: 68.96374 | B144: ='DF raw data'!D149 -> 4.447546e-06 | C144: ='DF raw data'!E149 -> -1.4885354e-05 | D144: ='DF raw data'!F149 -> -1.3095073e-06 | F144: 4.453487921e-06 | G144: 1.4940169e-05 | H144: -1.311256802e-06 | J144: -2.782747764e-05 | K144: -0.003271567863 | L144: 3.221404327e-05 | M144: 0.002455744805 | N144: 2.843060689e-07
A145: 69.46397 | B145: ='DF raw data'!D150 -> -8.9382172e-07 | C145: ='DF raw data'!E150 -> -5.2944756e-06 | D145: ='DF raw data'!F150 -> -2.0647662e-06 | F145: -8.950158658e-07 | G145: 5.313972394e-06 | H145: -2.067524728e-06 | J145: -2.827519142e-05 | K145: -0.003285711962 | L145: 3.487225168e-05 | M145: 0.002473188952 | N145: 2.853143126e-07
A146: 69.9642 | B146: ='DF raw data'!D151 -> -5.1978272e-06 | C146: ='DF raw data'!E151 -> -9.4112374e-06 | D146: ='DF raw data'!F151 -> 2.8373819e-07 | F146: -5.204771497e-06 | G146: 9.445894081e-06 | H146: 2.841172642e-07 | J146: -3.087877427e-05 | K146: -0.003301158451 | L146: 3.959737128e-05 | M146: 0.002492996745 | N146: 2.865756178e-07
A147: 70.46443 | B147: ='DF raw data'!D152 -> -7.4962004e-06 | C147: ='DF raw data'!E152 -> -7.516705e-06 | D147: ='DF raw data'!F152 -> 6.2598169e-06 | F147: -7.506215324e-06 | G147: 7.544385106e-06 | H147: 6.268180015e-06 | J147: -3.463360836e-05 | K147: -0.003318483221 | L147: 4.337129904e-05 | M147: 0.00251469237 | N147: 2.881166046e-07
A148: 70.96466 | B148: ='DF raw data'!D153 -> -9.8571318e-06 | C148: ='DF raw data'!E153 -> 1.3623362e-05 | D148: ='DF raw data'!F153 -> 1.9651538e-06 | F148: -9.870300928e-06 | G148: -1.367352974e-05 | H148: 1.967779245e-06 | J148: -3.9571029e-05 | K148: -0.003338277837 | L148: 3.653138926e-05 | M148: 0.002532966466 | N148: 2.89567476e-07
A149: 71.46489 | B149: ='DF raw data'!D154 -> -1.0771065e-05 | C149: ='DF raw data'!E154 -> 7.8318226e-06 | D149: ='DF raw data'!F154 -> 2.0317725e-06 | F149: -1.078545514e-05 | G149: -7.86066312e-06 | H149: 2.034486948e-06 | J149: -4.496623722e-05 | K149: -0.003360771297 | L149: 3.259924974e-05 | M149: 0.002549273589 | N149: 2.911105223e-07
A150: 71.96512 | B150: ='DF raw data'!D155 -> -9.7401198e-06 | C150: ='DF raw data'!E155 -> 1.3726134e-06 | D150: ='DF raw data'!F155 -> 5.6024051e-06 | F150: -9.7531326e-06 | G150: -1.37766802e-06 | H150: 5.609889913e-06 | J150: -4.984504674e-05 | K150: -0.003385705285 | L150: 3.191009887e-05 | M150: 0.002565235978 | N150: 2.928627195e-07
A151: 72.46535 | B151: ='DF raw data'!D156 -> -7.1769459e-06 | C151: ='DF raw data'!E156 -> 6.2834006e-06 | D151: ='DF raw data'!F156 -> -1.8513907e-07 | F151: =(1-$G$1*($B$2-$G$2))*B151 -> -7.1865343e-06 | G151: -6.306539089e-06 | H151: -1.853864158e-07 | J151: -5.343996679e-05 | K151: -0.00341243756 | L151: 2.875537882e-05 | M151: 0.002579620281 | N151: 2.947049174e-07
A152: 72.96558 | B152: ='DF raw data'!D157 -> -3.7799321e-06 | C152: ='DF raw data'!E157 -> -5.7682755e-06 | D152: ='DF raw data'!F157 -> 1.575148e-06 | F152: -3.784982089e-06 | G152: 5.789517052e-06 | H152: 1.577252398e-06 | J152: -5.533332839e-05 | K152: -0.003440116951 | L152: 3.165146894e-05 | M152: 0.002595453295 | N152: 2.967376484e-07
A153: 73.46581 | B153: ='DF raw data'!D158 -> -2.1176668e-06 | C153: ='DF raw data'!E158 -> -1.6959448e-06 | D153: ='DF raw data'!F158 -> 2.2516673e-07 | F153: -2.120496003e-06 | G153: 1.702190081e-06 | H153: 2.254675528e-07 | J153: -5.63940641e-05 | K153: -0.003468326953 | L153: 3.250295548e-05 | M153: 0.002611712249 | N153: 2.988569892e-07
A154: 73.96604 | B154: ='DF raw data'!D159 -> -2.9543728e-06 | C154: ='DF raw data'!E159 -> 2.1214069e-06 | D154: ='DF raw data'!F159 -> -1.803865e-06 | F154: -2.958319842e-06 | G154: -2.129218936e-06 | H154: -1.806274964e-06 | J154: -5.787390444e-05 | K154: -0.003497277217 | L154: 3.143785629e-05 | M154: 0.002627438408 | N154: 3.010268506e-07
A155: 74.46627 | B155: ='DF raw data'!D160 -> -2.9847427e-06 | C155: ='DF raw data'!E160 -> 6.9235839e-06 | D155: ='DF raw data'!F160 -> 1.3254371e-06 | F155: -2.988730316e-06 | G155: -6.94907985e-06 | H155: 1.327207884e-06 | J155: -5.9368957e-05 | K155: -0.00352697535 | L155: 2.796171808e-05 | M155: 0.002641425698 | N155: 3.031811065e-07
A156: 74.9665 | B156: ='DF raw data'!D161 -> 8.6062994e-07 | C156: ='DF raw data'!E161 -> 4.2627794e-06 | D156: ='DF raw data'!F161 -> 4.1242361e-06 | F156: 8.617797416e-07 | G156: -4.278476994e-06 | H156: 4.129746079e-06 | J156: -5.893786892e-05 | K156: -0.00355645784 | L156: 2.582149553e-05 | M156: 0.002654342385 | N156: 3.052522698e-07
A157: 75.46673 | B157: ='DF raw data'!D162 -> 1.9130682e-06 | C157: ='DF raw data'!E162 -> 4.5143219e-07 | D157: ='DF raw data'!F162 -> 9.3280296e-06 | F157: 1.915624059e-06 | G157: -4.530945794e-07 | H157: 9.340491848e-06 | J157: -5.79796163e-05 | K157: -0.003585460984 | L157: 2.559484403e-05 | M157: 0.002667145693 | N157: 3.072615596e-07
A158: 75.96696 | B158: ='DF raw data'!D163 -> -4.514726e-07 | C158: ='DF raw data'!E163 -> 4.528833e-06 | D158: ='DF raw data'!F163 -> 8.716398e-06 | F158: -4.520757674e-07 | G158: -4.545510331e-06 | H158: 8.728043108e-06 | J158: -5.820575816e-05 | K158: -0.00361457725 | L158: 2.33210434e-05 | M158: 0.002678811579 | N158: 3.092283546e-07
A159: 76.46719 | B159: ='DF raw data'!D164 -> -6.1119442e-07 | C159: ='DF raw data'!E164 -> 1.1319428e-07 | D159: ='DF raw data'!F164 -> 7.4879404e-06 | F159: -6.120109757e-07 | G159: -1.136111155e-07 | H159: 7.497944288e-06 | J159: -5.851190441e-05 | K159: -0.00364384666 | L159: 2.326421171e-05 | M159: 0.002690449036 | N159: 3.112116998e-07
A160: 76.96742 | B160: ='DF raw data'!D165 -> -1.6246626e-06 | C160: ='DF raw data'!E165 -> 3.3525394e-06 | D160: ='DF raw data'!F165 -> 7.6953338e-06 | F160: -1.626833149e-06 | G160: -3.364885055e-06 | H160: 7.705614766e-06 | J160: -5.932569516e-05 | K160: -0.003673523152 | L160: 2.158099526e-05 | M160: 0.002701244497 | N160: 3.132052551e-07
A161: 77.46765 | B161: ='DF raw data'!D166 -> -5.8923465e-06 | C161: ='DF raw data'!E166 -> 4.348306e-06 | D161: ='DF raw data'!F166 -> 9.3289913e-07 | F161: -5.900218675e-06 | G161: -4.364318544e-06 | H161: 9.341454832e-07 | J161: -6.227716154e-05 | K161: -0.003704676057 | L161: 1.939783219e-05 | M161: 0.002710947874 | N161: 3.153335941e-07
A162: 77.96788 | B162: ='DF raw data'!D167 -> -6.089394e-06 | C162: ='DF raw data'!E167 -> 1.3711425e-05 | D162: ='DF raw data'!F167 -> -4.4982394e-06 | F162: -6.09752943e-06 | G162: -1.376191703e-05 | H162: -4.504249048e-06 | J162: -6.532732869e-05 | K162: -0.003737354747 | L162: 1.251370844e-05 | M162: 0.002717207607 | N162: 3.175467381e-07
A163: 78.46811 | B163: ='DF raw data'!D168 -> 7.5763148e-07 | C163: ='DF raw data'!E168 -> 8.0551799e-06 | D163: ='DF raw data'!F168 -> 6.1862861e-06 | F163: 7.586436757e-07 | G163: -8.084842928e-06 | H163: 6.194550978e-06 | J163: -6.494783237e-05 | K163: -0.003769843601 | L163: 8.469427458e-06 | M163: 0.002721444268 | N163: 3.196927008e-07
A164: 78.96834 | B164: ='DF raw data'!D169 -> 2.9627706e-06 | C164: ='DF raw data'!E169 -> -3.519329e-07 | D164: ='DF raw data'!F169 -> 7.5168259e-06 | F164: 2.966728862e-06 | G164: 3.532288854e-07 | H164: 7.526868379e-06 | J164: -6.346378559e-05 | K164: -0.00380159009 | L164: 8.646123143e-06 | M164: 0.002725769319 | N164: 3.217448481e-07
A165: 79.46857 | B165: ='DF raw data'!D170 -> 2.0969608e-06 | C165: ='DF raw data'!E170 -> 1.2075637e-06 | D165: ='DF raw data'!F170 -> 3.1024297e-06 | F165: 2.09976234e-06 | G165: -1.212010528e-06 | H165: 3.106574546e-06 | J165: -6.241342147e-05 | K165: -0.003832811156 | L165: 8.039839117e-06 | M165: 0.002729791087 | N165: 3.23725796e-07
A166: 79.9688 | B166: ='DF raw data'!D171 -> 3.7494181e-06 | C166: ='DF raw data'!E171 -> 3.9676383e-06 | D166: ='DF raw data'!F171 -> 1.8606273e-05 | F166: 3.754427323e-06 | G166: -3.982249043e-06 | H166: 1.863113098e-05 | J166: -6.053534429e-05 | K166: -0.003863092751 | L166: 6.047798678e-06 | M166: 0.002732816378 | N166: 3.255771992e-07
A167: 80.46903 | B167: ='DF raw data'!D172 -> 3.3991826e-06 | C167: ='DF raw data'!E172 -> -5.5713372e-06 | D167: ='DF raw data'!F172 -> 1.5380929e-05 | F167: 3.403723908e-06 | G167: 5.591853531e-06 | H167: 1.540147792e-05 | J167: -5.883269948e-05 | K167: -0.003892522633 | L167: 8.84501157e-06 | M167: 0.002737240918 | N167: 3.273477737e-07
A168: 80.96926 | B168: ='DF raw data'!D173 -> -3.8511587e-07 | C168: ='DF raw data'!E173 -> -8.8523111e-06 | D168: ='DF raw data'!F173 -> 2.5848472e-06 | F168: -3.856303848e-07 | G168: 8.884909547e-06 | H168: 2.588300556e-06 | J168: -5.902560337e-05 | K168: -0.00392204901 | L168: 1.328950987e-05 | M168: 0.002743888729 | N168: 3.291789321e-07
A169: 81.46949 | B169: ='DF raw data'!D174 -> -1.8633576e-06 | C169: ='DF raw data'!E174 -> 3.1913592e-06 | D169: ='DF raw data'!F174 -> 6.9371504e-06 | F169: -1.865847046e-06 | G169: -3.203111312e-06 | H169: 6.946418433e-06 | J169: -5.995895604e-05 | K169: -0.003952042279 | L169: 1.16872175e-05 | M169: 0.002749735026 | N169: 3.310456241e-07
A170: 81.96972 | B170: ='DF raw data'!D175 -> 8.1604287e-07 | C170: ='DF raw data'!E175 -> 3.8778421e-06 | D170: ='DF raw data'!F175 -> 1.2167356e-05 | F170: 8.171331033e-07 | G170: -3.892122171e-06 | H170: 1.218361159e-05 | J170: -5.955020154e-05 | K170: -0.003981831076 | L170: 9.740261227e-06 | M170: 0.002754607397 | N170: 3.328670111e-07
A171: 82.46995 | B171: ='DF raw data'!D176 -> 3.4499687e-06 | C171: ='DF raw data'!E176 -> 8.0529117e-06 | D171: ='DF raw data'!F176 -> 1.0443143e-05 | F171: 3.454577858e-06 | G171: -8.082566376e-06 | H171: 1.045709504e-05 | J171: -5.782211806e-05 | K171: -0.004010755434 | L171: 5.697119049e-06 | M171: 0.002757457267 | N171: 3.345557148e-07
A172: 82.97018 | B172: ='DF raw data'!D177 -> 4.061731e-06 | C172: ='DF raw data'!E177 -> 3.4707555e-06 | D172: ='DF raw data'!F177 -> 2.0287166e-06 | F172: 4.067157473e-06 | G172: -3.483536483e-06 | H172: 2.031426965e-06 | J172: -5.578760388e-05 | K172: -0.004038662067 | L172: 3.954549594e-06 | M172: 0.002759435451 | N172: 3.361203819e-07
A173: 83.47041 | B173: ='DF raw data'!D178 -> 1.6847195e-06 | C173: ='DF raw data'!E178 -> -1.711022e-06 | D173: ='DF raw data'!F178 -> -3.1777404e-06 | F173: 1.686970285e-06 | G173: 1.717322802e-06 | H173: -3.181985861e-06 | J173: -5.494373073e-05 | K173: -0.00406614657 | L173: 4.813605979e-06 | M173: 0.002761843361 | N173: 3.376420737e-07
A174: 83.97064 | B174: ='DF raw data'!D179 -> -1.3225502e-06 | C174: ='DF raw data'!E179 -> 7.0055085e-06 | D174: ='DF raw data'!F179 -> 1.3583826e-06 | F174: -1.324317127e-06 | G174: -7.031306136e-06 | H174: 1.360197399e-06 | J174: -5.560619389e-05 | K174: -0.004093962456 | L174: 1.296335711e-06 | M174: 0.002762491827 | N174: 3.391896499e-07
A175: 84.47087 | B175: ='DF raw data'!D180 -> 1.6661658e-06 | C175: ='DF raw data'!E180 -> 7.013914e-06 | D175: ='DF raw data'!F180 -> 4.6770342e-06 | F175: 1.668391798e-06 | G175: -7.039742589e-06 | H175: 4.683282718e-06 | J175: -5.477161426e-05 | K175: -0.004121360861 | L175: -2.225154724e-06 | M175: 0.002761378738 | N175: 3.406927815e-07
A176: 84.9711 | B176: ='DF raw data'!D181 -> 6.4615747e-06 | C176: ='DF raw data'!E181 -> 4.1729827e-06 | D176: ='DF raw data'!F181 -> 8.6951668e-06 | F176: 6.470207364e-06 | G176: -4.18834962e-06 | H176: 8.706783543e-06 | J176: -5.153502243e-05 | K176: -0.004147140225 | L176: -4.320292855e-06 | M176: 0.002759217598 | N176: 3.420306584e-07
A177: 85.47133 | B177: ='DF raw data'!D182 -> 6.6965299e-06 | C177: ='DF raw data'!E182 -> 7.5807129e-06 | D177: ='DF raw data'!F182 -> 5.6549084e-06 | F177: 6.705476464e-06 | G177: -7.608628714e-06 | H177: 5.662463358e-06 | J177: -4.818074194e-05 | K177: -0.004171241677 | L177: -8.126357196e-06 | M177: 0.00275515255 | N177: 3.432249183e-07
A178: 85.97156 | B178: ='DF raw data'!D183 -> 4.7689396e-06 | C178: ='DF raw data'!E183 -> 1.1047684e-05 | D178: ='DF raw data'!F183 -> 8.8058499e-07 | F178: 4.775310903e-06 | G178: -1.108836686e-05 | H178: 8.817614515e-07 | J178: -4.579198817e-05 | K178: -0.004194148204 | L178: -1.367309095e-05 | M178: 0.00274831286 | N178: 3.443673734e-07
A179: 86.47179 | B179: ='DF raw data'!D184 -> 3.0073577e-06 | C179: ='DF raw data'!E184 -> 8.2246324e-06 | D179: ='DF raw data'!F184 -> -1.9767126e-06 | F179: 3.01137553e-06 | G179: -8.254919434e-06 | H179: -1.979353488e-06 | J179: -4.428560779e-05 | K179: -0.004216301193 | L179: -1.78024493e-05 | M179: 0.002739407541 | N179: 3.455069685e-07
A180: 86.97202 | B180: ='DF raw data'!D185 -> 3.8539442e-06 | C180: ='DF raw data'!E185 -> 9.790534e-06 | D180: ='DF raw data'!F185 -> 2.1172359e-06 | F180: 3.859093069e-06 | G180: -9.826587433e-06 | H180: 2.120064527e-06 | J180: -4.235517366e-05 | K180: -0.004237488522 | L180: -2.271800313e-05 | M180: 0.002728043314 | N180: 3.46662534e-07
A181: 87.47225 | B181: ='DF raw data'!D186 -> 4.1293538e-06 | C181: ='DF raw data'!E186 -> 3.4076447e-06 | D181: ='DF raw data'!F186 -> 5.7078191e-06 | F181: 4.134870617e-06 | G181: -3.420193279e-06 | H181: 5.715444746e-06 | J181: -4.028678733e-05 | K181: -0.004257641181 | L181: -2.442888641e-05 | M181: 0.002715823252 | N181: 3.477729424e-07
A182: 87.97248 | B182: ='DF raw data'!D187 -> -1.0896614e-06 | C182: ='DF raw data'!E187 -> 1.9737026e-06 | D182: ='DF raw data'!F187 -> 3.5220584e-08 | F182: -1.091117188e-06 | G182: -1.980970718e-06 | H182: 3.52676387e-08 | J182: -4.083259688e-05 | K182: -0.004278066871 | L182: -2.54198274e-05 | M182: 0.002703107492 | N182: 3.489302088e-07
A183: 88.47271 | B183: ='DF raw data'!D188 -> -7.6574061e-06 | C183: ='DF raw data'!E188 -> -2.5050472e-06 | D183: ='DF raw data'!F188 -> 7.5746124e-07 | F183: -7.667636395e-06 | G183: 2.514271983e-06 | H183: 7.584732082e-07 | J183: -4.466817864e-05 | K183: -0.004300411234 | L183: -2.416211312e-05 | M183: 0.002691020878 | N183: 3.502203289e-07
A184: 88.97294 | B184: ='DF raw data'!D189 -> -8.6466307e-06 | C184: ='DF raw data'!E189 -> 5.4094526e-06 | D184: ='DF raw data'!F189 -> 8.2557863e-06 | F184: -8.658182599e-06 | G184: -5.429372794e-06 | H184: 8.26681603e-06 | J184: -4.899926132e-05 | K184: -0.004324922135 | L184: -2.687804828e-05 | M184: 0.002677575672 | N184: 3.517827259e-07
A185: 89.47317 | B185: ='DF raw data'!D190 -> -5.7796128e-06 | C185: ='DF raw data'!E190 -> 5.3113836e-06 | D185: ='DF raw data'!F190 -> 1.013147e-05 | F185: -5.787334363e-06 | G185: -5.330942657e-06 | H185: 1.014500564e-05 | J185: -5.189425959e-05 | K185: -0.0043508812 | L185: -2.954474572e-05 | M185: 0.002662796504 | N185: 3.535664991e-07
A186: 89.9734 | B186: ='DF raw data'!D191 -> -4.646266e-06 | C186: ='DF raw data'!E191 -> -2.0295126e-06 | D186: ='DF raw data'!F191 -> 9.4040342e-06 | F186: -4.652473411e-06 | G186: 2.036986237e-06 | H186: 9.41659799e-06 | J186: -5.422156636e-05 | K186: -0.004378004454 | L186: -2.85257841e-05 | M186: 0.002648527051 | N186: 3.554442118e-07
A187: 90.47363 | B187: ='DF raw data'!D192 -> -3.5950354e-06 | C187: ='DF raw data'!E192 -> -1.6483112e-06 | D187: ='DF raw data'!F192 -> 8.511347e-06 | F187: -3.599838367e-06 | G187: 1.654381071e-06 | H187: 8.52271816e-06 | J187: -5.602231351e-05 | K187: -0.004406028496 | L187: -2.769821305e-05 | M187: 0.002634671574 | N187: 3.573979554e-07
A188: 90.97386 | B188: ='DF raw data'!D193 -> -2.0914297e-06 | C188: ='DF raw data'!E193 -> 4.6538544e-06 | D188: ='DF raw data'!F193 -> 1.9656923e-06 | F188: -2.09422385e-06 | G188: -4.67099212e-06 | H188: 1.968318465e-06 | J188: -5.70699071e-05 | K188: -0.004434576576 | L188: -3.003478344e-05 | M188: 0.002619647274 | N188: 3.594784432e-07
A189: 91.47409 | B189: ='DF raw data'!D194 -> -4.3502364e-06 | C189: ='DF raw data'!E194 -> 2.2196091e-06 | D189: ='DF raw data'!F194 -> 1.121914e-06 | F189: -4.356048316e-06 | G189: -2.227782763e-06 | H189: 1.123412877e-06 | J189: -5.924893315e-05 | K189: -0.00446421467 | L189: -3.114918721e-05 | M189: 0.002604065516 | N189: 3.617198278e-07
A190: 91.97432 | B190: ='DF raw data'!D195 -> -9.2161345e-06 | C190: ='DF raw data'!E195 -> -5.7869552e-06 | D190: ='DF raw data'!F195 -> 5.4746247e-06 | F190: -9.228447256e-06 | G190: 5.808265539e-06 | H190: 5.481938799e-06 | J190: -6.386527932e-05 | K190: -0.004496161998 | L190: -2.824371854e-05 | M190: 0.002589937161 | N190: 3.641591901e-07
A191: 92.47455 | B191: ='DF raw data'!D196 -> -9.5105052e-06 | C191: ='DF raw data'!E196 -> -8.534621e-06 | D191: ='DF raw data'!F196 -> -4.1658736e-06 | F191: -9.523211235e-06 | G191: 8.56604956e-06 | H191: -4.171439207e-06 | J191: -6.862907528e-05 | K191: -0.004530492321 | L191: -2.395872357e-05 | M191: 0.002577952289 | N191: 3.668023906e-07
A192: 92.97478 | B192: ='DF raw data'!D197 -> -7.4878621e-06 | C192: ='DF raw data'!E197 -> -2.5891063e-06 | D192: ='DF raw data'!F197 -> -1.6437038e-05 | F192: -7.497865884e-06 | G192: 2.598640629e-06 | H192: -1.645899788e-05 | J192: -7.237973273e-05 | K192: -0.004566698834 | L192: -2.265880557e-05 | M192: 0.002566617674 | N192: 3.696798372e-07
A193: 93.47501 | B193: ='DF raw data'!D198 -> -1.0311428e-05 | C193: ='DF raw data'!E198 -> 1.659225e-05 | D193: ='DF raw data'!F198 -> -9.1705979e-06 | F193: -1.032520407e-05 | G193: -1.665335061e-05 | H193: -9.182849819e-06 | J193: -7.754470956e-05 | K193: -0.004605489025 | L193: -3.098931114e-05 | M193: 0.002551115891 | N193: 3.731682008e-07
A194: 93.97524 | B194: ='DF raw data'!D199 -> -1.3112381e-05 | C194: ='DF raw data'!E199 -> 1.0386286e-05 | D194: ='DF raw data'!F199 -> 5.2197188e-06 | F194: -1.312989914e-05 | G194: -1.042453328e-05 | H194: 5.226692344e-06 | J194: -8.411267901e-05 | K194: -0.00464756471 | L194: -3.620397542e-05 | M194: 0.002533005577 | N194: 3.773629648e-07
A195: 94.47547 | B195: ='DF raw data'!D200 -> -1.3098353e-05 | C195: ='DF raw data'!E200 -> 6.0453667e-06 | D195: ='DF raw data'!F200 -> 1.2673835e-05 | F195: -1.31158524e-05 | G195: -6.067628634e-06 | H195: 1.269076724e-05 | J195: -9.067362185e-05 | K195: -0.004692922376 | L195: -3.92391853e-05 | M195: 0.002513376959 | N195: 3.822459197e-07
A196: 94.9757 | B196: ='DF raw data'!D201 -> -1.14407e-05 | C196: ='DF raw data'!E201 -> 1.269471e-05 | D196: ='DF raw data'!F201 -> 9.9329382e-06 | F196: -1.145598478e-05 | G196: -1.2741458e-05 | H196: 9.946208605e-06 | J196: -9.640424912e-05 | K196: -0.004741146673 | L196: -4.561284483e-05 | M196: 0.002490560046 | N196: 3.879356912e-07
A197: 95.47593 | B197: ='DF raw data'!D202 -> -7.733498e-06 | C197: ='DF raw data'!E202 -> 2.3175448e-06 | D197: ='DF raw data'!F202 -> 1.7955076e-06 | F197: -7.743829953e-06 | G197: -2.326079109e-06 | H197: 1.797906398e-06 | J197: -0.0001002779452 | K197: -0.00479130871 | L197: -4.677641938e-05 | M197: 0.002467161077 | N197: 3.940603571e-07
A198: 95.97616 | B198: ='DF raw data'!D203 -> -5.778274e-06 | C198: ='DF raw data'!E203 -> 5.9027325e-06 | D198: ='DF raw data'!F203 -> 2.0459461e-06 | F198: -5.785993774e-06 | G198: -5.924469187e-06 | H198: 2.048679484e-06 | J198: -0.0001031722728 | K198: -0.004842918576 | L198: -4.97400166e-05 | M198: 0.002442279629 | N198: 4.006226679e-07
A199: 96.47639 | B199: ='DF raw data'!D204 -> -6.2752219e-06 | C199: ='DF raw data'!E204 -> 1.2457876e-05 | D199: ='DF raw data'!F204 -> 1.1593137e-05 | F199: -6.283605596e-06 | G199: =(1-$G$1*($B$2-$G$2))*C199*$M$2/$M$1 -> -1.250375186e-05 | H199: 1.160862543e-05 | J199: -0.0001063155209 | K199: -0.004896100789 | L199: -5.59947684e-05 | M199: 0.002414269366 | N199: 4.078451908e-07
A200: =A199+$B$1 -> 96.97662 | B200: ='DF raw data'!D205 -> -4.7781064e-06 | C200: ='DF raw data'!E205 -> -3.6498523e-06 | D200: ='DF raw data'!F205 -> 2.1387232e-05 | F200: -4.78448995e-06 | G200: 3.663292803e-06 | H200: 2.141580534e-05 | J200: =F200*$B$1+J199 -> -0.0001087088663 | K200: =J200*$B$1+K199 -> -0.004950480225 | L200: =G200*$B$1+L199 -> -5.416227944e-05 | M200: =L200*$B$1+M199 -> 0.002387175769 | N200: =(J200^2+L200^2)*$B$1+N199 -> 4.152241686e-07
A201: 97.47685 | B201: ='DF raw data'!D206 -> -1.8489949e-06 | C201: ='DF raw data'!E206 -> -4.6272062e-06 | D201: ='DF raw data'!F206 -> 1.2567621e-05 | F201: -1.851465157e-06 | G201: 4.644245788e-06 | H201: 1.258441134e-05 | J201: -0.0001096350247 | K201: -0.005005322954 | L201: -5.183908837e-05 | M201: 0.002361244302 | N201: 4.225811161e-07
... 1002 more rows

Sheet 15 mm
A1: dz | B1: ='DF raw data'!H7 -> 0.50017 | C1: mm | F1: T_coeff | G1: -0.0008 | H1: /degC | L1: Hallref | M1: ='PI vs gap'!B50 -> -0.50526 | N1: T | P1: IBy total | Q1: =L1203*1000 -> -0.4264471929 | R1: muTm | X1: DF ref | Y1: 20
A2: Tref | B2: ='DF raw data'!H8 -> 21.78 | C2: degC | F2: Tcorr | G2: 20 | H2: degC | L2: NMRref | M2: ='PI vs gap'!B51 -> 0.506444 | N2: T | P2: JBy total | Q2: =M1203 -> 1.130199477 | R2: muTm^2
A3: Encoder | B3: ='DF raw data'!H9 -> 17695461 | P3: PI total | Q3: =N1203 -> 370.4626989 | R3: T^2mm^3
A5: z [mm] | B5: Bx | C5: By | D5: Bz | F5: Bx_corr | G5: By_corr | H5: Bz_corr | J5: Ix | K5: Jx | L5: Iy | M5: Jy | N5: PI
A6: -0.068 | B6: ='DF raw data'!G11 -> -2.3007822e-06 | C6: ='DF raw data'!H11 -> 9.436777e-06 | D6: ='DF raw data'!I11 -> -8.8314482e-06 | F6: =(1-$G$1*($B$2-$G$2))*B6 -> -2.304058514e-06 | G6: =(1-$G$1*($B$2-$G$2))*C6*$M$2/$M$1 -> -9.472360113e-06 | H6: =(1-$G$1*($B$2-$G$2))*D6 -> -8.844024182e-06 | J6: =F6*$B$1 -> -1.152420947e-06 | K6: =J6*$B$1 -> -5.76406385e-07 | L6: =G6*$B$1 -> -4.737790358e-06 | M6: =L6*$B$1 -> -2.369700603e-06 | N6: =(J6^2+L6)^2*$B$1 -> 1.122713837e-11
A7: =A6+$B$1 -> 0.43217 | B7: ='DF raw data'!G12 -> -2.2007378e-06 | C7: ='DF raw data'!H12 -> 7.2974053e-06 | D7: ='DF raw data'!I12 -> -5.3180629e-06 | F7: =(1-$G$1*($B$2-$G$2))*B7 -> -2.203871651e-06 | G7: =(1-$G$1*($B$2-$G$2))*C7*$M$2/$M$1 -> -7.324921516e-06 | H7: -5.325635822e-06 | J7: =F7*$B$1+J6 -> -2.25473143e-06 | K7: =J7*$B$1+K6 -> -1.704155405e-06 | L7: =G7*$B$1+L6 -> -8.401496352e-06 | M7: =L7*$B$1+M6 -> -6.571877034e-06 | N7: =(J7^2+L7^2)*$B$1+N6 -> 4.907447949e-11
A8: =A7+$B$1 -> 0.93234 | B8: ='DF raw data'!G13 -> -1.7657956e-06 | C8: ='DF raw data'!H13 -> -4.1050139e-06 | D8: ='DF raw data'!I13 -> -2.9375587e-06 | F8: -1.768310093e-06 | G8: 4.120492614e-06 | H8: -2.941741784e-06 | J8: =F8*$B$1+J7 -> -3.13918709e-06 | K8: =J8*$B$1+K7 -> -3.274282611e-06 | L8: =G8*$B$1+L7 -> -6.340549561e-06 | M8: =L8*$B$1+M7 -> -9.743229708e-06 | N8: =(J8^2+L8^2)*$B$1+N7 -> 7.411152135e-11
A9: 1.43251 | B9: ='DF raw data'!G14 -> -1.6260826e-06 | C9: ='DF raw data'!H14 -> -6.489624e-06 | D9: ='DF raw data'!I14 -> 4.891197e-06 | F9: -1.628398142e-06 | G9: 6.514094327e-06 | H9: 4.898162065e-06 | J9: -3.953662988e-06 | K9: -5.251786228e-06 | L9: -3.082395002e-06 | M9: -1.128495122e-05 | N9: 8.668209888e-11
A10: 1.93268 | B10: ='DF raw data'!G15 -> -1.9789957e-06 | C10: ='DF raw data'!H15 -> 3.3723784e-06 | D10: ='DF raw data'!I15 -> 6.0675447e-06 | F10: -1.98181379e-06 | G10: -3.385094576e-06 | H10: 6.076184884e-06 | J10: -4.944906791e-06 | K10: -7.725080258e-06 | L10: -4.775517756e-06 | M10: -1.367352193e-05 | N10: 1.103189692e-10
A11: 2.43285 | B11: ='DF raw data'!G16 -> -1.9142396e-06 | C11: ='DF raw data'!H16 -> 1.276371e-06 | D11: ='DF raw data'!I16 -> 4.1530511e-06 | F11: -1.916965477e-06 | G11: -1.281183793e-06 | H11: 4.158965045e-06 | J11: -5.903715414e-06 | K11: -1.06779416e-05 | L11: -5.416327454e-06 | M11: -1.638260643e-05 | N11: 1.42425111e-10
A12: 2.93302 | B12: ='DF raw data'!G17 -> -1.5982448e-06 | C12: ='DF raw data'!H17 -> -6.6043713e-06 | D12: ='DF raw data'!I17 -> 8.3218547e-06 | F12: -1.600520701e-06 | G12: 6.629274303e-06 | H12: 8.333705021e-06 | J12: -6.704247853e-06 | K12: -1.403120524e-05 | L12: -2.100563325e-06 | M12: -1.743324519e-05 | N12: 1.671131548e-10
A13: 3.43319 | B13: ='DF raw data'!G18 -> -2.1626117e-06 | C13: ='DF raw data'!H18 -> 8.5320071e-06 | D13: ='DF raw data'!I18 -> 6.7276924e-06 | F13: -2.165691259e-06 | G13: -8.56417861e-06 | H13: 6.737272634e-06 | J13: -7.78746165e-06 | K13: -1.792625994e-05 | L13: -6.384108541e-06 | M13: -2.062638476e-05 | N13: 2.178310935e-10
A14: 3.93336 | B14: ='DF raw data'!G19 -> -2.1478706e-06 | C14: ='DF raw data'!H19 -> 7.498747e-06 | D14: ='DF raw data'!I19 -> 3.34574e-06 | F14: -2.150929168e-06 | G14: -7.527022412e-06 | H14: 3.350504334e-06 | J14: -8.863291892e-06 | K14: -2.235941264e-05 | L14: -1.014889934e-05 | M14: -2.570255975e-05 | N14: 3.086410088e-10
A15: 4.43353 | B15: ='DF raw data'!G20 -> -1.8070502e-06 | C15: ='DF raw data'!H20 -> -1.2683522e-06 | D15: ='DF raw data'!I20 -> 6.7668225e-06 | F15: -1.809623439e-06 | G15: 1.273134756e-06 | H15: 6.776458455e-06 | J15: -9.768411247e-06 | K15: -2.72452789e-05 | L15: -9.51211553e-06 | M15: -3.046023457e-05 | N15: 4.016237123e-10
A16: 4.9337 | B16: ='DF raw data'!G21 -> -2.1368548e-06 | C16: ='DF raw data'!H21 -> 7.7343793e-06 | D16: ='DF raw data'!I21 -> 6.973678e-06 | F16: -2.139897681e-06 | G16: -7.763543207e-06 | H16: 6.983608517e-06 | J16: -1.083872387e-05 | K16: -3.266648342e-05 | L16: -1.339520694e-05 | M16: -3.716011522e-05 | N16: 5.501289389e-10
A17: 5.43387 | B17: ='DF raw data'!G22 -> -1.9088991e-06 | C17: ='DF raw data'!H22 -> 8.0497279e-07 | D17: ='DF raw data'!I22 -> 2.8619615e-06 | F17: -1.911617372e-06 | G17: -8.080080887e-07 | H17: 2.866036933e-06 | J17: -1.179485753e-05 | K17: -3.856591731e-05 | L17: -1.379934834e-05 | M17: -4.406213528e-05 | N17: 7.149553002e-10
A18: 5.93404 | B18: ='DF raw data'!G23 -> -1.670335e-06 | C18: ='DF raw data'!H23 -> -6.2733388e-06 | D18: ='DF raw data'!I23 -> -7.8540324e-07 | F18: -1.672713557e-06 | G18: 6.296993584e-06 | H18: -7.865216542e-07 | J18: -1.263149867e-05 | K18: -4.4883814e-05 | L18: -1.064978106e-05 | M18: -4.938883628e-05 | N18: 8.514880032e-10
A19: 6.43421 | B19: ='DF raw data'!G24 -> -1.8633079e-06 | C19: ='DF raw data'!H24 -> -9.7054271e-07 | D19: ='DF raw data'!I24 -> -8.4429485e-07 | F19: -1.86596125e-06 | G19: 9.742023207e-07 | H19: -8.454971259e-07 | J19: -1.356479651e-05 | K19: -5.166851827e-05 | L19: -1.016251429e-05 | M19: -5.447182105e-05 | N19: 9.951770414e-10
A20: 6.93438 | B20: ='DF raw data'!G25 -> -1.9178485e-06 | C20: ='DF raw data'!H25 -> 1.2941167e-06 | D20: ='DF raw data'!I25 -> 3.8309299e-06 | F20: -1.920579516e-06 | G20: -1.298996406e-06 | H20: 3.836385144e-06 | J20: -1.452541277e-05 | K20: -5.893369397e-05 | L20: -1.081223332e-05 | M20: -5.987977579e-05 | N20: 1.159178786e-09
A21: 7.43455 | B21: ='DF raw data'!G26 -> -1.6753409e-06 | C21: ='DF raw data'!H26 -> -5.6463641e-06 | D21: ='DF raw data'!I26 -> 1.8351056e-06 | F21: -1.677726585e-06 | G21: 5.66765476e-06 | H21: 1.83771879e-06 | J21: -1.536456127e-05 | K21: -6.661858658e-05 | L21: -7.977442437e-06 | M21: -6.386985317e-05 | N21: 1.309084402e-09
A22: 7.93472 | B22: ='DF raw data'!G27 -> -3.1652672e-07 | C22: ='DF raw data'!H27 -> -1.125585e-06 | D22: ='DF raw data'!I27 -> -5.7567158e-06 | F22: -3.16977454e-07 | G22: 1.129829226e-06 | H22: -5.764913363e-06 | J22: -1.552310389e-05 | K22: -7.438277746e-05 | L22: -7.412335753e-06 | M22: -6.757728114e-05 | N22: 1.457089444e-09
A23: 8.43489 | B23: ='DF raw data'!G28 -> 3.0613949e-06 | C23: ='DF raw data'!H28 -> 1.5832535e-06 | D23: ='DF raw data'!I28 -> -1.415865e-06 | F23: =(1-$G$1*($B$2-$G$2))*B23 -> 3.065754326e-06 | G23: -1.58922345e-06 | H23: -1.417881192e-06 | J23: -1.398970554e-05 | K23: -8.138000848e-05 | L23: -8.207217646e-06 | M23: -7.168228519e-05 | N23: 1.588669308e-09
A24: 8.93506 | B24: ='DF raw data'!G29 -> 7.2145549e-06 | C24: ='DF raw data'!H29 -> 1.2021854e-06 | D24: ='DF raw data'!I29 -> 9.8274395e-06 | F24: 7.224828426e-06 | G24: -1.206718462e-06 | H24: 9.841433774e-06 | J24: -1.037606311e-05 | K24: -8.656980396e-05 | L24: -8.810782019e-06 | M24: -7.608917404e-05 | N24: 1.68134709e-09
A25: 9.43523 | B25: ='DF raw data'!G30 -> 1.2135387e-05 | C25: ='DF raw data'!H30 -> -9.3783228e-06 | D25: ='DF raw data'!I30 -> 1.1873919e-05 | F25: 1.215266779e-05 | G25: 9.4136855e-06 | H25: 1.189082746e-05 | J25: -4.297663262e-06 | K25: -8.87193662e-05 | L25: -4.102338943e-06 | M25: -7.81410409e-05 | N25: 1.699002638e-09
A26: 9.9354 | B26: ='DF raw data'!G31 -> 9.9741656e-06 | C26: ='DF raw data'!H31 -> -1.5836864e-05 | D26: ='DF raw data'!I31 -> 5.2566393e-06 | F26: 9.988368812e-06 | G26: 1.589657982e-05 | H26: 5.264124754e-06 | J26: 6.982191667e-07 | K26: -8.837013792e-05 | L26: 3.848653388e-06 | M26: -7.621605994e-05 | N26: 1.70665506e-09
A27: 10.43557 | B27: ='DF raw data'!G32 -> 4.395718e-06 | C27: ='DF raw data'!H32 -> -5.1195939e-06 | D27: ='DF raw data'!I32 -> -4.0944651e-06 | F27: 4.401977502e-06 | G27: 5.138898275e-06 | H27: -4.100295618e-06 | J27: 2.899956254e-06 | K27: -8.69196668e-05 | L27: 6.418976138e-06 | M27: -7.300548064e-05 | N27: 1.731469995e-09
A28: 10.93574 | B28: ='DF raw data'!G33 -> -9.2935153e-07 | C28: ='DF raw data'!H33 -> -4.5291786e-06 | D28: ='DF raw data'!I33 -> -1.1502001e-05 | F28: -9.306749266e-07 | G28: 4.546256705e-06 | H28: -1.151837985e-05 | J28: 2.434460576e-06 | K28: -8.570202265e-05 | L28: 8.692877355e-06 | M28: -6.865756418e-05 | N28: 1.772230206e-09
A29: 11.43591 | B29: ='DF raw data'!G34 -> -4.5710121e-06 | C29: ='DF raw data'!H34 -> 6.6907123e-06 | D29: ='DF raw data'!I34 -> -8.526702e-06 | F29: -4.577521221e-06 | G29: -6.715940868e-06 | H29: -8.538844024e-06 | J29: 1.449217868e-07 | K29: -8.562953712e-05 | L29: 5.333765211e-06 | M29: -6.598977483e-05 | N29: 1.786470073e-09
A30: 11.93608 | B30: ='DF raw data'!G35 -> -2.2898391e-06 | C30: ='DF raw data'!H35 -> -1.2438013e-06 | D30: ='DF raw data'!I35 -> -3.7340724e-06 | F30: -2.293099831e-06 | G30: 1.248491283e-06 | H30: -3.739389719e-06 | J30: -1.002017956e-06 | K30: -8.613071644e-05 | L30: 5.958223096e-06 | M30: -6.300965039e-05 | N30: 1.80472851e-09
A31: 12.43625 | B31: ='DF raw data'!G36 -> 2.9963047e-07 | C31: ='DF raw data'!H36 -> -1.0643746e-05 | D31: ='DF raw data'!I36 -> -4.9325827e-06 | F31: 3.000571438e-07 | G31: 1.068388021e-05 | H31: -4.939606698e-06 | J31: -8.51938374e-07 | K31: -8.655683046e-05 | L31: 1.130197946e-05 | M31: -5.735673932e-05 | N31: 1.868980618e-09
A32: 12.93642 | B32: ='DF raw data'!G37 -> -1.3895849e-06 | C32: ='DF raw data'!H37 -> -5.9828681e-06 | D32: ='DF raw data'!I37 -> 8.0037717e-07 | F32: -1.391563669e-06 | G32: 6.00542761e-06 | H32: 8.015169071e-07 | J32: -1.547956774e-06 | K32: -8.7331072e-05 | L32: 1.430571419e-05 | M32: -5.020145025e-05 | N32: 1.97254063e-09
A33: 13.43659 | B33: ='DF raw data'!G38 -> -1.0258743e-06 | C33: ='DF raw data'!H38 -> 3.2059947e-06 | D33: ='DF raw data'!I38 -> 4.4498811e-06 | F33: -1.027335145e-06 | G33: -3.218083496e-06 | H33: 4.456217731e-06 | J33: -2.061798994e-06 | K33: -8.8362322e-05 | L33: 1.269612537e-05 | M33: -4.385122923e-05 | N33: 2.055290063e-09
A34: 13.93676 | B34: ='DF raw data'!G39 -> -1.1667223e-06 | C34: ='DF raw data'!H39 -> 6.8648346e-06 | D34: ='DF raw data'!I39 -> 2.0236548e-06 | F34: -1.168383713e-06 | G34: -6.890719728e-06 | H34: 2.026536484e-06 | J34: -2.646189475e-06 | K34: -8.968586659e-05 | L34: 9.249594081e-06 | M34: -3.922485976e-05 | N34: 2.101584452e-09
A35: 14.43693 | B35: ='DF raw data'!G40 -> -4.7028379e-06 | C35: ='DF raw data'!H40 -> -1.4342022e-06 | D35: ='DF raw data'!I40 -> 4.4807603e-06 | F35: -4.709534741e-06 | G35: 1.439610125e-06 | H35: 4.487140903e-06 | J35: -5.001757467e-06 | K35: -9.218759562e-05 | L35: 9.969643877e-06 | M35: -3.423834298e-05 | N35: 2.163811291e-09
A36: 14.9371 | B36: ='DF raw data'!G41 -> -2.3760883e-06 | C36: ='DF raw data'!H41 -> -9.7563216e-06 | D36: ='DF raw data'!I41 -> 4.4626577e-06 | F36: -2.37947185e-06 | G36: 9.793109615e-06 | H36: 4.469012525e-06 | J36: -6.191897902e-06 | K36: -9.52845972e-05 | L36: 1.486786351e-05 | M36: -2.680188369e-05 | N36: 2.29355187e-09
A37: 15.43727 | B37: ='DF raw data'!G42 -> -1.18155e-07 | C37: ='DF raw data'!H42 -> -2.0519697e-06 | D37: ='DF raw data'!I42 -> 6.2723193e-06 | F37: -1.183232527e-07 | G37: 2.059707031e-06 | H37: 6.281251083e-06 | J37: -6.251079643e-06 | K37: -9.84111997e-05 | L37: 1.589806718e-05 | M37: -1.885014742e-05 | N37: 2.439513749e-09
A38: 15.93744 | B38: ='DF raw data'!G43 -> -1.7513746e-06 | C38: ='DF raw data'!H43 -> 4.4858874e-07 | D38: ='DF raw data'!I43 -> 6.1008104e-06 | F38: -1.753868557e-06 | G38: -4.502802268e-07 | H38: 6.109497954e-06 | J38: -7.12831208e-06 | K38: -0.0001019765676 | L38: 1.567285052e-05 | M38: -1.101105778e-05 | N38: 2.587789683e-09
A39: 16.43761 | B39: ='DF raw data'!G44 -> -3.7198122e-06 | C39: ='DF raw data'!H44 -> 3.7760563e-07 | D39: ='DF raw data'!I44 -> 9.6028889e-06 | F39: -3.725109213e-06 | G39: -3.790294618e-07 | H39: 9.616563414e-06 | J39: -8.991499954e-06 | K39: -0.0001064738461 | L39: 1.548327135e-05 | M39: -3.266789949e-06 | N39: 2.748133563e-09
A40: 16.93778 | B40: ='DF raw data'!G45 -> -3.2359465e-06 | C40: ='DF raw data'!H45 -> -1.8294131e-06 | D40: ='DF raw data'!I45 -> 1.5936581e-05 | F40: -3.240554488e-06 | G40: 1.83631124e-06 | H40: 1.595927469e-05 | J40: -1.061232809e-05 | K40: -0.0001117818142 | L40: 1.640173914e-05 | M40: 4.936867919e-06 | N40: 2.939017719e-09
A41: 17.43795 | B41: ='DF raw data'!G46 -> -2.3355612e-06 | C41: ='DF raw data'!H46 -> -6.6185148e-06 | D41: ='DF raw data'!I46 -> 1.5681675e-05 | F41: -2.338887039e-06 | G41: 6.643471134e-06 | H41: 1.570400571e-05 | J41: -1.178216922e-05 | K41: -0.0001176749018 | L41: 1.97246041e-05 | M41: 1.480252315e-05 | N41: 3.203047218e-09
A42: 17.93812 | B42: ='DF raw data'!G47 -> -1.594374e-06 | C42: ='DF raw data'!H47 -> 9.2333003e-06 | D42: ='DF raw data'!I47 -> 2.1940286e-06 | F42: -1.596644389e-06 | G42: -9.268116166e-06 | H42: 2.197152897e-06 | J42: -1.258076285e-05 | K42: -0.000123967422 | L42: 1.508897044e-05 | M42: 2.23495735e-05 | N42: 3.396089141e-09
A43: 18.43829 | B43: ='DF raw data'!G48 -> 3.2506722e-07 | C43: ='DF raw data'!H48 -> 1.1980492e-06 | D43: ='DF raw data'!I48 -> -5.4755292e-06 | F43: 3.255301157e-07 | G43: -1.202566666e-06 | H43: -5.483326354e-06 | J43: -1.241794245e-05 | K43: -0.0001301785042 | L43: 1.448748267e-05 | M43: 2.95957777e-05 | N43: 3.578197261e-09
A44: 18.93846 | B44: ='DF raw data'!G49 -> 6.4800332e-07 | C44: ='DF raw data'!H49 -> -6.0373059e-06 | D44: ='DF raw data'!I49 -> 6.1634637e-08 | F44: 6.489260767e-07 | G44: 6.060070678e-06 | H44: 6.172240472e-08 | J44: -1.209336909e-05 | K44: -0.0001362272447 | L44: 1.751854822e-05 | M44: 3.835802997e-05 | N44: 3.804848851e-09
A45: 19.43863 | B45: ='DF raw data'!G50 -> -6.5157446e-06 | C45: ='DF raw data'!H50 -> 8.6154597e-07 | D45: ='DF raw data'!I50 -> 2.0577208e-06 | F45: -6.52502302e-06 | G45: -8.647945884e-07 | H45: 2.060650994e-06 | J45: -1.535698986e-05 | K45: -0.0001439083503 | L45: 1.708600391e-05 | M45: 4.690393654e-05 | N45: 4.068822905e-09
A46: 19.9388 | B46: ='DF raw data'!G51 -> -6.6809525e-06 | C46: ='DF raw data'!H51 -> -6.9656926e-06 | D46: ='DF raw data'!I51 -> -5.2105097e-06 | F46: -6.690466176e-06 | G46: 6.991958032e-06 | H46: -5.217929466e-06 | J46: -1.870336032e-05 | K46: -0.00015326321 | L46: 2.058317156e-05 | M46: 5.719902146e-05 | N46: 4.455695716e-09
A47: 20.43897 | B47: ='DF raw data'!G52 -> -1.1579039e-06 | C47: ='DF raw data'!H52 -> -3.5571017e-07 | D47: ='DF raw data'!I52 -> -5.3917393e-06 | F47: -1.159552755e-06 | G47: 3.57051441e-07 | H47: -5.399417137e-06 | J47: -1.928333383e-05 | K47: -0.0001629081551 | L47: 2.076175798e-05 | M47: 6.758342995e-05 | N47: 4.857280988e-09
A48: 20.93914 | B48: ='DF raw data'!G53 -> -5.5542552e-07 | C48: ='DF raw data'!H53 -> 8.8823872e-06 | D48: ='DF raw data'!I53 -> -3.8202052e-06 | F48: -5.562164459e-07 | G48: -8.915879883e-06 | H48: -3.825645172e-06 | J48: -1.956153661e-05 | K48: -0.0001726922488 | L48: 1.630230234e-05 | M48: 7.573735251e-05 | N48: 5.181600607e-09
A49: 21.43931 | B49: ='DF raw data'!G54 -> -1.3544129e-06 | C49: ='DF raw data'!H54 -> 1.1484143e-06 | D49: ='DF raw data'!I54 -> -5.142756e-06 | F49: -1.356341584e-06 | G49: -1.152744608e-06 | H49: -5.150079285e-06 | J49: -2.023993798e-05 | K49: -0.0001828156586 | L49: 1.572573407e-05 | M49: 8.360289292e-05 | N49: 5.51018919e-09
A50: 21.93948 | B50: ='DF raw data'!G55 -> 1.5962498e-06 | C50: ='DF raw data'!H55 -> -2.576739e-06 | D50: ='DF raw data'!I55 -> -7.0131282e-06 | F50: 1.59852286e-06 | G50: 2.586455071e-06 | H50: -7.023114895e-06 | J50: -1.94404048e-05 | K50: -0.0001925391659 | L50: 1.70194013e-05 | M50: 9.211548687e-05 | N50: 5.84409736e-09
A51: 22.43965 | B51: ='DF raw data'!G56 -> 5.4438779e-06 | C51: ='DF raw data'!H56 -> 5.5066794e-06 | D51: ='DF raw data'!I56 -> -1.1425065e-05 | F51: 5.451629982e-06 | G51: -5.527443353e-06 | H51: -1.144133429e-05 | J51: -1.671366303e-05 | K51: -0.0002008988387 | L51: 1.425473996e-05 | M51: 9.924528015e-05 | N51: 6.085451464e-09
A52: 22.93982 | B52: ='DF raw data'!G57 -> 7.6237257e-06 | C52: ='DF raw data'!H57 -> -8.4051044e-06 | D52: ='DF raw data'!I57 -> -1.3908335e-05 | F52: 7.634581885e-06 | G52: 8.4367974e-06 | H52: -1.392814047e-05 | J52: -1.289507421e-05 | K52: -0.000207348568 | L52: 1.847457291e-05 | M52: 0.0001084857073 | N52: 6.339334146e-09
A53: 23.43999 | B53: ='DF raw data'!G58 -> 9.9038216e-06 | C53: ='DF raw data'!H58 -> -4.9646851e-06 | D53: ='DF raw data'!I58 -> -9.7914963e-06 | F53: 9.917924642e-06 | G53: 4.983405363e-06 | H53: -9.805439391e-06 | J53: -7.934425839e-06 | K53: -0.0002113171298 | L53: 2.096712277e-05 | M53: 0.0001189728331 | N53: 6.590707259e-09
A54: 23.94016 | B54: ='DF raw data'!G59 -> 9.3452609e-06 | C54: ='DF raw data'!H59 -> 8.1369299e-06 | D54: ='DF raw data'!I59 -> -4.5248089e-06 | F54: 9.358568552e-06 | G54: -8.167611699e-06 | H54: -4.531252228e-06 | J54: -3.253550607e-06 | K54: -0.0002129444582 | L54: 1.688192843e-05 | M54: 0.0001274166672 | N54: 6.738550058e-09
A55: 24.44033 | B55: ='DF raw data'!G60 -> 7.1668246e-06 | C55: ='DF raw data'!H60 -> -8.5238544e-06 | D55: ='DF raw data'!I60 -> 2.8284194e-06 | F55: 7.177030158e-06 | G55: 8.555995169e-06 | H55: 2.832447069e-06 | J55: 3.361845675e-07 | K55: -0.0002127763087 | L55: 2.116138054e-05 | M55: 0.0001380009549 | N55: 6.962584727e-09
A56: 24.9405 | B56: ='DF raw data'!G61 -> 5.7323696e-06 | C56: ='DF raw data'!H61 -> 4.2085667e-06 | D56: ='DF raw data'!I61 -> 6.3502011e-06 | F56: 5.740532494e-06 | G56: -4.224435879e-06 | H56: 6.359243786e-06 | J56: 3.207426705e-06 | K56: -0.0002111720501 | L56: 1.904844444e-05 | M56: 0.0001475284154 | N56: 7.14921357e-09
A57: 25.44067 | B57: ='DF raw data'!G62 -> 5.1367015e-06 | C57: ='DF raw data'!H62 -> -8.3124468e-07 | D57: ='DF raw data'!I62 -> 6.5705608e-06 | F57: 5.144016163e-06 | G57: 8.343790418e-07 | H57: 6.579917279e-06 | J57: 5.780309269e-06 | K57: -0.0002082809128 | L57: 1.946577581e-05 | M57: 0.0001572646125 | N57: 7.355447868e-09
A58: 25.94084 | B58: ='DF raw data'!G63 -> 7.634465e-06 | C58: ='DF raw data'!H63 -> -5.5597702e-06 | D58: ='DF raw data'!I63 -> 6.3653642e-06 | F58: 7.645336478e-06 | G58: 5.580734342e-06 | H58: 6.374428479e-06 | J58: 9.604277216e-06 | K58: -0.0002034771415 | L58: 2.22570917e-05 | M58: 0.000168396942 | N58: 7.649357899e-09
A59: 26.44101 | B59: ='DF raw data'!G64 -> 8.713344e-06 | C59: ='DF raw data'!H64 -> 7.2692524e-06 | D59: ='DF raw data'!I64 -> 5.550879e-06 | F59: 8.725751802e-06 | G59: -7.29666246e-06 | H59: 5.558783452e-06 | J59: 1.396863649e-05 | K59: -0.0001964904486 | L59: 1.860752004e-05 | M59: 0.0001777038653 | N59: 7.920131235e-09
A60: 26.94118 | B60: ='DF raw data'!G65 -> 4.9754372e-06 | C60: ='DF raw data'!H65 -> -1.1410819e-05 | D60: ='DF raw data'!I65 -> 1.9267391e-06 | F60: 4.982522223e-06 | G60: 1.14538456e-05 | H60: 1.929482776e-06 | J60: 1.646074463e-05 | K60: -0.0001882572779 | L60: 2.433638999e-05 | M60: 0.0001898761975 | N60: 8.351885977e-09
A61: 27.44135 | B61: ='DF raw data'!G66 -> -3.0411394e-07 | C61: ='DF raw data'!H66 -> -5.7952693e-06 | D61: ='DF raw data'!I66 -> -1.9259387e-06 | F61: -3.045469983e-07 | G61: 5.817121434e-06 | H61: -1.928681237e-06 | J61: 1.630841936e-05 | K61: -0.0001801002958 | L61: 2.724593962e-05 | M61: 0.0002035037991 | N61: 8.856210273e-09
A62: 27.94152 | B62: ='DF raw data'!G67 -> -1.2662429e-06 | C62: ='DF raw data'!H67 -> -2.1451019e-06 | D62: ='DF raw data'!I67 -> -5.5083437e-06 | F62: -1.26804603e-06 | G62: 2.153190403e-06 | H62: -5.516187581e-06 | J62: 1.567418078e-05 | K62: -0.0001722605408 | L62: 2.832290087e-05 | M62: 0.0002176700645 | N62: 9.380321739e-09
A63: 28.44169 | B63: ='DF raw data'!G68 -> -1.8998915e-06 | C63: ='DF raw data'!H68 -> 6.3770249e-06 | D63: ='DF raw data'!I68 -> -8.1507387e-06 | F63: -1.902596945e-06 | G63: -6.401070652e-06 | H63: -8.162345352e-06 | J63: 1.472255887e-05 | K63: -0.0001648967586 | L63: 2.512127736e-05 | M63: 0.0002302349738 | N63: 9.804382028e-09
A64: 28.94186 | B64: ='DF raw data'!G69 -> 1.7422929e-06 | C64: ='DF raw data'!H69 -> -4.6991649e-06 | D64: ='DF raw data'!I69 -> -4.5844426e-06 | F64: 1.744773925e-06 | G64: 4.71688397e-06 | H64: -4.590970846e-06 | J64: 1.559524244e-05 | K64: -0.0001570964862 | L64: 2.748052121e-05 | M64: 0.0002439799061 | N64: 1.030374707e-08
A65: 29.44203 | B65: ='DF raw data'!G70 -> 8.275666e-06 | C65: ='DF raw data'!H70 -> 3.1590284e-06 | D65: ='DF raw data'!I70 -> -1.6826161e-06 | F65: 8.287450548e-06 | G65: -3.170940101e-06 | H65: -1.685012145e-06 | J65: 1.974037658e-05 | K65: -0.000147222942 | L65: 2.58945121e-05 | M65: 0.0002569315642 | N65: 1.083403142e-08
A66: 29.9422 | B66: ='DF raw data'!G71 -> 7.913949e-06 | C66: ='DF raw data'!H71 -> 1.0381295e-07 | D66: ='DF raw data'!I71 -> -5.12322e-07 | F66: 7.925218463e-06 | G66: -1.042043959e-07 | H66: -5.130515465e-07 | J66: 2.37043331e-05 | K66: -0.0001353667457 | L66: 2.584239219e-05 | M66: 0.0002698571535 | N66: 1.144910279e-08
A67: 30.44237 | B67: ='DF raw data'!G72 -> 1.4329773e-06 | C67: ='DF raw data'!H72 -> -4.2755337e-06 | D67: ='DF raw data'!I72 -> 1.529821e-06 | F67: 1.43501786e-06 | G67: 4.29165539e-06 | H67: 1.531999465e-06 | J67: 2.442208598e-05 | K67: -0.000123151551 | L67: 2.798894947e-05 | M67: 0.0002838563863 | N67: 1.213924715e-08
A68: 30.94254 | B68: ='DF raw data'!G73 -> -3.4234479e-06 | C68: ='DF raw data'!H73 -> 2.7053759e-06 | D68: ='DF raw data'!I73 -> 2.635752e-06 | F68: -3.42832289e-06 | G68: -2.71557702e-06 | H68: 2.639505311e-06 | J68: 2.270734172e-05 | K68: -0.0001117940199 | L68: 2.663069931e-05 | M68: 0.0002971762632 | N68: 1.275186413e-08
A69: 31.44271 | B69: ='DF raw data'!G74 -> -4.3755654e-06 | C69: ='DF raw data'!H74 -> 3.1975887e-06 | D69: ='DF raw data'!I74 -> -3.88029e-06 | F69: -4.381796205e-06 | G69: -3.209645799e-06 | H69: -3.885815533e-06 | J69: 2.051569871e-05 | K69: -0.0001015326828 | L69: 2.502533077e-05 | M69: 0.0003096931829 | N69: 1.327562268e-08
A70: 31.94288 | B70: ='DF raw data'!G75 -> 3.1177981e-06 | C70: ='DF raw data'!H75 -> 6.1091032e-06 | D70: ='DF raw data'!I75 -> -6.6677821e-06 | F70: 3.122237844e-06 | G70: -6.132138703e-06 | H70: -6.677277022e-06 | J70: 2.207734842e-05 | K70: -9.049025547e-05 | L70: 2.195821896e-05 | M70: 0.0003206760253 | N70: 1.376057385e-08
A71: 32.44305 | B71: ='DF raw data'!G76 -> 7.6404749e-06 | C71: ='DF raw data'!H76 -> 2.7919702e-06 | D71: ='DF raw data'!I76 -> -3.1349555e-06 | F71: 7.651354936e-06 | G71: =(1-$G$1*($B$2-$G$2))*C71*$M$2/$M$1 -> -2.80249784e-06 | H71: -3.139419677e-06 | J71: 2.590432662e-05 | K71: -7.753368843e-05 | L71: 2.055649361e-05 | M71: 0.0003309577667 | N71: 1.430756155e-08
A72: =A71+$B$1 -> 32.94322 | B72: ='DF raw data'!G77 -> 2.0634973e-06 | C72: ='DF raw data'!H77 -> 1.2223329e-06 | D72: ='DF raw data'!I77 -> -3.5076591e-06 | F72: 2.06643572e-06 | G72: -1.226941932e-06 | H72: -3.512654007e-06 | J72: =F72*$B$1+J71 -> 2.693789577e-05 | K72: =J72*$B$1+K71 -> -6.40601611e-05 | L72: =G72*$B$1+L71 -> 1.994281406e-05 | M72: =L72*$B$1+M71 -> 0.000340932564 | N72: =(J72^2+L72^2)*$B$1+N71 -> 1.486943555e-08
A73: 33.44339 | B73: ='DF raw data'!G78 -> -2.9120208e-06 | C73: ='DF raw data'!H78 -> 8.5800409e-08 | D73: ='DF raw data'!I78 -> -4.148249e-06 | F73: -2.916167518e-06 | G73: -8.612393531e-08 | H73: -4.154156107e-06 | J73: 2.547931626e-05 | K73: -5.131617149e-05 | L73: 1.989973746e-05 | M73: 0.0003508858157 | N73: 1.539221079e-08
A74: 33.94356 | B74: ='DF raw data'!G79 -> -3.9288798e-06 | C74: ='DF raw data'!H79 -> 1.4039273e-06 | D74: ='DF raw data'!I79 -> -3.316185e-06 | F74: -3.934474525e-06 | G74: -1.409221067e-06 | H74: -3.320907247e-06 | J74: 2.351141014e-05 | K74: -3.955646948e-05 | L74: 1.919488735e-05 | M74: 0.0003604865225 | N74: 1.585298245e-08
A75: 34.44373 | B75: ='DF raw data'!G80 -> -5.0418539e-06 | C75: ='DF raw data'!H80 -> -7.9369083e-06 | D75: ='DF raw data'!I80 -> -5.1420284e-06 | F75: -5.0490335e-06 | G75: 7.96683588e-06 | H75: -5.149350648e-06 | J75: 2.098603505e-05 | K75: -2.905988433e-05 | L75: 2.317965966e-05 | M75: 0.0003720802929 | N75: 1.634200381e-08
A76: 34.9439 | B76: ='DF raw data'!G81 -> -4.7731965e-06 | C76: ='DF raw data'!H81 -> 7.1653126e-06 | D76: ='DF raw data'!I81 -> -1.6433551e-06 | F76: -4.779993532e-06 | G76: -7.192330736e-06 | H76: -1.645695238e-06 | J76: 1.859522569e-05 | K76: -1.975911029e-05 | L76: 1.958227159e-05 | M76: 0.0003818747576 | N76: 1.670675167e-08
A77: 35.44407 | B77: ='DF raw data'!G82 -> -2.1568783e-06 | C77: ='DF raw data'!H82 -> 1.8881952e-05 | D77: ='DF raw data'!I82 -> 7.3566262e-06 | F77: -2.159949695e-06 | G77: -1.895314989e-05 | H77: 7.367102036e-06 | J77: 1.751488365e-05 | K77: -1.099869094e-05 | L77: 1.010247461e-05 | M77: 0.0003869277124 | N77: 1.691123674e-08
A78: 35.94424 | B78: ='DF raw data'!G83 -> -1.6077327e-06 | C78: ='DF raw data'!H83 -> 6.6157259e-06 | D78: ='DF raw data'!I83 -> 9.4482893e-06 | F78: -1.610022111e-06 | G78: -6.640671718e-06 | H78: 9.461743664e-06 | J78: 1.670959889e-05 | K78: -2.641050863e-06 | L78: 6.781009838e-06 | M78: 0.0003903193701 | N78: 1.707388842e-08
A79: 36.44441 | B79: ='DF raw data'!G84 -> -1.7922946e-06 | C79: ='DF raw data'!H84 -> 3.7640464e-07 | D79: ='DF raw data'!I84 -> 5.9846134e-06 | F79: -1.794846828e-06 | G79: -3.778239433e-07 | H79: 5.993135489e-06 | J79: 1.581187035e-05 | K79: 5.267572332e-06 | L79: 6.592033636e-06 | M79: 0.0003936165075 | N79: 1.722067339e-08
A80: 36.94458 | B80: ='DF raw data'!G85 -> 5.7818323e-07 | C80: ='DF raw data'!H85 -> -3.4544228e-06 | D80: ='DF raw data'!I85 -> 3.3913311e-06 | F80: 5.790065629e-07 | G80: 3.46744834e-06 | H80: 3.396160355e-06 | J80: 1.610147207e-05 | K80: 1.332104561e-05 | L80: 8.326347273e-06 | M80: 0.0003977810966 | N80: 1.738502198e-08
A81: 37.44475 | B81: ='DF raw data'!G86 -> 1.083615e-06 | C81: ='DF raw data'!H86 -> -1.5970564e-07 | D81: ='DF raw data'!I86 -> 9.6566e-06 | F81: 1.085158068e-06 | G81: 1.603078396e-07 | H81: 9.670350998e-06 | J81: 1.664423558e-05 | K81: 2.164599292e-05 | L81: 8.406528445e-06 | M81: 0.00040198579 | N81: 1.755893123e-08
A82: 37.94492 | B82: ='DF raw data'!G87 -> -2.7533467e-06 | C82: ='DF raw data'!H87 -> -7.5267535e-06 | D82: ='DF raw data'!I87 -> 9.6012882e-06 | F82: -2.757267466e-06 | G82: 7.555134516e-06 | H82: 9.614960434e-06 | J82: 1.526513311e-05 | K82: 2.928115455e-05 | L82: 1.218538008e-05 | M82: 0.0004080805515 | N82: 1.774974998e-08
A83: 38.44509 | B83: ='DF raw data'!G88 -> -7.1065524e-06 | C83: ='DF raw data'!H88 -> -8.8351408e-06 | D83: ='DF raw data'!I88 -> -2.005334e-06 | F83: -7.116672131e-06 | G83: 8.868455332e-06 | H83: -2.008189596e-06 | J83: 1.170558721e-05 | K83: 3.51359381e-05 | L83: 1.662111538e-05 | M83: 0.0004163939348 | N83: 1.795646136e-08
A84: 38.94526 | B84: ='DF raw data'!G89 -> -6.7967712e-06 | C84: ='DF raw data'!H89 -> -5.365634e-06 | D84: ='DF raw data'!I89 -> -7.8396042e-06 | F84: -6.806449802e-06 | G84: 5.385866115e-06 | H84: -7.850767796e-06 | J84: 8.301205211e-06 | K84: 3.928795191e-05 | L84: 1.931496403e-05 | M84: 0.0004260547004 | N84: 1.817752542e-08
A85: 39.44543 | B85: ='DF raw data'!G90 -> -2.6942805e-06 | C85: ='DF raw data'!H90 -> -6.5805619e-07 | D85: ='DF raw data'!I90 -> -1.019195e-05 | F85: -2.698117155e-06 | G85: 6.605375125e-07 | H85: -1.020646334e-05 | J85: 6.951687953e-06 | K85: 4.276497768e-05 | L85: 1.964534508e-05 | M85: 0.0004358807126 | N85: 1.839473202e-08
A86: 39.9456 | B86: ='DF raw data'!G91 -> 5.2200112e-06 | C86: ='DF raw data'!H91 -> 1.0206118e-05 | D86: ='DF raw data'!I91 -> -9.5375945e-06 | F86: 5.227444496e-06 | G86: -1.024460206e-05 | H86: -9.551176035e-06 | J86: 9.566298867e-06 | K86: 4.754975338e-05 | L86: 1.452130247e-05 | M86: 0.0004431438325 | N86: 1.854597457e-08
A87: 40.44577 | B87: ='DF raw data'!G92 -> 8.9268788e-06 | C87: ='DF raw data'!H92 -> 6.1968981e-06 | D87: ='DF raw data'!I92 -> -5.5113414e-06 | F87: =(1-$G$1*($B$2-$G$2))*B87 -> 8.939590675e-06 | G87: -6.22026465e-06 | H87: -5.51918955e-06 | J87: 1.403761393e-05 | K87: 5.457094674e-05 | L87: 1.14101127e-05 | M87: 0.0004488508285 | N87: 1.870965284e-08
A88: 40.94594 | B88: ='DF raw data'!G93 -> 5.0971203e-06 | C88: ='DF raw data'!H93 -> -1.1020411e-07 | D88: ='DF raw data'!I93 -> -6.1207757e-06 | F88: 5.104378599e-06 | G88: 1.10619655e-07 | H88: -6.129491685e-06 | J88: 1.659067098e-05 | K88: 6.286910265e-05 | L88: 1.146544133e-05 | M88: 0.0004545854983 | N88: 1.891307534e-08
A89: 41.44611 | B89: ='DF raw data'!G94 -> 3.1691815e-07 | C89: ='DF raw data'!H94 -> -2.2762611e-06 | D89: ='DF raw data'!I94 -> 5.2552059e-07 | F89: 3.173694414e-07 | G89: 2.284844163e-06 | H89: 5.262689313e-07 | J89: 1.674940965e-05 | K89: 7.124665487e-05 | L89: 1.260825184e-05 | M89: 0.0004608917676 | N89: 1.913290542e-08
A90: 41.94628 | B90: ='DF raw data'!G95 -> -2.0815867e-06 | C90: ='DF raw data'!H95 -> -1.8853193e-06 | D90: ='DF raw data'!I95 -> 1.2291879e-05 | F90: -2.084550879e-06 | G90: 1.892428245e-06 | H90: 1.230938264e-05 | J90: 1.570677984e-05 | K90: 7.910271494e-05 | L90: 1.355478767e-05 | M90: 0.0004676714658 | N90: 1.93481962e-08
A91: 42.44645 | B91: ='DF raw data'!G96 -> -2.0100931e-06 | C91: ='DF raw data'!H96 -> -7.0761698e-06 | D91: ='DF raw data'!I96 -> 9.8682431e-06 | F91: -2.012955473e-06 | G91: 7.102851807e-06 | H91: 9.882295478e-06 | J91: 1.46999599e-05 | K91: 8.645519389e-05 | L91: 1.710742106e-05 | M91: 0.0004762280846 | N91: 1.960265902e-08
A92: 42.94662 | B92: ='DF raw data'!G97 -> 1.6768092e-06 | C92: ='DF raw data'!H97 -> -9.2891933e-06 | D92: ='DF raw data'!I97 -> 4.9580194e-06 | F92: 1.679196976e-06 | G92: 9.324219921e-06 | H92: 4.96507962e-06 | J92: 1.553984385e-05 | K92: 9.422775759e-05 | L92: 2.177111614e-05 | M92: 0.0004871173438 | N92: 1.996051478e-08
A93: 43.44679 | B93: ='DF raw data'!G98 -> 6.6388375e-06 | C93: ='DF raw data'!H98 -> -1.5560208e-06 | D93: ='DF raw data'!I98 -> 5.2788018e-06 | F93: 6.648291205e-06 | G93: 1.561888064e-06 | H93: 5.286318814e-06 | J93: 1.886511966e-05 | K93: 0.0001036635245 | L93: 2.255232569e-05 | M93: 0.0004983973405 | N93: 2.039291181e-08
A94: 43.94696 | B94: ='DF raw data'!G99 -> 2.0877262e-06 | C94: ='DF raw data'!H99 -> -5.4490256e-06 | D94: ='DF raw data'!I99 -> 7.0189344e-06 | F94: 2.090699122e-06 | G94: 5.469572159e-06 | H94: 7.028929363e-06 | J94: 1.991082464e-05 | K94: 0.0001136223217 | L94: 2.52880416e-05 | M94: 0.0005110456603 | N94: 2.091105091e-08
A95: 44.44713 | B95: ='DF raw data'!G100 -> -7.5320795e-06 | C95: ='DF raw data'!H100 -> -2.2024756e-06 | D95: ='DF raw data'!I100 -> 6.5863933e-06 | F95: -7.542805181e-06 | G95: 2.210780442e-06 | H95: 6.595772324e-06 | J95: 1.613813978e-05 | K95: 0.000121694135 | L95: 2.639380765e-05 | M95: 0.000524247051 | N95: 2.138974993e-08
A96: 44.9473 | B96: ='DF raw data'!G101 -> -1.215355e-05 | C96: ='DF raw data'!H101 -> -4.3978862e-06 | D96: ='DF raw data'!I101 -> 6.1692335e-06 | F96: -1.217085666e-05 | G96: 4.414469243e-06 | H96: 6.178018489e-06 | J96: 1.00506424e-05 | K96: 0.0001267211648 | L96: 2.860179274e-05 | M96: 0.0005385528097 | N96: 2.184944515e-08
A97: 45.44747 | B97: ='DF raw data'!G102 -> -1.4352475e-05 | C97: ='DF raw data'!H102 -> 6.5734298e-06 | D97: ='DF raw data'!I102 -> 7.0456226e-06 | F97: -1.437291292e-05 | G97: -6.598216133e-06 | H97: 7.055655567e-06 | J97: 2.861742545e-06 | K97: 0.0001281525226 | L97: 2.530156297e-05 | M97: 0.0005512078925 | N97: 2.21737347e-08
A98: 45.94764 | B98: ='DF raw data'!G103 -> -1.0000681e-05 | C98: ='DF raw data'!H103 -> 7.7929544e-06 | D98: ='DF raw data'!I103 -> 4.5085835e-06 | F98: -1.001492197e-05 | G98: -7.822339176e-06 | H98: 4.515003723e-06 | J98: -2.147420976e-06 | K98: 0.0001270784471 | L98: 2.138906359e-05 | M98: 0.0005619060604 | N98: 2.240486499e-08
A99: 46.44781 | B99: ='DF raw data'!G104 -> -4.8282609e-06 | C99: ='DF raw data'!H104 -> 4.8007774e-07 | D99: ='DF raw data'!I104 -> 4.3683467e-06 | F99: -4.835136344e-06 | G99: -4.818879619e-07 | H99: 4.374567226e-06 | J99: -4.565811121e-06 | K99: 0.0001247947653 | L99: 2.114803768e-05 | M99: 0.0005724836744 | N99: 2.263898763e-08
A100: 46.94798 | B100: ='DF raw data'!G105 -> -4.5738789e-06 | C100: ='DF raw data'!H105 -> -1.1654456e-05 | D100: ='DF raw data'!I105 -> 5.1711904e-06 | F100: -4.580392104e-06 | G100: 1.169840128e-05 | H100: 5.178554175e-06 | J100: -6.85678584e-06 | K100: 0.0001213652067 | L100: 2.699922705e-05 | M100: 0.0005859878778 | N100: 2.302710643e-08
A101: 47.44815 | B101: ='DF raw data'!G106 -> -1.3437318e-06 | C101: ='DF raw data'!H106 -> -9.1997362e-07 | D101: ='DF raw data'!I106 -> -1.579996e-06 | F101: -1.345645274e-06 | G101: 9.234425506e-07 | H101: -1.582245914e-06 | J101: -7.529837236e-06 | K101: 0.000117599008 | L101: 2.746110531e-05 | M101: 0.0005997230988 | N101: 2.343264965e-08
A102: 47.94832 | B102: ='DF raw data'!G107 -> 4.0631048e-06 | C102: ='DF raw data'!H107 -> 4.5183842e-06 | D102: ='DF raw data'!I107 -> -3.6842321e-06 | F102: 4.068890661e-06 | G102: -4.535421603e-06 | H102: -3.689478447e-06 | J102: -5.494700194e-06 | K102: 0.0001148507238 | L102: 2.519262349e-05 | M102: 0.0006123236933 | N102: 2.376519268e-08
A103: 48.44849 | B103: ='DF raw data'!G108 -> 5.4177135e-06 | C103: ='DF raw data'!H108 -> -3.1600825e-06 | D103: ='DF raw data'!I108 -> 1.005501e-06 | F103: 5.425428324e-06 | G103: 3.171998175e-06 | H103: 1.006932833e-06 | J103: -2.78106371e-06 | K103: 0.0001134597192 | L103: 2.677916182e-05 | M103: 0.0006257178267 | N103: 2.412774482e-08
A104: 48.94866 | B104: ='DF raw data'!G109 -> 2.6196424e-06 | C104: ='DF raw data'!H109 -> 1.2726024e-05 | D104: ='DF raw data'!I109 -> 1.1011361e-06 | F104: 2.623372771e-06 | G104: -1.277400983e-05 | H104: 1.102704118e-06 | J104: -1.468931351e-06 | K104: 0.0001127250038 | L104: 2.038998532e-05 | M104: 0.0006359162857 | N104: 2.433677049e-08
A105: 49.44883 | B105: ='DF raw data'!G110 -> 3.1510347e-06 | C105: ='DF raw data'!H110 -> 6.196231e-06 | D105: ='DF raw data'!I110 -> 4.4279077e-06 | F105: 3.155521773e-06 | G105: -6.219595035e-06 | H105: 4.434213041e-06 | J105: 1.093659746e-07 | K105: 0.0001127797054 | L105: 1.727913047e-05 | M105: 0.0006445587883 | N105: 2.44861114e-08
A106: 49.949 | B106: ='DF raw data'!G111 -> 3.9343495e-06 | C106: ='DF raw data'!H111 -> 1.3182671e-06 | D106: ='DF raw data'!I111 -> 4.4762928e-06 | F106: 3.939952014e-06 | G106: -1.32323787e-06 | H106: 4.482667041e-06 | J106: 2.080011773e-06 | K106: 0.0001138200649 | L106: 1.661728659e-05 | M106: 0.0006528702566 | N106: 2.462638941e-08
A107: 50.44917 | B107: ='DF raw data'!G112 -> 1.1087025e-06 | C107: ='DF raw data'!H112 -> 2.4258461e-06 | D107: ='DF raw data'!I112 -> 5.0371527e-06 | F107: 1.110281292e-06 | G107: -2.434993201e-06 | H107: 5.044325605e-06 | J107: 2.635341167e-06 | K107: 0.0001151381835 | L107: 1.539937604e-05 | M107: 0.0006605725625 | N107: 2.474847381e-08
A108: 50.94934 | B108: ='DF raw data'!G113 -> -3.7240904e-06 | C108: ='DF raw data'!H113 -> 4.4085007e-07 | D108: ='DF raw data'!I113 -> 7.5352509e-06 | F108: -3.729393505e-06 | G108: -4.425123767e-07 | H108: 7.545981097e-06 | J108: 7.700104181e-07 | K108: 0.0001155233196 | L108: 1.517804462e-05 | M108: 0.0006681641651 | N108: 2.486399605e-08
A109: 51.44951 | B109: ='DF raw data'!G114 -> -7.3427736e-06 | C109: ='DF raw data'!H114 -> -5.6763856e-06 | D109: ='DF raw data'!I114 -> 2.7793649e-06 | F109: -7.35322971e-06 | G109: 5.697789462e-06 | H109: 2.783322716e-06 | J109: -2.907854486e-06 | K109: 0.000114068898 | L109: 1.802790798e-05 | M109: 0.0006771811838 | N109: 2.503078328e-08
A110: 51.94968 | B110: ='DF raw data'!G115 -> -1.950081e-06 | C110: ='DF raw data'!H115 -> -1.2273826e-05 | D110: ='DF raw data'!I115 -> -7.2530383e-07 | F110: -1.952857915e-06 | G110: 1.232010673e-05 | H110: -7.263366627e-07 | J110: -3.884615429e-06 | K110: 0.0001121259299 | L110: 2.419005576e-05 | M110: 0.000689280324 | N110: 2.533100984e-08
A111: 52.44985 | B111: ='DF raw data'!G116 -> 5.7080097e-06 | C111: ='DF raw data'!H116 -> -3.5535591e-06 | D111: ='DF raw data'!I116 -> -1.5606856e-06 | F111: 5.716137906e-06 | G111: 3.566958452e-06 | H111: -1.562908016e-06 | J111: -1.025574733e-06 | K111: 0.0001116129682 | L111: 2.597414137e-05 | M111: 0.0007022718103 | N111: 2.566897863e-08
A112: 52.95002 | B112: ='DF raw data'!G117 -> 6.5419799e-06 | C112: ='DF raw data'!H117 -> 4.6269943e-06 | D112: ='DF raw data'!I117 -> -8.1129328e-06 | F112: 6.551295679e-06 | G112: -4.644441238e-06 | H112: -8.124485616e-06 | J112: 2.251186827e-06 | K112: 0.0001127389443 | L112: 2.36511312e-05 | M112: 0.0007141013966 | N112: 2.595129651e-08
A113: 53.45019 | B113: ='DF raw data'!G118 -> 3.3530298e-06 | C113: ='DF raw data'!H118 -> 3.9127585e-06 | D113: ='DF raw data'!I118 -> -1.5728649e-05 | F113: 3.357804514e-06 | G113: -3.927512279e-06 | H113: -1.57510466e-05 | J113: 3.930659911e-06 | K113: 0.0001147049425 | L113: 2.168670738e-05 | M113: 0.000724948437 | N113: 2.619426077e-08
A114: 53.95036 | B114: ='DF raw data'!G119 -> 1.2691664e-06 | C114: ='DF raw data'!H119 -> 1.6340892e-06 | D114: ='DF raw data'!I119 -> -6.9070447e-06 | F114: 1.270973693e-06 | G114: -1.640250835e-06 | H114: -6.916880332e-06 | J114: 4.566362823e-06 | K114: 0.0001169889002 | L114: 2.086630312e-05 | M114: 0.0007353851358 | N114: 2.642246547e-08
A115: 54.45053 | B115: ='DF raw data'!G120 -> -1.3516044e-06 | C115: ='DF raw data'!H120 -> 8.140459e-07 | D115: ='DF raw data'!I120 -> 2.2923996e-06 | F115: -1.353529085e-06 | G115: -8.171154106e-07 | H115: 2.295663977e-06 | J115: 3.889368181e-06 | K115: 0.0001189342455 | L115: 2.045760651e-05 | M115: 0.0007456174169 | N115: 2.663935961e-08
A116: 54.9507 | B116: ='DF raw data'!G121 -> -4.8179727e-06 | C116: ='DF raw data'!H121 -> 5.8082251e-06 | D116: ='DF raw data'!I121 -> 1.5154437e-06 | F116: -4.824833493e-06 | G116: -5.830126087e-06 | H116: 1.517601692e-06 | J116: 1.476131212e-06 | K116: 0.000119672562 | L116: 1.754155234e-05 | M116: 0.0007543911751 | N116: 2.67943548e-08
A117: 55.45087 | B117: ='DF raw data'!G122 -> -5.166884e-06 | C117: ='DF raw data'!H122 -> 5.1735119e-06 | D117: ='DF raw data'!I122 -> -1.8776846e-06 | F117: -5.174241643e-06 | G117: -5.193019583e-06 | H117: -1.880358423e-06 | J117: -1.11186923e-06 | K117: 0.0001191164384 | L117: 1.494415974e-05 | M117: 0.0007618657955 | N117: 2.690667506e-08
A118: 55.95104 | B118: ='DF raw data'!G123 -> -4.9557502e-06 | C118: ='DF raw data'!H123 -> 2.7636836e-06 | D118: ='DF raw data'!I123 -> -2.6748094e-06 | F118: -4.962807188e-06 | G118: -2.77410458e-06 | H118: -2.678618329e-06 | J118: -3.594116501e-06 | K118: 0.0001173187691 | L118: 1.355663585e-05 | M118: 0.0007686464181 | N118: 2.700505852e-08
A119: 56.45121 | B119: ='DF raw data'!G124 -> -4.1952089e-06 | C119: ='DF raw data'!H124 -> 2.1388441e-06 | D119: ='DF raw data'!I124 -> 4.3959153e-07 | F119: -4.201182877e-06 | G119: -2.146909007e-06 | H119: 4.402175083e-07 | J119: -5.695422141e-06 | K119: 0.0001144700898 | L119: 1.248281637e-05 | M119: 0.0007748899483 | N119: 2.70992198e-08
A120: 56.95138 | B120: ='DF raw data'!G125 -> -4.0800014e-06 | C120: ='DF raw data'!H125 -> 1.0619342e-05 | D120: ='DF raw data'!I125 -> 1.4721809e-06 | F120: -4.085811322e-06 | G120: -1.065938419e-05 | H120: 1.474277286e-06 | J120: -7.73902239e-06 | K120: 0.000110599263 | L120: 7.151312179e-06 | M120: 0.0007784668201 | N120: 2.715475554e-08
A121: 57.45155 | B121: ='DF raw data'!G126 -> -2.9618757e-06 | C121: ='DF raw data'!H126 -> 7.7969571e-06 | D121: ='DF raw data'!I126 -> -4.651265e-06 | F121: -2.966093411e-06 | G121: -7.826356968e-06 | H121: -4.657888401e-06 | J121: -9.222573332e-06 | K121: 0.0001059864085 | L121: 3.236803214e-06 | M121: 0.000780085772 | N121: 2.720253816e-08
A122: 57.95172 | B122: ='DF raw data'!G127 -> 1.7236082e-06 | C122: ='DF raw data'!H127 -> -1.8566325e-06 | D122: ='DF raw data'!I127 -> -7.2971816e-06 | F122: 1.726062618e-06 | G122: 1.863633276e-06 | H122: -7.307572787e-06 | J122: -8.359248592e-06 | K122: 0.0001018053631 | L122: 4.168936669e-06 | M122: 0.000782170949 | N122: 2.724618153e-08
A123: 58.45189 | B123: ='DF raw data'!G128 -> 6.4064725e-06 | C123: ='DF raw data'!H128 -> -3.7306172e-06 | D123: ='DF raw data'!I128 -> -1.2343735e-06 | F123: 6.415595317e-06 | G123: 3.744684182e-06 | H123: -1.236131248e-06 | J123: -5.150360282e-06 | K123: 9.922930742e-05 | L123: 6.041915357e-06 | M123: 0.0007851929339 | N123: 2.727770772e-08
A124: 58.95206 | B124: ='DF raw data'!G129 -> 3.2414894e-06 | C124: ='DF raw data'!H129 -> 1.4766391e-05 | D124: ='DF raw data'!I129 -> -2.8448485e-06 | F124: 3.246105281e-06 | G124: -1.482207041e-05 | H124: -2.848899564e-06 | J124: -3.526755804e-06 | K124: 9.746532997e-05 | L124: -1.371639599e-06 | M124: 0.0007845068809 | N124: 2.728486985e-08
A125: 59.45223 | B125: ='DF raw data'!G130 -> -1.5391058e-06 | C125: ='DF raw data'!H130 -> 5.4390321e-06 | D125: ='DF raw data'!I130 -> -6.0671955e-06 | F125: -1.541297487e-06 | G125: -5.459540976e-06 | H125: -6.075835186e-06 | J125: -4.297666568e-06 | K125: 9.531576608e-05 | L125: -4.102338209e-06 | M125: 0.0007824550144 | N125: 2.730252541e-08
A126: 59.9524 | B126: ='DF raw data'!G131 -> 1.6620536e-06 | C126: ='DF raw data'!H131 -> -8.747078e-06 | D126: ='DF raw data'!I131 -> -6.4206033e-06 | F126: 1.664420364e-06 | G126: 8.780060475e-06 | H126: -6.429746239e-06 | J126: -3.465173434e-06 | K126: 9.358259029e-05 | L126: 2.891846386e-07 | M126: 0.0007825996559 | N126: 2.730857299e-08
A127: 60.45257 | B127: ='DF raw data'!G132 -> 5.9889635e-06 | C127: ='DF raw data'!H132 -> -1.0042997e-06 | D127: ='DF raw data'!I132 -> -5.3766344e-06 | F127: 5.997491784e-06 | G127: 1.008086598e-06 | H127: -5.384290727e-06 | J127: -4.654079685e-07 | K127: 9.334980718e-05 | L127: 7.933993122e-07 | M127: 0.0007829964904 | N127: 2.730899618e-08
A128: 60.95274 | B128: ='DF raw data'!G133 -> 2.4346875e-06 | C128: ='DF raw data'!H133 -> 1.517708e-05 | D128: ='DF raw data'!I133 -> -3.9027509e-07 | F128: 2.438154495e-06 | G128: -1.523430799e-05 | H128: -3.908308417e-07 | J128: 7.540837652e-07 | K128: 9.372697726e-05 | L128: -6.826344513e-06 | M128: 0.0007795821577 | N128: 2.733258801e-08
A129: 61.45291 | B129: ='DF raw data'!G134 -> -4.1155081e-06 | C129: ='DF raw data'!H134 -> 1.2106254e-05 | D129: ='DF raw data'!I134 -> -3.6545462e-06 | F129: -4.121368584e-06 | G129: -1.215190287e-05 | H129: -3.659750274e-06 | J129: -1.307301159e-06 | K129: 9.307310444e-05 | L129: -1.290436177e-05 | M129: 0.000773127783 | N129: 2.74167324e-08
A130: 61.95308 | B130: ='DF raw data'!G135 -> -2.7777212e-06 | C130: ='DF raw data'!H135 -> 6.5121867e-06 | D130: ='DF raw data'!I135 -> -5.8834485e-06 | F130: -2.781676675e-06 | G130: -6.536742104e-06 | H130: -5.891826531e-06 | J130: -2.698612382e-06 | K130: 9.172333949e-05 | L130: -1.617384407e-05 | M130: 0.0007650381114 | N130: 2.755121598e-08
A131: 62.45325 | B131: ='DF raw data'!G136 -> 6.3024845e-06 | C131: ='DF raw data'!H136 -> 2.9604887e-06 | D131: ='DF raw data'!I136 -> -1.57061e-06 | F131: 6.311459238e-06 | G131: -2.97165177e-06 | H131: -1.572846549e-06 | J131: 4.581901853e-07 | K131: 9.195251247e-05 | L131: -1.766017514e-05 | M131: 0.0007562050216 | N131: 2.77073149e-08
A132: 62.95342 | B132: ='DF raw data'!G137 -> 9.6987706e-06 | C132: ='DF raw data'!H137 -> -2.2246245e-06 | D132: ='DF raw data'!I137 -> -7.4892159e-07 | F132: 9.712581649e-06 | G132: 2.233012858e-06 | H132: -7.499880543e-07 | J132: 5.316132149e-06 | K132: 9.461148229e-05 | L132: -1.654328909e-05 | M132: 0.0007479305647 | N132: 2.785833707e-08
A133: 63.45359 | B133: ='DF raw data'!G138 -> 5.6815834e-06 | C133: ='DF raw data'!H138 -> 2.9205939e-06 | D133: ='DF raw data'!I138 -> -2.0219086e-06 | F133: 5.689673975e-06 | G133: -2.931606539e-06 | H133: -2.024787798e-06 | J133: 8.161936381e-06 | K133: 9.869383801e-05 | L133: -1.800959074e-05 | M133: 0.0007389227077 | N133: 2.805388481e-08
A134: 63.95376 | B134: ='DF raw data'!G139 -> 3.4646284e-06 | C134: ='DF raw data'!H139 -> 1.3602967e-06 | D134: ='DF raw data'!I139 -> 2.0999214e-06 | F134: 3.469562031e-06 | G134: -1.36542595e-06 | H134: 2.102911688e-06 | J134: 9.897307222e-06 | K134: 0.0001036441742 | L134: -1.869253583e-05 | M134: 0.0007295732621 | N134: 2.827764466e-08
A135: 64.45393 | B135: ='DF raw data'!G140 -> 1.7533669e-06 | C135: ='DF raw data'!H140 -> -6.2784093e-06 | D135: ='DF raw data'!I140 -> 6.9618909e-06 | F135: 1.755863694e-06 | G135: =(1-$G$1*($B$2-$G$2))*C135*$M$2/$M$1 -> 6.302083203e-06 | H135: 6.971804633e-06 | J135: 1.077553757e-05 | K135: 0.0001090337748 | L135: -1.554042288e-05 | M135: 0.0007218004088 | N135: 2.845651393e-08
A136: =A135+$B$1 -> 64.9541 | B136: ='DF raw data'!G141 -> 1.6332262e-06 | C136: ='DF raw data'!H141 -> 1.5217481e-08 | D136: ='DF raw data'!I141 -> 5.3016338e-06 | F136: 1.635551914e-06 | G136: -1.527486133e-08 | H136: 5.309183327e-06 | J136: =F136*$B$1+J135 -> 1.159359157e-05 | K136: =J136*$B$1+K135 -> 0.0001148325415 | L136: =G136*$B$1+L135 -> -1.554806291e-05 | M136: =L136*$B$1+M135 -> 0.0007140237341 | N136: =(J136^2+L136^2)*$B$1+N135 -> 2.864465469e-08
A137: 65.45427 | B137: ='DF raw data'!G142 -> 4.9767759e-06 | C137: ='DF raw data'!H142 -> -1.6654312e-06 | D137: ='DF raw data'!I142 -> 1.1974407e-06 | F137: 4.983862829e-06 | G137: 1.671711016e-06 | H137: 1.199145856e-06 | J137: 1.408637024e-05 | K137: 0.0001218781213 | L137: -1.471192321e-05 | M137: 0.0007066652715 | N137: 2.885215847e-08
A138: 65.95444 | B138: ='DF raw data'!G143 -> 5.2959722e-06 | C138: ='DF raw data'!H143 -> -8.0636646e-06 | D138: ='DF raw data'!I143 -> 4.8278162e-07 | F138: 5.303513664e-06 | G138: 8.094070138e-06 | H138: 4.83469101e-07 | J138: 1.673902867e-05 | K138: 0.0001302504812 | L138: -1.066351215e-05 | M138: 0.0007013317026 | N138: 2.904917822e-08
A139: 66.45461 | B139: ='DF raw data'!G144 -> 3.7708153e-06 | C139: ='DF raw data'!H144 -> -1.0578233e-05 | D139: ='DF raw data'!I144 -> 6.3630359e-06 | F139: 3.776184941e-06 | G139: 1.061812018e-05 | H139: 6.372096863e-06 | J139: 1.862776309e-05 | K139: 0.0001395675295 | L139: -5.352646974e-06 | M139: 0.0006986544692 | N139: 2.923706428e-08
A140: 66.95478 | B140: ='DF raw data'!G145 -> -1.4881741e-06 | C140: ='DF raw data'!H145 -> -4.4666012e-06 | D140: ='DF raw data'!I145 -> 9.4804927e-06 | F140: -1.49029326e-06 | G140: 4.483443346e-06 | H140: 9.493992922e-06 | J140: 1.788236311e-05 | K140: 0.0001485117511 | L140: -3.110163116e-06 | M140: 0.0006970988589 | N140: 2.94018463e-08
A141: 67.45495 | B141: ='DF raw data'!G146 -> -6.8958843e-06 | C141: ='DF raw data'!H146 -> 2.2491886e-06 | D141: ='DF raw data'!I146 -> 2.8954455e-06 | F141: -6.905704039e-06 | G141: -2.257669582e-06 | H141: 2.899568614e-06 | J141: 1.442833712e-05 | K141: 0.0001557283724 | L141: -4.23938171e-06 | M141: 0.0006949784474 | N141: 2.951495938e-08
A142: 67.95512 | B142: ='DF raw data'!G147 -> -9.8153769e-06 | C142: ='DF raw data'!H147 -> -2.3455819e-07 | D142: ='DF raw data'!I147 -> 9.9372846e-07 | F142: -9.829353997e-06 | G142: 2.35442635e-07 | H142: 9.951435293e-07 | J142: 9.511989132e-06 | K142: 0.0001604859841 | L142: -4.121620368e-06 | M142: 0.0006929169365 | N142: 2.956871049e-08
A143: 68.45529 | B143: ='DF raw data'!G148 -> -7.2089397e-06 | C143: ='DF raw data'!H148 -> 2.7080446e-06 | D143: ='DF raw data'!I148 -> 4.7928261e-06 | F143: -7.21920523e-06 | G143: -2.718255783e-06 | H143: 4.799651084e-06 | J143: 5.901159252e-06 | K143: 0.0001634375669 | L143: -5.481210363e-06 | M143: 0.0006901753995 | N143: 2.960115519e-08
A144: 68.95546 | B144: ='DF raw data'!G149 -> 1.0089782e-06 | C144: ='DF raw data'!H149 -> 5.9476565e-06 | D144: ='DF raw data'!I149 -> 4.229114e-06 | F144: 1.010414985e-06 | G144: -5.970083239e-06 | H144: 4.235136258e-06 | J144: 6.406538515e-06 | K144: 0.0001666419252 | L144: -8.467266896e-06 | M144: 0.0006859403266 | N144: 2.965754353e-08
A145: 69.45563 | B145: ='DF raw data'!G150 -> 2.2396482e-06 | C145: ='DF raw data'!H150 -> 2.1273695e-06 | D145: ='DF raw data'!I150 -> -2.797824e-07 | F145: 2.242837459e-06 | G145: -2.13539114e-06 | H145: -2.801808101e-07 | J145: 7.528338527e-06 | K145: 0.0001704073743 | L145: -9.535325483e-06 | M145: 0.0006811710429 | N145: 2.973136778e-08
A146: 69.9558 | B146: ='DF raw data'!G151 -> -6.2904365e-07 | C146: ='DF raw data'!H151 -> 1.2019126e-05 | D146: ='DF raw data'!I151 -> -4.1707463e-06 | F146: -6.299394082e-07 | G146: -1.206444634e-05 | H146: -4.176685443e-06 | J146: 7.213261733e-06 | K146: 0.0001740152314 | L146: -1.556959961e-05 | M146: 0.0006733835963 | N146: 2.987863962e-08
A147: 70.45597 | B147: ='DF raw data'!G152 -> -1.4283432e-08 | C147: ='DF raw data'!H152 -> 1.501083e-05 | D147: ='DF raw data'!I152 -> -4.8818692e-06 | F147: -1.430377161e-08 | G147: -1.506743111e-05 | H147: -4.888820982e-06 | J147: 7.206107415e-06 | K147: 0.0001776195102 | L147: -2.310587663e-05 | M147: 0.00066182673 | N147: 3.017164397e-08
A148: 70.95614 | B148: ='DF raw data'!G153 -> 3.4454054e-06 | C148: ='DF raw data'!H153 -> 1.0695662e-05 | D148: ='DF raw data'!I153 -> -2.6083217e-06 | F148: 3.450311657e-06 | G148: -1.073599197e-05 | H148: -2.61203595e-06 | J148: 8.931849797e-06 | K148: 0.0001820869535 | L148: -2.847569773e-05 | M148: 0.0006475840402 | N148: 3.061711703e-08
A149: 71.45631 | B149: ='DF raw data'!G154 -> 2.9441792e-06 | C149: ='DF raw data'!H154 -> 9.6722761e-06 | D149: ='DF raw data'!I154 -> -2.7580609e-06 | F149: 2.948371711e-06 | G149: -9.708747206e-06 | H149: -2.761988379e-06 | J149: 1.040653688e-05 | K149: 0.0001872919911 | L149: -3.333172182e-05 | M149: 0.0006309125129 | N149: 3.122697415e-08
A150: 71.95648 | B150: ='DF raw data'!G155 -> -1.2522723e-07 | C150: ='DF raw data'!H155 -> 4.2049642e-06 | D150: ='DF raw data'!I155 -> -1.8403443e-06 | F150: -1.254055536e-07 | G150: -4.220819795e-06 | H150: -1.84296495e-06 | J150: 1.034381278e-05 | K150: 0.0001924656559 | L150: -3.544284926e-05 | M150: 0.000613185063 | N150: 3.190880091e-08
A151: 72.45665 | B151: ='DF raw data'!G156 -> -2.1005478e-06 | C151: ='DF raw data'!H156 -> -4.1805333e-06 | D151: ='DF raw data'!I156 -> 4.4359331e-07 | F151: =(1-$G$1*($B$2-$G$2))*B151 -> -2.10353898e-06 | G151: 4.196296774e-06 | H151: 4.442249869e-07 | J151: 9.291685688e-06 | K151: 0.0001971130783 | L151: -3.33439875e-05 | M151: 0.0005965074008 | N151: 3.250808306e-08
A152: 72.95682 | B152: ='DF raw data'!G157 -> -7.3696074e-06 | C152: ='DF raw data'!H157 -> -7.238551e-06 | D152: ='DF raw data'!I157 -> -6.5741915e-07 | F152: -7.380101721e-06 | G152: 7.265845295e-06 | H152: -6.583553149e-07 | J152: 5.600380211e-06 | K152: 0.0001999142205 | L152: -2.970982966e-05 | M152: 0.0005816474353 | N152: 3.296525756e-08
A153: 73.45699 | B153: ='DF raw data'!G158 -> -1.0498895e-05 | C153: ='DF raw data'!H158 -> 2.2764077e-06 | D153: ='DF raw data'!I158 -> -5.7303259e-07 | F153: -1.051384543e-05 | G153: -2.284991316e-06 | H153: -5.738485884e-07 | J153: 3.416701437e-07 | K153: 0.0002000851136 | L153: -3.085271376e-05 | M153: 0.0005662158334 | N153: 3.344142275e-08
A154: 73.95716 | B154: ='DF raw data'!G159 -> -8.8140741e-06 | C154: ='DF raw data'!H159 -> 1.3464676e-05 | D154: ='DF raw data'!I159 -> -1.2294549e-06 | F154: -8.826625342e-06 | G154: -1.351544705e-05 | H154: -1.231205644e-06 | J154: -4.073143053e-06 | K154: 0.0001980478497 | L154: -3.761273492e-05 | M154: 0.0005474030718 | N154: 3.415732023e-08
A155: 74.45733 | B155: ='DF raw data'!G160 -> -5.7732332e-06 | C155: ='DF raw data'!H160 -> 4.1882854e-06 | D155: ='DF raw data'!I160 -> 8.025163e-07 | F155: -5.781454284e-06 | G155: -4.204078105e-06 | H155: 8.036590832e-07 | J155: -6.964853043e-06 | K155: 0.0001945642391 | L155: -3.971548866e-05 | M155: 0.0005275385758 | N155: 3.497051123e-08
A156: 74.9575 | B156: ='DF raw data'!G161 -> -1.871719e-06 | C156: ='DF raw data'!H161 -> -2.8680106e-06 | D156: ='DF raw data'!I161 -> 2.384033e-06 | F156: -1.874384328e-06 | G156: 2.878824964e-06 | H156: 2.387427863e-06 | J156: -7.902363852e-06 | K156: 0.0001906117138 | L156: -3.827558678e-05 | M156: 0.0005083942756 | N156: 3.573450485e-08
A157: 75.45767 | B157: ='DF raw data'!G162 -> 9.9823887e-07 | C157: ='DF raw data'!H162 -> 8.2487413e-06 | D157: ='DF raw data'!I162 -> 3.8138169e-06 | F157: 9.996603622e-07 | G157: -8.279844704e-06 | H157: 3.819247775e-06 | J157: -7.402363729e-06 | K157: 0.0001869092735 | L157: -4.24169167e-05 | M157: 0.0004871786064 | N157: 3.666181493e-08
A158: 75.95784 | B158: ='DF raw data'!G163 -> 2.0367945e-06 | C158: ='DF raw data'!H163 -> 2.5918296e-06 | D158: ='DF raw data'!I163 -> 4.0127561e-06 | F158: 2.039694895e-06 | G158: -2.601602573e-06 | H158: 4.018470265e-06 | J158: -6.382169533e-06 | K158: 0.0001837171038 | L158: -4.371816026e-05 | M158: 0.0004653120942 | N158: 3.763815159e-08
A159: 76.45801 | B159: ='DF raw data'!G164 -> -2.7888092e-07 | C159: ='DF raw data'!H164 -> -1.9817871e-06 | D159: ='DF raw data'!I164 -> -3.6241909e-06 | F159: -2.792780464e-07 | G159: 1.989259795e-06 | H159: -3.629351748e-06 | J159: -6.521856033e-06 | K159: 0.0001804550671 | L159: -4.272319219e-05 | M159: 0.0004439432351 | N159: 3.857237199e-08
A160: 76.95818 | B160: ='DF raw data'!G165 -> -2.6155838e-06 | C160: ='DF raw data'!H165 -> 8.7969198e-07 | D160: ='DF raw data'!I165 -> -5.0020681e-06 | F160: -2.619308391e-06 | G160: -8.830090213e-07 | H160: -5.009191045e-06 | J160: -7.831955511e-06 | K160: 0.0001765377579 | L160: -4.316484681e-05 | M160: 0.0004223534737 | N160: 3.953497093e-08
A161: 77.45835 | B161: ='DF raw data'!G166 -> -2.0225052e-07 | C161: ='DF raw data'!H166 -> 5.918836e-06 | D161: ='DF raw data'!I166 -> -1.3462704e-07 | F161: -2.025385247e-07 | G161: -5.941154066e-06 | H161: -1.348187489e-07 | J161: -7.933259205e-06 | K161: 0.0001725697796 | L161: -4.613643384e-05 | M161: 0.0003992774136 | N161: 4.063109705e-08
A162: 77.95852 | B162: ='DF raw data'!G167 -> 4.1297534e-07 | C162: ='DF raw data'!H167 -> 5.9207041e-06 | D162: ='DF raw data'!I167 -> 2.7848946e-06 | F162: 4.135634169e-07 | G162: -5.94302921e-06 | H162: 2.78886029e-06 | J162: -7.726407191e-06 | K162: 0.0001687052625 | L162: -4.910895876e-05 | M162: 0.0003747145857 | N162: 4.186721079e-08
A163: 78.45869 | B163: ='DF raw data'!G168 -> -3.7070647e-06 | C163: ='DF raw data'!H168 -> 3.0042529e-06 | D163: ='DF raw data'!I168 -> 4.7568246e-06 | F163: -3.71234356e-06 | G163: -3.015580991e-06 | H163: 4.763598318e-06 | J163: -9.58321007e-06 | K163: 0.0001639120284 | L163: -5.061726191e-05 | M163: 0.0003493973498 | N163: 4.319463452e-08
A164: 78.95886 | B164: ='DF raw data'!G169 -> -3.3247277e-06 | C164: ='DF raw data'!H169 -> 1.9866038e-06 | D164: ='DF raw data'!I169 -> 4.1724052e-06 | F164: -3.329462112e-06 | G164: -1.994094657e-06 | H164: 4.178346705e-06 | J164: -1.124850713e-05 | K164: 0.0001582858626 | L164: -5.161464823e-05 | M164: 0.0003235812512 | N164: 4.459040933e-08
A165: 79.45903 | B165: ='DF raw data'!G170 -> -2.9336007e-07 | C165: ='DF raw data'!H170 -> 6.2825584e-06 | D165: ='DF raw data'!I170 -> 4.5648121e-06 | F165: -2.937778147e-07 | G165: -6.306247948e-06 | H165: 4.571312392e-06 | J165: -1.139544598e-05 | K165: 0.0001525862023 | L165: -5.476884427e-05 | M165: 0.0002961875183 | N165: 4.615568259e-08
A166: 79.9592 | B166: ='DF raw data'!G171 -> 1.3359888e-06 | C166: ='DF raw data'!H171 -> 8.0404616e-06 | D166: ='DF raw data'!I171 -> 6.628783e-06 | F166: 1.337891248e-06 | G166: -8.070779647e-06 | H166: 6.638222387e-06 | J166: -1.072627292e-05 | K166: 0.0001472212424 | L166: -5.880560612e-05 | M166: 0.0002667747183 | N166: 4.794286614e-08
A167: 80.45937 | B167: ='DF raw data'!G172 -> 3.2055752e-06 | C167: ='DF raw data'!H172 -> 5.1260117e-06 | D167: ='DF raw data'!I172 -> 6.0719976e-06 | F167: 3.210139939e-06 | G167: -5.145340275e-06 | H167: 6.080644125e-06 | J167: -9.120657225e-06 | K167: 0.0001426593633 | L167: -6.137915097e-05 | M167: 0.0002360747084 | N167: 4.986881403e-08
A168: 80.95954 | B168: ='DF raw data'!G173 -> 2.2545348e-06 | C168: ='DF raw data'!H173 -> 5.1128027e-06 | D168: ='DF raw data'!I173 -> 1.5376645e-06 | F168: 2.257745258e-06 | G168: -5.132081468e-06 | H168: 1.539854134e-06 | J168: -7.991400779e-06 | K168: 0.0001386623044 | L168: -6.394606416e-05 | M168: 0.0002040908055 | N168: 5.194600083e-08
A169: 81.45971 | B169: ='DF raw data'!G174 -> -8.3183915e-07 | C169: ='DF raw data'!H174 -> 6.2391946e-06 | D169: ='DF raw data'!I174 -> -1.6601189e-06 | F169: -8.330236889e-07 | G169: -6.262720637e-06 | H169: -1.662482909e-06 | J169: -8.408054238e-06 | K169: 0.0001344568479 | L169: -6.707848914e-05 | M169: 0.0001705401576 | N169: 5.423188731e-08
A170: 81.95988 | B170: ='DF raw data'!G175 -> 2.4095715e-07 | C170: ='DF raw data'!H175 -> -1.8923911e-06 | D170: ='DF raw data'!I175 -> 4.5682027e-06 | F170: 2.41300273e-07 | G170: 1.899526711e-06 | H170: 4.574707821e-06 | J170: -8.28736308e-06 | K170: 0.0001303117575 | L170: -6.612840286e-05 | M170: 0.0001374647143 | N170: 5.645346542e-08
A171: 82.46005 | B171: ='DF raw data'!G176 -> 3.2026358e-06 | C171: ='DF raw data'!H176 -> -6.8903055e-06 | D171: ='DF raw data'!I176 -> 9.4887582e-06 | F171: 3.207196353e-06 | G171: 6.916286671e-06 | H171: 9.502270192e-06 | J171: -6.68321968e-06 | K171: 0.0001269690115 | L171: -6.266908376e-05 | M171: 0.0001061195187 | N171: 5.844018041e-08
A172: 82.96022 | B172: ='DF raw data'!G177 -> 2.4623216e-06 | C172: ='DF raw data'!H177 -> 1.0913682e-05 | D172: ='DF raw data'!I177 -> 1.1348871e-05 | F172: 2.465827946e-06 | G172: -1.095483406e-05 | H172: 1.136503179e-05 | J172: -5.449886517e-06 | K172: 0.0001242431418 | L172: -6.814836311e-05 | M172: 7.20337519e-05 | N172: 6.07779253e-08
A173: 83.46039 | B173: ='DF raw data'!G178 -> 3.3252502e-06 | C173: ='DF raw data'!H178 -> 1.1938003e-05 | D173: ='DF raw data'!I178 -> 1.0670621e-05 | F173: 3.329985356e-06 | G173: -1.198301745e-05 | H173: 1.068581596e-05 | J173: -3.784327741e-06 | K173: 0.0001223503345 | L173: -7.414190895e-05 | M173: 3.495019331e-05 | N173: 6.353453413e-08
A174: 83.96056 | B174: ='DF raw data'!G179 -> 8.5344573e-06 | C174: ='DF raw data'!H179 -> 5.4506399e-06 | D174: ='DF raw data'!I179 -> 1.6295744e-06 | F174: 8.546610367e-06 | G174: -5.471192546e-06 | H174: 1.631894914e-06 | J174: 4.904303664e-07 | K174: 0.0001225956331 | L174: -7.687843532e-05 | M174: -3.502093689e-06 | N174: 6.649080609e-08
A175: 84.46073 | B175: ='DF raw data'!G180 -> 7.9282972e-06 | C175: ='DF raw data'!H180 -> 9.3599228e-06 | D175: ='DF raw data'!I180 -> -2.7682472e-06 | F175: 7.939587095e-06 | G175: -9.39521612e-06 | H175: -2.772189184e-06 | J175: 4.461573644e-06 | K175: 0.0001248271784 | L175: -8.157764057e-05 | M175: -4.430478217e-05 | N175: 6.982934935e-08
A176: 84.9609 | B176: ='DF raw data'!G181 -> 5.3049071e-06 | C176: ='DF raw data'!H181 -> 4.8524862e-06 | D176: ='DF raw data'!I181 -> 2.0382213e-06 | F176: 5.312461288e-06 | G176: -4.870783396e-06 | H176: 2.041123727e-06 | J176: 7.118707406e-06 | K176: 0.0001283877423 | L176: -8.40138603e-05 | M176: -8.632599468e-05 | N176: 7.338506024e-08
A177: 85.46107 | B177: ='DF raw data'!G182 -> 8.4944686e-06 | C177: ='DF raw data'!H182 -> 4.6287287e-06 | D177: ='DF raw data'!I182 -> 2.3346583e-06 | F177: 8.506564723e-06 | G177: -4.646182177e-06 | H177: 2.337982853e-06 | J177: 1.137343588e-05 | K177: 0.0001340763937 | L177: -8.633774124e-05 | M177: -0.0001295095427 | N177: 7.717812975e-08
A178: 85.96124 | B178: ='DF raw data'!G183 -> 7.1093446e-06 | C178: ='DF raw data'!H183 -> 2.3363164e-06 | D178: ='DF raw data'!I183 -> 6.1469473e-07 | F178: 7.119468307e-06 | G178: -2.345125913e-06 | H178: 6.155700553e-07 | J178: 1.493438035e-05 | K178: 0.0001415461227 | L178: -8.751070287e-05 | M178: -0.000173279771 | N178: 8.112004896e-08
A179: 86.46141 | B179: ='DF raw data'!G184 -> 3.0220756e-06 | C179: ='DF raw data'!H184 -> 2.6259139e-07 | D179: ='DF raw data'!I184 -> -4.5529305e-07 | F179: 3.026379036e-06 | G179: -2.635815394e-07 | H179: -4.559413873e-07 | J179: 1.644808435e-05 | K179: 0.0001497729611 | L179: -8.764253845e-05 | M179: -0.0002171159394 | N179: 8.509727777e-08
A180: 86.96158 | B180: ='DF raw data'!G185 -> 8.8189626e-07 | C180: ='DF raw data'!H185 -> 4.4007015e-06 | D180: ='DF raw data'!I185 -> -2.1260712e-06 | F180: 8.831520803e-07 | G180: -4.417295159e-06 | H180: -2.129098725e-06 | J180: 1.688981052e-05 | K180: 0.0001582207376 | L180: -8.985193696e-05 | M180: -0.0002620571827 | N180: 8.927801688e-08
A181: 87.46175 | B181: ='DF raw data'!G186 -> -8.8570957e-08 | C181: ='DF raw data'!H186 -> 6.3751568e-06 | D181: ='DF raw data'!I186 -> 2.1780506e-06 | F181: -8.869708204e-08 | G181: -6.399195508e-06 | H181: 2.181152144e-06 | J181: 1.684544691e-05 | K181: 0.0001666463248 | L181: -9.305262258e-05 | M181: -0.000308599313 | N181: 9.375081694e-08
A182: 87.96192 | B182: ='DF raw data'!G187 -> -6.6895956e-07 | C182: ='DF raw data'!H187 -> 1.8547778e-06 | D182: ='DF raw data'!I187 -> 1.3253666e-06 | F182: -6.699121584e-07 | G182: -1.861771583e-06 | H182: 1.327253922e-06 | J182: 1.651037694e-05 | K182: 0.00017490432 | L182: -9.398382487e-05 | M182: -0.0003556072027 | N182: 9.830514083e-08
A183: 88.46209 | B183: ='DF raw data'!G188 -> -4.7592994e-06 | C183: ='DF raw data'!H188 -> -5.2889862e-07 | D183: ='DF raw data'!I188 -> -7.3952906e-06 | F183: -4.766076642e-06 | G183: 5.3089293e-07 | H183: -7.405821494e-06 | J183: 1.412652839e-05 | K183: 0.0001819699857 | L183: -9.371828816e-05 | M183: -0.0004024822788 | N183: 1.02798006e-07
A184: 88.96226 | B184: ='DF raw data'!G189 -> -5.5913342e-06 | C184: ='DF raw data'!H189 -> 1.5318381e-05 | D184: ='DF raw data'!I189 -> -6.0926177e-06 | F184: -5.59929626e-06 | G184: -1.537614179e-05 | H184: -6.101293588e-06 | J184: 1.132592838e-05 | K184: 0.0001876348753 | L184: -0.000101408973 | M184: -0.0004532040049 | N184: 1.080058043e-07
A185: 89.46243 | B185: ='DF raw data'!G190 -> 2.3763489e-06 | C185: ='DF raw data'!H190 -> 5.6984145e-06 | D185: ='DF raw data'!I190 -> 3.2046446e-06 | F185: 2.379732821e-06 | G185: -5.719901426e-06 | H185: 3.209208014e-06 | J185: 1.251619934e-05 | K185: 0.0001938951027 | L185: -0.0001042698961 | M185: -0.0005053566788 | N185: 1.135221125e-07
A186: 89.9626 | B186: ='DF raw data'!G191 -> 8.2545075e-06 | C186: ='DF raw data'!H191 -> -2.9839584e-06 | D186: ='DF raw data'!I191 -> 2.9337752e-06 | F186: 8.266261919e-06 | G186: 2.995209967e-06 | H186: 2.937952896e-06 | J186: 1.665073557e-05 | K186: 0.0002022233011 | L186: -0.0001027717819 | M186: -0.000556760041 | N186: 1.189435982e-07
A187: 90.46277 | B187: ='DF raw data'!G192 -> 5.2615278e-06 | C187: ='DF raw data'!H192 -> 8.0109739e-06 | D187: ='DF raw data'!I192 -> 9.1072434e-07 | F187: 5.269020216e-06 | G187: -8.041180758e-06 | H187: 9.120212115e-07 | J187: 1.928614141e-05 | K187: 0.0002118696505 | L187: -0.0001067937393 | M187: -0.0006101750655 | N187: 1.248340293e-07
A188: 90.96294 | B188: ='DF raw data'!G193 -> 9.5091599e-07 | C188: ='DF raw data'!H193 -> 9.4987473e-07 | D188: ='DF raw data'!I193 -> 4.5100387e-06 | F188: 9.522700944e-07 | G188: -9.534564083e-07 | H188: 4.516460995e-06 | J188: 1.976243834e-05 | K188: 0.0002217542293 | L188: -0.0001072706296 | M188: -0.0006638286163 | N188: 1.307848229e-07
A189: 91.46311 | B189: ='DF raw data'!G194 -> -1.6185447e-06 | C189: ='DF raw data'!H194 -> -1.0549679e-05 | D189: ='DF raw data'!I194 -> 2.796347e-06 | F189: -1.620849508e-06 | G189: 1.058945852e-05 | H189: 2.800328998e-06 | J189: 1.895173804e-05 | K189: 0.0002312333201 | L189: -0.0001019741001 | M189: -0.000714833002 | N189: 1.361655944e-07
A190: 91.96328 | B190: ='DF raw data'!G195 -> -4.0102969e-07 | C190: ='DF raw data'!H195 -> -4.2954143e-06 | D190: ='DF raw data'!I195 -> -4.6821442e-06 | F190: -4.016007563e-07 | G190: 4.311610954e-06 | H190: -4.688811573e-06 | J190: 1.875086939e-05 | K190: 0.0002406119424 | L190: -9.981756168e-05 | M190: -0.0007647587518 | N190: 1.413249184e-07
A191: 92.46345 | B191: ='DF raw data'!G196 -> 6.537236e-06 | C191: ='DF raw data'!H196 -> 4.2339175e-06 | D191: ='DF raw data'!I196 -> -6.4170308e-07 | F191: 6.546545024e-06 | G191: -4.249882269e-06 | H191: -6.426168652e-07 | J191: 2.202525482e-05 | K191: 0.0002516283141 | L191: -0.0001019432253 | M191: -0.0008157476948 | N191: 1.467655341e-07
A192: 92.96362 | B192: ='DF raw data'!G197 -> 8.7122089e-06 | C192: ='DF raw data'!H197 -> 2.6812256e-06 | D192: ='DF raw data'!I197 -> 9.6377698e-06 | F192: 8.724615085e-06 | G192: -2.691335657e-06 | H192: 9.651493984e-06 | J192: 2.638904554e-05 | K192: 0.000264827323 | L192: -0.0001032893506 | M192: -0.0008674099293 | N192: 1.52450002e-07
A193: 93.46379 | B193: ='DF raw data'!G198 -> 4.2191596e-06 | C193: ='DF raw data'!H198 -> -1.0782182e-06 | D193: ='DF raw data'!I198 -> 1.0204407e-05 | F193: 4.225167683e-06 | G193: 1.082283821e-06 | H193: 1.021893808e-05 | J193: 2.850234766e-05 | K193: 0.0002790833423 | L193: -0.0001027480247 | M193: -0.0009188014089 | N193: 1.58136705e-07
A194: 93.96396 | B194: ='DF raw data'!G199 -> 9.3869238e-07 | C194: ='DF raw data'!H199 -> 4.8909133e-06 | D194: ='DF raw data'!I199 -> 3.9038059e-06 | F194: 9.400290779e-07 | G194: -4.909355393e-06 | H194: 3.90936492e-06 | J194: 2.897252201e-05 | K194: 0.0002935745286 | L194: -0.000105203537 | M194: -0.000971421062 | N194: 1.640923248e-07
A195: 94.46413 | B195: ='DF raw data'!G200 -> 1.6636689e-06 | C195: ='DF raw data'!H200 -> 9.6688073e-06 | D195: ='DF raw data'!I200 -> -2.3560788e-06 | F195: 1.666037965e-06 | G195: -9.705265326e-06 | H195: -2.359433856e-06 | J195: 2.980582422e-05 | K195: 0.0003084825077 | L195: -0.0001100578196 | M195: -0.001026468682 | N195: 1.705950904e-07
A196: 94.9643 | B196: ='DF raw data'!G201 -> 3.7992497e-06 | C196: ='DF raw data'!H201 -> 3.0564229e-06 | D196: ='DF raw data'!I201 -> -2.7370334e-06 | F196: 3.804659832e-06 | G196: -3.067947708e-06 | H196: -2.740930936e-06 | J196: 3.170880092e-05 | K196: 0.0003243422987 | L196: -0.000111592315 | M196: -0.00108228381 | N196: 1.773265247e-07
A197: 95.46447 | B197: ='DF raw data'!G202 -> 3.1540469e-06 | C197: ='DF raw data'!H202 -> 4.8169945e-06 | D197: ='DF raw data'!I202 -> -1.5767218e-06 | F197: 3.158538263e-06 | G197: -4.835157868e-06 | H197: -1.578967052e-06 | J197: 3.328860701e-05 | K197: 0.0003409922612 | L197: -0.0001140107159 | M197: -0.00113930855 | N197: 1.843822102e-07
A198: 95.96464 | B198: ='DF raw data'!G203 -> 4.1124366e-07 | C198: ='DF raw data'!H203 -> -9.1784486e-06 | D198: ='DF raw data'!I203 -> -1.0345175e-06 | F198: 4.11829271e-07 | G198: 9.213057638e-06 | H198: -1.035990653e-06 | J198: 3.349459165e-05 | K198: 0.0003577452511 | L198: -0.0001094026209 | M198: -0.001194028458 | N198: 1.909298462e-07
A199: 96.46481 | B199: ='DF raw data'!G204 -> -3.0575254e-06 | C199: ='DF raw data'!H204 -> -6.1562622e-07 | D199: ='DF raw data'!I204 -> -4.9876908e-06 | F199: -3.061879316e-06 | G199: =(1-$G$1*($B$2-$G$2))*C199*$M$2/$M$1 -> 6.179475525e-07 | H199: -4.994793272e-06 | J199: 3.196313148e-05 | K199: 0.0003737322506 | L199: -0.000109093542 | M199: -0.001248593775 | N199: 1.973935645e-07
A200: =A199+$B$1 -> 96.96498 | B200: ='DF raw data'!G205 -> -4.9515447e-06 | C200: ='DF raw data'!H205 -> 1.9117051e-05 | D200: ='DF raw data'!I205 -> -1.0245662e-05 | F200: -4.9585957e-06 | G200: -1.918913538e-05 | H200: -1.026025182e-05 | J200: =F200*$B$1+J199 -> 2.948299066e-05 | K200: =J200*$B$1+K199 -> 0.0003884787581 | L200: =G200*$B$1+L199 -> -0.0001186913719 | M200: =L200*$B$1+M199 -> -0.001307959639 | N200: =(J200^2+L200^2)*$B$1+N199 -> 2.048745514e-07
A201: 97.46515 | B201: ='DF raw data'!G206 -> -4.0082459e-06 | C201: ='DF raw data'!H206 -> 1.3153657e-05 | D201: ='DF raw data'!I206 -> -7.6795332e-06 | F201: -4.013953642e-06 | G201: -1.32032553e-05 | H201: -7.690468855e-06 | J201: 2.747533147e-05 | K201: 0.0004022210946 | L201: -0.0001252952441 | M201: -0.001370628561 | N201: 2.131042446e-07
... 1002 more rows

Sheet 20 mm
A1: dz | B1: ='DF raw data'!K7 -> 0.50016 | C1: mm | F1: T_coeff | G1: -0.0008 | H1: /degC | L1: Hallref | M1: ='PI vs gap'!B50 -> -0.50526 | N1: T | P1: IBy total | Q1: =L1203*1000 -> 1.106352575 | R1: muTm | X1: DF ref | Y1: 21
A2: Tref | B2: ='DF raw data'!K8 -> 21.72 | C2: degC | F2: Tcorr | G2: 20 | H2: degC | L2: NMRref | M2: ='PI vs gap'!B51 -> 0.506444 | N2: T | P2: JBy total | Q2: =M1203 -> 1.403517496 | R2: muTm^2
A3: Encoder | B3: ='DF raw data'!K9 -> 17675442 | P3: PI total | Q3: =N1203 -> 202.6263426 | R3: T^2mm^3
A5: z [mm] | B5: Bx | C5: By | D5: Bz | F5: Bx_corr | G5: By_corr | H5: Bz_corr | J5: Ix | K5: Jx | L5: Iy | M5: Jy | N5: PI
A6: -0.068 | B6: ='DF raw data'!J11 -> 1.6425187e-05 | C6: ='DF raw data'!K11 -> 5.6411059e-06 | D6: ='DF raw data'!L11 -> 5.1216739e-06 | F6: =(1-$G$1*($B$2-$G$2))*B6 -> 1.644778806e-05 | G6: =(1-$G$1*($B$2-$G$2))*C6*$M$2/$M$1 -> -5.662105325e-06 | H6: =(1-$G$1*($B$2-$G$2))*D6 -> 5.128721323e-06 | J6: =F6*$B$1 -> 8.226525675e-06 | K6: =J6*$B$1 -> 4.114579081e-06 | L6: =G6*$B$1 -> -2.831958599e-06 | M6: =L6*$B$1 -> -1.416432413e-06 | N6: =(J6^2+L6)^2*$B$1 -> 4.011086239e-12
A7: =A6+$B$1 -> 0.43216 | B7: ='DF raw data'!J12 -> 1.642686e-05 | C7: ='DF raw data'!K12 -> 5.2130722e-06 | D7: ='DF raw data'!L12 -> 2.8963657e-06 | F7: =(1-$G$1*($B$2-$G$2))*B7 -> 1.644946336e-05 | G7: =(1-$G$1*($B$2-$G$2))*C7*$M$2/$M$1 -> -5.232478239e-06 | H7: 2.900351099e-06 | J7: =F7*$B$1+J6 -> 1.645388927e-05 | K7: =J7*$B$1+K6 -> 1.234415634e-05 | L7: =G7*$B$1+L6 -> -5.449034915e-06 | M7: =L7*$B$1+M6 -> -4.141821716e-06 | N7: =(J7^2+L7^2)*$B$1+N6 -> 1.542703806e-10
A8: =A7+$B$1 -> 0.93232 | B8: ='DF raw data'!J13 -> 1.6549009e-05 | C8: ='DF raw data'!K13 -> 1.9833335e-06 | D8: ='DF raw data'!L13 -> 3.6251984e-06 | F8: 1.657178044e-05 | G8: -1.990716603e-06 | H8: 3.630186673e-06 | J8: =F8*$B$1+J7 -> 2.474243097e-05 | K8: =J8*$B$1+K7 -> 2.471933061e-05 | L8: =G8*$B$1+L7 -> -6.444711731e-06 | M8: =L8*$B$1+M7 -> -7.365208736e-06 | N8: =(J8^2+L8^2)*$B$1+N7 -> 4.81236076e-10
A9: 1.43248 | B9: ='DF raw data'!J14 -> 1.6626178e-05 | C9: ='DF raw data'!K14 -> 3.1189145e-07 | D9: ='DF raw data'!L14 -> 6.2250001e-06 | F9: 1.664905562e-05 | G9: -3.130524885e-07 | H9: 6.2335657e-06 | J9: 3.306962263e-05 | K9: 4.125943307e-05 | L9: -6.601288064e-06 | M9: -1.066690897e-05 | N9: 1.050006497e-09
A10: 1.93264 | B10: ='DF raw data'!J15 -> 1.668277e-05 | C10: ='DF raw data'!K15 -> -2.6694054e-06 | D10: ='DF raw data'!L15 -> -2.6311502e-06 | F10: 1.670572549e-05 | G10: 2.679342455e-06 | H10: -2.634770663e-06 | J10: 4.142515829e-05 | K10: 6.197864024e-05 | L10: -5.261188142e-06 | M10: -1.329834484e-05 | N10: 1.922147413e-09
A11: 2.4328 | B11: ='DF raw data'!J16 -> 1.6796843e-05 | C11: ='DF raw data'!K16 -> -6.0070861e-06 | D11: ='DF raw data'!L16 -> -4.3799118e-06 | F11: 1.681995546e-05 | G11: 6.029447913e-06 | H11: -4.385938559e-06 | J11: 4.983782721e-05 | K11: 8.69055279e-05 | L11: -2.245499474e-06 | M11: -1.442145385e-05 | N11: 3.166971274e-09
A12: 2.93296 | B12: ='DF raw data'!J17 -> 1.6522175e-05 | C12: ='DF raw data'!K17 -> 2.6213822e-06 | D12: ='DF raw data'!L17 -> 2.4526487e-06 | F12: 1.654490951e-05 | G12: -2.631140485e-06 | H12: 2.456023545e-06 | J12: 5.811292916e-05 | K12: 0.0001159712905 | L12: -3.561490699e-06 | M12: -1.620276904e-05 | N12: 4.862412017e-09
A13: 3.43312 | B13: ='DF raw data'!J18 -> 1.6525115e-05 | C13: ='DF raw data'!K18 -> 2.1844082e-06 | D13: ='DF raw data'!L18 -> 7.8208888e-07 | F13: 1.654785356e-05 | G13: -2.192539818e-06 | H13: 7.831650343e-07 | J13: 6.638950359e-05 | K13: 0.0001491766647 | L13: -4.658111414e-06 | M13: -1.853257004e-05 | N13: 7.077752793e-09
A14: 3.93328 | B14: ='DF raw data'!J19 -> 1.6808863e-05 | C14: ='DF raw data'!K19 -> -6.0216294e-06 | D14: ='DF raw data'!L19 -> -1.9679321e-06 | F14: 1.6831992e-05 | G14: 6.044045352e-06 | H14: -1.970639975e-06 | J14: 7.480819271e-05 | K14: 0.0001865927303 | L14: -1.635121691e-06 | M14: -1.935039251e-05 | N14: 9.878118283e-09
A15: 4.43344 | B15: ='DF raw data'!J20 -> 1.6868002e-05 | C15: ='DF raw data'!K20 -> -7.4903955e-06 | D15: ='DF raw data'!L20 -> -1.742581e-06 | F15: 1.689121237e-05 | G15: 7.51827904e-06 | H15: -1.744978791e-06 | J15: 8.325650149e-05 | K15: 0.0002282343021 | L15: 2.125220754e-06 | M15: -1.82874421e-05 | N15: 1.334730887e-08
A16: 4.9336 | B16: ='DF raw data'!J21 -> 1.6686976e-05 | C16: ='DF raw data'!K21 -> -1.9970657e-06 | D16: ='DF raw data'!L21 -> 1.1237679e-06 | F16: 1.670993728e-05 | G16: 2.004499922e-06 | H16: 1.125314205e-06 | J16: 9.161414372e-05 | K16: 0.0002740560322 | L16: 3.127791435e-06 | M16: -1.672304593e-05 | N16: 1.755012054e-08
A17: 5.43376 | B17: ='DF raw data'!J22 -> 1.6315582e-05 | C17: ='DF raw data'!K22 -> 8.0437285e-06 | D17: ='DF raw data'!L22 -> 8.0404772e-07 | F17: 1.633803224e-05 | G17: -8.073671862e-06 | H17: 8.051540897e-07 | J17: 9.978577392e-05 | K17: 0.0003239648849 | L17: -9.103362839e-07 | M17: -1.717835973e-05 | N17: 2.253072852e-08
A18: 5.93392 | B18: ='DF raw data'!J23 -> 1.6605747e-05 | C18: ='DF raw data'!K23 -> 4.3717958e-07 | D18: ='DF raw data'!L23 -> 3.1078778e-06 | F18: 1.662859651e-05 | G18: -4.388070126e-07 | H18: 3.11215424e-06 | J18: 0.0001081027328 | K18: 0.0003780335477 | L18: -1.129809999e-06 | M18: -1.77434455e-05 | N18: 2.837633717e-08
A19: 6.43408 | B19: ='DF raw data'!J24 -> 1.6368653e-05 | C19: ='DF raw data'!K24 -> 6.1225114e-06 | D19: ='DF raw data'!L24 -> -1.3050486e-06 | F19: 1.639117627e-05 | G19: -6.145302892e-06 | H19: -1.306844347e-06 | J19: 0.0001163009435 | K19: 0.0004362026276 | L19: -4.203444694e-06 | M19: -1.98458404e-05 | N19: 3.515029334e-08
A20: 6.93424 | B20: ='DF raw data'!J25 -> 1.6518043e-05 | C20: ='DF raw data'!K25 -> 7.9663238e-07 | D20: ='DF raw data'!L25 -> -8.7927219e-06 | F20: 1.654077183e-05 | G20: -7.995979017e-07 | H20: -8.804820685e-06 | J20: 0.0001245739759 | K20: 0.0004985095474 | L20: -4.60337158e-06 | M20: -2.214826273e-05 | N20: 4.292271297e-08
A21: 7.4344 | B21: ='DF raw data'!J26 -> 1.6666749e-05 | C21: ='DF raw data'!K26 -> -2.5195666e-06 | D21: ='DF raw data'!L26 -> -4.5511588e-06 | F21: 1.668968245e-05 | G21: 2.528945869e-06 | H21: -4.557421195e-06 | J21: 0.0001329214875 | K21: 0.0005649915586 | L21: -3.338494014e-06 | M21: -2.381804389e-05 | N21: 5.176517534e-08
A22: 7.93456 | B22: ='DF raw data'!J27 -> 1.3234694e-05 | C22: ='DF raw data'!K27 -> 6.1736141e-06 | D22: ='DF raw data'!L27 -> -2.9743571e-06 | F22: 1.325290494e-05 | G22: -6.196595826e-06 | H22: -2.978449815e-06 | J22: 0.0001395500604 | K22: 0.0006347889168 | L22: -6.437783383e-06 | M22: -2.703796563e-05 | N22: 6.152613006e-08
A23: 8.43472 | B23: ='DF raw data'!J28 -> 6.497477e-06 | C23: ='DF raw data'!K28 -> -1.1982374e-06 | D23: ='DF raw data'!L28 -> -3.6894237e-06 | F23: =(1-$G$1*($B$2-$G$2))*B23 -> 6.506417528e-06 | G23: 1.202697926e-06 | H23: -3.694500347e-06 | J23: 0.0001428043102 | K23: 0.0007062139206 | L23: -5.836241988e-06 | M23: -2.995702042e-05 | N23: 7.174296477e-08
A24: 8.93488 | B24: ='DF raw data'!J29 -> 4.141813e-06 | C24: ='DF raw data'!K29 -> 1.5971953e-06 | D24: ='DF raw data'!L29 -> -3.877507e-06 | F24: 4.147512135e-06 | G24: -1.603140975e-06 | H24: -3.88284245e-06 | J24: 0.0001448787299 | K24: 0.0007786764661 | L24: -6.638068978e-06 | M24: -3.3277117e-05 | N24: 8.226328536e-08
A25: 9.43504 | B25: ='DF raw data'!J30 -> 6.5771778e-06 | C25: ='DF raw data'!K30 -> -5.3886511e-06 | D25: ='DF raw data'!L30 -> -6.3294901e-06 | F25: 6.586227997e-06 | G25: 5.408710744e-06 | H25: -6.338199478e-06 | J25: 0.0001481728977 | K25: 0.0008527866226 | L25: -3.932848213e-06 | M25: -3.524417036e-05 | N25: 9.325213812e-08
A26: 9.9352 | B26: ='DF raw data'!J31 -> 9.7409684e-06 | C26: ='DF raw data'!K31 -> -6.4956962e-06 | D26: ='DF raw data'!L31 -> -8.5477986e-06 | F26: 9.754371973e-06 | G26: 6.5198769e-06 | H26: -8.559560371e-06 | J26: 0.0001530516444 | K26: 0.0009293369331 | L26: -6.718665825e-07 | M26: -3.558021115e-05 | N26: 1.049685148e-07
A27: 10.43536 | B27: ='DF raw data'!J32 -> 1.2065506e-05 | C27: ='DF raw data'!K32 -> -9.756809e-07 | D27: ='DF raw data'!L32 -> -6.4470842e-06 | F27: 1.208210814e-05 | G27: 9.793129428e-07 | H27: -6.455955388e-06 | J27: 0.0001590946316 | K27: 0.001008909704 | L27: -1.820534211e-07 | M27: -3.567126699e-05 | N27: 1.17628132e-07
A28: 10.93552 | B28: ='DF raw data'!J33 -> 1.3160945e-05 | C28: ='DF raw data'!K33 -> 2.7777589e-06 | D28: ='DF raw data'!L33 -> 4.8872716e-06 | F28: 1.317905446e-05 | G28: -2.788099309e-06 | H28: 4.893996486e-06 | J28: 0.0001656862674 | K28: 0.001091779348 | L28: -1.576549171e-06 | M28: -3.645979383e-05 | N28: 1.313597371e-07
A29: 11.43568 | B29: ='DF raw data'!J34 -> 1.0816893e-05 | C29: ='DF raw data'!K34 -> -1.2481584e-07 | D29: ='DF raw data'!L34 -> 4.7630128e-06 | F29: 1.083177704e-05 | G29: 1.25280476e-07 | H29: 4.769566706e-06 | J29: 0.000171103889 | K29: 0.001177358669 | L29: -1.513888888e-06 | M29: -3.721698049e-05 | N29: 1.460038381e-07
A30: 11.93584 | B30: ='DF raw data'!J35 -> 5.9172921e-06 | C30: ='DF raw data'!K35 -> 4.5339275e-06 | D30: ='DF raw data'!L35 -> -5.3511176e-08 | F30: 5.925434294e-06 | G30: -4.550805373e-06 | H30: -5.358480738e-08 | J30: 0.0001740675543 | K30: 0.001264420297 | L30: -3.790019704e-06 | M30: -3.911259675e-05 | N30: 1.611656271e-07
A31: 12.436 | B31: ='DF raw data'!J36 -> 2.5652002e-06 | C31: ='DF raw data'!K36 -> -2.7806836e-06 | D31: ='DF raw data'!L36 -> -1.0589321e-06 | F31: 2.568729915e-06 | G31: 2.791034896e-06 | H31: -1.060389191e-06 | J31: 0.0001753523302 | K31: 0.001352124518 | L31: -2.39405569e-06 | M31: -4.031000764e-05 | N31: 1.765476334e-07
A32: 12.93616 | B32: ='DF raw data'!J37 -> 3.3263089e-07 | C32: ='DF raw data'!K37 -> -7.977138e-06 | D32: ='DF raw data'!L37 -> 4.8105976e-06 | F32: 3.330885901e-07 | G32: 8.006833474e-06 | H32: 4.817216982e-06 | J32: 0.0001755189278 | K32: 0.001439912065 | L32: 1.61064214e-06 | M32: -3.950442887e-05 | N32: 1.91957307e-07
A33: 13.43632 | B33: ='DF raw data'!J38 -> -3.166188e-06 | C33: ='DF raw data'!K38 -> 5.0610984e-06 | D33: ='DF raw data'!L38 -> 3.9470578e-06 | F33: -3.170544675e-06 | G33: -5.079938705e-06 | H33: 3.952488952e-06 | J33: 0.0001739331482 | K33: 0.001526906468 | L33: -9.301400029e-07 | M33: -3.996964769e-05 | N33: 2.070889502e-07
A34: 13.93648 | B34: ='DF raw data'!J39 -> -5.7388356e-06 | C34: ='DF raw data'!K39 -> -9.5214245e-06 | D34: ='DF raw data'!L39 -> 1.6733064e-06 | F34: -5.746732238e-06 | G34: 9.556868692e-06 | H34: 1.67560887e-06 | J34: 0.0001710588626 | K34: 0.001612463269 | L34: 3.849823442e-06 | M34: -3.804412e-05 | N34: 2.217316122e-07
A35: 14.43664 | B35: ='DF raw data'!J40 -> -7.2307562e-06 | C35: ='DF raw data'!K40 -> -4.0954751e-06 | D35: ='DF raw data'!L40 -> 9.7095824e-07 | F35: -7.240705721e-06 | G35: 4.110720803e-06 | H35: 9.722942785e-07 | J35: 0.0001674373512 | K35: 0.001696208735 | L35: 5.905841559e-06 | M35: -3.509025429e-05 | N35: 2.357711762e-07
A36: 14.9368 | B36: ='DF raw data'!J41 -> -6.5042518e-06 | C36: ='DF raw data'!K41 -> 1.3887818e-06 | D36: ='DF raw data'!L41 -> -4.3733344e-06 | F36: -6.51320165e-06 | G36: -1.393951641e-06 | H36: -4.379352108e-06 | J36: 0.0001641797083 | K36: 0.001778324858 | L36: 5.208642706e-06 | M36: -3.248509955e-05 | N36: 2.492665466e-07
A37: 15.43696 | B37: ='DF raw data'!J42 -> -4.1131539e-06 | C37: ='DF raw data'!K42 -> 6.6065854e-06 | D37: ='DF raw data'!L42 -> -3.5939195e-06 | F37: -4.1188136e-06 | G37: -6.631178893e-06 | H37: -3.598864733e-06 | J37: 0.0001621196425 | K37: 0.001859410618 | L37: 1.891992271e-06 | M37: -3.15388007e-05 | N37: 2.624139314e-07
A38: 15.93712 | B38: ='DF raw data'!J43 -> -4.3572479e-07 | C38: ='DF raw data'!K43 -> -5.4733773e-06 | D38: ='DF raw data'!L43 -> -5.5963937e-06 | F38: -4.363243473e-07 | G38: 5.493752343e-06 | H38: -5.604094338e-06 | J38: 0.0001619014105 | K38: 0.001940387227 | L38: 4.639747443e-06 | M38: -2.921818461e-05 | N38: 2.755349258e-07
A39: 16.43728 | B39: ='DF raw data'!J44 -> 1.7427114e-06 | C39: ='DF raw data'!K44 -> -1.1076785e-05 | D39: ='DF raw data'!L44 -> -8.6825057e-06 | F39: 1.745109371e-06 | G39: 1.111801913e-05 | H39: -8.694452828e-06 | J39: 0.0001627742444 | K39: 0.002021800394 | L39: 1.020053589e-05 | M39: -2.411628458e-05 | N39: 2.888389345e-07
A40: 16.93744 | B40: ='DF raw data'!J45 -> 3.4127442e-08 | C40: ='DF raw data'!K45 -> -4.2361071e-06 | D40: ='DF raw data'!L45 -> -5.0893177e-06 | F40: 3.417440136e-08 | G40: 4.251876315e-06 | H40: -5.096320601e-06 | J40: 0.0001627913371 | K40: 0.002103222109 | L40: 1.232715435e-05 | M40: -1.795073506e-05 | N40: 3.021696881e-07
A41: 17.4376 | B41: ='DF raw data'!J46 -> -2.3423604e-06 | C41: ='DF raw data'!K46 -> -7.3679093e-06 | D41: ='DF raw data'!L46 -> -6.5286185e-06 | F41: -2.345583488e-06 | G41: 7.395336876e-06 | H41: -6.537601879e-06 | J41: 0.00016161817 | K41: 0.002184057053 | L41: 1.602600604e-05 | M41: -9.935167879e-06 | N41: 3.153625413e-07
A42: 17.93776 | B42: ='DF raw data'!J47 -> -3.743768e-06 | C42: ='DF raw data'!K47 -> 6.1448453e-08 | D42: ='DF raw data'!L47 -> -2.3809737e-06 | F42: -3.748919425e-06 | G42: -6.167719932e-08 | H42: -2.38424992e-06 | J42: 0.0001597431105 | K42: 0.002263954167 | L42: 1.599515758e-05 | M42: -1.935029866e-06 | N42: 3.282535183e-07
A43: 18.43792 | B43: ='DF raw data'!J48 -> -3.2423382e-06 | C43: ='DF raw data'!K48 -> -2.9050377e-06 | D43: ='DF raw data'!L48 -> -2.1882093e-07 | F43: -3.246799657e-06 | G43: 2.915851913e-06 | H43: -2.191220276e-07 | J43: 0.0001581191912 | K43: 0.002343039061 | L43: 1.745355007e-05 | M43: 6.794537736e-06 | N43: 3.409107198e-07
A44: 18.93808 | B44: ='DF raw data'!J49 -> -2.2043209e-06 | C44: ='DF raw data'!K49 -> -8.9163323e-06 | D44: ='DF raw data'!L49 -> -5.0684212e-06 | F44: -2.207354046e-06 | G44: 8.949523993e-06 | H44: -5.075395348e-06 | J44: 0.000157015161 | K44: 0.002421571764 | L44: 2.192974399e-05 | M44: 1.776291849e-05 | N44: 3.534820786e-07
A45: 19.43824 | B45: ='DF raw data'!J50 -> -1.6523668e-06 | C45: ='DF raw data'!K50 -> -1.2073886e-05 | D45: ='DF raw data'!L50 -> -6.3851949e-06 | F45: -1.654640457e-06 | G45: 1.211883192e-05 | H45: -6.393980928e-06 | J45: 0.000156187576 | K45: 0.002499690542 | L45: 2.799109896e-05 | M45: 3.176294655e-05 | N45: 3.660751373e-07
A46: 19.9384 | B46: ='DF raw data'!J51 -> -1.5528462e-06 | C46: ='DF raw data'!K51 -> -2.8799534e-06 | D46: ='DF raw data'!L51 -> -4.126961e-07 | F46: -1.554982916e-06 | G46: 2.890674235e-06 | H46: -4.132639698e-07 | J46: 0.0001554098357 | K46: 0.002577420326 | L46: 2.943689858e-05 | M46: 4.648610574e-05 | N46: 3.785885144e-07
A47: 20.43856 | B47: ='DF raw data'!J52 -> 9.6467875e-07 | C47: ='DF raw data'!K52 -> -1.9739011e-05 | D47: ='DF raw data'!L52 -> 3.1738416e-06 | F47: 9.66006148e-07 | G47: 1.98124909e-05 | H47: 3.178208806e-06 | J47: 0.0001558929934 | K47: 0.002655391765 | L47: 3.934631403e-05 | M47: 6.616555817e-05 | N47: 3.915180294e-07
A48: 20.93872 | B48: ='DF raw data'!J53 -> -2.7613393e-07 | C48: ='DF raw data'!K53 -> -8.1827493e-06 | D48: ='DF raw data'!L53 -> -7.1805351e-07 | F48: -2.765138903e-07 | G48: 8.213210177e-06 | H48: -7.190415516e-07 | J48: 0.0001557546922 | K48: 0.002733294032 | L48: 4.345423323e-05 | M48: 8.789962746e-05 | N48: 4.045961103e-07
A49: 21.43888 | B49: ='DF raw data'!J54 -> -3.5377711e-06 | C49: ='DF raw data'!K54 -> -1.5300955e-05 | D49: ='DF raw data'!L54 -> -1.3073187e-06 | F49: -3.542639073e-06 | G49: 1.535791391e-05 | H49: -1.309117571e-06 | J49: 0.0001539828058 | K49: 0.002810310072 | L49: 5.113564746e-05 | M49: 0.0001134756329 | N49: 4.177631018e-07
A50: 21.93904 | B50: ='DF raw data'!J55 -> -4.455313e-06 | C50: ='DF raw data'!K55 -> -1.1498015e-05 | D50: ='DF raw data'!L55 -> -1.5592269e-06 | F50: -4.461443511e-06 | G50: 1.154081719e-05 | H50: -1.561372396e-06 | J50: 0.0001517513702 | K50: 0.002886210038 | L50: 5.690790258e-05 | M50: 0.0001419386895 | N50: 4.309007984e-07
A51: 22.4392 | B51: ='DF raw data'!J56 -> -1.1684429e-06 | C51: ='DF raw data'!K56 -> -8.7494145e-06 | D51: ='DF raw data'!L56 -> -4.4910499e-07 | F51: -1.170050677e-06 | G51: 8.781984829e-06 | H51: -4.497229585e-07 | J51: 0.0001511661577 | K51: 0.002961817303 | L51: 6.130030012e-05 | M51: 0.0001725986476 | N51: 4.442095229e-07
A52: 22.93936 | B52: ='DF raw data'!J57 -> 2.381104e-06 | C52: ='DF raw data'!K57 -> 6.9613684e-06 | D52: ='DF raw data'!L57 -> 5.8868427e-06 | F52: 2.384380399e-06 | G52: -6.987282598e-06 | H52: 5.894942996e-06 | J52: 0.0001523587294 | K52: 0.003038021045 | L52: 5.780554085e-05 | M52: 0.0002015106669 | N52: 4.574911031e-07
A53: 23.43952 | B53: ='DF raw data'!J58 -> 4.2640345e-06 | C53: ='DF raw data'!K58 -> 1.0532813e-05 | D53: ='DF raw data'!L58 -> 5.7504767e-06 | F53: 4.269901811e-06 | G53: -1.057202216e-05 | H53: 5.758389356e-06 | J53: 0.0001544943635 | K53: 0.003115292946 | L53: 5.251783825e-05 | M53: 0.0002277779888 | N53: 4.708086792e-07
A54: 23.93968 | B54: ='DF raw data'!J59 -> 3.202385e-06 | C54: ='DF raw data'!K59 -> 1.0784056e-05 | D54: ='DF raw data'!L59 -> 5.8703408e-06 | F54: 3.206791482e-06 | G54: -1.082420043e-05 | H54: 5.878418389e-06 | J54: 0.0001560982723 | K54: 0.003193367058 | L54: 4.710400616e-05 | M54: 0.0002513375286 | N54: 4.841056619e-07
A55: 24.43984 | B55: ='DF raw data'!J60 -> -2.0197739e-07 | C55: ='DF raw data'!K60 -> 8.9310021e-07 | D55: ='DF raw data'!L60 -> 2.45764e-06 | F55: -2.022553109e-07 | G55: -8.964248402e-07 | H55: 2.461021713e-06 | J55: 0.0001559971123 | K55: 0.003271390574 | L55: 4.665565031e-05 | M55: 0.0002746728186 | N55: 4.973658282e-07
A56: 24.94 | B56: ='DF raw data'!J61 -> -2.7001338e-06 | C56: ='DF raw data'!K61 -> -2.6489911e-06 | D56: ='DF raw data'!L61 -> 7.0347943e-07 | F56: -2.703849184e-06 | G56: 2.658852161e-06 | H56: 7.044474177e-07 | J56: 0.0001546447551 | K56: 0.003348737694 | L56: 4.798550181e-05 | M56: 0.0002986732472 | N56: 5.104788273e-07
A57: 25.44016 | B57: ='DF raw data'!J62 -> -2.8066684e-06 | C57: ='DF raw data'!K62 -> 3.4685115e-06 | D57: ='DF raw data'!L62 -> -1.162629e-06 | F57: -2.810530376e-06 | G57: -3.481423285e-06 | H57: -1.164228778e-06 | J57: 0.0001532390402 | K57: 0.003425381733 | L57: 4.624423314e-05 | M57: 0.0003218027629 | N57: 5.232932929e-07
A58: 25.94032 | B58: ='DF raw data'!J63 -> -7.6413244e-07 | C58: ='DF raw data'!K63 -> 7.5599223e-06 | D58: ='DF raw data'!L63 -> -1.9586771e-06 | F58: -7.651838862e-07 | G58: -7.588064658e-06 | H58: -1.96137224e-06 | J58: 0.0001528563258 | K58: 0.003501834353 | L58: 4.244898672e-05 | M58: 0.0003430340481 | N58: 5.35880806e-07
A59: 26.44048 | B59: ='DF raw data'!J64 -> 1.3484128e-06 | C59: ='DF raw data'!K64 -> -2.7758981e-07 | D59: ='DF raw data'!L64 -> -1.6977903e-06 | F59: 1.350268216e-06 | G59: 2.786231582e-07 | H59: -1.700126459e-06 | J59: 0.000153531676 | K59: 0.003578624756 | L59: 4.258834288e-05 | M59: 0.0003643350336 | N59: 5.48577739e-07
A60: 26.94064 | B60: ='DF raw data'!J65 -> 8.2623183e-07 | C60: ='DF raw data'!K65 -> 3.1665656e-06 | D60: ='DF raw data'!L65 -> -1.673896e-06 | F60: 8.27368725e-07 | G60: -3.17835337e-06 | H60: -1.676199281e-06 | J60: 0.0001539454927 | K60: 0.003655622133 | L60: 4.099865766e-05 | M60: 0.0003848409223 | N60: 5.612718521e-07
A61: 27.4408 | B61: ='DF raw data'!J66 -> 4.1826891e-07 | C61: ='DF raw data'!K66 -> 5.1380862e-06 | D61: ='DF raw data'!L66 -> -3.9238839e-06 | F61: 4.18844448e-07 | G61: -5.157213098e-06 | H61: -3.929283164e-06 | J61: 0.000154154982 | K61: 0.003732724289 | L61: 3.841922596e-05 | M61: 0.0004040566823 | N61: 5.738957882e-07
A62: 27.94096 | B62: ='DF raw data'!J67 -> 1.337397e-06 | C62: ='DF raw data'!K67 -> 1.2987186e-06 | D62: ='DF raw data'!L67 -> -1.2195629e-05 | F62: 1.339237258e-06 | G62: -1.303553174e-06 | H62: -1.221241019e-05 | J62: 0.0001548248149 | K62: 0.003810161468 | L62: 3.77672408e-05 | M62: 0.0004229463455 | N62: 5.865983956e-07
A63: 28.44112 | B63: ='DF raw data'!J68 -> 1.5187575e-06 | C63: ='DF raw data'!K68 -> -3.935229e-06 | D63: ='DF raw data'!L68 -> -1.2943161e-05 | F63: 1.52084731e-06 | G63: 3.949878175e-06 | H63: -1.296097079e-05 | J63: 0.0001555854819 | K63: 0.003887979103 | L63: 3.974281187e-05 | M63: 0.0004428241103 | N63: 5.994956881e-07
A64: 28.94128 | B64: ='DF raw data'!J69 -> 1.7609592e-07 | C64: ='DF raw data'!K69 -> 4.509644e-06 | D64: ='DF raw data'!L69 -> -2.1491617e-06 | F64: 1.76338228e-07 | G64: -4.526431476e-06 | H64: -2.152118946e-06 | J64: 0.0001556736792 | K64: 0.00396584085 | L64: 3.74788719e-05 | M64: 0.0004615695428 | N64: 6.123192704e-07
A65: 29.44144 | B65: ='DF raw data'!J70 -> -4.3667066e-07 | C65: ='DF raw data'!K70 -> -6.2650196e-07 | D65: ='DF raw data'!L70 -> 3.7267707e-06 | F65: -4.372715188e-07 | G65: 6.288341589e-07 | H65: 3.731898736e-06 | J65: 0.0001554549735 | K65: 0.00404359321 | L65: 3.779338959e-05 | M65: 0.0004804722846 | N65: 6.251206601e-07
A66: 29.9416 | B66: ='DF raw data'!J71 -> -2.5056911e-06 | C66: ='DF raw data'!K71 -> -1.0231257e-05 | D66: ='DF raw data'!L71 -> 4.0551444e-07 | F66: -2.509138931e-06 | G66: 1.02693436e-05 | H66: 4.060724279e-07 | J66: 0.0001542000025 | K66: 0.004120717883 | L66: 4.292970449e-05 | M66: 0.0005019440056 | N66: 6.379350595e-07
A67: 30.44176 | B67: ='DF raw data'!J72 -> -8.1415601e-06 | C67: ='DF raw data'!K72 -> -4.0466407e-06 | D67: ='DF raw data'!L72 -> -1.905839e-06 | F67: -8.152762887e-06 | G67: 4.061704613e-06 | H67: -1.908461434e-06 | J67: 0.0001501223167 | K67: 0.004195803061 | L67: 4.496120667e-05 | M67: 0.0005244318027 | N67: 6.502180989e-07
A68: 30.94192 | B68: ='DF raw data'!J73 -> -1.2173023e-05 | C68: ='DF raw data'!K73 -> -4.1180242e-06 | D68: ='DF raw data'!L73 -> -2.6509699e-06 | F68: -1.218977308e-05 | G68: 4.133353843e-06 | H68: -2.654617635e-06 | J68: 0.0001440254798 | K68: 0.004267838845 | L68: 4.702854492e-05 | M68: 0.0005479535997 | N68: 6.616992831e-07
A69: 31.44208 | B69: ='DF raw data'!J74 -> -1.0852582e-05 | C69: ='DF raw data'!K74 -> -3.4889151e-06 | D69: ='DF raw data'!L74 -> -7.5385122e-07 | F69: -1.086751515e-05 | G69: 3.501902839e-06 | H69: -7.548885193e-07 | J69: 0.0001385899834 | K69: 0.004337156011 | L69: 4.878005665e-05 | M69: 0.0005723514328 | N69: 6.724960757e-07
A70: 31.94224 | B70: ='DF raw data'!J75 -> -6.6172038e-06 | C70: ='DF raw data'!K75 -> 9.0434987e-06 | D70: ='DF raw data'!L75 -> -5.8765909e-06 | F70: -6.626309072e-06 | G70: -9.077163779e-06 | H70: -5.884677089e-06 | J70: 0.0001352757686 | K70: 0.00440481554 | L70: 4.424002241e-05 | M70: 0.0005944785225 | N70: 6.826276734e-07
A71: 32.4424 | B71: ='DF raw data'!J76 -> -3.1570348e-06 | C71: ='DF raw data'!K76 -> 1.7769219e-06 | D71: ='DF raw data'!L76 -> -8.7310218e-06 | F71: -3.16137888e-06 | G71: =(1-$G$1*($B$2-$G$2))*C71*$M$2/$M$1 -> -1.78353662e-06 | H71: -8.743035686e-06 | J71: 0.0001336945734 | K71: 0.004471684217 | L71: 4.334796874e-05 | M71: 0.0006161594425 | N71: 6.925074766e-07
A72: =A71+$B$1 -> 32.94256 | B72: ='DF raw data'!J77 -> -3.2492794e-06 | C72: ='DF raw data'!K77 -> -1.015709e-06 | D72: ='DF raw data'!L77 -> -5.4347947e-06 | F72: -3.253750408e-06 | G72: 1.01949005e-06 | H72: -5.442272978e-06 | J72: =F72*$B$1+J71 -> 0.0001320671776 | K72: =J72*$B$1+K71 -> 0.004537738937 | L72: =G72*$B$1+L71 -> 4.385787688e-05 | M72: =L72*$B$1+M71 -> 0.0006380953982 | N72: =(J72^2+L72^2)*$B$1+N71 -> 7.021932014e-07
A73: 33.44272 | B73: ='DF raw data'!J78 -> -4.8654297e-06 | C73: ='DF raw data'!K78 -> 4.7024459e-06 | D73: ='DF raw data'!L78 -> -2.4696822e-06 | F73: -4.872124531e-06 | G73: -4.719951095e-06 | H73: -2.473080483e-06 | J73: 0.0001296303358 | K73: 0.004602574846 | L73: 4.149714614e-05 | M73: 0.0006588506108 | N73: 7.114591841e-07
A74: 33.94288 | B74: ='DF raw data'!J79 -> -4.8219049e-06 | C74: ='DF raw data'!K79 -> 2.2320417e-06 | D74: ='DF raw data'!L79 -> -1.3923019e-06 | F74: -4.828539841e-06 | G74: -2.240350637e-06 | H74: -1.394217707e-06 | J74: 0.0001272152933 | K74: 0.004666202847 | L74: 4.037661237e-05 | M74: 0.0006790453773 | N74: 7.203690352e-07
A75: 34.44304 | B75: ='DF raw data'!J80 -> -1.6442905e-06 | C75: ='DF raw data'!K80 -> -7.4144755e-06 | D75: ='DF raw data'!L80 -> -5.8823098e-06 | F75: -1.646553044e-06 | G75: 7.442076422e-06 | H75: -5.890403858e-06 | J75: 0.0001263917533 | K75: 0.004729418946 | L75: 4.409884131e-05 | M75: 0.0007011018537 | N75: 7.293316938e-07
A76: 34.9432 | B76: ='DF raw data'!J81 -> 4.7813546e-07 | C76: ='DF raw data'!K81 -> 3.0360741e-06 | D76: ='DF raw data'!L81 -> -4.8385446e-06 | F76: 4.787933744e-07 | G76: -3.047376106e-06 | H76: -4.845202437e-06 | J76: 0.0001266312266 | K76: 0.00479275482 | L76: 4.257466568e-05 | M76: 0.0007223959985 | N76: 7.382585844e-07
A77: 35.44336 | B77: ='DF raw data'!J82 -> 3.7807652e-07 | C77: ='DF raw data'!K82 -> -1.8404223e-06 | D77: ='DF raw data'!L82 -> 1.2928175e-06 | F77: 3.785967533e-07 | G77: 1.847273405e-06 | H77: 1.294596417e-06 | J77: 0.0001268205856 | K77: 0.004856185404 | L77: 4.349859794e-05 | M77: 0.0007441522573 | N77: 7.47249255e-07
A78: 35.94352 | B78: ='DF raw data'!J83 -> -1.1637717e-06 | C78: ='DF raw data'!K83 -> -6.9618904e-06 | D78: ='DF raw data'!L83 -> 4.5262823e-06 | F78: -1.16537305e-06 | G78: 6.987806541e-06 | H78: 4.532510464e-06 | J78: 0.0001262377126 | K78: 0.004919324459 | L78: 4.699361926e-05 | M78: 0.0007676565859 | N78: 7.563243382e-07
A79: 36.44368 | B79: ='DF raw data'!J84 -> -3.9116389e-06 | C79: ='DF raw data'!K84 -> 2.6413961e-06 | D79: ='DF raw data'!L84 -> -7.5943916e-07 | F79: -3.917021315e-06 | G79: -2.651228888e-06 | H79: -7.604841483e-07 | J79: 0.0001242785752 | K79: 0.004981483631 | L79: 4.566758062e-05 | M79: 0.000790497683 | N79: 7.650924892e-07
A80: 36.94384 | B80: ='DF raw data'!J85 -> -6.0833377e-06 | C80: ='DF raw data'!K85 -> 1.2849108e-05 | D80: ='DF raw data'!L85 -> -5.9545363e-07 | F80: -6.091708373e-06 | G80: -1.289693974e-05 | H80: -5.962729742e-07 | J80: 0.0001212317463 | K80: 0.005042118901 | L80: 3.921704724e-05 | M80: 0.0008101124813 | N80: 7.732126434e-07
A81: 37.444 | B81: ='DF raw data'!J86 -> -5.2976943e-06 | C81: ='DF raw data'!K86 -> 5.1490265e-06 | D81: ='DF raw data'!L86 -> 8.6639448e-06 | F81: -5.304983927e-06 | G81: -5.168194124e-06 | H81: 8.675866388e-06 | J81: 0.0001185784056 | K81: 0.005101427077 | L81: 3.663212327e-05 | M81: 0.0008284344041 | N81: 7.809164832e-07
A82: 37.94416 | B82: ='DF raw data'!J87 -> -2.020894e-06 | C82: ='DF raw data'!K87 -> -7.8685289e-06 | D82: ='DF raw data'!L87 -> 4.7924368e-06 | F82: -2.02367475e-06 | G82: 7.897820069e-06 | H82: 4.799031193e-06 | J82: 0.0001175662444 | K82: 0.005160229009 | L82: 4.058229696e-05 | M82: 0.0008487320458 | N82: 7.886533305e-07
A83: 38.44432 | B83: ='DF raw data'!J88 -> 3.9395236e-08 | C83: ='DF raw data'!K88 -> -5.8629844e-06 | D83: ='DF raw data'!L88 -> 6.3672979e-07 | F83: 3.944944384e-08 | G83: 5.884809784e-06 | H83: 6.376059302e-07 | J83: 0.0001175859754 | K83: 0.005219040811 | L83: 4.352564342e-05 | M83: 0.0008705018316 | N83: 7.965163175e-07
A84: 38.94448 | B84: ='DF raw data'!J89 -> 1.9993196e-07 | C84: ='DF raw data'!K89 -> 5.1739776e-06 | D84: ='DF raw data'!L89 -> -9.5324157e-07 | F84: 2.002070664e-07 | G84: -5.193238106e-06 | H84: -9.545532304e-07 | J84: 0.000117686111 | K84: 0.005277902696 | L84: 4.092819345e-05 | M84: 0.0008909724768 | N84: 8.042813704e-07
A85: 39.44464 | B85: ='DF raw data'!J90 -> 8.3397344e-07 | C85: ='DF raw data'!K90 -> -2.338239e-06 | D85: ='DF raw data'!L90 -> -4.7747199e-06 | F85: 8.351209875e-07 | G85: 2.346943264e-06 | H85: -4.781289915e-06 | J85: 0.0001181038051 | K85: 0.005336973495 | L85: 4.210204059e-05 | M85: 0.0009120302334 | N85: 8.121444311e-07
A86: 39.9448 | B86: ='DF raw data'!J91 -> 1.8406313e-06 | C86: ='DF raw data'!K91 -> -5.4697938e-07 | D86: ='DF raw data'!L91 -> 2.860437e-06 | F86: 1.843164009e-06 | G86: 5.490155504e-07 | H86: 2.864372961e-06 | J86: 0.000119025682 | K86: 0.00539650538 | L86: 4.237663621e-05 | M86: 0.0009332253318 | N86: 8.201284313e-07
A87: 40.44496 | B87: ='DF raw data'!J92 -> 4.2085626e-06 | C87: ='DF raw data'!K92 -> -7.1222703e-06 | D87: ='DF raw data'!L92 -> 9.1871298e-06 | F87: =(1-$G$1*($B$2-$G$2))*B87 -> 4.214353582e-06 | G87: 7.148783467e-06 | H87: 9.199771291e-06 | J87: 0.0001211335331 | K87: 0.005457091528 | L87: 4.595217175e-05 | M87: 0.00095620877 | N87: 8.285235843e-07
A88: 40.94512 | B88: ='DF raw data'!J93 -> 5.5788728e-06 | C88: ='DF raw data'!K93 -> -6.1809415e-06 | D88: ='DF raw data'!L93 -> 4.6029563e-06 | F88: 5.586549329e-06 | G88: 6.203950502e-06 | H88: 4.609289968e-06 | J88: 0.0001239277016 | K88: 0.005519075208 | L88: 4.905513963e-05 | M88: 0.0009807441886 | N88: 8.374086676e-07
A89: 41.44528 | B89: ='DF raw data'!J94 -> 4.7282115e-06 | C89: ='DF raw data'!K94 -> -4.8173337e-07 | D89: ='DF raw data'!L94 -> 5.2746145e-06 | F89: 4.734717519e-06 | G89: 4.835266574e-07 | H89: 5.28187237e-06 | J89: 0.0001262958179 | K89: 0.005582243324 | L89: 4.929698032e-05 | M89: 0.001005400566 | N89: 8.466020215e-07
A90: 41.94544 | B90: ='DF raw data'!J95 -> 3.5612934e-06 | C90: ='DF raw data'!K95 -> -3.7592574e-07 | D90: ='DF raw data'!L95 -> 9.8745622e-06 | F90: 3.56619374e-06 | G90: 3.773251508e-07 | H90: 9.888149598e-06 | J90: 0.0001280794854 | K90: 0.005646303559 | L90: 4.948570327e-05 | M90: 0.001030151336 | N90: 8.560316327e-07
A91: 42.4456 | B91: ='DF raw data'!J96 -> 2.5139921e-06 | C91: ='DF raw data'!K96 -> 2.5890929e-06 | D91: ='DF raw data'!L96 -> 8.1339058e-06 | F91: 2.517451353e-06 | G91: -2.598730986e-06 | H91: 8.145098054e-06 | J91: 0.0001293386139 | K91: 0.00571099356 | L91: 4.818592198e-05 | M91: 0.001054252006 | N91: 8.655598608e-07
A92: 42.94576 | B92: ='DF raw data'!J97 -> 1.8767346e-06 | C92: ='DF raw data'!K97 -> 6.5913741e-06 | D92: ='DF raw data'!L97 -> -4.3146807e-07 | F92: 1.879316987e-06 | G92: -6.615910967e-06 | H92: -4.320617701e-07 | J92: 0.0001302785731 | K92: 0.005776153691 | L92: 4.487690795e-05 | M92: 0.001076697641 | N92: 8.750561204e-07
A93: 43.44592 | B93: ='DF raw data'!J98 -> 3.9126057e-06 | C93: ='DF raw data'!K98 -> -4.2178276e-06 | D93: ='DF raw data'!L98 -> -3.8563339e-06 | F93: 3.917989445e-06 | G93: 4.233528769e-06 | H93: -3.861640215e-06 | J93: 0.0001322381947 | K93: 0.005842293947 | L93: 4.69943497e-05 | M93: 0.001100202335 | N93: 8.849069762e-07
A94: 43.94608 | B94: ='DF raw data'!J99 -> 6.5575473e-06 | C94: ='DF raw data'!K99 -> -1.3727183e-05 | D94: ='DF raw data'!L99 -> -2.3308569e-06 | F94: 6.566570485e-06 | G94: 1.377828343e-05 | H94: -2.334064159e-06 | J94: 0.0001355225305 | K94: 0.005910076896 | L94: 5.388569594e-05 | M94: 0.001127153804 | N94: 8.955453916e-07
A95: 44.44624 | B95: ='DF raw data'!J100 -> 6.6605458e-06 | C95: ='DF raw data'!K100 -> -3.7932623e-06 | D95: ='DF raw data'!L100 -> 2.5043662e-06 | F95: 6.669710711e-06 | G95: 3.807382994e-06 | H95: 2.507812208e-06 | J95: 0.0001388584531 | K95: 0.00597952834 | L95: 5.578999662e-05 | M95: 0.001155057729 | N95: 9.067460715e-07
A96: 44.9464 | B96: ='DF raw data'!J101 -> 6.3898074e-06 | C96: ='DF raw data'!K101 -> 3.3909903e-06 | D96: ='DF raw data'!L101 -> 3.5792871e-06 | F96: 6.398599775e-06 | G96: -3.403613507e-06 | H96: 3.584212199e-06 | J96: 0.0001420587767 | K96: 0.006050580457 | L96: 5.408764529e-05 | M96: 0.001182110206 | N96: 9.183028532e-07
A97: 45.44656 | B97: ='DF raw data'!J102 -> 6.1013739e-06 | C97: ='DF raw data'!K102 -> 3.6553095e-06 | D97: ='DF raw data'!L102 -> 1.6964003e-06 | F97: 6.10976939e-06 | G97: -3.668916654e-06 | H97: 1.698734547e-06 | J97: 0.000145114639 | K97: 0.006123160995 | L97: 5.225259993e-05 | M97: 0.001208244866 | N97: 9.302009557e-07
A98: 45.94672 | B98: ='DF raw data'!J103 -> 4.3538053e-06 | C98: ='DF raw data'!K103 -> 7.1748514e-06 | D98: ='DF raw data'!L103 -> 8.4243475e-06 | F98: 4.359796136e-06 | G98: -7.201560304e-06 | H98: 8.435939402e-06 | J98: 0.0001472952346 | K98: 0.00619683218 | L98: 4.865066753e-05 | M98: 0.001232577984 | N98: 9.422361926e-07
A99: 46.44688 | B99: ='DF raw data'!J104 -> 2.9217658e-06 | C99: ='DF raw data'!K104 -> 3.2451542e-06 | D99: ='DF raw data'!L104 -> 8.1813596e-06 | F99: 2.92578615e-06 | G99: -3.257234522e-06 | H99: 8.192617151e-06 | J99: 0.0001487585958 | K99: 0.006271235279 | L99: 4.702152911e-05 | M99: 0.001256096272 | N99: 9.54410159e-07
A100: 46.94704 | B100: ='DF raw data'!J105 -> 2.3712814e-06 | C100: ='DF raw data'!K105 -> 7.8974927e-06 | D100: ='DF raw data'!L105 -> 2.8955799e-06 | F100: 2.374544283e-06 | G100: -7.926891689e-06 | H100: 2.899564218e-06 | J100: 0.0001499462479 | K100: 0.006346232394 | L100: 4.305681497e-05 | M100: 0.001277631569 | N100: 9.665829363e-07
A101: 47.4472 | B101: ='DF raw data'!J106 -> 2.0133043e-06 | C101: ='DF raw data'!K106 -> 1.5065982e-06 | D101: ='DF raw data'!L106 -> 7.2338645e-07 | F101: 2.016074607e-06 | G101: -1.512206621e-06 | H101: 7.243818298e-07 | J101: 0.0001509546078 | K101: 0.006421733851 | L101: 4.23004697e-05 | M101: 0.001298788571 | N101: 9.788751803e-07
A102: 47.94736 | B102: ='DF raw data'!J107 -> 3.2974961e-07 | C102: ='DF raw data'!K107 -> -4.0303626e-06 | D102: ='DF raw data'!L107 -> 1.1929914e-06 | F102: 3.302033455e-07 | G102: 4.045365917e-06 | H102: 1.194632956e-06 | J102: 0.0001511197623 | K102: 0.006497317911 | L102: 4.432379992e-05 | M102: 0.001320957563 | N102: 9.912800394e-07
A103: 48.44752 | B103: ='DF raw data'!J108 -> -1.9367985e-06 | C103: ='DF raw data'!K108 -> 2.7466701e-06 | D103: ='DF raw data'!L108 -> 8.2596343e-06 | F103: -1.939463535e-06 | G103: -2.756894778e-06 | H103: 8.270999557e-06 | J103: 0.0001501497202 | K103: 0.006572416795 | L103: 4.294491143e-05 | M103: 0.00134243689 | N103: 1.003478544e-06
A104: 48.94768 | B104: ='DF raw data'!J109 -> -3.2127687e-06 | C104: ='DF raw data'!K109 -> 4.5193838e-06 | D104: ='DF raw data'!L109 -> 1.0027314e-05 | F104: -3.21718947e-06 | G104: -4.536207534e-06 | H104: 1.004111158e-05 | J104: 0.0001485406107 | K104: 0.006646710867 | L104: 4.067608187e-05 | M104: 0.001362781439 | N104: 1.015341767e-06
A105: 49.44784 | B105: ='DF raw data'!J110 -> -2.9793559e-06 | C105: ='DF raw data'!K110 -> -1.2177178e-06 | D105: ='DF raw data'!L110 -> 4.9447081e-06 | F105: -2.983455494e-06 | G105: 1.222250843e-06 | H105: 4.951512018e-06 | J105: 0.0001470484056 | K105: 0.006720258598 | L105: 4.128740285e-05 | M105: 0.001383431747 | N105: 1.027009441e-06
A106: 49.948 | B106: ='DF raw data'!J111 -> -3.4313821e-06 | C106: ='DF raw data'!K111 -> 6.3564089e-06 | D106: ='DF raw data'!L111 -> -2.7393583e-06 | F106: -3.436103682e-06 | G106: -6.380071093e-06 | H106: -2.743127657e-06 | J106: 0.000145329804 | K106: 0.006792946753 | L106: 3.809634649e-05 | M106: 0.001402486015 | N106: 1.038299094e-06
A107: 50.44816 | B107: ='DF raw data'!J112 -> -4.071579e-06 | C107: ='DF raw data'!K112 -> 8.1643466e-06 | D107: ='DF raw data'!L112 -> -3.9499173e-06 | F107: -4.077181493e-06 | G107: -8.194738972e-06 | H107: -3.955352386e-06 | J107: 0.0001432905609 | K107: 0.006864614959 | L107: 3.399766585e-05 | M107: 0.001419490288 | N107: 1.049146578e-06
A108: 50.94832 | B108: ='DF raw data'!J113 -> -4.4106678e-06 | C108: ='DF raw data'!K113 -> -2.278864e-06 | D108: ='DF raw data'!L113 -> -1.2691199e-06 | F108: -4.416736879e-06 | G108: 2.287347236e-06 | H108: -1.270866209e-06 | J108: 0.0001410814858 | K108: 0.006935178275 | L108: 3.514170544e-05 | M108: 0.001437066763 | N108: 1.059719422e-06
A109: 51.44848 | B109: ='DF raw data'!J114 -> -4.9384512e-06 | C109: ='DF raw data'!K114 -> 2.2343099e-06 | D109: ='DF raw data'!L114 -> 2.2006095e-06 | F109: -4.945246509e-06 | G109: -2.24262728e-06 | H109: 2.203637539e-06 | J109: 0.0001386080713 | K109: 0.007004504488 | L109: 3.402003298e-05 | M109: 0.001454082223 | N109: 1.069907461e-06
A110: 51.94864 | B110: ='DF raw data'!J115 -> -3.04791e-06 | C110: ='DF raw data'!K115 -> 1.2749839e-05 | D110: ='DF raw data'!L115 -> 3.9298284e-06 | F110: -3.052103924e-06 | G110: -1.27973012e-05 | H110: 3.935235844e-06 | J110: 0.000137081531 | K110: 0.007073067187 | L110: 2.761933481e-05 | M110: 0.001467896309 | N110: 1.079687677e-06
A111: 52.4488 | B111: ='DF raw data'!J116 -> 1.0979015e-06 | C111: ='DF raw data'!K116 -> 1.0824618e-05 | D111: ='DF raw data'!L116 -> 6.5465247e-06 | F111: 1.099412212e-06 | G111: -1.086491342e-05 | H111: 6.555532718e-06 | J111: 0.000137631413 | K111: 0.007141904914 | L111: 2.218513971e-05 | M111: 0.001478992429 | N111: 1.08940808e-06
A112: 52.94896 | B112: ='DF raw data'!J117 -> 4.8296674e-06 | C112: ='DF raw data'!K117 -> 3.5060045e-06 | D112: ='DF raw data'!L117 -> 4.5408633e-06 | F112: 4.836313022e-06 | G112: -3.519055856e-06 | H112: 4.547111528e-06 | J112: 0.0001400503433 | K112: 0.007211952494 | L112: 2.042504874e-05 | M112: 0.001489208221 | N112: 1.099426925e-06
A113: 53.44912 | B113: ='DF raw data'!J118 -> 7.6731994e-06 | C113: ='DF raw data'!K118 -> 1.950644e-06 | D113: ='DF raw data'!L118 -> -5.9744816e-06 | F113: 7.683757722e-06 | G113: -1.957905414e-06 | H113: -5.982702487e-06 | J113: 0.0001438934516 | K113: 0.007283922243 | L113: 1.944578277e-05 | M113: 0.001498934224 | N113: 1.109972031e-06
A114: 53.94928 | B114: ='DF raw data'!J119 -> 8.3261439e-06 | C114: ='DF raw data'!K119 -> 1.0793129e-05 | D114: ='DF raw data'!L119 -> -7.4875898e-06 | F114: 8.337600674e-06 | G114: -1.08333072e-05 | H114: -7.497892724e-06 | J114: 0.0001480635859 | K114: 0.007357977726 | L114: 1.402739583e-05 | M114: 0.001505950166 | N114: 1.121035366e-06
A115: 54.44944 | B115: ='DF raw data'!J120 -> 6.7922406e-06 | C115: ='DF raw data'!K120 -> 4.0481191e-06 | D115: ='DF raw data'!L120 -> 1.7157785e-07 | F115: 6.801586723e-06 | G115: -4.063188517e-06 | H115: 1.718139411e-07 | J115: 0.0001514654675 | K115: 0.007433734694 | L115: 1.199515147e-05 | M115: 0.001511949661 | N115: 1.132581896e-06
A116: 54.9496 | B116: ='DF raw data'!J121 -> 5.0577542e-06 | C116: ='DF raw data'!K121 -> 3.1187985e-06 | D116: ='DF raw data'!L121 -> 1.4153446e-06 | F116: 5.06471367e-06 | G116: -3.130408453e-06 | H116: 1.417292114e-06 | J116: 0.0001539986347 | K116: 0.007510758651 | L116: 1.042944637e-05 | M116: 0.001517166053 | N116: 1.144497884e-06
A117: 55.44976 | B117: ='DF raw data'!J122 -> 3.9950278e-06 | C117: ='DF raw data'!K122 -> 5.1825168e-06 | D117: ='DF raw data'!L122 -> 2.2458078e-06 | F117: 4.000524958e-06 | G117: -5.201809094e-06 | H117: 2.248898032e-06 | J117: 0.0001559995373 | K117: 0.00758878338 | L117: 7.827709537e-06 | M117: 0.00152108116 | N117: 1.156700352e-06
A118: 55.94992 | B118: ='DF raw data'!J123 -> 1.791504e-06 | C118: ='DF raw data'!K123 -> -3.8228832e-06 | D118: ='DF raw data'!L123 -> 3.3801587e-06 | F118: 1.79396911e-06 | G118: 3.83711416e-06 | H118: 3.384809798e-06 | J118: 0.0001568968089 | K118: 0.007667256888 | L118: 9.746880555e-06 | M118: 0.00152595616 | N118: 1.169060111e-06
A119: 56.45008 | B119: ='DF raw data'!J124 -> -1.9889962e-06 | C119: ='DF raw data'!K124 -> -5.2672322e-06 | D119: ='DF raw data'!L124 -> 2.2572601e-06 | F119: -1.991733059e-06 | G119: 5.286839853e-06 | H119: 2.26036609e-06 | J119: 0.0001559006237 | K119: 0.007745232144 | L119: 1.239114638e-05 | M119: 0.001532153716 | N119: 1.181293297e-06
A120: 56.95024 | B120: ='DF raw data'!J125 -> -5.2856744e-06 | C120: ='DF raw data'!K125 -> 3.9448267e-07 | D120: ='DF raw data'!L125 -> -1.1959675e-06 | F120: -5.292947488e-06 | G120: -3.959511603e-07 | H120: -1.197613151e-06 | J120: 0.0001532533031 | K120: 0.007821883316 | L120: 1.219310744e-05 | M120: 0.001538252221 | N120: 1.193114702e-06
A121: 57.4504 | B121: ='DF raw data'!J126 -> -6.5589234e-06 | C121: ='DF raw data'!K126 -> 5.9307763e-06 | D121: ='DF raw data'!L126 -> -3.6256572e-06 | F121: -6.567948479e-06 | G121: -5.952854044e-06 | H121: -3.630646104e-06 | J121: 0.0001499682779 | K121: 0.00789689145 | L121: 9.215727965e-06 | M121: 0.001542861559 | N121: 1.204406021e-06
A122: 57.95056 | B122: ='DF raw data'!J127 -> -5.7582042e-06 | C122: ='DF raw data'!K127 -> 1.5444934e-05 | D122: ='DF raw data'!L127 -> 1.33122e-06 | F122: -5.766127489e-06 | G122: -1.550242889e-05 | H122: 1.333051759e-06 | J122: 0.0001470842916 | K122: 0.007970457129 | L122: 1.462033134e-06 | M122: 0.00154359281 | N122: 1.215227446e-06
A123: 58.45072 | B123: ='DF raw data'!J128 -> -1.5705414e-06 | C123: ='DF raw data'!K128 -> 1.0279969e-05 | D123: ='DF raw data'!L128 -> 7.9373094e-06 | F123: -1.572702465e-06 | G123: -1.031823693e-05 | H123: 7.948231138e-06 | J123: 0.0001462976888 | K123: 0.008043629381 | L123: -3.698736248e-06 | M123: 0.00154174285 | N123: 1.22593922e-06
A124: 58.95088 | B124: ='DF raw data'!J129 -> 2.0004259e-06 | C124: ='DF raw data'!K129 -> -2.6092298e-06 | D124: ='DF raw data'!L129 -> 2.1880367e-06 | F124: 2.003178486e-06 | G124: 2.618942847e-06 | H124: 2.191047438e-06 | J124: 0.0001472995985 | K124: 0.008117302748 | L124: -2.388845794e-06 | M124: 0.001540548044 | N124: 1.236794131e-06
A125: 59.45104 | B125: ='DF raw data'!J130 -> 1.7436428e-06 | C125: ='DF raw data'!K130 -> 3.0755684e-06 | D125: ='DF raw data'!L130 -> -1.3391273e-05 | F125: 1.746042052e-06 | G125: -3.087017426e-06 | H125: -1.340969939e-05 | J125: 0.0001481728989 | K125: 0.008191412905 | L125: -3.93284843e-06 | M125: 0.001538580991 | N125: 1.247782984e-06
A126: 59.9512 | B126: ='DF raw data'!J131 -> 1.6655426e-06 | C126: ='DF raw data'!K131 -> 1.3803586e-07 | D126: ='DF raw data'!L131 -> -1.002444e-05 | F126: 1.667834387e-06 | G126: -1.385497085e-07 | H126: -1.003823363e-05 | J126: 0.0001490070829 | K126: 0.008265940288 | L126: -4.002145452e-06 | M126: 0.001536579278 | N126: 1.258896103e-06
A127: 60.45136 | B127: ='DF raw data'!J132 -> 1.8529713e-06 | C127: ='DF raw data'!K132 -> -2.3713289e-06 | D127: ='DF raw data'!L132 -> -2.1134804e-06 | F127: 1.855520989e-06 | G127: 2.380156344e-06 | H127: -2.116388549e-06 | J127: 0.0001499351403 | K127: 0.008340931848 | L127: -2.811686455e-06 | M127: 0.001535172985 | N127: 1.270143928e-06
A128: 60.95152 | B128: ='DF raw data'!J133 -> 1.3781278e-06 | C128: ='DF raw data'!K133 -> 3.6989402e-06 | D128: ='DF raw data'!L133 -> -4.2067441e-06 | F128: 1.380024104e-06 | G128: -3.712709773e-06 | H128: -4.21253258e-06 | J128: 0.0001506253732 | K128: 0.008416268634 | L128: -4.668635375e-06 | M128: 0.00153283792 | N128: 1.281502461e-06
A129: 61.45168 | B129: ='DF raw data'!J134 -> 1.0226827e-06 | C129: ='DF raw data'!K134 -> 2.7893478e-07 | D129: ='DF raw data'!L134 -> -9.4868774e-06 | F129: 1.024089911e-06 | G129: -2.799731349e-07 | H129: -9.499931343e-06 | J129: 0.000151137582 | K129: 0.008491861607 | L129: -4.808666739e-06 | M129: 0.001530432817 | N129: 1.292938965e-06
A130: 61.95184 | B130: ='DF raw data'!J135 -> 9.2655249e-08 | C130: ='DF raw data'!K135 -> -1.295906e-06 | D130: ='DF raw data'!L135 -> -5.2776049e-06 | F130: 9.278274262e-08 | G130: 1.300730104e-06 | H130: -5.284866884e-06 | J130: 0.0001511839882 | K130: 0.008567477791 | L130: -4.15809357e-06 | M130: 0.001528353105 | N130: 1.304379569e-06
A131: 62.452 | B131: ='DF raw data'!J136 -> -8.1026201e-07 | C131: ='DF raw data'!K136 -> 4.0635969e-06 | D131: ='DF raw data'!L136 -> 4.6086025e-06 | F131: -8.113769305e-07 | G131: -4.078723934e-06 | H131: 4.614943937e-06 | J131: 0.0001507781699 | K131: 0.008642891 | L131: -6.198108132e-06 | M131: 0.00152525306 | N131: 1.315769449e-06
A132: 62.95216 | B132: ='DF raw data'!J137 -> -2.9301415e-07 | C132: ='DF raw data'!K137 -> 6.3283892e-06 | D132: ='DF raw data'!L137 -> 9.1111251e-06 | F132: -2.934173375e-07 | G132: -6.351947087e-06 | H132: 9.123662008e-06 | J132: 0.0001506314143 | K132: 0.008718230809 | L132: -9.375097988e-06 | M132: 0.001520564011 | N132: 1.327161951e-06
A133: 63.45232 | B133: ='DF raw data'!J138 -> -3.282592e-08 | C133: ='DF raw data'!K138 -> 9.1074098e-06 | D133: ='DF raw data'!L138 -> 1.3783745e-05 | F133: -3.287108847e-08 | G133: -9.141312793e-06 | H133: 1.380271143e-05 | J133: 0.0001506149735 | K133: 0.008793562394 | L133: -1.394721699e-05 | M133: 0.001513588171 | N133: 1.33860531e-06
A134: 63.95248 | B134: ='DF raw data'!J139 -> 6.4133519e-07 | C134: ='DF raw data'!K139 -> -1.8485795e-07 | D134: ='DF raw data'!L139 -> 1.0249871e-05 | F134: 6.422176672e-07 | G134: 1.855460971e-07 | H134: 1.026397482e-05 | J134: 0.0001509361851 | K134: 0.008869054636 | L134: -1.385441426e-05 | M134: 0.001506658747 | N134: 1.350095824e-06
A135: 64.45264 | B135: ='DF raw data'!J140 -> 1.8144669e-06 | C135: ='DF raw data'!K140 -> -6.7440042e-06 | D135: ='DF raw data'!L140 -> -3.8037581e-06 | F135: 1.816963606e-06 | G135: =(1-$G$1*($B$2-$G$2))*C135*$M$2/$M$1 -> 6.769109244e-06 | H135: -3.808992071e-06 | J135: 0.0001518449576 | K135: 0.00894500141 | L135: -1.046877658e-05 | M135: 0.001501422683 | N135: 1.361682774e-06
A136: =A135+$B$1 -> 64.9528 | B136: ='DF raw data'!J141 -> 7.1830027e-07 | C136: ='DF raw data'!K141 -> -1.4504147e-06 | D136: ='DF raw data'!L141 -> -1.1564556e-05 | F136: 7.192886512e-07 | G136: 1.455813974e-06 | H136: -1.158046883e-05 | J136: =F136*$B$1+J135 -> 0.000152204717 | K136: =J136*$B$1+K135 -> 0.009021128121 | L136: =G136*$B$1+L135 -> -9.740636661e-06 | M136: =L136*$B$1+M135 -> 0.001496550807 | N136: =(J136^2+L136^2)*$B$1+N135 -> 1.373317073e-06
A137: 65.45296 | B137: ='DF raw data'!J142 -> -1.1595662e-06 | C137: ='DF raw data'!K142 -> 3.4204775e-06 | D137: ='DF raw data'!L142 -> -6.9098351e-06 | F137: -1.161161763e-06 | G137: -3.433210475e-06 | H137: -6.919343033e-06 | J137: 0.0001516239504 | K137: 0.009096964356 | L137: -1.145779121e-05 | M137: 0.001490820078 | N137: 1.384881324e-06
A138: 65.95312 | B138: ='DF raw data'!J143 -> -7.5365506e-07 | C138: ='DF raw data'!K143 -> 5.9326444e-06 | D138: ='DF raw data'!L143 -> -2.152756e-06 | F138: -7.546920894e-07 | G138: -5.954729098e-06 | H138: -2.155718192e-06 | J138: 0.0001512464836 | K138: 0.009172611798 | L138: -1.443610852e-05 | M138: 0.001483599714 | N138: 1.396426968e-06
A139: 66.45328 | B139: ='DF raw data'!J144 -> 1.1822296e-07 | C139: ='DF raw data'!K144 -> 4.0242357e-06 | D139: ='DF raw data'!L144 -> -9.4027581e-07 | F139: 1.183856348e-07 | G139: -4.039216209e-06 | H139: -9.415696295e-07 | J139: 0.0001513056953 | K139: 0.009248288854 | L139: -1.64563629e-05 | M139: 0.001475368899 | N139: 1.408012787e-06
A140: 66.95344 | B140: ='DF raw data'!J145 -> -1.4226939e-06 | C140: ='DF raw data'!K145 -> -1.6514895e-06 | D140: ='DF raw data'!L145 -> 4.5231536e-06 | F140: -1.424651527e-06 | G140: 1.657637289e-06 | H140: 4.529377459e-06 | J140: 0.0001505931416 | K140: 0.00932360952 | L140: -1.562727903e-05 | M140: 0.001467552759 | N140: 1.419477707e-06
A141: 67.4536 | B141: ='DF raw data'!J146 -> -5.3364024e-06 | C141: ='DF raw data'!K146 -> 2.4117506e-07 | D141: ='DF raw data'!L146 -> 9.4048264e-06 | F141: -5.34374529e-06 | G141: -2.420728516e-07 | H141: 9.417767441e-06 | J141: 0.000147920414 | K141: 0.009397593394 | L141: -1.574835419e-05 | M141: 0.001459676062 | N141: 1.430545478e-06
A142: 67.95376 | B142: ='DF raw data'!J147 -> -8.5658212e-06 | C142: ='DF raw data'!K147 -> 9.0101421e-06 | D142: ='DF raw data'!L147 -> 1.186912e-05 | F142: -8.57760777e-06 | G142: -9.043683007e-06 | H142: 1.188545191e-05 | J142: 0.0001436302377 | K142: 0.009469431494 | L142: -2.027164268e-05 | M142: 0.001449536998 | N142: 1.441069137e-06
A143: 68.45392 | B143: ='DF raw data'!J148 -> -8.1300059e-06 | C143: ='DF raw data'!K148 -> 2.7961717e-06 | D143: ='DF raw data'!L148 -> 8.9640344e-06 | F143: -8.141192788e-06 | G143: -2.806580652e-06 | H143: 8.976368911e-06 | J143: 0.0001395583387 | K143: 0.009539232992 | L143: -2.167538206e-05 | M143: 0.001438695839 | N143: 1.451045504e-06
A144: 68.95408 | B144: ='DF raw data'!J149 -> -5.9274139e-06 | C144: ='DF raw data'!K149 -> -7.3470951e-06 | D144: ='DF raw data'!L149 -> 5.1912501e-09 | F144: -5.935570022e-06 | G144: 7.374445194e-06 | H144: 5.19839326e-09 | J144: 0.000136589604 | K144: 0.009607549649 | L144: -1.798697955e-05 | M144: 0.001429699471 | N144: 1.460538667e-06
A145: 69.45424 | B145: ='DF raw data'!J150 -> -4.1159624e-06 | C145: ='DF raw data'!K150 -> -2.6545949e-06 | D145: ='DF raw data'!L150 -> -3.614816e-06 | F145: -4.121625964e-06 | G145: 2.664476822e-06 | H145: -3.619789987e-06 | J145: 0.0001345281315 | K145: 0.009674835239 | L145: -1.665431482e-05 | M145: 0.001421369649 | N145: 1.469729199e-06
A146: 69.9544 | B146: ='DF raw data'!J151 -> -2.5922022e-06 | C146: ='DF raw data'!K151 -> 3.426482e-06 | D146: ='DF raw data'!L151 -> 3.691201e-07 | F146: -2.59576907e-06 | G146: -3.439237327e-06 | H146: 3.696280093e-07 | J146: 0.0001332298317 | K146: 0.009741471472 | L146: -1.837448377e-05 | M146: 0.001412179467 | N146: 1.478775998e-06
A147: 70.45456 | B147: ='DF raw data'!J152 -> -2.5442828e-06 | C147: ='DF raw data'!K152 -> 3.8232943e-06 | D147: ='DF raw data'!L152 -> -8.3844151e-07 | F147: -2.547783733e-06 | G147: -3.83752679e-06 | H147: -8.395952055e-07 | J147: 0.0001319555322 | K147: 0.009807470351 | L147: -2.029386117e-05 | M147: 0.001402029289 | N147: 1.487690901e-06
A148: 70.95472 | B148: ='DF raw data'!J153 -> -4.4825542e-06 | C148: ='DF raw data'!K153 -> 9.5038222e-06 | D148: ='DF raw data'!L153 -> -4.4190565e-06 | F148: -4.488722195e-06 | G148: -9.539200866e-06 | H148: -4.425137122e-06 | J148: 0.0001297104529 | K148: 0.009872346331 | L148: -2.506498787e-05 | M148: 0.001389492785 | N148: 1.496420221e-06
A149: 71.45488 | B149: ='DF raw data'!J154 -> -6.0540301e-06 | C149: ='DF raw data'!K154 -> 8.1551407e-06 | D149: ='DF raw data'!L154 -> -6.474369e-06 | F149: -6.062360445e-06 | G149: -8.185498802e-06 | H149: -6.483277732e-06 | J149: 0.0001266783027 | K149: 0.009935705751 | L149: -2.915904695e-05 | M149: 0.001374908596 | N149: 1.504871746e-06
A150: 71.95504 | B150: ='DF raw data'!J155 -> -6.4714809e-06 | C150: ='DF raw data'!K155 -> -6.1138276e-06 | D150: ='DF raw data'!L155 -> -5.3418953e-06 | F150: -6.480385658e-06 | G150: 6.136586766e-06 | H150: -5.349245748e-06 | J150: 0.000123437073 | K150: 0.009997444037 | L150: -2.608977171e-05 | M150: 0.001361859536 | N150: 1.512832986e-06
A151: 72.4552 | B151: ='DF raw data'!J156 -> -5.8446426e-06 | C151: ='DF raw data'!K156 -> -2.6147002e-06 | D151: ='DF raw data'!L156 -> -7.7254554e-06 | F151: =(1-$G$1*($B$2-$G$2))*B151 -> -5.852684828e-06 | G151: 2.624433611e-06 | H151: -7.736085627e-06 | J151: 0.0001205097941 | K151: 0.01005771822 | L151: -2.4777135e-05 | M151: 0.001349467004 | N151: 1.520403667e-06
A152: 72.95536 | B152: ='DF raw data'!J157 -> -2.7673491e-06 | C152: ='DF raw data'!K157 -> 2.6820915e-06 | D152: ='DF raw data'!L157 -> -7.0780843e-06 | F152: -2.771156972e-06 | G152: -2.69207578e-06 | H152: -7.087823744e-06 | J152: 0.0001191237723 | K152: 0.01011729916 | L152: -2.612360362e-05 | M152: 0.001336401022 | N152: 1.527842504e-06
A153: 73.45552 | B153: ='DF raw data'!J158 -> 5.2011746e-08 | C153: ='DF raw data'!K158 -> -6.9633584e-06 | D153: ='DF raw data'!L158 -> 1.4910146e-06 | F153: 5.208331416e-08 | G153: 6.989280006e-06 | H153: 1.493066236e-06 | J153: 0.0001191498223 | K153: 0.01017689314 | L153: -2.262784533e-05 | M153: 0.001325083479 | N153: 1.535199207e-06
A154: 73.95568 | B154: ='DF raw data'!J159 -> -9.2180244e-07 | C154: ='DF raw data'!K159 -> -4.0152854e-06 | D154: ='DF raw data'!L159 -> -7.4140934e-07 | F154: -9.230708402e-07 | G154: 4.030232591e-06 | H154: -7.424295193e-07 | J154: 0.0001186881391 | K154: 0.0102362562 | L154: -2.06120842e-05 | M154: 0.001314774139 | N154: 1.542457395e-06
A155: 74.45584 | B155: ='DF raw data'!J160 -> -2.9704793e-06 | C155: ='DF raw data'!K160 -> 3.2025912e-06 | D155: ='DF raw data'!L160 -> -6.3550433e-06 | F155: -2.97456668e-06 | G155: -3.214513078e-06 | H155: -6.36378784e-06 | J155: 0.0001172003799 | K155: 0.01029487514 | L155: -2.221985506e-05 | M155: 0.001303660657 | N155: 1.549574498e-06
A156: 74.956 | B156: ='DF raw data'!J161 -> -3.6000533e-06 | C156: ='DF raw data'!K161 -> 4.2106335e-06 | D156: ='DF raw data'!L161 -> -1.0876323e-05 | F156: -3.605006973e-06 | G156: -4.226307888e-06 | H156: -1.089128882e-05 | J156: 0.0001153972996 | K156: 0.01035259225 | L156: -2.433368522e-05 | M156: 0.001291489921 | N156: 1.556531056e-06
A157: 75.45616 | B157: ='DF raw data'!J162 -> -3.8924886e-06 | C157: ='DF raw data'!K162 -> 7.3078786e-06 | D157: ='DF raw data'!L162 -> -1.5894173e-05 | F157: -3.897844664e-06 | G157: -7.335082707e-06 | H157: -1.591604338e-05 | J157: 0.0001134477536 | K157: 0.01040933428 | L157: -2.800240018e-05 | M157: 0.00127748424 | N157: 1.563360504e-06
A158: 75.95632 | B158: ='DF raw data'!J163 -> -4.5112506e-06 | C158: ='DF raw data'!K163 -> 9.7804168e-06 | D158: ='DF raw data'!L163 -> -1.1180007e-05 | F158: -4.517458081e-06 | G158: -9.81682511e-06 | H158: -1.119539069e-05 | J158: 0.0001111883018 | K158: 0.01046494622 | L158: -3.291238343e-05 | M158: 0.001261022782 | N158: 1.570085687e-06
A159: 76.45648 | B159: ='DF raw data'!J164 -> -5.9281415e-06 | C159: ='DF raw data'!K164 -> 1.8499065e-06 | D159: ='DF raw data'!L164 -> -4.2868087e-06 | F159: -5.936298623e-06 | G159: -1.856792911e-06 | H159: -4.292707349e-06 | J159: 0.0001082192026 | K159: 0.01051907314 | L159: -3.384107697e-05 | M159: 0.001244096829 | N159: 1.576516051e-06
A160: 76.95664 | B160: ='DF raw data'!J165 -> -8.6297623e-06 | C160: ='DF raw data'!K165 -> -5.1692969e-06 | D160: ='DF raw data'!L165 -> -3.5769374e-06 | F160: -8.641636853e-06 | G160: 5.188539982e-06 | H160: -3.581859266e-06 | J160: 0.0001038970016 | K160: 0.01057103826 | L160: -3.124597681e-05 | M160: 0.001228468842 | N160: 1.582403384e-06
A161: 77.4568 | B161: ='DF raw data'!J166 -> -1.0490065e-05 | C161: ='DF raw data'!K166 -> -1.9495658e-06 | D161: ='DF raw data'!L166 -> -4.3547661e-06 | F161: -1.050449933e-05 | G161: 1.9568232e-06 | H161: -4.360758258e-06 | J161: 9.864307117e-05 | K161: 0.01062037558 | L161: -3.026725212e-05 | M161: 0.001213330373 | N161: 1.587728368e-06
A162: 77.95696 | B162: ='DF raw data'!J167 -> -8.8179331e-06 | C162: ='DF raw data'!K167 -> -2.2605846e-06 | D162: ='DF raw data'!L167 -> -3.1354905e-06 | F162: -8.830066576e-06 | G162: 2.26899979e-06 | H162: -3.139804935e-06 | J162: 9.422662508e-05 | K162: 0.01066750397 | L162: -2.913238919e-05 | M162: 0.001198759517 | N162: 1.592593601e-06
A163: 78.45712 | B163: ='DF raw data'!J168 -> -4.4172743e-06 | C163: ='DF raw data'!K168 -> -6.1168967e-06 | D163: ='DF raw data'!L168 -> 2.7509484e-06 | F163: -4.423352469e-06 | G163: 6.139667291e-06 | H163: 2.754733705e-06 | J163: 9.20142411e-05 | K163: 0.01071352581 | L163: -2.60615732e-05 | M163: 0.001185724561 | N163: 1.597167977e-06
A164: 78.95728 | B164: ='DF raw data'!J169 -> -1.2717032e-06 | C164: ='DF raw data'!K169 -> 4.0581263e-06 | D164: ='DF raw data'!L169 -> 5.7317047e-06 | F164: -1.273453064e-06 | G164: -4.073232969e-06 | H164: 5.739591526e-06 | J164: 9.137731082e-05 | K164: 0.01075922909 | L164: -2.80988414e-05 | M164: 0.001171670644 | N164: 1.601739119e-06
A165: 79.45744 | B165: ='DF raw data'!J170 -> -1.9395343e-06 | C165: ='DF raw data'!K170 -> 9.6165686e-06 | D165: ='DF raw data'!L170 -> 3.3392823e-06 | F165: -1.942203099e-06 | G165: -9.652366973e-06 | H165: 3.343877152e-06 | J165: 9.040589852e-05 | K165: 0.0108044465 | L165: -3.292656926e-05 | M165: 0.001155202091 | N165: 1.606369292e-06
A166: 79.9576 | B166: ='DF raw data'!J171 -> -3.8380208e-06 | C166: ='DF raw data'!K171 -> 3.682929e-06 | D166: ='DF raw data'!L171 -> -4.922331e-09 | F166: -3.843301917e-06 | G166: -3.69663897e-06 | H166: -4.929104127e-09 | J166: 8.848363263e-05 | K166: 0.01084870248 | L166: -3.477548021e-05 | M166: 0.001137808787 | N166: 1.610890082e-06
A167: 80.45776 | B167: ='DF raw data'!J172 -> -3.9482225e-06 | C167: ='DF raw data'!K172 -> 7.1839245e-06 | D167: ='DF raw data'!L172 -> -4.0402265e-06 | F167: -3.953655254e-06 | G167: -7.210667179e-06 | H167: -4.045785852e-06 | J167: 8.650617242e-05 | K167: 0.0108919694 | L167: -3.838196751e-05 | M167: 0.001118611662 | N167: 1.615369762e-06
A168: 80.95792 | B168: ='DF raw data'!J173 -> -1.6610543e-06 | C168: ='DF raw data'!K173 -> 7.3210881e-06 | D168: ='DF raw data'!L173 -> -3.9065817e-06 | F168: -1.663339911e-06 | G168: -7.348341381e-06 | H168: -3.911957156e-06 | J168: 8.567423633e-05 | K168: 0.01093482023 | L168: -4.205731393e-05 | M168: 0.001097576276 | N168: 1.619925666e-06
A169: 81.45808 | B169: ='DF raw data'!J174 -> 1.8327587e-06 | C169: ='DF raw data'!K174 -> 1.4793943e-05 | D169: ='DF raw data'!L174 -> -1.8134634e-06 | F169: 1.835280576e-06 | G169: -1.484901452e-05 | H169: -1.815958726e-06 | J169: 8.659217026e-05 | K169: 0.01097813017 | L169: -4.948419704e-05 | M169: 0.00107282626 | N169: 1.624900702e-06
A170: 81.95824 | B170: ='DF raw data'!J175 -> 5.884041e-06 | C170: ='DF raw data'!K175 -> 1.1750069e-05 | D170: ='DF raw data'!L175 -> 6.1172472e-08 | F170: 5.89213744e-06 | G170: -1.179380948e-05 | H170: 6.125664532e-08 | J170: 8.953918173e-05 | K170: 0.01102291409 | L170: -5.538298879e-05 | M170: 0.001045125904 | N170: 1.630444746e-06
A171: 82.4584 | B171: ='DF raw data'!J176 -> 8.045321e-06 | C171: ='DF raw data'!K176 -> 2.5985472e-07 | D171: ='DF raw data'!L176 -> -7.7062958e-07 | F171: 8.056391362e-06 | G171: -2.60822048e-07 | H171: -7.716899663e-07 | J171: 9.356866643e-05 | K171: 0.01106971339 | L171: -5.551344154e-05 | M171: 0.001017360301 | N171: 1.636365058e-06
A172: 82.95856 | B172: ='DF raw data'!J177 -> 5.4091247e-06 | C172: ='DF raw data'!K177 -> 1.4703479e-05 | D172: ='DF raw data'!L177 -> 1.4224605e-06 | F172: 5.416567656e-06 | G172: -1.475821377e-05 | H172: 1.424417806e-06 | J172: 9.627781691e-05 | K172: 0.0111178677 | L172: -6.289490974e-05 | M172: 0.0009859027834 | N172: 1.642979768e-06
A173: 83.45872 | B173: ='DF raw data'!J178 -> 8.2049837e-07 | C173: ='DF raw data'!K178 -> 1.3099418e-05 | D173: ='DF raw data'!L178 -> 9.7350676e-06 | F173: 8.216273758e-07 | G173: -1.314818153e-05 | H173: 9.748463053e-06 | J173: 9.668876206e-05 | K173: 0.01116622755 | L173: -6.947110421e-05 | M173: 0.0009511561159 | N173: 1.650069512e-06
A174: 83.95888 | B174: ='DF raw data'!J179 -> -1.4933726e-06 | C174: ='DF raw data'!K179 -> 1.7867953e-06 | D174: ='DF raw data'!L179 -> 1.8673611e-05 | F174: -1.495427481e-06 | G174: -1.793446775e-06 | H174: 1.869930589e-05 | J174: 9.594080905e-05 | K174: 0.01121421331 | L174: -7.036811455e-05 | M174: 0.0009159607997 | N174: 1.657149932e-06
A175: 84.45904 | B175: ='DF raw data'!J180 -> 1.7846937e-06 | C175: ='DF raw data'!K180 -> -3.23527e-06 | D175: ='DF raw data'!L180 -> 1.4138492e-05 | F175: 1.787149439e-06 | G175: 3.247313527e-06 | H175: 1.415794656e-05 | J175: 9.683466971e-05 | K175: 0.01126264614 | L175: -6.874393822e-05 | M175: 0.0008815778316 | N175: 1.66420353e-06
A176: 84.9592 | B176: ='DF raw data'!J181 -> 7.0812562e-06 | C176: ='DF raw data'!K181 -> 3.7406838e-07 | D176: ='DF raw data'!L181 -> -3.1910643e-06 | F176: 7.091000009e-06 | G176: -3.754608766e-07 | H176: -3.195455204e-06 | J176: 0.0001003813043 | K176: 0.01131285285 | L176: -6.893172873e-05 | M176: 0.0008471009381 | N176: 1.671619897e-06
A177: 85.45936 | B177: ='DF raw data'!J182 -> 6.9404227e-06 | C177: ='DF raw data'!K182 -> 1.0745362e-05 | D177: ='DF raw data'!L182 -> -1.2392167e-05 | F177: 6.949972722e-06 | G177: -1.078536239e-05 | H177: -1.240921862e-05 | J177: 0.0001038574026 | K177: 0.01136479817 | L177: -7.432613558e-05 | M177: 0.0008099259781 | N177: 1.679777874e-06
A178: 85.95952 | B178: ='DF raw data'!J183 -> 3.67036e-06 | C178: ='DF raw data'!K183 -> 3.2559617e-06 | D178: ='DF raw data'!L183 -> -4.597754e-06 | F178: 3.675410415e-06 | G178: -3.268082253e-06 | H178: -4.60408051e-06 | J178: 0.0001056956959 | K178: 0.01141766293 | L178: -7.59606996e-05 | M178: 0.0007719334746 | N178: 1.688251388e-06
A179: 86.45968 | B179: ='DF raw data'!J184 -> 2.5276127e-06 | C179: ='DF raw data'!K184 -> -9.7741543e-07 | D179: ='DF raw data'!L184 -> 4.4065491e-06 | F179: 2.531090695e-06 | G179: 9.810539297e-07 | H179: 4.412612512e-06 | J179: 0.0001069616462 | K179: 0.01147116087 | L179: -7.547001567e-05 | M179: 0.0007341863916 | N179: 1.696822389e-06
A180: 86.95984 | B180: ='DF raw data'!J185 -> 2.268021e-06 | C180: ='DF raw data'!K185 -> -2.7008941e-06 | D180: ='DF raw data'!L185 -> 6.5720924e-06 | F180: 2.271141797e-06 | G180: 2.710948374e-06 | H180: 6.581135599e-06 | J180: 0.0001080975805 | K180: 0.01152522695 | L180: -7.411410773e-05 | M180: 0.0006971174795 | N180: 1.705414131e-06
A181: 87.46 | B181: ='DF raw data'!J186 -> -1.211997e-07 | C181: ='DF raw data'!K186 -> -8.3528694e-06 | D181: ='DF raw data'!L186 -> 1.1549818e-06 | F181: -1.213664708e-07 | G181: 8.383963561e-06 | H181: 1.156571055e-06 | J181: 0.0001080368779 | K181: 0.01157926268 | L181: -6.992078452e-05 | M181: 0.0006621458999 | N181: 1.713697222e-06
A182: 87.96016 | B182: ='DF raw data'!J187 -> -1.7765965e-06 | C182: ='DF raw data'!K187 -> -1.6517563e-06 | D182: ='DF raw data'!L187 -> -6.5476524e-06 | F182: -1.779041097e-06 | G182: 1.657905082e-06 | H182: -6.55666197e-06 | J182: 0.0001071470727 | K182: 0.01163285336 | L182: -6.909156671e-05 | M182: 0.0006275890619 | N182: 1.721826893e-06
A183: 88.46032 | B183: ='DF raw data'!J188 -> 2.521879e-07 | C183: ='DF raw data'!K188 -> -7.509895e-07 | D183: ='DF raw data'!L188 -> 3.2945643e-06 | F183: 2.525349106e-07 | G183: 7.537851128e-07 | H183: 3.29909762e-06 | J183: 0.0001072733805 | K183: 0.01168650721 | L183: -6.871455355e-05 | M183: 0.0005932207908 | N183: 1.729944124e-06
A184: 88.96048 | B184: ='DF raw data'!J189 -> 4.2888018e-06 | C184: ='DF raw data'!K189 -> -4.1875396e-06 | D184: ='DF raw data'!L189 -> 9.7660777e-06 | F184: 4.294703191e-06 | G184: 4.203128019e-06 | H184: 9.779515823e-06 | J184: 0.0001094214193 | K184: 0.01174123543 | L184: -6.661231704e-05 | M184: 0.0005599039743 | N184: 1.738151873e-06
A185: 89.46064 | B185: ='DF raw data'!J190 -> 6.3342045e-06 | C185: ='DF raw data'!K190 -> 1.1450104e-06 | D185: ='DF raw data'!L190 -> 3.1181951e-06 | F185: 6.342920365e-06 | G185: -1.149272784e-06 | H185: 3.122485736e-06 | J185: 0.0001125938943 | K185: 0.01179755039 | L185: -6.718713731e-05 | M185: 0.0005262996557 | N185: 1.746750372e-06
A186: 89.9608 | B186: ='DF raw data'!J191 -> 4.4509393e-06 | C186: ='DF raw data'!K191 -> 6.300103e-06 | D186: ='DF raw data'!L191 -> 5.6786048e-06 | F186: 4.457063792e-06 | G186: -6.32355559e-06 | H186: 5.68641856e-06 | J186: 0.0001148231393 | K186: 0.01185498033 | L186: -7.034992688e-05 | M186: 0.0004911134363 | N186: 1.755820006e-06
A187: 90.46096 | B187: ='DF raw data'!J192 -> 1.4986758e-06 | C187: ='DF raw data'!K192 -> 9.2703249e-06 | D187: ='DF raw data'!L192 -> 7.1841896e-06 | F187: 1.500737978e-06 | G187: -9.304834356e-06 | H187: 7.194075045e-06 | J187: 0.0001155737485 | K187: 0.0119127857 | L187: -7.500383283e-05 | M187: 0.0004535995192 | N187: 1.765314477e-06
A188: 90.96112 | B188: ='DF raw data'!J193 -> 1.5793662e-06 | C188: ='DF raw data'!K193 -> 1.6980664e-06 | D188: ='DF raw data'!L193 -> 5.39135e-06 | F188: 1.581539408e-06 | G188: -1.704387575e-06 | H188: 5.398768498e-06 | J188: 0.0001163647712 | K188: 0.0119709867 | L188: -7.585629932e-05 | M188: 0.0004156592326 | N188: 1.774965033e-06
A189: 91.46128 | B189: ='DF raw data'!J194 -> 2.7896053e-06 | C189: ='DF raw data'!K194 -> 7.793019e-06 | D189: ='DF raw data'!L194 -> 8.071609e-06 | F189: 2.793443797e-06 | G189: -7.822029078e-06 | H189: 8.082715534e-06 | J189: 0.0001177619401 | K189: 0.01202988651 | L189: -7.976856538e-05 | M189: 0.0003757621869 | N189: 1.785083719e-06
A190: 91.96144 | B190: ='DF raw data'!J195 -> 2.5447694e-06 | C190: ='DF raw data'!K195 -> 5.8251021e-06 | D190: ='DF raw data'!L195 -> 2.0388213e-06 | F190: 2.548271003e-06 | G190: -5.846786464e-06 | H190: 2.041626718e-06 | J190: 0.0001190364833 | K190: 0.0120894238 | L190: -8.26928941e-05 | M190: 0.000334402509 | N190: 1.79559098e-06
A191: 92.4616 | B191: ='DF raw data'!J196 -> 6.2545905e-07 | C191: ='DF raw data'!K196 -> 3.6966719e-06 | D191: ='DF raw data'!L196 -> 1.9695397e-06 | F191: 6.263196817e-07 | G191: -3.710433029e-06 | H191: 1.972249787e-06 | J191: 0.0001193497433 | K191: 0.01214911777 | L191: -8.454870428e-05 | M191: 0.0002921146291 | N191: 1.806290825e-06
A192: 92.96176 | B192: ='DF raw data'!J197 -> -2.1370329e-06 | C192: ='DF raw data'!K197 -> 4.5580778e-06 | D192: ='DF raw data'!L197 -> 1.8335085e-06 | F192: -2.139973457e-06 | G192: -4.575045575e-06 | H192: 1.836031408e-06 | J192: 0.0001182794142 | K192: 0.0122082764 | L192: -8.683695908e-05 | M192: 0.0002486822556 | N192: 1.817059609e-06
A193: 93.46192 | B193: ='DF raw data'!J198 -> -4.7809849e-06 | C193: ='DF raw data'!K198 -> -1.8389546e-06 | D193: ='DF raw data'!L198 -> -8.4361272e-06 | F193: -4.787563535e-06 | G193: 1.845800242e-06 | H193: -8.447735311e-06 | J193: 0.0001158848664 | K193: 0.01226623737 | L193: -8.591376363e-05 | M193: 0.0002057116276 | N193: 1.827468177e-06
A194: 93.96208 | B194: ='DF raw data'!J199 -> -5.3401423e-06 | C194: ='DF raw data'!K199 -> 4.0262174e-07 | D194: ='DF raw data'!L199 -> -4.6296955e-06 | F194: -5.347490336e-06 | G194: -4.041205286e-07 | H194: -4.636065961e-06 | J194: 0.0001132102657 | K194: 0.01232286062 | L194: -8.611588855e-05 | M194: 0.0001626399048 | N194: 1.837587669e-06
A195: 94.46224 | B195: ='DF raw data'!J200 -> -2.3500438e-06 | C195: ='DF raw data'!K200 -> 2.2535235e-06 | D195: ='DF raw data'!L200 -> 1.5668883e-06 | F195: -2.35327746e-06 | G195: -2.261912404e-06 | H195: 1.569044338e-06 | J195: 0.0001120332504 | K195: 0.01237889517 | L195: -8.724720666e-05 | M195: 0.0001190023419 | N195: 1.847672658e-06
A196: 94.9624 | B196: ='DF raw data'!J201 -> 1.498734e-06 | C196: ='DF raw data'!K201 -> 2.2987554e-06 | D196: ='DF raw data'!L201 -> -2.7419097e-07 | F196: 1.500796258e-06 | G196: -2.307312683e-06 | H196: -2.745682568e-07 | J196: 0.0001127838887 | K196: 0.01243530516 | L196: -8.840123217e-05 | M196: 7.47875816e-05 | N196: 1.857943435e-06
A197: 95.46256 | B197: ='DF raw data'!J202 -> 2.6071098e-06 | C197: ='DF raw data'!K202 -> 7.6330398e-06 | D197: ='DF raw data'!L202 -> 9.0687155e-07 | F197: 2.610697183e-06 | G197: -7.661454343e-06 | H197: 9.081194053e-07 | J197: 0.000114089655 | K197: 0.01249236824 | L197: -9.223318518e-05 | M197: 2.86562317e-05 | N197: 1.868708584e-06
A198: 95.96272 | B198: ='DF raw data'!J203 -> 1.6825684e-06 | C198: ='DF raw data'!K203 -> 1.9205845e-05 | D198: ='DF raw data'!L203 -> -1.5509032e-06 | F198: 1.684883614e-06 | G198: -1.927734015e-05 | H198: -1.553037243e-06 | J198: 0.0001149323664 | K198: 0.01254985282 | L198: -0.0001018749396 | M198: -2.22975381e-05 | N198: 1.880506334e-06
A199: 96.46288 | B199: ='DF raw data'!J204 -> 1.9658505e-06 | C199: ='DF raw data'!K204 -> 1.2026529e-05 | D199: ='DF raw data'!L204 -> -1.3468563e-06 | F199: 1.96855551e-06 | G199: =(1-$G$1*($B$2-$G$2))*C199*$M$2/$M$1 -> -1.207129863e-05 | H199: -1.348709574e-06 | J199: 0.0001159169591 | K199: 0.01260782984 | L199: -0.0001079125203 | M199: -7.627106428e-05 | N199: 1.893051273e-06
A200: =A199+$B$1 -> 96.96304 | B200: ='DF raw data'!J205 -> 2.4325013e-06 | C200: ='DF raw data'!K205 -> -3.4923842e-06 | D200: ='DF raw data'!L205 -> 4.2521773e-07 | F200: 2.435848422e-06 | G200: 3.505384853e-06 | H200: 4.258028296e-07 | J200: =F200*$B$1+J199 -> 0.000117135273 | K200: =J200*$B$1+K199 -> 0.01266641622 | L200: =G200*$B$1+L199 -> -0.0001061592671 | M200: =L200*$B$1+M199 -> -0.0001293676833 | N200: =(J200^2+L200^2)*$B$1+N199 -> 1.905550503e-06
A201: 97.4632 | B201: ='DF raw data'!J206 -> 4.3068169e-07 | C201: ='DF raw data'!K206 -> -3.4416819e-06 | D201: ='DF raw data'!L206 -> -5.4762677e-06 | F201: 4.31274308e-07 | G201: 3.45449381e-06 | H201: -5.483803044e-06 | J201: 0.0001173509792 | K201: 0.01272511049 | L201: -0.0001044314674 | M201: -0.000181600126 | N201: 1.917893043e-06
... 1002 more rows

Sheet 30 mm
A1: dz | B1: ='DF raw data'!N7 -> 0.50016 | C1: mm | F1: T_coeff | G1: -0.0008 | H1: /degC | L1: Hallref | M1: ='PI vs gap'!B50 -> -0.50526 | N1: T | P1: IBy total | Q1: =L1203*1000 -> 0.5885383716 | R1: muTm | X1: DF ref | Y1: 22
A2: Tref | B2: ='DF raw data'!N8 -> 21.75 | C2: degC | F2: Tcorr | G2: 20 | H2: degC | L2: NMRref | M2: ='PI vs gap'!B51 -> 0.506444 | N2: T | P2: JBy total | Q2: =M1203 -> 1.041621087 | R2: muTm^2
A3: Encoder | B3: ='DF raw data'!N9 -> 17635442 | P3: PI total | Q3: =N1203 -> 68.06376712 | R3: T^2mm^3
A5: z [mm] | B5: Bx | C5: By | D5: Bz | F5: Bx_corr | G5: By_corr | H5: Bz_corr | J5: Ix | K5: Jx | L5: Iy | M5: Jy | N5: PI
A6: -0.068 | B6: ='DF raw data'!M11 -> -3.3216472e-06 | C6: ='DF raw data'!N11 -> -2.0382533e-06 | D6: ='DF raw data'!O11 -> 1.7201926e-05 | F6: =(1-$G$1*($B$2-$G$2))*B6 -> -3.326297506e-06 | G6: =(1-$G$1*($B$2-$G$2))*C6*$M$2/$M$1 -> 2.045889878e-06 | H6: =(1-$G$1*($B$2-$G$2))*D6 -> 1.72260087e-05 | J6: =F6*$B$1 -> -1.663680961e-06 | K6: =J6*$B$1 -> -8.321066693e-07 | L6: =G6*$B$1 -> 1.023272282e-06 | M6: =L6*$B$1 -> 5.117998643e-07 | N6: =(J6^2+L6)^2*$B$1 -> 5.23713448e-13
A7: =A6+$B$1 -> 0.43216 | B7: ='DF raw data'!M12 -> -2.9584605e-06 | C7: ='DF raw data'!N12 -> -1.2663992e-05 | D7: ='DF raw data'!O12 -> 1.2429801e-05 | F7: =(1-$G$1*($B$2-$G$2))*B7 -> -2.962602345e-06 | G7: =(1-$G$1*($B$2-$G$2))*C7*$M$2/$M$1 -> 1.271143928e-05 | H7: 1.244720272e-05 | J7: =F7*$B$1+J6 -> -3.145456149e-06 | K7: =J7*$B$1+K6 -> -2.405338017e-06 | L7: =G7*$B$1+L6 -> 7.38102575e-06 | M7: =L7*$B$1+M6 -> 4.203493703e-06 | N7: =(J7^2+L7^2)*$B$1+N6 -> 3.272073095e-11
A8: =A7+$B$1 -> 0.93232 | B8: ='DF raw data'!M13 -> -3.2933438e-06 | C8: ='DF raw data'!N13 -> -4.2351317e-06 | D8: ='DF raw data'!O13 -> 7.5892517e-06 | F8: -3.297954481e-06 | G8: 4.250999166e-06 | H8: 7.599876652e-06 | J8: =F8*$B$1+J7 -> -4.794961063e-06 | K8: =J8*$B$1+K7 -> -4.803585742e-06 | L8: =G8*$B$1+L7 -> 9.507205492e-06 | M8: =L8*$B$1+M7 -> 8.958617602e-06 | N8: =(J8^2+L8^2)*$B$1+N7 -> 8.942817546e-11
A9: 1.43248 | B9: ='DF raw data'!M14 -> -3.4825769e-06 | C9: ='DF raw data'!N14 -> 3.5356209e-07 | D9: ='DF raw data'!O14 -> 4.2333327e-06 | F9: -3.487452508e-06 | G9: -3.548867559e-07 | H9: 4.239259366e-06 | J9: -6.539245309e-06 | K9: -8.074254676e-06 | L9: 9.329705332e-06 | M9: 1.362496302e-05 | N9: 1.543515097e-10
A10: 1.93264 | B10: ='DF raw data'!M15 -> -3.3044323e-06 | C10: ='DF raw data'!N15 -> -5.1096135e-06 | D10: ='DF raw data'!O15 -> 9.8928876e-07 | F10: -3.309058505e-06 | G10: 5.128757324e-06 | H10: 9.906737643e-07 | J10: -8.194304011e-06 | K10: -1.217271777e-05 | L10: 1.18949046e-05 | M10: 1.95743185e-05 | N10: 2.587025781e-10
A11: 2.4328 | B11: ='DF raw data'!M16 -> -3.3958765e-06 | C11: ='DF raw data'!N16 -> -2.5023132e-06 | D11: ='DF raw data'!O16 -> 1.8769847e-06 | F11: -3.400630727e-06 | G11: 2.511688438e-06 | H11: 1.879612479e-06 | J11: -9.895163475e-06 | K11: -1.712188273e-05 | L11: 1.315115069e-05 | M11: 2.615199803e-05 | N11: 3.941794291e-10
A12: 2.93296 | B12: ='DF raw data'!M17 -> -3.2273363e-06 | C12: ='DF raw data'!N17 -> -6.5184713e-06 | D12: ='DF raw data'!O17 -> 5.4398902e-06 | F12: -3.231854571e-06 | G12: 6.542893591e-06 | H12: 5.447506046e-06 | J12: -1.151160786e-05 | K12: -2.287952852e-05 | L12: 1.642364434e-05 | M12: 3.436644799e-05 | N12: 5.953703941e-10
A13: 3.43312 | B13: ='DF raw data'!M18 -> -3.1366196e-06 | C13: ='DF raw data'!N18 -> -8.9839377e-06 | D13: ='DF raw data'!O18 -> 5.279499e-06 | F13: -3.141010867e-06 | G13: 9.017597179e-06 | H13: 5.286890299e-06 | J13: -1.308261585e-05 | K13: -2.942292966e-05 | L13: 2.093388575e-05 | M13: 4.483674028e-05 | N13: 9.001591004e-10
A14: 3.93328 | B14: ='DF raw data'!M19 -> -3.070001e-06 | C14: ='DF raw data'!N19 -> -1.1368548e-05 | D14: ='DF raw data'!O19 -> 1.4537713e-06 | F14: -3.074299001e-06 | G14: 1.141114173e-05 | H14: 1.45580658e-06 | J14: -1.462025724e-05 | K14: -3.673539753e-05 | L14: 2.66412824e-05 | M14: 5.816164408e-05 | N14: 1.362061787e-09
A15: 4.43344 | B15: ='DF raw data'!M20 -> -3.2924852e-06 | C15: ='DF raw data'!N20 -> -5.6730764e-06 | D15: ='DF raw data'!O20 -> -8.5558844e-07 | F15: -3.297094679e-06 | G15: 5.694331311e-06 | H15: -8.567862638e-07 | J15: -1.626933212e-05 | K15: -4.487266668e-05 | L15: 2.948935914e-05 | M15: 7.291104195e-05 | N15: 1.929400012e-09
A16: 4.9336 | B16: ='DF raw data'!M21 -> -3.4500679e-06 | C16: ='DF raw data'!N21 -> -7.6215599e-07 | D16: ='DF raw data'!O21 -> 3.1033037e-06 | F16: -3.454897995e-06 | G16: 7.650115055e-07 | H16: 3.107648325e-06 | J16: -1.79973339e-05 | K16: -5.38742132e-05 | L16: 2.98719873e-05 | M16: 8.785181512e-05 | N16: 2.537714437e-09
A17: 5.43376 | B17: ='DF raw data'!M22 -> -3.0645294e-06 | C17: ='DF raw data'!N22 -> -1.0972536e-05 | D17: ='DF raw data'!O22 -> 4.7193812e-06 | F17: -3.068819741e-06 | G17: 1.101364602e-05 | H17: 4.725988334e-06 | J17: -1.953223478e-05 | K17: -6.364345575e-05 | L17: 3.538057249e-05 | M17: 0.0001055477623 | N17: 3.354622316e-09
A18: 5.93392 | B18: ='DF raw data'!M23 -> -3.1348879e-06 | C18: ='DF raw data'!N23 -> -9.6251888e-06 | D18: ='DF raw data'!O23 -> 7.3618736e-07 | F18: -3.139276743e-06 | G18: 9.661250808e-06 | H18: 7.372180223e-07 | J18: -2.110237544e-05 | K18: -7.419801985e-05 | L18: 4.021274369e-05 | M18: 0.0001256605681 | N18: 4.386139798e-09
A19: 6.43408 | B19: ='DF raw data'!M24 -> -3.8481066e-06 | C19: ='DF raw data'!N24 -> 9.1570873e-06 | D19: ='DF raw data'!O24 -> -2.9525049e-06 | F19: -3.853493949e-06 | G19: -9.191395506e-06 | H19: -2.956638407e-06 | J19: -2.302973897e-05 | K19: -8.571657409e-05 | L19: 3.561557532e-05 | M19: 0.0001434740543 | N19: 5.285846654e-09
A20: 6.93424 | B20: ='DF raw data'!M25 -> -3.6251565e-06 | C20: ='DF raw data'!N25 -> 2.8378422e-06 | D20: ='DF raw data'!O25 -> -3.3425836e-06 | F20: -3.630231719e-06 | G20: -2.848474541e-06 | H20: -3.347263217e-06 | J20: -2.484543567e-05 | K20: -9.814326719e-05 | L20: 3.419088229e-05 | M20: 0.000160574966 | N20: 6.179288516e-09
A21: 7.4344 | B21: ='DF raw data'!M26 -> -3.2009682e-06 | C21: ='DF raw data'!N26 -> -8.9445775e-06 | D21: ='DF raw data'!O26 -> -4.3239211e-06 | F21: -3.205449555e-06 | G21: 8.97808951e-06 | H21: -4.32997459e-06 | J21: -2.644867332e-05 | K21: -0.0001113718356 | L21: 3.868136354e-05 | M21: 0.0001799218368 | N21: 7.277529944e-09
A22: 7.93456 | B22: ='DF raw data'!M27 -> -1.779799e-06 | C22: ='DF raw data'!N27 -> -8.766986e-06 | D22: ='DF raw data'!O27 -> -7.0899782e-06 | F22: -1.782290719e-06 | G22: 8.799832641e-06 | H22: -7.099904169e-06 | J22: -2.734010384e-05 | K22: -0.000125046262 | L22: 4.308268784e-05 | M22: 0.0002014700739 | N22: 8.579746154e-09
A23: 8.43472 | B23: ='DF raw data'!M28 -> 2.483752e-06 | C23: ='DF raw data'!N28 -> -1.037585e-05 | D23: ='DF raw data'!O28 -> -9.2991768e-06 | F23: =(1-$G$1*($B$2-$G$2))*B23 -> 2.487229253e-06 | G23: 1.041472446e-05 | H23: -9.312195648e-06 | J23: -2.609609126e-05 | K23: -0.000138098483 | L23: 4.829171642e-05 | M23: 0.0002256236588 | N23: 1.008677618e-08
A24: 8.93488 | B24: ='DF raw data'!M29 -> 5.1073457e-06 | C24: ='DF raw data'!N29 -> -3.3732397e-07 | D24: ='DF raw data'!O29 -> -8.9996838e-06 | F24: 5.114495984e-06 | G24: 3.385877977e-07 | H24: -9.012283357e-06 | J24: -2.353802495e-05 | K24: -0.0001498712615 | L24: 4.846106449e-05 | M24: 0.0002498619448 | N24: 1.153849727e-08
A25: 9.43504 | B25: ='DF raw data'!M30 -> 3.4396674e-06 | C25: ='DF raw data'!N30 -> 3.3448202e-07 | D25: ='DF raw data'!O30 -> -8.0571417e-06 | F25: 3.444482934e-06 | G25: -3.357351999e-07 | H25: -8.068421698e-06 | J25: -2.181523236e-05 | K25: -0.0001607823682 | L25: 4.829314318e-05 | M25: 0.0002740162433 | N25: 1.29430126e-08
A26: 9.9352 | B26: ='DF raw data'!M31 -> 1.0624936e-08 | C26: ='DF raw data'!N31 -> 2.6187549e-06 | D26: ='DF raw data'!O31 -> -6.5458385e-06 | F26: 1.063981091e-08 | G26: -2.628566402e-06 | H26: -6.555002674e-06 | J26: -2.180991075e-05 | K26: -0.0001716908131 | L26: 4.69784394e-05 | M26: 0.0002975129796 | N26: 1.428476481e-08
A27: 10.43536 | B27: ='DF raw data'!M32 -> 5.9968647e-07 | C27: ='DF raw data'!N32 -> -3.4506263e-07 | D27: ='DF raw data'!O32 -> -3.6581855e-06 | F27: 6.005260311e-07 | G27: 3.463554515e-07 | H27: -3.66330696e-06 | J27: -2.150955165e-05 | K27: -0.0001824490305 | L27: 4.715167255e-05 | M27: 0.0003210963601 | N27: 1.562816508e-08
A28: 10.93552 | B28: ='DF raw data'!M33 -> 2.0693717e-06 | C28: ='DF raw data'!N33 -> -5.9289896e-06 | D28: ='DF raw data'!O33 -> -1.3776385e-06 | F28: 2.07226882e-06 | G28: 5.951203322e-06 | H28: -1.379567194e-06 | J28: -2.047308568e-05 | K28: -0.000192688849 | L28: 5.01282264e-05 | M28: 0.0003461684938 | N28: 1.709462735e-08
A29: 11.43568 | B29: ='DF raw data'!M34 -> -2.3399605e-06 | C29: ='DF raw data'!N34 -> -5.164185e-06 | D29: ='DF raw data'!O34 -> -2.3932603e-06 | F29: -2.343236445e-06 | G29: 5.183533284e-06 | H29: -2.396610864e-06 | J29: -2.164507882e-05 | K29: -0.0002035148516 | L29: 5.272082241e-05 | M29: 0.0003725373404 | N29: 1.871914431e-08
A30: 11.93584 | B30: ='DF raw data'!M35 -> -5.9666618e-06 | C30: ='DF raw data'!N35 -> -2.1359222e-06 | D30: ='DF raw data'!O35 -> -2.3878615e-06 | F30: -5.975015127e-06 | G30: 2.143924707e-06 | H30: -2.391204506e-06 | J30: -2.463354239e-05 | K30: -0.0002158355642 | L30: 5.379312779e-05 | M30: 0.0003994425112 | N30: 2.046996039e-08
A31: 12.436 | B31: ='DF raw data'!M36 -> -1.0870115e-06 | C31: ='DF raw data'!N36 -> 6.1142796e-06 | D31: ='DF raw data'!O36 -> 3.6800935e-07 | F31: -1.088533316e-06 | G31: -6.137187535e-06 | H31: 3.685245631e-07 | J31: -2.517798321e-05 | K31: -0.0002284285843 | L31: 5.072355207e-05 | M31: 0.000424812403 | N31: 2.207387827e-08
A32: 12.93616 | B32: ='DF raw data'!M37 -> 6.0846814e-06 | C32: ='DF raw data'!N37 -> 6.5331083e-06 | D32: ='DF raw data'!O37 -> 5.1644224e-06 | F32: 6.093199954e-06 | G32: -6.557585431e-06 | H32: 5.171652591e-06 | J32: -2.213040832e-05 | K32: -0.0002394973293 | L32: 4.744371014e-05 | M32: 0.000448541849 | N32: 2.344464708e-08
A33: 13.43632 | B33: ='DF raw data'!M38 -> 8.5978118e-06 | C33: ='DF raw data'!N38 -> 6.7375181e-06 | D33: ='DF raw data'!O38 -> 7.6411006e-06 | F33: 8.609848737e-06 | G33: -6.762761078e-06 | H33: 7.651798141e-06 | J33: -1.782410638e-05 | K33: -0.0002484122343 | L33: 4.406124756e-05 | M33: 0.0004705795226 | N33: 2.457455469e-08
A34: 13.93648 | B34: ='DF raw data'!M39 -> 8.3364157e-06 | C34: ='DF raw data'!N39 -> 1.1230411e-05 | D34: ='DF raw data'!O39 -> 7.238245e-06 | F34: 8.348086682e-06 | G34: -1.127248718e-05 | H34: 7.248378543e-06 | J34: -1.364872734e-05 | K34: -0.0002552387818 | L34: 3.842320037e-05 | M34: 0.0004897972705 | N34: 2.540613575e-08
A35: 14.43664 | B35: ='DF raw data'!M40 -> 5.2348933e-06 | C35: ='DF raw data'!N40 -> 2.2040635e-06 | D35: ='DF raw data'!O40 -> 2.9554999e-06 | F35: 5.242222151e-06 | G35: -2.212321307e-06 | H35: 2.9596376e-06 | J35: -1.102677751e-05 | K35: -0.0002607539348 | L35: 3.731668575e-05 | M35: 0.000508461584 | N35: 2.616344044e-08
A36: 14.9368 | B36: ='DF raw data'!M41 -> 1.2942677e-07 | C36: ='DF raw data'!N41 -> 3.9826011e-07 | D36: ='DF raw data'!O41 -> 7.8222962e-07 | F36: 1.296079675e-07 | G36: -3.997522427e-07 | H36: 7.833247415e-07 | J36: -1.096195279e-05 | K36: -0.0002662366652 | L36: 3.711674567e-05 | M36: 0.0005270258956 | N36: 2.69125887e-08
A37: 15.43696 | B37: ='DF raw data'!M42 -> -3.9448914e-06 | C37: ='DF raw data'!N42 -> 3.6769657e-06 | D37: ='DF raw data'!O42 -> 5.1275725e-07 | F37: -3.950414248e-06 | G37: -3.690741925e-06 | H37: 5.134751102e-07 | J37: -1.293779198e-05 | K37: -0.0002727076312 | L37: 3.527078418e-05 | M37: 0.000544666931 | N37: 2.761852186e-08
A38: 15.93712 | B38: ='DF raw data'!M43 -> -6.6385674e-06 | C38: ='DF raw data'!N43 -> -1.2523674e-06 | D38: ='DF raw data'!O43 -> -1.5853525e-06 | F38: -6.647861394e-06 | G38: 1.257059556e-06 | H38: -1.587571994e-06 | J38: -1.626278634e-05 | K38: -0.0002808416264 | L38: 3.589951509e-05 | M38: 0.0005626224324 | N38: 2.839539708e-08
A39: 16.43728 | B39: ='DF raw data'!M44 -> -7.8162975e-06 | C39: ='DF raw data'!N44 -> 1.9533536e-06 | D39: ='DF raw data'!O44 -> -5.2914197e-06 | F39: -7.827240316e-06 | G39: -1.960672091e-06 | H39: -5.298827688e-06 | J39: -2.017765885e-05 | K39: -0.0002909336843 | L39: 3.491886534e-05 | M39: 0.0005800874521 | N39: 2.920888986e-08
A40: 16.93744 | B40: ='DF raw data'!M45 -> -7.280365e-06 | C40: ='DF raw data'!N45 -> 4.8012234e-06 | D40: ='DF raw data'!O45 -> -7.2911002e-06 | F40: -7.290557511e-06 | G40: -4.819211801e-06 | H40: -7.30130774e-06 | J40: -2.38241041e-05 | K40: -0.0003028495482 | L40: 3.250848836e-05 | M40: 0.0005963468977 | N40: 3.002134463e-08
A41: 17.4376 | B41: ='DF raw data'!M46 -> -3.4354578e-06 | C41: ='DF raw data'!N46 -> 5.3273266e-06 | D41: ='DF raw data'!O46 -> -6.7436281e-06 | F41: -3.440267441e-06 | G41: -5.347286115e-06 | H41: -6.753069179e-06 | J41: -2.554478826e-05 | K41: -0.0003156260295 | L41: 2.983398974e-05 | M41: 0.000611268666 | N41: 3.079289303e-08
A42: 17.93776 | B42: ='DF raw data'!M47 -> 1.3453412e-06 | C42: ='DF raw data'!N47 -> 4.7653311e-06 | D42: ='DF raw data'!O47 -> -3.6839424e-06 | F42: 1.347224678e-06 | G42: -4.783185026e-06 | H42: -3.689099919e-06 | J42: -2.487096037e-05 | K42: -0.000328065489 | L42: 2.744163192e-05 | M42: 0.0006249938726 | N42: 3.14789164e-08
A43: 18.43792 | B43: ='DF raw data'!M48 -> 4.4782228e-06 | C43: ='DF raw data'!N48 -> -8.2556926e-06 | D43: ='DF raw data'!O48 -> 8.2936327e-07 | F43: 4.484492312e-06 | G43: 8.286623615e-06 | H43: 8.305243786e-07 | J43: -2.262799669e-05 | K43: -0.0003393831078 | L43: 3.158626959e-05 | M43: 0.0006407920612 | N43: 3.223401728e-08
A44: 18.93808 | B44: ='DF raw data'!M49 -> 4.1795302e-06 | C44: ='DF raw data'!N49 -> -1.7229204e-05 | D44: ='DF raw data'!O49 -> 2.4371752e-06 | F44: 4.185381542e-06 | G44: 1.729375543e-05 | H44: 2.440587245e-06 | J44: -2.053463626e-05 | K44: -0.0003496537115 | L44: 4.02359143e-05 | M44: 0.0006609164561 | N44: 3.325464382e-08
A45: 19.43824 | B45: ='DF raw data'!M50 -> 3.5269206e-06 | C45: ='DF raw data'!N50 -> -1.415811e-05 | D45: ='DF raw data'!O50 -> 1.0814024e-06 | F45: 3.531858289e-06 | G45: 1.421115518e-05 | H45: 1.082916363e-06 | J45: -1.876814202e-05 | K45: -0.0003590407854 | L45: 4.734376568e-05 | M45: 0.0006845959139 | N45: 3.455189646e-08
A46: 19.9384 | B46: ='DF raw data'!M51 -> 5.1995903e-06 | C46: ='DF raw data'!N51 -> -6.9900029e-06 | D46: ='DF raw data'!O51 -> -3.9837179e-08 | F46: 5.206869726e-06 | G46: 7.016191845e-06 | H46: -3.989295105e-08 | J46: -1.616387405e-05 | K46: -0.0003671253087 | L46: 5.085298419e-05 | M46: 0.0007100305425 | N46: 3.597600044e-08
A47: 20.43856 | B47: ='DF raw data'!M52 -> 5.5705186e-06 | C47: ='DF raw data'!N52 -> -7.3445185e-06 | D47: ='DF raw data'!O52 -> -3.7067497e-07 | F47: 5.578317326e-06 | G47: 7.372035684e-06 | H47: -3.71193915e-07 | J47: -1.337382286e-05 | K47: -0.0003738143599 | L47: 5.454018156e-05 | M47: 0.0007373093597 | N47: 3.755325027e-08
A48: 20.93872 | B48: ='DF raw data'!M53 -> 3.8067976e-06 | C48: ='DF raw data'!N53 -> -2.3084897e-07 | D48: ='DF raw data'!O53 -> 2.8178475e-08 | F48: 3.812127117e-06 | G48: 2.317138754e-07 | H48: 2.821792486e-08 | J48: -1.146714936e-05 | K48: -0.0003795497693 | L48: 5.465607557e-05 | M48: 0.0007646461425 | N48: 3.911314033e-08
A49: 21.43888 | B49: ='DF raw data'!M54 -> 6.5772347e-06 | C49: ='DF raw data'!N54 -> 6.6355801e-06 | D49: ='DF raw data'!O54 -> 5.6186997e-07 | F49: 6.586442829e-06 | G49: -6.660441155e-06 | H49: 5.62656588e-07 | J49: -8.172874117e-06 | K49: -0.000383637514 | L49: 5.132478932e-05 | M49: 0.0007903167491 | N49: 4.046408743e-08
A50: 21.93904 | B50: ='DF raw data'!M55 -> 9.4590087e-06 | C50: ='DF raw data'!N55 -> 2.2914583e-06 | D50: ='DF raw data'!O55 -> 1.5048777e-06 | F50: 9.472251312e-06 | G50: -2.300043543e-06 | H50: 1.506984529e-06 | J50: -3.435232901e-06 | K50: -0.0003853556801 | L50: 5.017439954e-05 | M50: 0.0008154119768 | N50: 4.172912771e-08
A51: 22.4392 | B51: ='DF raw data'!M56 -> 7.3682768e-06 | C51: ='DF raw data'!N56 -> 9.6599285e-07 | D51: ='DF raw data'!O56 -> 3.0235738e-06 | F51: 7.378592388e-06 | G51: -9.696120665e-07 | H51: 3.027806803e-06 | J51: 2.552438676e-07 | K51: -0.0003852280174 | L51: 4.968943837e-05 | M51: 0.0008402646463 | N51: 4.296407549e-08
A52: 22.93936 | B52: ='DF raw data'!M57 -> 2.8092202e-06 | C52: ='DF raw data'!N57 -> 4.69715e-06 | D52: ='DF raw data'!O57 -> 3.7379709e-06 | F52: 2.813153108e-06 | G52: -4.714748477e-06 | H52: 3.743204059e-06 | J52: 1.662270526e-06 | K52: -0.0003843966161 | L52: 4.733130977e-05 | M52: 0.0008639378742 | N52: 4.408594239e-08
A53: 23.43952 | B53: ='DF raw data'!M58 -> 1.6168071e-06 | C53: ='DF raw data'!N58 -> -3.6503207e-06 | D53: ='DF raw data'!O58 -> 3.0404831e-06 | F53: 1.61907063e-06 | G53: 3.663997096e-06 | H53: 3.044739776e-06 | J53: 2.472064893e-06 | K53: -0.0003831601882 | L53: 4.916389456e-05 | M53: 0.0008885276877 | N53: 4.529792991e-08
A54: 23.93968 | B54: ='DF raw data'!M59 -> 1.5393764e-06 | C54: ='DF raw data'!N59 -> -8.4705107e-06 | D54: ='DF raw data'!O59 -> 2.5115064e-06 | F54: 1.541531527e-06 | G54: 8.502246558e-06 | H54: 2.515022509e-06 | J54: 3.243077301e-06 | K54: -0.0003815381306 | L54: 5.34163782e-05 | M54: 0.0009152444234 | N54: 4.673030163e-08
A55: 24.43984 | B55: ='DF raw data'!M60 -> 2.5350912e-06 | C55: ='DF raw data'!N60 -> -8.9131345e-07 | D55: ='DF raw data'!O60 -> 4.6743867e-06 | F55: 2.538640328e-06 | G55: 8.946528705e-07 | H55: 4.680930841e-06 | J55: 4.512803647e-06 | K55: -0.0003792810067 | L55: 5.386384778e-05 | M55: 0.0009421849655 | N55: 4.819160885e-08
A56: 24.94 | B56: ='DF raw data'!M61 -> 3.0397807e-06 | C56: ='DF raw data'!N61 -> 4.2773881e-06 | D56: ='DF raw data'!O61 -> 8.8294828e-06 | F56: 3.044036393e-06 | G56: -4.293413885e-06 | H56: 8.841844076e-06 | J56: 6.03530889e-06 | K56: -0.0003762623866 | L56: 5.171645389e-05 | M56: 0.0009680514671 | N56: 4.954755089e-08
A57: 25.44016 | B57: ='DF raw data'!M62 -> 1.872397e-06 | C57: ='DF raw data'!N62 -> 4.7738251e-07 | D57: ='DF raw data'!O62 -> 1.0407682e-05 | F57: 1.875018356e-06 | G57: -4.79171085e-07 | H57: 1.042225275e-05 | J57: 6.97311807e-06 | K57: -0.0003727747119 | L57: 5.147679168e-05 | M57: 0.0009937980992 | N57: 5.089722487e-08
A58: 25.94032 | B58: ='DF raw data'!M63 -> -8.0164462e-08 | C58: ='DF raw data'!N63 -> -1.226718e-05 | D58: ='DF raw data'!O63 -> 7.003377e-06 | F58: -8.027669225e-08 | G58: 1.231314057e-05 | H58: 7.013181728e-06 | J58: 6.93296688e-06 | K58: -0.0003693071192 | L58: 5.763533207e-05 | M58: 0.001022624987 | N58: 5.258271282e-08
A59: 26.44048 | B59: ='DF raw data'!M64 -> -2.1662106e-06 | C59: ='DF raw data'!N64 -> -7.4984937e-06 | D59: ='DF raw data'!O64 -> 2.5627583e-06 | F59: -2.169243295e-06 | G59: 7.526587771e-06 | H59: 2.566346162e-06 | J59: 5.847998154e-06 | K59: -0.0003663821844 | L59: 6.139983021e-05 | M59: 0.001053334726 | N59: 5.44853906e-08
A60: 26.94064 | B60: ='DF raw data'!M65 -> -2.1204303e-06 | C60: ='DF raw data'!N65 -> -1.6928105e-06 | D60: ='DF raw data'!O65 -> 1.361585e-06 | F60: -2.123398902e-06 | G60: 1.699152832e-06 | H60: 1.363491219e-06 | J60: 4.785958959e-06 | K60: -0.0003639884392 | L60: 6.224967849e-05 | M60: 0.001084469525 | N60: 5.643497821e-08
A61: 27.4408 | B61: ='DF raw data'!M66 -> -2.5007591e-06 | C61: ='DF raw data'!N66 -> -1.1754153e-05 | D61: ='DF raw data'!O66 -> 3.0374854e-06 | F61: -2.504260163e-06 | G61: 1.179819145e-05 | H61: 3.04173788e-06 | J61: 3.533428196e-06 | K61: -0.0003622211598 | L61: 6.815066192e-05 | M61: 0.00111855576 | N61: 5.876422225e-08
A62: 27.94096 | B62: ='DF raw data'!M67 -> -2.7976037e-06 | C62: ='DF raw data'!N67 -> -6.16649e-06 | D62: ='DF raw data'!O67 -> 2.9914286e-06 | F62: -2.801520345e-06 | G62: 6.189593548e-06 | H62: 2.9956166e-06 | J62: 2.13221978e-06 | K62: -0.0003611547087 | L62: 7.124644903e-05 | M62: 0.001154190384 | N62: 6.130533657e-08
A63: 28.44112 | B63: ='DF raw data'!M68 -> -1.8036351e-06 | C63: ='DF raw data'!N68 -> 7.3668939e-06 | D63: ='DF raw data'!O68 -> 1.3919985e-06 | F63: -1.806160189e-06 | G63: -7.394494916e-06 | H63: 1.393947298e-06 | J63: 1.2288507e-06 | K63: -0.0003605400867 | L63: 6.754801845e-05 | M63: 0.001187975201 | N63: 6.358818929e-08
A64: 28.94128 | B64: ='DF raw data'!M69 -> -1.4060768e-06 | C64: ='DF raw data'!N69 -> 1.4130985e-05 | D64: ='DF raw data'!O69 -> 9.0583359e-07 | F64: -1.408045308e-06 | G64: -1.418392855e-05 | H64: 9.07101757e-07 | J64: 5.246027586e-07 | K64: -0.0003602777014 | L64: 6.045378475e-05 | M64: 0.001218211766 | N64: 6.541624173e-08
A65: 29.44144 | B65: ='DF raw data'!M70 -> -2.608356e-06 | C65: ='DF raw data'!N70 -> 3.6880401e-06 | D65: ='DF raw data'!O70 -> 1.5828715e-07 | F65: -2.612007698e-06 | G65: -3.701857817e-06 | H65: 1.58508752e-07 | J65: -7.818190118e-07 | K65: -0.000360668736 | L65: 5.860226354e-05 | M65: 0.001247522274 | N65: 6.713420957e-08
A66: 29.9416 | B66: ='DF raw data'!M71 -> -4.2164302e-06 | C66: ='DF raw data'!N71 -> 6.4367737e-06 | D66: ='DF raw data'!O71 -> -9.5729183e-07 | F66: -4.222333202e-06 | G66: -6.460889901e-06 | H66: -9.586320386e-07 | J66: -2.893661186e-06 | K66: -0.0003621160296 | L66: 5.537078485e-05 | M66: 0.001275216526 | N66: 6.867185e-08
A67: 30.44176 | B67: ='DF raw data'!M72 -> -2.1352441e-06 | C67: ='DF raw data'!N72 -> 8.9701086e-07 | D67: ='DF raw data'!O72 -> -2.8031004e-06 | F67: -2.138233442e-06 | G67: -9.003716266e-07 | H67: -2.807024741e-06 | J67: -3.963120024e-06 | K67: -0.0003640982237 | L67: 5.492045498e-05 | M67: 0.001302685541 | N67: 7.018831646e-08
A68: 30.94192 | B68: ='DF raw data'!M73 -> 8.3646448e-08 | C68: ='DF raw data'!N73 -> 5.0648755e-06 | D68: ='DF raw data'!O73 -> -1.9427475e-06 | F68: 8.376355303e-08 | G68: -5.083851708e-06 | H68: -1.945467346e-06 | J68: -3.921224846e-06 | K68: -0.0003660594635 | L68: 5.237771571e-05 | M68: 0.001328882779 | N68: 7.156815842e-08
A69: 31.44208 | B69: ='DF raw data'!M74 -> -3.0397291e-07 | C69: ='DF raw data'!N74 -> 7.3849935e-07 | D69: ='DF raw data'!O74 -> -1.1977477e-06 | F69: -3.043984721e-07 | G69: -7.412662328e-07 | H69: -1.199424547e-06 | J69: -4.073472786e-06 | K69: -0.0003680968517 | L69: 5.200696399e-05 | M69: 0.001354894582 | N69: 7.292925258e-08
A70: 31.94224 | B70: ='DF raw data'!M75 -> -5.3239432e-07 | C70: ='DF raw data'!N75 -> -2.2101076e-06 | D70: ='DF raw data'!O75 -> -6.8568028e-07 | F70: -5.33139672e-07 | G70: 2.218388052e-06 | H70: -6.866402324e-07 | J70: -4.340127924e-06 | K70: -0.0003702676101 | L70: 5.311651296e-05 | M70: 0.001381461337 | N70: 7.434980734e-08
A71: 32.4424 | B71: ='DF raw data'!M76 -> 7.1729505e-07 | C71: ='DF raw data'!N76 -> 3.0793001e-07 | D71: ='DF raw data'!O76 -> 3.3570163e-06 | F71: 7.182992631e-07 | G71: =(1-$G$1*($B$2-$G$2))*C71*$M$2/$M$1 -> -3.090837094e-07 | H71: 3.361716123e-06 | J71: -3.980863365e-06 | K71: -0.0003722586787 | L71: 5.296192165e-05 | M71: 0.001407950772 | N71: 7.576066488e-08
A72: =A71+$B$1 -> 32.94256 | B72: ='DF raw data'!M77 -> 2.7450753e-06 | C72: ='DF raw data'!N77 -> 8.7131748e-06 | D72: ='DF raw data'!O77 -> 9.4811176e-06 | F72: 2.748918405e-06 | G72: -8.74581983e-06 | H72: 9.494391165e-06 | J72: =F72*$B$1+J71 -> -2.605964335e-06 | K72: =J72*$B$1+K71 -> -0.0003735620778 | L72: =G72*$B$1+L71 -> 4.85876124e-05 | M72: =L72*$B$1+M71 -> 0.001432252352 | N72: =(J72^2+L72^2)*$B$1+N71 -> 7.694481725e-08
A73: 33.44272 | B73: ='DF raw data'!M78 -> 4.2859192e-06 | C73: ='DF raw data'!N78 -> 1.1459506e-05 | D73: ='DF raw data'!O78 -> 1.3370408e-05 | F73: 4.291919487e-06 | G73: -1.150244051e-05 | H73: 1.338912657e-05 | J73: -4.593178843e-07 | K73: -0.0003737918102 | L73: 4.283455176e-05 | M73: 0.001453676482 | N73: 7.786261575e-08
A74: 33.94288 | B74: ='DF raw data'!M79 -> 1.2954135e-06 | C74: ='DF raw data'!N79 -> 1.0683315e-06 | D74: ='DF raw data'!O79 -> 1.1354822e-05 | F74: 1.297227079e-06 | G74: -1.072334141e-06 | H74: 1.137071875e-05 | J74: 1.895032115e-07 | K74: -0.0003736970283 | L74: 4.229821311e-05 | M74: 0.001474832356 | N74: 7.875748939e-08
A75: 34.44304 | B75: ='DF raw data'!M80 -> -4.41681e-06 | C75: ='DF raw data'!N80 -> -1.1613254e-05 | D75: ='DF raw data'!O80 -> 4.7232957e-06 | F75: -4.422993534e-06 | G75: 1.165676455e-05 | H75: 4.729908314e-06 | J75: -2.022701234e-06 | K75: -0.0003747087026 | L75: 4.812846047e-05 | M75: 0.001498904287 | N75: 7.991808067e-08
A76: 34.9432 | B76: ='DF raw data'!M81 -> -6.346394e-06 | C76: ='DF raw data'!N81 -> -1.1903458e-05 | D76: ='DF raw data'!O81 -> -1.7883517e-06 | F76: -6.355278952e-06 | G76: 1.194805584e-05 | H76: -1.790855392e-06 | J76: -5.201357555e-06 | K76: -0.0003773102136 | L76: 5.410440008e-05 | M76: 0.001525965143 | N76: 8.139572348e-08
A77: 35.44336 | B77: ='DF raw data'!M82 -> -4.9590726e-06 | C77: ='DF raw data'!N82 -> -1.7141589e-06 | D77: ='DF raw data'!O82 -> -4.652969e-06 | F77: -4.966015302e-06 | G77: 1.720581217e-06 | H77: -4.659483157e-06 | J77: -7.685159768e-06 | K77: -0.0003811540231 | L77: 5.496496598e-05 | M77: 0.001553456421 | N77: 8.29363209e-08
A78: 35.94352 | B78: ='DF raw data'!M83 -> -3.9725837e-06 | C78: ='DF raw data'!N83 -> -7.0611657e-07 | D78: ='DF raw data'!O83 -> -2.8455629e-06 | F78: -3.978145317e-06 | G78: 7.087621266e-07 | H78: -2.849546688e-06 | J78: -9.67486893e-06 | K78: -0.0003859930055 | L78: 5.531946044e-05 | M78: 0.001581125002 | N78: 8.451374841e-08
A79: 36.44368 | B79: ='DF raw data'!M84 -> -6.7289307e-07 | C79: ='DF raw data'!N84 -> 1.2018919e-06 | D79: ='DF raw data'!O84 -> -1.2881296e-06 | F79: -6.738351203e-07 | G79: -1.206394943e-06 | H79: -1.289932981e-06 | J79: -1.00118943e-05 | K79: -0.0003910005546 | L79: 5.471606995e-05 | M79: 0.001608491792 | N79: 8.606128663e-08
A80: 36.94384 | B80: ='DF raw data'!M85 -> 3.3204581e-06 | C80: ='DF raw data'!N85 -> 3.1277796e-06 | D80: ='DF raw data'!O85 -> -2.6643334e-06 | F80: 3.325106741e-06 | G80: -3.139498229e-06 | H80: -2.668063467e-06 | J80: -8.348808916e-06 | K80: -0.0003951762948 | L80: 5.314581851e-05 | M80: 0.001635073204 | N80: 8.750884002e-08
A81: 37.444 | B81: ='DF raw data'!M86 -> 2.8870584e-06 | C81: ='DF raw data'!N86 -> -1.8837447e-06 | D81: ='DF raw data'!O86 -> -4.2296247e-06 | F81: 2.891100282e-06 | G81: 1.890802392e-06 | H81: -4.235546175e-06 | J81: -6.902796199e-06 | K81: -0.0003986287974 | L81: 5.409152224e-05 | M81: 0.00166212762 | N81: 8.899608647e-08
A82: 37.94416 | B82: ='DF raw data'!M87 -> -7.7434902e-07 | C82: ='DF raw data'!N87 -> 4.1112712e-06 | D82: ='DF raw data'!O87 -> -4.4956337e-06 | F82: -7.754331086e-07 | G82: -4.126674607e-06 | H82: -4.501927587e-06 | J82: -7.290636823e-06 | K82: -0.0004022752823 | L82: 5.202752467e-05 | M82: 0.001688149707 | N82: 9.037653643e-08
A83: 38.44432 | B83: ='DF raw data'!M88 -> -2.5151073e-06 | C83: ='DF raw data'!N88 -> 3.4995958e-07 | D83: ='DF raw data'!O88 -> -4.2421975e-06 | F83: -2.51862845e-06 | G83: -3.512707486e-07 | H83: -4.248136576e-06 | J83: -8.550354028e-06 | K83: -0.0004065518274 | L83: 5.185183309e-05 | M83: 0.00171408392 | N83: 9.175783888e-08
A84: 38.94448 | B84: ='DF raw data'!M89 -> -1.3320512e-06 | C84: ='DF raw data'!N89 -> -4.7799149e-06 | D84: ='DF raw data'!O89 -> -5.3483905e-06 | F84: -1.333916072e-06 | G84: 4.797823466e-06 | H84: -5.355878247e-06 | J84: -9.217525491e-06 | K84: -0.0004111620649 | L84: 5.425151247e-05 | M84: 0.001741218356 | N84: 9.327241808e-08
